Workbook

Sheet ACS_Notes (hidden)
A1: NOTES:
A4: Data are based on a sample and are subject to sampling variability. The degree of uncertainty for an estimate arising from sampling variability is represented through the use of a margin of error. The value shown here is the 90 percent margin of error. The margin of error can be interpreted roughly as providing a 90 percent probability that the interval defined by the estimate minus the margin of error and the estimate plus the margin of error (the lower and upper confidence bounds) contains the true value. In addition to sampling variability, the ACS estimates are subject to nonsampling error (for a discussion of nonsampling variability, see Accuracy of the Data). The effect of nonsampling error is not represented in these tables.
A8: In addition to sampling variability, the ACS estimates are subject to nonsampling error (for a discussion of nonsampling variability, see Accuracy of the Data. The link is located at the end of this worksheet.). The effect of nonsampling error is not represented in these tables.
A11: While the 2005-2009 American Community Survey (ACS) data generally reflect the November 2008 Office of Management and Budget (OMB) definitions of metropolitan and micropolitan statistical areas; in certain instances the names, codes, and boundaries of the principal cities shown in ACS tables may differ from the OMB definitions due to differences in the effective dates of the geographic entities.
A15: Estimates of urban and rural population, housing units, and characteristics reflect boundaries of urban areas defined based on Census 2000 data. Boundaries for urban areas have not been updated since Census 2000. As a result, data for urban and rural areas from the ACS do not necessarily reflect the results of ongoing urbanization.
A17: Explanation of Symbols:
A19: 1. An '**' entry in the margin of error column indicates that either no sample observations or too few sample observations were available to compute a standard error and thus the margin of error. A statistical test is not appropriate.
A21: 2. An '-' entry in the estimate column indicates that either no sample observations or too few sample observations were available to compute an estimate, or a ratio of medians cannot be calculated because one or both of the median estimates falls in the lowest interval or upper interval of an open-ended distribution.
A23: 3. An '-' following a median estimate means the median falls in the lowest interval of an open-ended distribution.
A24: 4. An '+' following a median estimate means the median falls in the upper interval of an open-ended distribution.
A25: 5. An '***' entry in the margin of error column indicates that the median falls in the lowest interval or upper interval of an open-ended distribution. A statistical test is not appropriate.
A26: 6. An '*****' entry in the margin of error column indicates that the estimate is controlled. A statistical test for sampling variability is not appropriate.
A28: Accuracy of Data

Sheet StartInstruction
A1: Demographic Profiles for Municipalities in Strafford County
A3: To view or print a Demographic Profile follow the steps below
A6: Step 1. | C6: Select the municipality you wish to
C7: Profile from the drop down box below.
A12: Step 2. | C12: Click one of the profile topic buttons below to review or print
C13: the information for the selected geography.
C14: Don't forget to adjust the axis on charts as necessary.
N28: Updated: | P28: 2023-12-07
N30: Next Update: | P30: Spring 2024 Annual Employment Date

Sheet ACS_Table_B08303 (hidden)
B1: B08303: TRAVEL TIME TO WORK
B2: Universe: Workers 16 years and over who did not work at home
B3: Data Set: 2006-2010 American Community Survey 3-Year Estimates
C5: Barrington | E5: Dover | G5: Durham | I5: Farmington | K5: Lee | M5: Madbury | O5: Middleton | Q5: Milton | S5: New Durham | U5: Rochester | W5: Rollinsford | Y5: Somersworth | AA5: Strafford
C6: Esitimate | D6: Margin Of Error | E6: Esitimate | F6: Margin Of Error | G6: Esitimate | H6: Margin Of Error | I6: Esitimate | J6: Margin Of Error | K6: Esitimate | L6: Margin Of Error | M6: Esitimate | N6: Margin Of Error | O6: Esitimate | P6: Margin Of Error | Q6: Esitimate | R6: Margin Of Error | S6: Esitimate | T6: Margin Of Error | U6: Esitimate | V6: Margin Of Error | W6: Esitimate | X6: Margin Of Error | Y6: Esitimate | Z6: Margin Of Error | AA6: Esitimate | AB6: Margin Of Error
B7: Population Older than 16 not working at hom | C7: 4364 | D7: 462 | E7: 16409 | F7: 701 | G7: 4952 | H7: 441 | I7: 3211 | J7: 401 | K7: 1919 | L7: 349 | M7: 1162 | N7: 211 | O7: 667 | P7: 124 | Q7: 2117 | R7: 264 | S7: 1361 | T7: 207 | U7: 15107 | V7: 680 | W7: 1061 | X7: 181 | Y7: 6442 | Z7: 524 | AA7: 1857 | AB7: 213
B8: Less than 5 minutes | C8: 141 | D8: 113 | E8: 398 | F8: 151 | G8: 402 | H8: 112 | I8: 118 | J8: 136 | K8: 32 | L8: 50 | M8: 11 | N8: 12 | O8: 19 | P8: 14 | Q8: 65 | R8: 59 | S8: 12 | T8: 17 | U8: 408 | V8: 193 | W8: 39 | X8: 30 | Y8: 96 | Z8: 124 | AA8: 51 | AB8: 40
B9: 5 to 9 minutes | C9: 256 | D9: 151 | E9: 1429 | F9: 336 | G9: 1107 | H9: 221 | I9: 365 | J9: 266 | K9: 122 | L9: 80 | M9: 100 | N9: 51 | O9: 6 | P9: 7 | Q9: 76 | R9: 64 | S9: 76 | T9: 45 | U9: 1598 | V9: 318 | W9: 94 | X9: 55 | Y9: 668 | Z9: 231 | AA9: 120 | AB9: 48
B10: 10 to 14 minutes | C10: 525 | D10: 193 | E10: 2816 | F10: 568 | G10: 632 | H10: 155 | I10: 242 | J10: 162 | K10: 95 | L10: 61 | M10: 193 | N10: 55 | O10: 20 | P10: 12 | Q10: 222 | R10: 127 | S10: 50 | T10: 32 | U10: 1843 | V10: 321 | W10: 124 | X10: 53 | Y10: 1248 | Z10: 395 | AA10: 121 | AB10: 60
B11: 15 to 19 minutes | C11: 485 | D11: 175 | E11: 2962 | F11: 430 | G11: 803 | H11: 171 | I11: 325 | J11: 164 | K11: 302 | L11: 162 | M11: 145 | N11: 82 | O11: 20 | P11: 17 | Q11: 327 | R11: 142 | S11: 62 | T11: 34 | U11: 2210 | V11: 404 | W11: 138 | X11: 54 | Y11: 708 | Z11: 235 | AA11: 62 | AB11: 42
B12: 20 to 24 minutes | C12: 872 | D12: 245 | E12: 3237 | F12: 621 | G12: 622 | H12: 178 | I12: 324 | J12: 149 | K12: 301 | L12: 120 | M12: 219 | N12: 81 | O12: 102 | P12: 42 | Q12: 139 | R12: 76 | S12: 82 | T12: 41 | U12: 1512 | V12: 312 | W12: 72 | X12: 46 | Y12: 1022 | Z12: 363 | AA12: 200 | AB12: 81
B13: 25 to 29 minutes | C13: 391 | D13: 187 | E13: 1062 | F13: 284 | G13: 341 | H13: 144 | I13: 246 | J13: 224 | K13: 152 | L13: 95 | M13: 181 | N13: 104 | O13: 32 | P13: 16 | Q13: 102 | R13: 67 | S13: 135 | T13: 74 | U13: 1178 | V13: 235 | W13: 167 | X13: 66 | Y13: 476 | Z13: 198 | AA13: 71 | AB13: 43
B14: 30 to 34 minutes | C14: 607 | D14: 218 | E14: 1858 | F14: 523 | G14: 456 | H14: 118 | I14: 608 | J14: 283 | K14: 404 | L14: 172 | M14: 107 | N14: 54 | O14: 110 | P14: 37 | Q14: 428 | R14: 140 | S14: 331 | T14: 122 | U14: 2324 | V14: 413 | W14: 192 | X14: 68 | Y14: 710 | Z14: 267 | AA14: 376 | AB14: 131
B15: 35 to 39 minutes | C15: 265 | D15: 158 | E15: 691 | F15: 276 | G15: 164 | H15: 96 | I15: 245 | J15: 145 | K15: 95 | L15: 73 | M15: 36 | N15: 32 | O15: 35 | P15: 19 | Q15: 117 | R15: 61 | S15: 68 | T15: 38 | U15: 657 | V15: 205 | W15: 32 | X15: 24 | Y15: 318 | Z15: 161 | AA15: 170 | AB15: 100
B16: 40 to 44 minutes | C16: 282 | D16: 208 | E16: 311 | F16: 147 | G16: 37 | H16: 36 | I16: 103 | J16: 78 | K16: 137 | L16: 110 | M16: 25 | N16: 19 | O16: 29 | P16: 22 | Q16: 87 | R16: 75 | S16: 124 | T16: 61 | U16: 528 | V16: 212 | W16: 22 | X16: 16 | Y16: 268 | Z16: 146 | AA16: 128 | AB16: 57
B17: 45 to 59 minutes | C17: 321 | D17: 175 | E17: 604 | F17: 169 | G17: 201 | H17: 81 | I17: 339 | J17: 178 | K17: 123 | L17: 85 | M17: 42 | N17: 33 | O17: 123 | P17: 43 | Q17: 354 | R17: 140 | S17: 309 | T17: 94 | U17: 1386 | V17: 449 | W17: 49 | X17: 30 | Y17: 425 | Z17: 177 | AA17: 404 | AB17: 108
B18: 60 to 89 minutes | C18: 70 | D18: 55 | E18: 796 | F18: 281 | G18: 155 | H18: 58 | I18: 296 | J18: 202 | K18: 79 | L18: 87 | M18: 58 | N18: 32 | O18: 110 | P18: 41 | Q18: 155 | R18: 88 | S18: 45 | T18: 25 | U18: 1059 | V18: 275 | W18: 82 | X18: 44 | Y18: 348 | Z18: 165 | AA18: 86 | AB18: 57
B19: 90 or more minutes | C19: 149 | D19: 132 | E19: 245 | F19: 129 | G19: 32 | H19: 23 | I19: 0 | J19: 17 | K19: 77 | L19: 117 | M19: 45 | N19: 23 | O19: 61 | P19: 47 | Q19: 45 | R19: 45 | S19: 67 | T19: 47 | U19: 404 | V19: 160 | W19: 50 | X19: 29 | Y19: 155 | Z19: 104 | AA19: 68 | AB19: 39
C39: 642668 | D39: 3466 | E39: 28483 | F39: 1018 | G39: 21150 | H39: 846 | I39: 36744 | J39: 934 | K39: 14089 | L39: 645 | M39: 42727 | N39: 1151 | O39: 197866 | P39: 2634 | Q39: 70876 | R39: 1467 | S39: 148355 | T39: 1823 | U39: 61589 | V39: 1595 | W39: 20789 | X39: 620
C40: Estimate

Sheet PopulationCharacteristics (hidden)
B2: =CntyDataLink!A35 -> Rochester
G3: Land Area: | I3: =((CntyDataLink!F35*10.764)/43560)/640 -> 45.15152243 | N3: Water Area: | O3: =((CntyDataLink!G35*10.764)/43560)/640 -> 0.6275077169
B4: POPULATION CHARACTERISTICS
C18: ="Source: US Census; Office of Planning and Devolpment, NH BEA; "& L20&", "&P20&", and "&S20&" American Community Survey Table B01001" -> Source: US Census; Office of Planning and Devolpment, NH BEA; 2008-2012, 2013-2017, and 2018-2022 American Community Survey Table B01001
B19: Population | N19: Population by Age | P19: ="Source: "& L20&", "&P20&", and "&S20&" American Community Survey Tables B01001 and B01002" -> Source: 2008-2012, 2013-2017, and 2018-2022 American Community Survey Tables B01001 and B01002
L20: 2008-2012 | P20: 2013-2017 | S20: 2018-2022
C21: 1990 | D21: 2000 | E21: 2010 | F21: 2020 | G21: 2018-2022 | H21: 2025 | I21: 2030 | L21: Estimate | N21: Margin of Error | O21: Percent Change | P21: Estimate | Q21: Margin of Error | R21: Percent Change | S21: Estimate | T21: Margin of Error | V21: Percent Change | W21: Statistically Significant Change
C22: =CntyDataLink!$F$20 -> 26630 | D22: =CntyDataLink!$G$20 -> 28461 | E22: =CntyDataLink!$H$20 -> 29752 | F22: =CntyDataLink!$I$20 -> 32492 | G22: =CntyDataLink!$B$132 -> 32317 | H22: =CntyDataLink!$J$20 -> 33801 | I22: =CntyDataLink!$K$20 -> 34894 | K22: Under 15 yrs. | L22: =CntyDataLinkPrior10YearEstimate!$D$132 -> 4630 | N22: =CntyDataLinkPrior10YearEstimate!$E$132 -> 474.2689111 | O22: =L22/SUM($L$22:$L$29) -> 0.1552128729 | P22: =CntyDataLinkPrior5YearEstimates!$D$132 -> 4974 | Q22: =CntyDataLinkPrior5YearEstimates!$E$132 -> 456.5599632 | R22: =P22/SUM($P$22:$P$29) -> 0.1646365683 | S22: =CntyDataLink!$D$132 -> 5379 | T22: =CntyDataLink!$E$132 -> 581.3071477 | U22: =S22/SUM($S$22:$S$29) -> 0.1664449052 | V22: =(S22-P22)/P22 -> 0.08142340169 | W22: =StatisticallySignificantCalcs!$A3 -> Y
K23: 15 to 24 yrs. | L23: =CntyDataLinkPrior10YearEstimate!$F$132 -> 3933 | N23: =CntyDataLinkPrior10YearEstimate!$G$132 -> 511.6717698 | O23: =L23/SUM($L$22:$L$29) -> 0.1318471338 | P23: =CntyDataLinkPrior5YearEstimates!$F$132 -> 3770 | Q23: =CntyDataLinkPrior5YearEstimates!$G$132 -> 478.4140466 | R23: 0.1247848537 | S23: =CntyDataLink!$F$132 -> 4073 | T23: =CntyDataLink!$G$132 -> 538.9786638 | U23: 0.1260327382 | V23: 0.08037135279 | W23: =StatisticallySignificantCalcs!$A4 -> Y
B24: Percent Change | K24: 25 to 34 yrs. | L24: =CntyDataLinkPrior10YearEstimate!$H$132 -> 3447 | N24: =CntyDataLinkPrior10YearEstimate!$I$132 -> 360.8032705 | O24: =L24/SUM($L$22:$L$29) -> 0.1155548106 | P24: =CntyDataLinkPrior5YearEstimates!$H$132 -> 4106 | Q24: =CntyDataLinkPrior5YearEstimates!$I$132 -> 404.1311668 | R24: 0.1359062624 | S24: =CntyDataLink!$H$132 -> 3883 | T24: =CntyDataLink!$I$132 -> 458.9063085 | U24: 0.1201534796 | V24: -0.05431076473 | W24: =StatisticallySignificantCalcs!$A5 -> Y
D25: =C21&"-2020" -> 1990-2020 | E25: =D21&"-2020" -> 2000-2020 | F25: =E21&"-2020" -> 2010-2020 | G25: =F21&"-2030" -> 2020-2030 | H25: =G21&"-"&H21 -> 2018-2022-2025 | I25: =H21&"-"&I21 -> 2025-2030 | K25: 35 to 44 yrs. | L25: =CntyDataLinkPrior10YearEstimate!$J$132 -> 4261 | N25: =CntyDataLinkPrior10YearEstimate!$K$132 -> 399.4871713 | O25: 0.1428427757 | P25: =CntyDataLinkPrior5YearEstimates!$J$132 -> 3942 | Q25: =CntyDataLinkPrior5YearEstimates!$K$132 -> 392.7721986 | R25: 0.1304779558 | S25: =CntyDataLink!$J$132 -> 4020 | T25: =CntyDataLink!$K$132 -> 491.3562862 | U25: 0.1243927345 | V25: 0.0197869102 | W25: =StatisticallySignificantCalcs!$A6 -> Y
D26: =(D22-C22)/C22 -> 0.06875704093 | E26: 0.04536031763 | F26: 0.0920946491 | G26: -0.005385941155 | H26: 0.04592010397 | I26: 0.03233632141 | K26: 45 to 54 yrs. | L26: =CntyDataLinkPrior10YearEstimate!$L$132 -> 4797 | N26: =CntyDataLinkPrior10YearEstimate!$M$132 -> 365.3833603 | O26: 0.1608112638 | P26: =CntyDataLinkPrior5YearEstimates!$L$132 -> 4300 | Q26: =CntyDataLinkPrior5YearEstimates!$M$132 -> 371.3354279 | R26: 0.142327552 | S26: =CntyDataLink!$L$132 -> 4322 | T26: =CntyDataLink!$M$132 -> 461.1594084 | U26: 0.1337376613 | V26: 0.00511627907 | W26: =StatisticallySignificantCalcs!$A7 -> Y
K27: 55 to 64 yrs. | L27: =CntyDataLinkPrior10YearEstimate!$N$132 -> 4091 | N27: =CntyDataLinkPrior10YearEstimate!$O$132 -> 402.4686323 | O27: 0.137143815 | P27: =CntyDataLinkPrior5YearEstimates!$N$132 -> 3893 | Q27: =CntyDataLinkPrior5YearEstimates!$O$132 -> 389.179907 | R27: 0.1288560837 | S27: =CntyDataLink!$N$132 -> 5019 | T27: =CntyDataLink!$O$132 -> 503.8769691 | U27: 0.1553052573 | V27: 0.2892370922 | W27: =StatisticallySignificantCalcs!$A8 -> Y
K28: 65 to 74 yrs. | L28: =CntyDataLinkPrior10YearEstimate!$P$132 -> 2698 | N28: =CntyDataLinkPrior10YearEstimate!$Q$132 -> 303.272155 | O28: 0.09044585987 | P28: =CntyDataLinkPrior5YearEstimates!$P$132 -> 3047 | Q28: =CntyDataLinkPrior5YearEstimates!$Q$132 -> 337.8609181 | R28: 0.1008539653 | S28: =CntyDataLink!$P$132 -> 3380 | T28: =CntyDataLink!$Q$132 -> 476.8626637 | U28: 0.1045889161 | V28: 0.1092878241 | W28: =StatisticallySignificantCalcs!$A9 -> Y
K29: Over 74 yrs. | L29: =CntyDataLinkPrior10YearEstimate!$R$132 -> 1973 | N29: =CntyDataLinkPrior10YearEstimate!$S$132 -> 267.8712377 | O29: 0.06614146832 | P29: =CntyDataLinkPrior5YearEstimates!$R$132 -> 2180 | Q29: =CntyDataLinkPrior5YearEstimates!$S$132 -> 302.9306851 | R29: 0.0721567589 | S29: =CntyDataLink!$R$132 -> 2241 | T29: =CntyDataLink!$S$132 -> 377.9603154 | U29: 0.06934430795 | V29: 0.02798165138 | W29: =StatisticallySignificantCalcs!$A10 -> Y
K30: Median Age (years) | L30: =CntyDataLinkPrior10YearEstimate!$AX132 -> 42.6 | N30: =CntyDataLinkPrior10YearEstimate!$AY$132 -> 1 | P30: =CntyDataLinkPrior5YearEstimates!$AX132 -> 41.1 | Q30: =CntyDataLinkPrior5YearEstimates!$AY$132 -> 1 | S30: =CntyDataLink!$AX$132 -> 42.6 | T30: =CntyDataLink!$AY$132 -> 1.8
B32: Population By Race | M32: Statistically Significant Change
M33: =IF(L36="","-",StatisticallySignificantCalcs!A20) -> Y
C34: =L20 -> 2008-2012 | F34: =P20 -> 2013-2017 | I34: =S20 -> 2018-2022 | L34: Statistically Significant Change
C35: Estimate | D35: Margin of Error | F35: Estimate | G35: Margin of Error | I35: Estimate | J35: Margin of Error | L35: 2012-2022 | M35: 2017-2022
B36: White | C36: =CntyDataLinkPrior10YearEstimate!$AL$132 -> 28204 | D36: =CntyDataLinkPrior10YearEstimate!$AM$132 -> 414 | E36: =IF(C$36="-","-",VALUE(C36/$C$41)) -> 0.9454911163 | F36: =CntyDataLinkPrior5YearEstimates!$AL$132 -> 28298 | G36: =CntyDataLinkPrior5YearEstimates!$AM$132 -> 439 | H36: =IF(F$36="-","-",VALUE(F36/$F$41)) -> 0.9366476897 | I36: =CntyDataLink!$AL$132 -> 29393 | J36: =CntyDataLink!$AM$132 -> 540 | K36: =IF(I$36="-","-",VALUE(I36/$I$41)) -> 0.9095213046 | L36: =StatisticallySignificantCalcs!A20 -> Y | M36: =StatisticallySignificantCalcs!J20 -> Y
B37: Black | C37: =CntyDataLinkPrior10YearEstimate!$AN132 -> 276 | D37: =CntyDataLinkPrior10YearEstimate!$AO$132 -> 156 | E37: =IF(C$37="-","-",VALUE(C37/$C$41)) -> 0.009252430439 | F37: =CntyDataLinkPrior5YearEstimates!$AN132 -> 227 | G37: =CntyDataLinkPrior5YearEstimates!$AO$132 -> 187 | H37: =IF(F$37="-","-",VALUE(F37/$F$41)) -> 0.007513570767 | I37: =CntyDataLink!$AN$132 -> 324 | J37: =CntyDataLink!$AO$132 -> 194 | K37: =IF(I$37="-","-",VALUE(I37/$I$41)) -> 0.01002568308 | L37: =StatisticallySignificantCalcs!A21 -> N | M37: =StatisticallySignificantCalcs!J21 -> N
B38: American Indian | C38: =CntyDataLinkPrior10YearEstimate!$AP$132 -> 33 | D38: =CntyDataLinkPrior10YearEstimate!$AQ$132 -> 37 | E38: =IF(C$38="-","-",VALUE(C38/$C$41)) -> 0.001106268857 | F38: =CntyDataLinkPrior5YearEstimates!$AP$132 -> 20 | G38: =CntyDataLinkPrior5YearEstimates!$AQ$132 -> 24 | H38: =IF(F$38="-","-",VALUE(F38/$F$41)) -> 0.0006619886138 | I38: =CntyDataLink!$AP$132 -> 4 | J38: =CntyDataLink!$AQ$132 -> 8 | K38: =IF(I$38="-","-",VALUE(I38/$I$41)) -> 0.0001237738651 | L38: =StatisticallySignificantCalcs!A22 -> N | M38: =StatisticallySignificantCalcs!J22 -> N
B39: Asian &Pacific Is. | C39: =CntyDataLinkPrior10YearEstimate!$AR$132 -> 194 | D39: =CntyDataLinkPrior10YearEstimate!$AS$132 -> 163.7833935 | E39: =IF(C$39="-","-",VALUE(C39/$C$41)) -> 0.006503519946 | F39: =CntyDataLinkPrior5YearEstimates!$AR$132 -> 408 | G39: =CntyDataLinkPrior5YearEstimates!$AS$132 -> 235.2275494 | H39: =IF(F$39="-","-",VALUE(F39/$F$41)) -> 0.01350456772 | I39: =CntyDataLink!$AR$132 -> 713 | J39: =CntyDataLink!$AS$132 -> 353.4756003 | K39: =IF(I$39="-","-",VALUE(I39/$I$41)) -> 0.02206269146 | L39: =StatisticallySignificantCalcs!A23 -> Y | M39: =StatisticallySignificantCalcs!J23 -> N
B40: Other* | C40: =CntyDataLinkPrior10YearEstimate!$AT$132 -> 537 | D40: =CntyDataLinkPrior10YearEstimate!$AU$132 -> 239.585058 | E40: =IF(C$40="-","-",VALUE(C40/$C$41)) -> 0.0180020114 | F40: =CntyDataLinkPrior5YearEstimates!$AT$132 -> 692 | G40: =CntyDataLinkPrior5YearEstimates!$AU$132 -> 316.1281386 | H40: =IF(F$40="-","-",VALUE(F40/$F$41)) -> 0.02290480604 | I40: =CntyDataLink!$AT$132 -> 1059 | J40: =CntyDataLink!$AU$132 -> 294.0646187 | K40: =IF(I$40="-","-",VALUE(I40/$I$41)) -> 0.0327691308 | L40: =StatisticallySignificantCalcs!A24 -> Y | M40: =StatisticallySignificantCalcs!J24 -> N
B41: Total Population | C41: =CntyDataLinkPrior10YearEstimate!$B$132 -> 29830 | D41: =CntyDataLinkPrior10YearEstimate!$C$132 -> 29 | F41: =CntyDataLinkPrior5YearEstimates!$B$132 -> 30212 | G41: =CntyDataLinkPrior5YearEstimates!$C$132 -> 21 | I41: =CntyDataLink!$B$132 -> 32317 | J41: =CntyDataLink!$C$132 -> 37
B42: Hispanic | C42: =CntyDataLinkPrior10YearEstimate!$AV$132 -> 590 | D42: =CntyDataLinkPrior10YearEstimate!$AW$132 -> 263 | E42: =IF(C$42="-","-",VALUE(C42/$C$41)) -> 0.01977874623 | F42: =CntyDataLinkPrior5YearEstimates!$AV132 -> 567 | G42: =CntyDataLinkPrior5YearEstimates!$AW$132 -> 270 | H42: =IF(F$42="-","-",VALUE(F42/$F$41)) -> 0.0187673772 | I42: =CntyDataLink!$AV$132 -> 824 | J42: =CntyDataLink!$AW$132 -> 263 | K42: =IF(I$42="-","-",VALUE(I42/$I$41)) -> 0.02549741622 | L42: =StatisticallySignificantCalcs!A26 -> Y | M42: =StatisticallySignificantCalcs!J26 -> Y
B44: * | C44: Other includes population of 2 or more races
B46: ="Source: "& L20&", "&P20&", and "&S20&" American Community Survey Table B03002" -> Source: 2008-2012, 2013-2017, and 2018-2022 American Community Survey Table B03002
C48: Households and Families
D49: =L20 -> 2008-2012 | G49: =P20 -> 2013-2017 | J49: =S20 -> 2018-2022 | N49: Percent Change | P49: Percent Change
D50: Estimate | E50: Margin of Error | G50: Estimate | H50: Margin of Error | J50: Estimate | K50: Margin of Error | N50: =L35 -> 2012-2022 | P50: =M35 -> 2017-2022
C51: Total Households | D51: =CntyDataLinkPrior10YearEstimate!$T$132 -> 29577 | E51: =CntyDataLinkPrior10YearEstimate!$U$132 -> 64 | G51: =CntyDataLinkPrior5YearEstimates!$T$132 -> 12837 | H51: =CntyDataLinkPrior5YearEstimates!$U$132 -> 353 | J51: =CntyDataLink!$T$132 -> 13471 | K51: =CntyDataLink!$U$132 -> 518 | N51: =(J51-D51)/D51 -> -0.5445447476 | P51: =(J51-G51)/G51 -> 0.04938848641
C52: Persons per Household | D52: =CntyDataLinkPrior10YearEstimate!$BD$132 -> 2.32 | E52: =CntyDataLinkPrior10YearEstimate!$BE$132 -> 0.07 | G52: =CntyDataLinkPrior5YearEstimates!$BD$132 -> 2.33909792 | H52: =CntyDataLinkPrior5YearEstimates!$BE$132 -> 0.09204229912 | J52: =CntyDataLink!$BD$132 -> 2.385197832 | K52: =CntyDataLink!$BE$132 -> 0.09204229912 | N52: =(J52-D52)/D52 -> 0.02810251396 | P52: =(J52-G52)/G52 -> 0.0197084149
C53: Family Households | D53: =CntyDataLinkPrior10YearEstimate!$V$132 -> 23065 | E53: =CntyDataLinkPrior10YearEstimate!$U$132 -> 64 | G53: =CntyDataLinkPrior5YearEstimates!$V$132 -> 7943 | H53: =CntyDataLinkPrior5YearEstimates!$U$132 -> 353 | J53: =CntyDataLink!$V$132 -> 8476 | K53: =CntyDataLink!$U$132 -> 518 | N53: -0.6325168003 | P53: =(J53-G53)/G53 -> 0.06710310966
C54: Persons per Family Household | D54: =CntyDataLinkPrior10YearEstimate!$BF$132 -> 2.42 | E54: =CntyDataLinkPrior10YearEstimate!$BG$132 -> 0.09 | G54: =CntyDataLinkPrior5YearEstimates!$BF$132 -> 2.988039783 | H54: =CntyDataLinkPrior5YearEstimates!$BG$132 -> 0.1718401802 | J54: =CntyDataLink!$BF$132 -> 3.033860311 | K54: =CntyDataLink!$BG$132 -> 0.1718401802 | N54: 0.2536612857 | P54: 0.01533464456
C55: Married-Couple Family Hh | D55: =CntyDataLinkPrior10YearEstimate!$X$132 -> 16370 | E55: =CntyDataLinkPrior10YearEstimate!$Y$132 -> 1023 | G55: =CntyDataLinkPrior5YearEstimates!$X$132 -> 6079 | H55: =CntyDataLinkPrior5YearEstimates!$Y$132 -> 344 | J55: =CntyDataLink!$X$132 -> 6382 | K55: =CntyDataLink!$Y$132 -> 444 | N55: -0.6101405009 | P55: 0.0498437243
C56: Single-Parent Family Hh | D56: =CntyDataLinkPrior10YearEstimate!$Z$132 -> 16231 | E56: =CntyDataLinkPrior10YearEstimate!$AA$132 -> 1008 | G56: =CntyDataLinkPrior5YearEstimates!$Z$132 -> 1864 | H56: =CntyDataLinkPrior5YearEstimates!$AA$132 -> 266 | J56: =CntyDataLink!$Z$132 -> 2094 | K56: =CntyDataLink!$AA$132 -> 330 | N56: -0.8709876163 | P56: 0.1233905579
C57: Non-Family Households | D57: =CntyDataLinkPrior10YearEstimate!$AF$132 -> 1595 | E57: =CntyDataLinkPrior10YearEstimate!$AG$132 -> 538 | G57: =CntyDataLinkPrior5YearEstimates!$AF$132 -> 4894 | H57: =CntyDataLinkPrior5YearEstimates!$AG$132 -> 520 | J57: =CntyDataLink!$AF$132 -> 4995 | K57: =CntyDataLink!$AG$132 -> 617 | N57: 2.131661442 | P57: 0.02063751532
C58: Persons per Non-Family Hh | D58: =CntyDataLinkPrior10YearEstimate!$BH$132 -> 2.08 | E58: =CntyDataLinkPrior10YearEstimate!$BI$132 -> 0.14 | G58: =CntyDataLinkPrior5YearEstimates!$BH$132 -> 1.285860237 | H58: =CntyDataLinkPrior5YearEstimates!$BI$132 -> 0.2274449557 | J58: =CntyDataLink!$BH$132 -> 1.284484484 | K58: =CntyDataLink!$BI$132 -> 0.2274449557 | N58: -0.3824593825 | P58: -0.0010699083
B61: As a result of changes in the American Community Survey, direct comparisons between the data should be made with caution.
B63: ="Source: "& L20&", "&P20&", and "&S20&" American Community Survey Table B11001" -> Source: 2008-2012, 2013-2017, and 2018-2022 American Community Survey Table B11001
B64: POPULATION CHARACTERISTICS

Sheet SchoolEnrolEduAttain (hidden)
C2: =CntyDataLink!A50 -> Rochester
C3: SOCIAL CHARACTERISTICS
C21: School Enrollment | F21: 2008-2012 | I21: 2013-2017 | L21: 2018-2022
F22: Estimate | G22: Margin of Error | H22: Percent of Population | I22: Estimate | J22: Margin of Error | K22: Percent of Population | L22: Estimate | M22: Margin of Error | N22: Percent of Population
C23: Population 3 years and over | F23: =CntyDataLinkPrior10YearEstimate!$B$140 -> 29014 | G23: =CntyDataLinkPrior10YearEstimate!$C$140 -> 180 | I23: =CntyDataLinkPrior5YearEstimates!$B$140 -> 29091 | J23: =CntyDataLinkPrior5YearEstimates!$C$140 -> 218 | L23: =CntyDataLink!$B$140 -> 31737 | M23: =CntyDataLink!$C$140 -> 163
C24: Population 3 years & over enrolled in school | F24: =CntyDataLinkPrior10YearEstimate!$D$140 -> 6311 | G24: =CntyDataLinkPrior10YearEstimate!$E$140 -> 455 | H24: =F24/$F$23 -> 0.2175156821 | I24: =CntyDataLinkPrior5YearEstimates!$D$140 -> 5985 | J24: =CntyDataLinkPrior5YearEstimates!$E$140 -> 520 | K24: =I24/$I$23 -> 0.2057337321 | L24: =CntyDataLink!$D$140 -> 7488 | M24: =CntyDataLink!$E$140 -> 685 | N24: =L24/$L$23 -> 0.2359391247
C25: Preprimary (Nursery, Preschool, Kindergarten) | F25: =CntyDataLinkPrior10YearEstimate!$F$140 -> 573 | G25: =CntyDataLinkPrior10YearEstimate!$G$140 -> 154.2627628 | H25: =F25/$F$23 -> 0.01974908665 | I25: =CntyDataLinkPrior5YearEstimates!$F$140 -> 493 | J25: =CntyDataLinkPrior5YearEstimates!$G$140 -> 174.0114939 | K25: =I25/$I$23 -> 0.01694682204 | L25: =CntyDataLink!$F$140 -> 995 | M25: =CntyDataLink!$G$140 -> 253.148178 | N25: =L25/$L$23 -> 0.03135141948
C26: Nursery school and Preschool | F26: =CntyDataLinkPrior10YearEstimate!$H$140 -> 226 | G26: =CntyDataLinkPrior10YearEstimate!$I$140 -> 89 | H26: 0.007789343076 | I26: =CntyDataLinkPrior5YearEstimates!$H$140 -> 279 | J26: =CntyDataLinkPrior5YearEstimates!$I$140 -> 138 | K26: 0.009590595029 | L26: =CntyDataLink!$H$140 -> 61 | M26: =CntyDataLink!$I$140 -> 27 | N26: 0.001922046822
C27: Kindergarten | F27: =CntyDataLinkPrior10YearEstimate!$J$140 -> 347 | G27: =CntyDataLinkPrior10YearEstimate!$K$140 -> 126 | H27: 0.01195974357 | I27: =CntyDataLinkPrior5YearEstimates!$J$140 -> 214 | J27: =CntyDataLinkPrior5YearEstimates!$K$140 -> 106 | K27: 0.007356227012 | L27: =CntyDataLink!$J$140 -> 11 | M27: =CntyDataLink!$K$140 -> 13 | N27: 0.0003465986073
C28: Elementary through High school | F28: =CntyDataLinkPrior10YearEstimate!$P$140 -> 4544 | G28: =CntyDataLinkPrior10YearEstimate!$Q$140 -> 442.5946227 | H28: 0.1566140484 | I28: =CntyDataLinkPrior5YearEstimates!$P$140 -> 4077 | J28: =CntyDataLinkPrior5YearEstimates!$Q$140 -> 456.2400684 | K28: 0.140146437 | L28: =CntyDataLink!$P$140 -> 4711 | M28: =CntyDataLink!$Q$140 -> 522.0162833 | N28: 0.1484387308
C29: Elementary school (grades 1-8) | F29: =CntyDataLinkPrior10YearEstimate!$L$140 -> 2930 | G29: =CntyDataLinkPrior10YearEstimate!$M$140 -> 343.5825956 | H29: 0.100985731 | I29: =CntyDataLinkPrior5YearEstimates!$L$140 -> 2463 | J29: =CntyDataLinkPrior5YearEstimates!$M$140 -> 372.8082617 | K29: 0.08466536042 | L29: =CntyDataLink!$L$140 -> 3127 | M29: =CntyDataLink!$M$140 -> 453.8028206 | N29: 0.09852853137
C30: High school (grades 9-12) | F30: =CntyDataLinkPrior10YearEstimate!$N$140 -> 1614 | G30: =CntyDataLinkPrior10YearEstimate!$O$140 -> 279 | H30: 0.05562831736 | I30: =CntyDataLinkPrior5YearEstimates!$N$140 -> 1614 | J30: =CntyDataLinkPrior5YearEstimates!$O$140 -> 263 | K30: 0.05548107662 | L30: =CntyDataLink!$N$140 -> 1584 | M30: =CntyDataLink!$O$140 -> 258 | N30: 0.04991019945
C31: College or Graduate School | F31: =CntyDataLinkPrior10YearEstimate!$R$140 -> 1194 | G31: =CntyDataLinkPrior10YearEstimate!$S$140 -> 281.7836049 | H31: 0.04115254705 | I31: =CntyDataLinkPrior5YearEstimates!$R$140 -> 1415 | J31: =CntyDataLinkPrior5YearEstimates!$S$140 -> 327.4935114 | K31: 0.048640473 | L31: =CntyDataLink!$R$140 -> 1782 | M31: =CntyDataLink!$S$140 -> 331.8207347 | N31: 0.05614897438
C33: ="Source: "&F21&", "& I21&" and "&L21&" American Community Survey Table B14001" -> Source: 2008-2012, 2013-2017 and 2018-2022 American Community Survey Table B14001
C50: Educational Attainment | F50: =F21 -> 2008-2012 | I50: =I21 -> 2013-2017 | L50: =L21 -> 2018-2022
F51: Estimate | G51: Margin of Error | H51: Percent of Population | I51: Estimate | J51: Margin of Error | K51: Percent of Population | L51: Estimate | M51: Margin of Error | N51: Percent of Population
C52: Population 25 years and over | F52: =CntyDataLinkPrior10YearEstimate!$V$140 -> 20844 | G52: =CntyDataLinkPrior10YearEstimate!$W$140 -> 426 | I52: =CntyDataLinkPrior5YearEstimates!$V$140 -> 21589 | J52: =CntyDataLinkPrior5YearEstimates!$W$140 -> 436 | L52: =CntyDataLink!$V$140 -> 22865 | M52: =CntyDataLink!$W$140 -> 609
C53: Less than 9th Grade | F53: =CntyDataLinkPrior10YearEstimate!$X$140 -> 747 | G53: =CntyDataLinkPrior10YearEstimate!$Y$140 -> 190.2366947 | H53: =F53/$F$52 -> 0.03583765112 | I53: =CntyDataLinkPrior5YearEstimates!$X$140 -> 448 | J53: =CntyDataLinkPrior5YearEstimates!$Y$140 -> 186.1531627 | K53: =I53/$I$52 -> 0.02075130854 | L53: =CntyDataLink!$X$140 -> 553 | M53: =CntyDataLink!$Y$140 -> 253.4087607 | N53: =L53/$L$52 -> 0.02418543626
C54: 9th to 12th Grade, no Diploma | F54: =CntyDataLinkPrior10YearEstimate!$Z$140 -> 1482 | G54: =CntyDataLinkPrior10YearEstimate!$AA$140 -> 274.3811218 | H54: =F54/$F$52 -> 0.07109959701 | I54: =CntyDataLinkPrior5YearEstimates!$Z$140 -> 1693 | J54: =CntyDataLinkPrior5YearEstimates!$AA$140 -> 318.2310481 | K54: =I54/$I$52 -> 0.07841956552 | L54: =CntyDataLink!$Z$140 -> 991 | M54: =CntyDataLink!$AA$140 -> 229.2313242 | N54: =L54/$L$52 -> 0.04334135141
C55: High School Graduate | F55: =CntyDataLinkPrior10YearEstimate!$AB$140 -> 7945 | G55: =CntyDataLinkPrior10YearEstimate!$AC$140 -> 449.7199128 | H55: 0.3811648436 | I55: =CntyDataLinkPrior5YearEstimates!$AB$140 -> 7739 | J55: =CntyDataLinkPrior5YearEstimates!$AC$140 -> 511.4782498 | K55: 0.358469591 | L55: =CntyDataLink!$AB$140 -> 7909 | M55: =CntyDataLink!$AC$140 -> 689.4294743 | N55: 0.3458998469
C56: Some College, No Degree | F56: =CntyDataLinkPrior10YearEstimate!$AD$140 -> 4531 | G56: =CntyDataLinkPrior10YearEstimate!$AE$140 -> 408.5719031 | H56: 0.2173767031 | I56: =CntyDataLinkPrior5YearEstimates!$AD$140 -> 4778 | J56: =CntyDataLinkPrior5YearEstimates!$AE$140 -> 505.3899485 | K56: 0.2213164111 | L56: =CntyDataLink!$AD$140 -> 4779 | M56: =CntyDataLink!$AE$140 -> 567.7587516 | N56: 0.209009403
C57: Associate Degree | F57: =CntyDataLinkPrior10YearEstimate!$AF$140 -> 2071 | G57: =CntyDataLinkPrior10YearEstimate!$AG$140 -> 281.8119941 | H57: 0.09935712915 | I57: =CntyDataLinkPrior5YearEstimates!$AF$140 -> 2007 | J57: =CntyDataLinkPrior5YearEstimates!$AG$140 -> 314.6696681 | K57: 0.09296400945 | L57: =CntyDataLink!$AF$140 -> 2796 | M57: =CntyDataLink!$AG$140 -> 431.2922443 | N57: 0.1222829652
C58: Bachelor's Degree | F58: =CntyDataLinkPrior10YearEstimate!$AH$140 -> 2759 | G58: =CntyDataLinkPrior10YearEstimate!$AI$140 -> 323.3218211 | H58: 0.1323642295 | I58: =CntyDataLinkPrior5YearEstimates!$AH$140 -> 3516 | J58: =CntyDataLinkPrior5YearEstimates!$AI$140 -> 369.4996617 | K58: 0.1628607161 | L58: =CntyDataLink!$AH$140 -> 4055 | M58: =CntyDataLink!$AI$140 -> 474.605099 | N58: 0.1773452876
C59: Graduate or Professional Degree | F59: =CntyDataLinkPrior10YearEstimate!$AJ$140 -> 645 | G59: =CntyDataLinkPrior10YearEstimate!$AK$140 -> 143.9791652 | H59: 0.03094415659 | I59: =CntyDataLinkPrior5YearEstimates!$AJ$140 -> 1229 | J59: =CntyDataLinkPrior5YearEstimates!$AK$140 -> 227.4423004 | K59: 0.05692713882 | L59: =CntyDataLink!$AJ$140 -> 1519 | M59: =CntyDataLink!$AK$140 -> 281.4320522 | N59: 0.06643341351
C61: Percent of High School Graduate or Higher | H61: =SUM(F55:F59)/F52 -> 0.861207062 | K61: =SUM(I55:I59)/I52 -> 0.8925378665 | N61: =SUM(L55:L59)/L52 -> 0.9209709162
C62: Percent of Bachelor's Degree or Higher | H62: =SUM(F58:F59)/F52 -> 0.1633083861 | K62: =SUM(I58:I59)/I52 -> 0.2197878549 | N62: =SUM(L58:L59)/L52 -> 0.2437787011
C64: ="Source: "&F21&", "&I21&" and "&L21&" American Community Survey Table B15002" -> Source: 2008-2012, 2013-2017 and 2018-2022 American Community Survey Table B15002 | H64: Data from the American Community Survey are estimates
C66: As a result of changes in the American Community Survey, direct comparisons between the data should be made with caution.
C67: be made with caution.

Sheet HousingCharacteristics (hidden)
B2: =CntyDataLink!$A35 -> Rochester
B4: HOUSING CHARACTERISTICS
D27: ="Source: "& " "&D69&", "&G69&" and "&J69& " American Community Survey Table B25004; B25024; B25032" -> Source: 2008-2012, 2013-2017 and 2018-2022 American Community Survey Table B25004; B25024; B25032
B28: Units by Tenure & Vacancy
C30: 2008-2012 | F30: 2013-2017 | I30: 2018-2022 | N30: Statistically Significant Change
C31: Estimate | D31: Margin of Error | E31: % | F31: Estimate | G31: Margin of Error | H31: % | I31: Estimate | J31: Margin of Error | K31: % | L31: % Change | N31: 2012-2022 | O31: 2017-2022
B32: Total Units | C32: =CntyDataLinkPrior10YearEstimate!$B$108 -> 14003 | D32: =CntyDataLinkPrior5YearEstimates!$C$108 -> 337 | F32: =CntyDataLinkPrior5YearEstimates!$B$108 -> 13661 | G32: =CntyDataLinkPrior5YearEstimates!$C$108 -> 337 | I32: =CntyDataLink!$B$108 -> 14192 | J32: =CntyDataLink!$C$108 -> 482 | L32: =IF(I32="-","-",(I32-C32)/C32) -> 0.01349710776 | N32: =StatisticallySignificantCalcs!$A62 -> N | O32: =StatisticallySignificantCalcs!$J62 -> N
B33: Occupied Units | C33: =CntyDataLinkPrior10YearEstimate!$D$108 -> 12762 | D33: =CntyDataLinkPrior5YearEstimates!$E$108 -> 353 | E33: =ROUND(C33/C32,2)*100&"% of Total" -> 91% of Total | F33: =CntyDataLinkPrior5YearEstimates!$D$108 -> 12837 | G33: =CntyDataLinkPrior5YearEstimates!$E$108 -> 353 | H33: =ROUND(F33/F32,2)*100&"% of Total" -> 94% of Total | I33: =CntyDataLink!$D$108 -> 13471 | J33: =CntyDataLink!$E$108 -> 518 | K33: =ROUND(I33/I32,2)*100&"% of Total" -> 95% of Total | L33: =IF(I33="-","-",(I33-C33)/C33) -> 0.05555555556 | N33: =StatisticallySignificantCalcs!$A63 -> Y | O33: =StatisticallySignificantCalcs!$J63 -> Y
B34: Owner Occupied | C34: =CntyDataLinkPrior10YearEstimate!$F$108 -> 8858 | D34: =CntyDataLinkPrior5YearEstimates!$G$108 -> 395 | E34: =ROUND(C34/C33,2)*100&"% of Occ." -> 69% of Occ. | F34: =CntyDataLinkPrior5YearEstimates!$F$108 -> 8308 | G34: =CntyDataLinkPrior5YearEstimates!$G$108 -> 395 | H34: =ROUND(F34/F33,2)*100&"% of Occ." -> 65% of Occ. | I34: =CntyDataLink!$F$108 -> 8795 | J34: =CntyDataLink!$G$108 -> 577 | K34: =ROUND(I34/I33,2)*100&"% of Occ." -> 65% of Occ. | L34: =IF(I34="-","-",(I34-C34)/C34) -> -0.007112214947 | N34: =StatisticallySignificantCalcs!$A64 -> N | O34: =StatisticallySignificantCalcs!$J64 -> N
B35: Renter Occupied | C35: =CntyDataLinkPrior10YearEstimate!$H$108 -> 3904 | D35: =CntyDataLinkPrior5YearEstimates!$I$108 -> 385 | E35: =ROUND(C35/C33,2)*100&"% of Occ." -> 31% of Occ. | F35: =CntyDataLinkPrior5YearEstimates!$H$108 -> 4529 | G35: =CntyDataLinkPrior5YearEstimates!$I$108 -> 385 | H35: =ROUND(F35/F33,2)*100&"% of Occ." -> 35% of Occ. | I35: =CntyDataLink!$H$108 -> 4676 | J35: =CntyDataLink!$I$108 -> 519 | K35: =ROUND(I35/I33,2)*100&"% of Occ." -> 35% of Occ. | L35: =IF(I35="-","-",(I35-C35)/C35) -> 0.1977459016 | N35: =StatisticallySignificantCalcs!$A65 -> Y | O35: =StatisticallySignificantCalcs!$J65 -> N
B36: Vacant Units | C36: =CntyDataLinkPrior10YearEstimate!$J$108 -> 1241 | D36: =CntyDataLinkPrior5YearEstimates!$K$108 -> 248 | E36: =ROUND(C36/C32,2)*100&"% of Total" -> 9% of Total | F36: =CntyDataLinkPrior5YearEstimates!$J$108 -> 824 | G36: =CntyDataLinkPrior5YearEstimates!$K$108 -> 248 | H36: =ROUND(F36/F32,2)*100&"% of Total" -> 6% of Total | I36: =CntyDataLink!$J$108 -> 721 | J36: =CntyDataLink!$K$108 -> 226 | K36: =ROUND(I36/I32,2)*100&"% of Total" -> 5% of Total | L36: =IF(I36="-",I36,VALUE((I36-C36)/C36)) -> -0.4190169218 | N36: =StatisticallySignificantCalcs!$A66 -> Y | O36: =StatisticallySignificantCalcs!$J66 -> N
B37: Vacant For Sale | C37: =CntyDataLinkPrior10YearEstimate!$P$108 -> 189 | D37: =CntyDataLinkPrior5YearEstimates!$Q$108 -> 133 | E37: =ROUND(C37/(C$36),3)*100&"% Vac." -> 15.2% Vac. | F37: =CntyDataLinkPrior5YearEstimates!$P$108 -> 197 | G37: =CntyDataLinkPrior5YearEstimates!$Q$108 -> 133 | H37: =ROUND(F37/(F$36),3)*100&"% Vac." -> 23.9% Vac. | I37: =CntyDataLink!$P$108 -> 147 | J37: =CntyDataLink!$Q$108 -> 132 | K37: =ROUND(I37/(I$36),3)*100&"% Vac." -> 20.4% Vac. | L37: =IF(I37="-",I37,VALUE((I37-C37)/C37)) -> -0.2222222222 | N37: =StatisticallySignificantCalcs!$A67 -> N | O37: =StatisticallySignificantCalcs!$J67 -> N
B38: Vacant For Rent | C38: =CntyDataLinkPrior10YearEstimate!$L$108 -> 252 | D38: =CntyDataLinkPrior5YearEstimates!$M$108 -> 146 | E38: =ROUND(C38/(C$36),3)*100&"% Vac." -> 20.3% Vac. | F38: =CntyDataLinkPrior5YearEstimates!$L$108 -> 258 | G38: =CntyDataLinkPrior5YearEstimates!$M$108 -> 146 | H38: =ROUND(F38/(F$36),3)*100&"% Vac." -> 31.3% Vac. | I38: =CntyDataLink!$L$108 -> 264 | J38: =CntyDataLink!$M$108 -> 158 | K38: =ROUND(I38/(I$36),3)*100&"% Vac." -> 36.6% Vac. | L38: =IF(I38="-",I38,VALUE((I38-C38)/C38)) -> 0.04761904762 | N38: =StatisticallySignificantCalcs!$A68 -> N | O38: =StatisticallySignificantCalcs!$J68 -> N
B39: Vacant Seasonal | C39: =CntyDataLinkPrior10YearEstimate!$T$108 -> 222 | D39: =CntyDataLinkPrior5YearEstimates!$U$108 -> 24 | E39: =ROUND(C39/(C$36),3)*100&"% Vac." -> 17.9% Vac. | F39: =CntyDataLinkPrior5YearEstimates!$T$108 -> 0 | G39: =CntyDataLinkPrior5YearEstimates!$U$108 -> 24 | H39: =ROUND(F39/(F$36),3)*100&"% Vac." -> 0% Vac. | I39: =CntyDataLink!$T$108 -> 62 | J39: =CntyDataLink!$U$108 -> 74 | K39: =ROUND(I39/(I$36),3)*100&"% Vac." -> 8.6% Vac. | L39: =IF(I39="-",I39,VALUE((I39-C39)/C39)) -> -0.7207207207 | N39: =StatisticallySignificantCalcs!$A69 -> Y | O39: =StatisticallySignificantCalcs!$J69 -> N
B41: Data from the American Community Survey are estimates
B44: HOUSING CHARACTERISTICS
D65: ="Source: "& " "&D69&", "&G69&" and "&J69& " American Community Survey Table B25024; B25032" -> Source: 2008-2012, 2013-2017 and 2018-2022 American Community Survey Table B25024; B25032
C67: Units by Type
D69: =C30 -> 2008-2012 | G69: =F30 -> 2013-2017 | J69: =I30 -> 2018-2022 | N69: Statistically Significant Change
D70: Estimate | E70: Margin of Error | F70: % of Total | G70: Estimate | H70: Margin of Error | I70: % of Total | J70: Estimate | K70: Margin of Error | L70: % of Total | M70: % Change | N70: =N31 -> 2012-2022 | O70: =O31 -> 2017-2022
C71: Total Units | D71: =CntyDataLinkPrior10YearEstimate!$B$108 -> 14003 | E71: =CntyDataLinkPrior10YearEstimate!$C$108 -> 458 | G71: =CntyDataLinkPrior5YearEstimates!$B$108 -> 13661 | H71: =CntyDataLinkPrior5YearEstimates!$C$108 -> 337 | J71: =CntyDataLink!$B$108 -> 14192 | K71: =CntyDataLink!$C$108 -> 482 | M71: =IF(J71="-","-",($J71-$D71)/$D71) -> 0.01349710776 | N71: =StatisticallySignificantCalcs!$A70 -> N | O71: =StatisticallySignificantCalcs!$J70 -> N
C72: Single Family Units | D72: =CntyDataLinkPrior10YearEstimate!$AT$108 -> 6934 | E72: =CntyDataLinkPrior10YearEstimate!$AU$108 -> 443 | F72: =IF(D72="-","-",($D$72/$D$71)) -> 0.4951796044 | G72: =CntyDataLinkPrior5YearEstimates!$AT$108 -> 6662 | H72: =CntyDataLinkPrior5YearEstimates!$AU$108 -> 372 | I72: =IF(G72="-","-",($G$72/$G$71)) -> 0.4876656175 | J72: =CntyDataLink!$AT$108 -> 6983 | K72: =CntyDataLink!$AU$108 -> 455 | L72: =IF(J72="-","-",($J$72/$J$71)) -> 0.4920377678 | M72: 0.007066628209 | N72: =StatisticallySignificantCalcs!$A71 -> N | O72: =StatisticallySignificantCalcs!$J71 -> N
C73: SF Owner Occ. | D73: =CntyDataLinkPrior10YearEstimate!$AF$108 -> 5873 | E73: =CntyDataLinkPrior10YearEstimate!$AG$108 -> 376 | G73: =CntyDataLinkPrior5YearEstimates!$AF$108 -> 5870 | H73: =CntyDataLinkPrior5YearEstimates!$AG$108 -> 374 | J73: =CntyDataLink!$AF$108 -> 6251 | K73: =CntyDataLink!$AG$108 -> 472 | M73: 0.06436233611 | N73: =StatisticallySignificantCalcs!$A72 -> N | O73: =StatisticallySignificantCalcs!$J72 -> N
C74: SF Renter Occ. | D74: =CntyDataLinkPrior10YearEstimate!$AN$108 -> 598 | E74: =CntyDataLinkPrior10YearEstimate!$AO$108 -> 193 | G74: =CntyDataLinkPrior5YearEstimates!$AN$108 -> 551 | H74: =CntyDataLinkPrior5YearEstimates!$AO$108 -> 156 | J74: =CntyDataLink!$AN$108 -> 543 | K74: =CntyDataLink!$AO$108 -> 168 | M74: -0.09197324415 | N74: =StatisticallySignificantCalcs!$A73 -> N | O74: =StatisticallySignificantCalcs!$J73 -> N
C75: Multi-family Units | D75: =CntyDataLinkPrior10YearEstimate!$AV$108 -> 4554 | E75: =CntyDataLinkPrior10YearEstimate!$AW$108 -> 482.5194297 | F75: =IF(D75="-","-",$D$75/$D$71) -> 0.3252160251 | G75: =CntyDataLinkPrior5YearEstimates!$AV$108 -> 4890 | H75: =CntyDataLinkPrior5YearEstimates!$AW$108 -> 559.3093956 | I75: =IF(G75="-","-",$G$75/$G$71) -> 0.3579532977 | J75: =CntyDataLink!$AV$108 -> 4907 | K75: =CntyDataLink!$AW$108 -> 645.3967772 | L75: =IF(J75="-","-",$J$75/$J$71) -> 0.3457581736 | M75: 0.07751427317 | N75: =StatisticallySignificantCalcs!$A74 -> N | O75: =StatisticallySignificantCalcs!$J74 -> N
C76: MF Owner Occ. | D76: =CntyDataLinkPrior10YearEstimate!$AH$108 -> 864 | E76: =CntyDataLinkPrior10YearEstimate!$AI$108 -> 202.6474772 | G76: =CntyDataLinkPrior5YearEstimates!$AH$108 -> 665 | H76: =CntyDataLinkPrior5YearEstimates!$AI$108 -> 167.6215977 | J76: =CntyDataLink!$AH$108 -> 710 | K76: =CntyDataLink!$AI$108 -> 190.884782 | M76: -0.1782407407 | N76: =StatisticallySignificantCalcs!$A75 -> N | O76: =StatisticallySignificantCalcs!$J75 -> N
C77: MF Renter Occ. | D77: =CntyDataLinkPrior10YearEstimate!$AP$108 -> 3081 | E77: =CntyDataLinkPrior10YearEstimate!$AQ$108 -> 404.6603514 | G77: =CntyDataLinkPrior5YearEstimates!$AP$108 -> 3753 | H77: =CntyDataLinkPrior5YearEstimates!$AQ$108 -> 514.2217421 | J77: =CntyDataLink!$AP$108 -> 3827 | K77: =CntyDataLink!$AQ$108 -> 596.7914208 | M77: 0.2421291788 | N77: =StatisticallySignificantCalcs!$A76 -> Y | O77: =StatisticallySignificantCalcs!$J76 -> N
C78: Mobile Home & Other | D78: =CntyDataLinkPrior10YearEstimate!$AX$108 -> 2515 | E78: =CntyDataLinkPrior10YearEstimate!$AY$108 -> 304.7244657 | F78: =IF(D78="-","-",($D$78/$D$71)) -> 0.1796043705 | G78: =CntyDataLinkPrior5YearEstimates!$AX$108 -> 2109 | H78: =CntyDataLinkPrior5YearEstimates!$AY$108 -> 280.0303555 | I78: =IF(G78="-","-",($G$78/$G$71)) -> 0.1543810848 | J78: =CntyDataLink!$AX$108 -> 2302 | K78: =CntyDataLink!$AY$108 -> 299.0468191 | L78: =IF(J78="-","-",($J$78/$J$71)) -> 0.1622040586 | M78: -0.08469184891 | N78: =StatisticallySignificantCalcs!$A77 -> N | O78: =StatisticallySignificantCalcs!$J77 -> N
B80: Data from the American Community Survey are estimates
B83: Units by Number of Bedrooms
D84: ="Source: "& " "&D69&", "&G69&" and "&J69& " American Community Survey Table B25041" -> Source: 2008-2012, 2013-2017 and 2018-2022 American Community Survey Table B25041
C86: =C30 -> 2008-2012 | G86: =F30 -> 2013-2017 | K86: =I30 -> 2018-2022
B87: Bedrooms | C87: Estimate | D87: Margin of Error | E87: % of Total | G87: Estimate | H87: Margin of Error | I87: % of Total | K87: Estimate | L87: Margin of Error | M87: % of Total | O87: Statistically Significant Change
B88: No Bedrooms | C88: =CntyDataLinkPrior10YearEstimate!$BR$108 -> 381 | D88: =CntyDataLinkPrior10YearEstimate!$BS$108 -> 167 | E88: =C88/SUM($C$88:$C$92) -> 0.02720845533 | G88: =CntyDataLinkPrior5YearEstimates!$BR$108 -> 265 | H88: =CntyDataLinkPrior5YearEstimates!$BS$108 -> 164 | I88: =G88/SUM($G$88:$G$92) -> 0.01972019646 | K88: =CntyDataLink!$BT$108 -> 297 | L88: =CntyDataLink!$BU$108 -> 161 | M88: =K88/SUM($K$88:$K$92) -> 0.02092728298 | O88: =StatisticallySignificantCalcs!$A77 -> N
B89: 1 Bedroom | C89: =CntyDataLinkPrior10YearEstimate!$BT$108 -> 1257 | D89: =CntyDataLinkPrior10YearEstimate!$BU$108 -> 221 | E89: =C89/SUM($C$88:$C$92) -> 0.08976647861 | G89: =CntyDataLinkPrior5YearEstimates!$BT$108 -> 1315 | H89: =CntyDataLinkPrior5YearEstimates!$BU$108 -> 260 | I89: =G89/SUM($G$88:$G$92) -> 0.09785682393 | K89: =CntyDataLink!$BV$108 -> 1665 | L89: =CntyDataLink!$BW$108 -> 410 | M89: =K89/SUM($K$88:$K$92) -> 0.1173196167 | O89: =StatisticallySignificantCalcs!$A78 -> N
B90: 2 Bedrooms | C90: =CntyDataLinkPrior10YearEstimate!$BV$108 -> 5221 | D90: =CntyDataLinkPrior10YearEstimate!$BW$108 -> 441 | E90: =C90/SUM($C$88:$C$92) -> 0.3728486753 | G90: =CntyDataLinkPrior5YearEstimates!$BV$108 -> 5577 | H90: =CntyDataLinkPrior5YearEstimates!$BW$108 -> 383 | I90: =G90/SUM($G$88:$G$92) -> 0.4150171156 | K90: =CntyDataLink!$BX$108 -> 4897 | L90: =CntyDataLink!$BY$108 -> 469 | M90: =K90/SUM($K$88:$K$92) -> 0.3450535513 | O90: =StatisticallySignificantCalcs!$A79 -> Y
B91: 3 Bedrooms | C91: =CntyDataLinkPrior10YearEstimate!$BX$108 -> 5525 | D91: =CntyDataLinkPrior10YearEstimate!$BY$108 -> 475 | E91: =C91/SUM($C$88:$C$92) -> 0.3945583089 | G91: =CntyDataLinkPrior5YearEstimates!$BX$108 -> 4911 | H91: =CntyDataLinkPrior5YearEstimates!$BY$108 -> 379 | I91: =G91/SUM($G$88:$G$92) -> 0.3654561691 | K91: =CntyDataLink!$BZ$108 -> 5370 | L91: =CntyDataLink!$CA$108 -> 511 | M91: =K91/SUM($K$88:$K$92) -> 0.3783821871 | O91: =StatisticallySignificantCalcs!$A80 -> Y
B92: 4+ Bedrooms | C92: =CntyDataLinkPrior10YearEstimate!$BZ$108 -> 1619 | D92: =CntyDataLinkPrior10YearEstimate!$CA$108 -> 276.0905649 | E92: =C92/SUM($C$88:$C$92) -> 0.1156180818 | G92: =CntyDataLinkPrior5YearEstimates!$BZ$108 -> 1370 | H92: =CntyDataLinkPrior5YearEstimates!$CA$108 -> 264 | I92: =G92/SUM($G$88:$G$92) -> 0.1019496949 | K92: =CntyDataLink!$CB$108 -> 1963 | L92: =CntyDataLink!$CC$108 -> 318.4163941 | M92: =K92/SUM($K$88:$K$92) -> 0.1383173619 | O92: =StatisticallySignificantCalcs!$A81 -> Y
B97: Units by Year Built
B98: ="Source: "&K86& " American Community Survey Table B25034" -> Source: 2018-2022 American Community Survey Table B25034
D100: Year Built | G100: Units | I100: % of Total | K100: Margin of Error
F101: 2020 or later | G101: =CntyDataLink!$AZ$108 -> 0 | I101: =G101/SUM($G$101:$G$110) -> 0 | K101: =CntyDataLink!$BA$108 -> 25
F102: 2010 through 2019 | G102: =CntyDataLink!$BB$108 -> 957 | I102: 0.06743235626 | K102: =CntyDataLink!$BC$108 -> 274
F103: 2000 through 2009 | G103: =CntyDataLink!$BD$108 -> 1684 | I103: 0.1186583991 | K103: =CntyDataLink!$BE$108 -> 260
F104: 1990 through 1999 | G104: =CntyDataLink!$BF$108 -> 1172 | I104: 0.08258173619 | K104: =CntyDataLink!$BG$108 -> 240
F105: 1980 through 1989 | G105: =CntyDataLink!$BH$108 -> 2733 | I105: 0.1925732807 | K105: =CntyDataLink!$BI$108 -> 394
F106: 1970 through 1979 | G106: =CntyDataLink!$BJ$108 -> 1731 | I106: 0.121970124 | K106: =CntyDataLink!$BK$108 -> 318
F107: 1960 through 1969 | G107: =CntyDataLink!$BL$108 -> 1187 | I107: 0.08363866967 | K107: =CntyDataLink!$BM$108 -> 250
F108: 1950 through 1959 | G108: =CntyDataLink!$BN$108 -> 1230 | I108: 0.08666854566 | K108: =CntyDataLink!$BO$108 -> 315
F109: 1940 through 1949 | G109: =CntyDataLink!$BP$108 -> 773 | I109: 0.05446730552 | K109: =CntyDataLink!$BQ$108 -> 250
F110: 1939 and earlier | G110: =CntyDataLink!$BR$108 -> 2725 | I110: 0.1920095829 | K110: =CntyDataLink!$BS$108 -> 347
B112: Data from the American Community Survey are estimates

Sheet CntyDataLink (hidden)
A1: 1 | B1: =A1+1 -> 2 | C1: 3 | D1: 4 | E1: 5 | F1: 6 | G1: 7 | H1: 8 | I1: 9 | J1: 10 | K1: 11 | L1: 12 | M1: 13 | N1: 14 | O1: 15 | P1: 16 | Q1: 17 | R1: 18 | S1: 19 | T1: 20 | U1: 21 | V1: 22 | W1: 23 | X1: 24 | Y1: 25 | Z1: 26 | AA1: 27 | AB1: 28 | AC1: 29 | AD1: 30 | AE1: 31 | AF1: 32 | AG1: 33 | AH1: 34 | AI1: 35 | AJ1: 36 | AK1: 37 | AL1: 38 | AM1: 39 | AN1: 40 | AO1: 41 | AP1: 42 | AQ1: 43 | AR1: 44 | AS1: 45 | AT1: 46 | AU1: 47 | AV1: 48 | AW1: 49 | AX1: 50 | AY1: 51 | AZ1: 52 | BA1: 53 | BB1: 54 | BC1: 55 | BD1: 56 | BE1: 57 | BF1: 58 | BG1: 59 | BH1: 60 | BI1: 61 | BJ1: 62 | BK1: 63 | BL1: 64 | BM1: 65 | BN1: =BM1+1 -> 66 | BO1: 67 | BP1: 68 | BQ1: 69 | BR1: 70 | BS1: 71 | BT1: 72 | BU1: 73 | BV1: 74 | BW1: 75 | BX1: 76 | BY1: 77 | BZ1: 78 | CA1: 79 | CB1: 80 | CC1: 81 | CD1: 82 | CE1: 83 | CF1: 84 | CG1: 85 | CH1: 86 | CI1: 87 | CJ1: 88 | CK1: 89 | CL1: 90 | CM1: 91 | CN1: 92 | CO1: 93 | CP1: 94 | CQ1: 95 | CR1: 96 | CS1: 97 | CT1: 98 | CU1: 99 | CV1: 100 | CW1: 101 | CX1: 102 | CY1: 103 | CZ1: 104 | DA1: 105 | DB1: 106 | DC1: 107 | DD1: 108 | DE1: 109 | DF1: 110 | DG1: 111 | DH1: 112 | DI1: 113 | DJ1: 114 | DK1: 115 | DL1: 116 | DM1: 117 | DN1: 118 | DO1: 119 | DP1: 120 | DQ1: 121 | DR1: 122 | DS1: 123 | DT1: 124 | DU1: 125 | DV1: 126 | DW1: 127 | DX1: 128 | DY1: 129 | DZ1: =DY1+1 -> 130 | EA1: 131 | EB1: 132 | EC1: 133 | ED1: 134 | EE1: 135 | EF1: 136 | EG1: 137 | EH1: 138 | EI1: 139 | EJ1: 140 | EK1: 141 | EL1: 142 | EM1: 143 | EN1: 144 | EO1: 145 | EP1: 146 | EQ1: 147 | ER1: 148 | ES1: 149 | ET1: 150 | EU1: 151 | EV1: 152 | EW1: 153 | EX1: 154 | EY1: 155 | EZ1: 156 | FA1: 157 | FB1: 158 | FC1: 159 | FD1: 160 | FE1: 161 | FF1: 162 | FG1: 163 | FH1: 164 | FI1: 165 | FJ1: 166 | FK1: 167 | FL1: 168 | FM1: 169 | FN1: 170 | FO1: 171 | FP1: 172 | FQ1: 173 | FR1: 174 | FS1: 175 | FT1: 176 | FU1: 177 | FV1: 178 | FW1: 179 | FX1: 180 | FY1: 181 | FZ1: 182 | GA1: 183 | GB1: 184 | GC1: 185 | GD1: 186 | GE1: 187 | GF1: 188 | GG1: 189 | GH1: 190 | GI1: 191 | GJ1: 192 | GK1: 193 | GL1: =GK1+1 -> 194 | GM1: 195 | GN1: 196 | GO1: 197 | GP1: 198 | GQ1: 199 | GR1: 200 | GS1: 201 | GT1: 202 | GU1: 203 | GV1: 204 | GW1: 205 | GX1: 206 | GY1: 207 | GZ1: 208 | HA1: 209 | HB1: 210 | HC1: 211 | HD1: 212 | HE1: 213 | HF1: 214 | HG1: 215 | HH1: 216 | HI1: 217 | HJ1: 218 | HK1: 219 | HL1: 220 | HM1: 221 | HN1: 222 | HO1: 223 | HP1: 224 | HQ1: 225 | HR1: 226 | HS1: 227 | HT1: 228 | HU1: 229 | HV1: 230 | HW1: 231 | HX1: 232 | HY1: 233 | HZ1: 234 | IA1: 235 | IB1: 236 | IC1: 237 | ID1: 238 | IE1: 239 | IF1: 240 | IG1: 241 | IH1: 242 | II1: 243 | IJ1: 244 | IK1: 245 | IL1: 246 | IM1: 247 | IN1: 248 | IO1: 249 | IP1: 250 | IQ1: 251 | IR1: 252 | IS1: 253 | IT1: 254 | IU1: 255
A3: Census 1990 Data - Query Name: DPCnty90Census
A4: TownName | B4: Cnty_Code | C4: Census_Cnty_Code | D4: LandAcres | E4: WaterAcres | F4: HousingUnits90Cen | G4: Persons90Cen | H4: Families90Cen | I4: Households90cen | J4: MalePop90cen | K4: FemalePop90cen | L4: WhitePop | M4: BlackPop | N4: AmerIndianPop | O4: AsianPIPop | P4: OtherRacePop | Q4: HispanicOrPop | R4: AgeUnder15_90cen | S4: Age15to24_90cen | T4: Age25to34_90cen | U4: Age35to44_90cen | V4: Age45to54_90cen | W4: Age55to64_90cen | X4: Age65to74_90cen | Y4: Age75andOver_90cen | Z4: PersonsInHH90cen | AA4: PersonsInFamHH90cen | AB4: PersonsInGC | AC4: PersonsPerHH90cen | AD4: PersonsPerFam90Cen | AE4: SinglePersonHH90cen | AF4: MarriedCoupleHH90cen | AG4: SingleParentHH90cen | AH4: NonFamilyHH90cen | AI4: TotalHousingUnits | AJ4: OccupiedHousingUnits | AK4: VacantHousingUnits | AL4: OwnerOccHU | AM4: RenterOccHU | AN4: VacantForRent90 | AO4: VacantForSale90 | AP4: VacantSeasonalRec | AQ4: SingFamHU90cen | AR4: MultiFamHU90cen | AS4: MobileHom90cen | AT4: SingFamOwnHU90cen | AU4: MultiFamOwnHU90cen | AV4: MobileHomOwnHU90cen | AW4: SingFamRntrHU90cen | AX4: MultiFamRntrHU90cen | AY4: MobileHomRntrHU90cen | AZ4: HU<5yrs90cen | BA4: HU5to20yrs90cen | BB4: HU20to50yrs90cen | BC4: HU>50yrs90cen | BD4: Units0Bedroom90cen | BE4: Units1Bedroom90cen | BF4: Units2Bedroom90cen | BG4: Units3Bedroom90cen | BH4: Units4+Bedroom90cen | BI4: HI<5K | BJ4: HI5Kto10K | BK4: HI10Kto15K | BL4: HI15Kto25K | BM4: HI25Kto35K | BN4: HI35Kto50K | BO4: HI50Kto75K | BP4: HI75Kto100K | BQ4: HI>100K | BR4: MedHI | BS4: HH<25HI<5K | BT4: HH<25HI5Kto10K | BU4: HH<25HI10Kto15K | BV4: HH<25HI15Kto25K | BW4: HH<25HI25Kto35K | BX4: HH<25HI35Kto50K | BY4: HH<25HI50Kto75K | BZ4: HH<25HI75Kto100K | CA4: HH<25HI>100K | CB4: HH25to34HI<5K | CC4: HH25to34HI5Kto10K | CD4: HH25to34HI10Kto15K | CE4: HH25to34HI15Kto25K | CF4: HH25to34HI25Kto35K | CG4: HH25to34HI35Kto50K | CH4: HH25to34HI50Kto75K | CI4: HH25to34HI75Kto100K | CJ4: HH25to34HI>100K | CK4: HH35to44HI<5K | CL4: HH35to44HI5Kto10K | CM4: HH35to44HI10Kto15K | CN4: HH35to44HI15Kto25K | CO4: HH35to44HI25Kto35K | CP4: HH35to44HI35Kto50K | CQ4: HH35to44HI50Kto75K | CR4: HH35to44HI75Kto100K | CS4: HH35to44HI>100K | CT4: HH45to54HI<5K | CU4: HH45to54HI5Kto10K | CV4: HH45to54HI10Kto15K | CW4: HH45to54HI15Kto25K | CX4: HH45to54HI25Kto35K | CY4: HH45to54HI35Kto50K | CZ4: HH45to54HI50Kto75K | DA4: HH45to54HI75Kto100K | DB4: HH45to54HI>100K | DC4: HH55to64HI<5K | DD4: HH55to64HI5Kto10K | DE4: HH55to64HI10Kto15K | DF4: HH55to64HI15Kto25K | DG4: HH55to64HI25Kto35K | DH4: HH55to64HI35Kto50K | DI4: HH55to64HI50Kto75K | DJ4: HH55to64HI75Kto100K | DK4: HH55to64HI>100K | DL4: HH65to74HI<5K | DM4: HH65to74HI5Kto10K | DN4: HH65to74HI10Kto15K | DO4: HH65to74HI15Kto25K | DP4: HH65to74HI25Kto35K | DQ4: HH65to74HI35Kto50K | DR4: HH65to74HI50Kto75K | DS4: HH65to74HI75Kto100K | DT4: HH65to74HI>100K | DU4: HH>75HI<5K | DV4: HH>75HI5Kto10K | DW4: HH>75HI10Kto15K | DX4: HH>75HI15Kto25K | DY4: HH>75HI25Kto35K | DZ4: HH>75HI35Kto50K | EA4: HH>75HI50Kto75K | EB4: HH>75HI75Kto100K | EC4: HH>75HI>100K | ED4: SchoolEnrollment1thru12 | EE4: Pop25andOver | EF4: HSGradorHigher | EG4: CollGradorHigher | EH4: NativePop | EI4: ForeignBornPop | EJ4: BornStateOfRes | EK4: NativePop2 | EL4: ForeignBornPop2 | EM4: DroveAlone | EN4: CarPooled | EO4: PublicTranspt | EP4: Walked | EQ4: OtherMeans | ER4: WorkedAtHome | ES4: HHInc<10K | ET4: HHInc10to15K | EU4: HHInc15to25K | EV4: HHInc25to35K | EW4: HHInc35to50K | EX4: HHInc50to75K | EY4: HHInc75to100K | EZ4: HHInc100to150K | FA4: HHInc>150K
A5: =VLOOKUP(DropDownList!$A$47,CntyQuery!$A$4:$FI$46,A1) -> Rochester | B5: =VLOOKUP(DropDownList!$A$47,CntyQuery!$A$4:$FA$46,B1) -> 17050 | C5: =VLOOKUP(DropDownList!$A$47,CntyQuery!$A$4:$FA$46,C1) -> 65140 | D5: =VLOOKUP(DropDownList!$A$47,CntyQuery!$A$4:$FA$46,D1) -> 28688.05 | E5: =VLOOKUP(DropDownList!$A$47,CntyQuery!$A$4:$FA$46,E1) -> 392.49 | F5: =VLOOKUP(DropDownList!$A$47,CntyQuery!$A$4:$FA$46,F1) -> 11076 | G5: =VLOOKUP(DropDownList!$A$47,CntyQuery!$A$4:$FA$46,G1) -> 26630 | H5: =VLOOKUP(DropDownList!$A$47,CntyQuery!$A$4:$FA$46,H1) -> 7332 | I5: =VLOOKUP(DropDownList!$A$47,CntyQuery!$A$4:$FA$46,I1) -> 10221 | J5: =VLOOKUP(DropDownList!$A$47,CntyQuery!$A$4:$FA$46,J1) -> 12931 | K5: =VLOOKUP(DropDownList!$A$47,CntyQuery!$A$4:$FA$46,K1) -> 13699 | L5: =VLOOKUP(DropDownList!$A$47,CntyQuery!$A$4:$FA$46,L1) -> 26291 | M5: =VLOOKUP(DropDownList!$A$47,CntyQuery!$A$4:$FA$46,M1) -> 85 | N5: =VLOOKUP(DropDownList!$A$47,CntyQuery!$A$4:$FA$46,N1) -> 54 | O5: =VLOOKUP(DropDownList!$A$47,CntyQuery!$A$4:$FA$46,O1) -> 147 | P5: =VLOOKUP(DropDownList!$A$47,CntyQuery!$A$4:$FA$46,P1) -> 53 | Q5: =VLOOKUP(DropDownList!$A$47,CntyQuery!$A$4:$FA$46,Q1) -> 192 | R5: =VLOOKUP(DropDownList!$A$47,CntyQuery!$A$4:$FA$46,R1) -> 6067 | S5: =VLOOKUP(DropDownList!$A$47,CntyQuery!$A$4:$FA$46,S1) -> 3386 | T5: =VLOOKUP(DropDownList!$A$47,CntyQuery!$A$4:$FA$46,T1) -> 5151 | U5: =VLOOKUP(DropDownList!$A$47,CntyQuery!$A$4:$FA$46,U1) -> 3862 | V5: =VLOOKUP(DropDownList!$A$47,CntyQuery!$A$4:$FA$46,V1) -> 2510 | W5: =VLOOKUP(DropDownList!$A$47,CntyQuery!$A$4:$FA$46,W1) -> 2258 | X5: =VLOOKUP(DropDownList!$A$47,CntyQuery!$A$4:$FA$46,X1) -> 1886 | Y5: =VLOOKUP(DropDownList!$A$47,CntyQuery!$A$4:$FA$46,Y1) -> 1510 | Z5: =VLOOKUP(DropDownList!$A$47,CntyQuery!$A$4:$FA$46,Z1) -> 26327 | AA5: =VLOOKUP(DropDownList!$A$47,CntyQuery!$A$4:$FA$46,AA1) -> 22703 | AB5: =VLOOKUP(DropDownList!$A$47,CntyQuery!$A$4:$FA$46,AB1) -> 303 | AC5: =VLOOKUP(DropDownList!$A$47,CntyQuery!$A$4:$FA$46,AC1) -> 2.575775364 | AD5: =VLOOKUP(DropDownList!$A$47,CntyQuery!$A$4:$FA$46,AD1) -> 3.096426623 | AE5: =VLOOKUP(DropDownList!$A$47,CntyQuery!$A$4:$FA$46,AE1) -> 2304 | AF5: =VLOOKUP(DropDownList!$A$47,CntyQuery!$A$4:$FA$46,AF1) -> 5989 | AG5: =VLOOKUP(DropDownList!$A$47,CntyQuery!$A$4:$FA$46,AG1) -> 1343 | AH5: =VLOOKUP(DropDownList!$A$47,CntyQuery!$A$4:$FA$46,AH1) -> 585 | AI5: =VLOOKUP(DropDownList!$A$47,CntyQuery!$A$4:$FA$46,AI1) -> 11076 | AJ5: =VLOOKUP(DropDownList!$A$47,CntyQuery!$A$4:$FA$46,AJ1) -> 10221 | AK5: =VLOOKUP(DropDownList!$A$47,CntyQuery!$A$4:$FA$46,AK1) -> 855 | AL5: =VLOOKUP(DropDownList!$A$47,CntyQuery!$A$4:$FA$46,AL1) -> 7051 | AM5: =VLOOKUP(DropDownList!$A$47,CntyQuery!$A$4:$FA$46,AM1) -> 3170 | AN5: =VLOOKUP(DropDownList!$A$47,CntyQuery!$A$4:$FA$46,AN1) -> 446 | AO5: =VLOOKUP(DropDownList!$A$47,CntyQuery!$A$4:$FA$46,AO1) -> 212 | AP5: =VLOOKUP(DropDownList!$A$47,CntyQuery!$A$4:$FA$46,AP1) -> 50 | AQ5: =VLOOKUP(DropDownList!$A$47,CntyQuery!$A$4:$FA$46,AQ1) -> 5129 | AR5: =VLOOKUP(DropDownList!$A$47,CntyQuery!$A$4:$FA$46,AR1) -> 3796 | AS5: =VLOOKUP(DropDownList!$A$47,CntyQuery!$A$4:$FA$46,AS1) -> 2151 | AT5: =VLOOKUP(DropDownList!$A$47,CntyQuery!$A$4:$FA$46,AT1) -> 4588 | AU5: =VLOOKUP(DropDownList!$A$47,CntyQuery!$A$4:$FA$46,AU1) -> 626 | AV5: =VLOOKUP(DropDownList!$A$47,CntyQuery!$A$4:$FA$46,AV1) -> 2151 | AW5: =VLOOKUP(DropDownList!$A$47,CntyQuery!$A$4:$FA$46,AW1) -> 392 | AX5: =VLOOKUP(DropDownList!$A$47,CntyQuery!$A$4:$FA$46,AX1) -> 2646 | AY5: =VLOOKUP(DropDownList!$A$47,CntyQuery!$A$4:$FA$46,AY1) -> 132 | AZ5: =VLOOKUP(DropDownList!$A$47,CntyQuery!$A$4:$FA$46,AZ1) -> 2013 | BA5: =VLOOKUP(DropDownList!$A$47,CntyQuery!$A$4:$FA$46,BA1) -> 3034 | BB5: =VLOOKUP(DropDownList!$A$47,CntyQuery!$A$4:$FA$46,BB1) -> 2699 | BC5: =VLOOKUP(DropDownList!$A$47,CntyQuery!$A$4:$FA$46,BC1) -> 3330 | BD5: =VLOOKUP(DropDownList!$A$47,CntyQuery!$A$4:$FA$46,BD1) -> 113 | BE5: =VLOOKUP(DropDownList!$A$47,CntyQuery!$A$4:$FA$46,BE1) -> 1452 | BF5: =VLOOKUP(DropDownList!$A$47,CntyQuery!$A$4:$FA$46,BF1) -> 4176 | BG5: =VLOOKUP(DropDownList!$A$47,CntyQuery!$A$4:$FA$46,BG1) -> 3867 | BH5: =VLOOKUP(DropDownList!$A$47,CntyQuery!$A$4:$FA$46,BH1) -> 1468 | BI5: =VLOOKUP(DropDownList!$A$47,CntyQuery!$A$4:$FA$46,BI1) -> 335 | BJ5: =VLOOKUP(DropDownList!$A$47,CntyQuery!$A$4:$FA$46,BJ1) -> 786 | BK5: =VLOOKUP(DropDownList!$A$47,CntyQuery!$A$4:$FA$46,BK1) -> 879 | BL5: =VLOOKUP(DropDownList!$A$47,CntyQuery!$A$4:$FA$46,BL1) -> 1996 | BM5: =VLOOKUP(DropDownList!$A$47,CntyQuery!$A$4:$FA$46,BM1) -> 1883 | BN5: =VLOOKUP(DropDownList!$A$47,CntyQuery!$A$4:$FA$46,BN1) -> 2394 | BO5: =VLOOKUP(DropDownList!$A$47,CntyQuery!$A$4:$FA$46,BO1) -> 1525 | BP5: =VLOOKUP(DropDownList!$A$47,CntyQuery!$A$4:$FA$46,BP1) -> 276 | BQ5: =VLOOKUP(DropDownList!$A$47,CntyQuery!$A$4:$FA$46,BQ1) -> 122 | BR5: =VLOOKUP(DropDownList!$A$47,CntyQuery!$A$4:$FA$46,BR1) -> 30807 | BS5: =VLOOKUP(DropDownList!$A$47,CntyQuery!$A$4:$FA$46,BS1) -> 26 | BT5: =VLOOKUP(DropDownList!$A$47,CntyQuery!$A$4:$FA$46,BT1) -> 62 | BU5: =VLOOKUP(DropDownList!$A$47,CntyQuery!$A$4:$FA$46,BU1) -> 50 | BV5: =VLOOKUP(DropDownList!$A$47,CntyQuery!$A$4:$FA$46,BV1) -> 225 | BW5: =VLOOKUP(DropDownList!$A$47,CntyQuery!$A$4:$FA$46,BW1) -> 102 | BX5: =VLOOKUP(DropDownList!$A$47,CntyQuery!$A$4:$FA$46,BX1) -> 169 | BY5: =VLOOKUP(DropDownList!$A$47,CntyQuery!$A$4:$FA$46,BY1) -> 29 | BZ5: =VLOOKUP(DropDownList!$A$47,CntyQuery!$A$4:$FA$46,BZ1) -> 6 | CA5: =VLOOKUP(DropDownList!$A$47,CntyQuery!$A$4:$FA$46,CA1) -> 0 | CB5: =VLOOKUP(DropDownList!$A$47,CntyQuery!$A$4:$FA$46,CB1) -> 37 | CC5: =VLOOKUP(DropDownList!$A$47,CntyQuery!$A$4:$FA$46,CC1) -> 65 | CD5: =VLOOKUP(DropDownList!$A$47,CntyQuery!$A$4:$FA$46,CD1) -> 144 | CE5: =VLOOKUP(DropDownList!$A$47,CntyQuery!$A$4:$FA$46,CE1) -> 464 | CF5: =VLOOKUP(DropDownList!$A$47,CntyQuery!$A$4:$FA$46,CF1) -> 563 | CG5: =VLOOKUP(DropDownList!$A$47,CntyQuery!$A$4:$FA$46,CG1) -> 766 | CH5: =VLOOKUP(DropDownList!$A$47,CntyQuery!$A$4:$FA$46,CH1) -> 423 | CI5: =VLOOKUP(DropDownList!$A$47,CntyQuery!$A$4:$FA$46,CI1) -> 45 | CJ5: =VLOOKUP(DropDownList!$A$47,CntyQuery!$A$4:$FA$46,CJ1) -> 14 | CK5: =VLOOKUP(DropDownList!$A$47,CntyQuery!$A$4:$FA$46,CK1) -> 42 | CL5: =VLOOKUP(DropDownList!$A$47,CntyQuery!$A$4:$FA$46,CL1) -> 53 | CM5: =VLOOKUP(DropDownList!$A$47,CntyQuery!$A$4:$FA$46,CM1) -> 90 | CN5: =VLOOKUP(DropDownList!$A$47,CntyQuery!$A$4:$FA$46,CN1) -> 352 | CO5: =VLOOKUP(DropDownList!$A$47,CntyQuery!$A$4:$FA$46,CO1) -> 375 | CP5: =VLOOKUP(DropDownList!$A$47,CntyQuery!$A$4:$FA$46,CP1) -> 735 | CQ5: =VLOOKUP(DropDownList!$A$47,CntyQuery!$A$4:$FA$46,CQ1) -> 455 | CR5: =VLOOKUP(DropDownList!$A$47,CntyQuery!$A$4:$FA$46,CR1) -> 64 | CS5: =VLOOKUP(DropDownList!$A$47,CntyQuery!$A$4:$FA$46,CS1) -> 38 | CT5: =VLOOKUP(DropDownList!$A$47,CntyQuery!$A$4:$FA$46,CT1) -> 24 | CU5: =VLOOKUP(DropDownList!$A$47,CntyQuery!$A$4:$FA$46,CU1) -> 80 | CV5: =VLOOKUP(DropDownList!$A$47,CntyQuery!$A$4:$FA$46,CV1) -> 48 | CW5: =VLOOKUP(DropDownList!$A$47,CntyQuery!$A$4:$FA$46,CW1) -> 189 | CX5: =VLOOKUP(DropDownList!$A$47,CntyQuery!$A$4:$FA$46,CX1) -> 244 | CY5: =VLOOKUP(DropDownList!$A$47,CntyQuery!$A$4:$FA$46,CY1) -> 339 | CZ5: =VLOOKUP(DropDownList!$A$47,CntyQuery!$A$4:$FA$46,CZ1) -> 335 | DA5: =VLOOKUP(DropDownList!$A$47,CntyQuery!$A$4:$FA$46,DA1) -> 102 | DB5: =VLOOKUP(DropDownList!$A$47,CntyQuery!$A$4:$FA$46,DB1) -> 48 | DC5: =VLOOKUP(DropDownList!$A$47,CntyQuery!$A$4:$FA$46,DC1) -> 51 | DD5: =VLOOKUP(DropDownList!$A$47,CntyQuery!$A$4:$FA$46,DD1) -> 71 | DE5: =VLOOKUP(DropDownList!$A$47,CntyQuery!$A$4:$FA$46,DE1) -> 166 | DF5: =VLOOKUP(DropDownList!$A$47,CntyQuery!$A$4:$FA$46,DF1) -> 257 | DG5: =VLOOKUP(DropDownList!$A$47,CntyQuery!$A$4:$FA$46,DG1) -> 232 | DH5: =VLOOKUP(DropDownList!$A$47,CntyQuery!$A$4:$FA$46,DH1) -> 224 | DI5: =VLOOKUP(DropDownList!$A$47,CntyQuery!$A$4:$FA$46,DI1) -> 215 | DJ5: =VLOOKUP(DropDownList!$A$47,CntyQuery!$A$4:$FA$46,DJ1) -> 47 | DK5: =VLOOKUP(DropDownList!$A$47,CntyQuery!$A$4:$FA$46,DK1) -> 22 | DL5: =VLOOKUP(DropDownList!$A$47,CntyQuery!$A$4:$FA$46,DL1) -> 39 | DM5: =VLOOKUP(DropDownList!$A$47,CntyQuery!$A$4:$FA$46,DM1) -> 142 | DN5: =VLOOKUP(DropDownList!$A$47,CntyQuery!$A$4:$FA$46,DN1) -> 263 | DO5: =VLOOKUP(DropDownList!$A$47,CntyQuery!$A$4:$FA$46,DO1) -> 354 | DP5: =VLOOKUP(DropDownList!$A$47,CntyQuery!$A$4:$FA$46,DP1) -> 297 | DQ5: =VLOOKUP(DropDownList!$A$47,CntyQuery!$A$4:$FA$46,DQ1) -> 95 | DR5: =VLOOKUP(DropDownList!$A$47,CntyQuery!$A$4:$FA$46,DR1) -> 39 | DS5: =VLOOKUP(DropDownList!$A$47,CntyQuery!$A$4:$FA$46,DS1) -> 12 | DT5: =VLOOKUP(DropDownList!$A$47,CntyQuery!$A$4:$FA$46,DT1) -> 0 | DU5: =VLOOKUP(DropDownList!$A$47,CntyQuery!$A$4:$FA$46,DU1) -> 116 | DV5: =VLOOKUP(DropDownList!$A$47,CntyQuery!$A$4:$FA$46,DV1) -> 313 | DW5: =VLOOKUP(DropDownList!$A$47,CntyQuery!$A$4:$FA$46,DW1) -> 118 | DX5: =VLOOKUP(DropDownList!$A$47,CntyQuery!$A$4:$FA$46,DX1) -> 155 | DY5: =VLOOKUP(DropDownList!$A$47,CntyQuery!$A$4:$FA$46,DY1) -> 70 | DZ5: =VLOOKUP(DropDownList!$A$47,CntyQuery!$A$4:$FA$46,DZ1) -> 66 | EA5: =VLOOKUP(DropDownList!$A$47,CntyQuery!$A$4:$FA$46,EA1) -> 29 | EB5: =VLOOKUP(DropDownList!$A$47,CntyQuery!$A$4:$FA$46,EB1) -> 0 | EC5: =VLOOKUP(DropDownList!$A$47,CntyQuery!$A$4:$FA$46,EC1) -> 0 | ED5: =VLOOKUP(DropDownList!$A$47,CntyQuery!$A$4:$FA$46,ED1) -> 4209 | EE5: =VLOOKUP(DropDownList!$A$47,CntyQuery!$A$4:$FA$46,EE1) -> 17177 | EF5: =VLOOKUP(DropDownList!$A$47,CntyQuery!$A$4:$FA$46,EF1) -> 12889 | EG5: =VLOOKUP(DropDownList!$A$47,CntyQuery!$A$4:$FA$46,EG1) -> 2416 | EH5: =VLOOKUP(DropDownList!$A$47,CntyQuery!$A$4:$FA$46,EH1) -> 25961 | EI5: =VLOOKUP(DropDownList!$A$47,CntyQuery!$A$4:$FA$46,EI1) -> 669 | EJ5: =VLOOKUP(DropDownList!$A$47,CntyQuery!$A$4:$FA$46,EJ1) -> 15347 | EK5: =VLOOKUP(DropDownList!$A$47,CntyQuery!$A$4:$FA$46,EK1) -> 25961 | EL5: =VLOOKUP(DropDownList!$A$47,CntyQuery!$A$4:$FA$46,EL1) -> 669 | EM5: =VLOOKUP(DropDownList!$A$47,CntyQuery!$A$4:$FA$46,EM1) -> 9749 | EN5: =VLOOKUP(DropDownList!$A$47,CntyQuery!$A$4:$FA$46,EN1) -> 2241 | EO5: =VLOOKUP(DropDownList!$A$47,CntyQuery!$A$4:$FA$46,EO1) -> 113 | EP5: =VLOOKUP(DropDownList!$A$47,CntyQuery!$A$4:$FA$46,EP1) -> 278 | EQ5: =VLOOKUP(DropDownList!$A$47,CntyQuery!$A$4:$FA$46,EQ1) -> 164 | ER5: =VLOOKUP(DropDownList!$A$47,CntyQuery!$A$4:$FA$46,ER1) -> 298 | ES5: =VLOOKUP(DropDownList!$A$47,CntyQuery!$A$4:$FA$46,ES1) -> 1121 | ET5: =VLOOKUP(DropDownList!$A$47,CntyQuery!$A$4:$FA$46,ET1) -> 879 | EU5: =VLOOKUP(DropDownList!$A$47,CntyQuery!$A$4:$FA$46,EU1) -> 1996 | EV5: =VLOOKUP(DropDownList!$A$47,CntyQuery!$A$4:$FA$46,EV1) -> 1883 | EW5: =VLOOKUP(DropDownList!$A$47,CntyQuery!$A$4:$FA$46,EW1) -> 2394 | EX5: =VLOOKUP(DropDownList!$A$47,CntyQuery!$A$4:$FA$46,EX1) -> 1525 | EY5: =VLOOKUP(DropDownList!$A$47,CntyQuery!$A$4:$FA$46,EY1) -> 276 | EZ5: =VLOOKUP(DropDownList!$A$47,CntyQuery!$A$4:$FA$46,EZ1) -> 68 | FA5: =VLOOKUP(DropDownList!$A$47,CntyQuery!$A$4:$FA$46,FA1) -> 54
A8: Census 1990 Data - Query Name: TownSTF1Qry1
A9: NAME | B9: COUSUBFP | C9: Census_Cnty_Code | D9: FIPS | E9: LandAcres | F9: WaterAcres | G9: HousingUnits90Cen | H9: P01Persons90Cen | I9: P02Families90Cen | J9: P03Households90cen | K9: P05MalePop90cen | L9: P05FemalePop90cen | M9: P06WhitePop | N9: P06BlackPop | O9: P06AmerIndianPop | P9: P06AsianPIPop | Q9: P06OtherRacePop | R9: P08HispanicOrPop | S9: P11AgeUnder15_90cen | T9: P11Age15to24_90cen | U9: P11Age25to34_90cen | V9: P11Age35to44_90cen | W9: P11Age45to54_90cen | X9: P11Age55to64_90cen | Y9: P11Age65to74_90cen | Z9: P11Age75andOver_90cen | AA9: P15PersonsInHH90cen | AB9: P15PersonsInFamHH90cen | AC9: P15PersonsInGC | AD9: PersonsPerHH90cen | AE9: PersonsPerFam90Cen | AF9: P16SinglePersonHH90cen | AG9: P16MarriedCoupleHH90cen | AH9: P16SingleParentHH90cen | AI9: P16NonFamilyHH90cen | AJ9: H01TotalHousingUnits | AK9: H02OccupiedHousingUnits | AL9: H02VacantHousingUnits | AM9: H03OwnerOccHU | AN9: H03RenterOccHU | AO9: H05VacantForRent90 | AP9: H05VacantForSale90 | AQ9: H05VacantSeasonalRec | AR9: H23OOHUVal<15k | AS9: H23OOHUVal15to19k | AT9: H23OOHUVal20to24k | AU9: H23OOHUVal25to29k | AV9: H23OOHUVal30to34k | AW9: H23OOHUVal35to39k | AX9: H23OOHUVal40to44k | AY9: H23OOHUVal45to49k | AZ9: H23OOHUVal50to59k | BA9: H23OOHUVal60to74k | BB9: H23OOHUVal75to99k | BC9: H23OOHUVal100to124k | BD9: H23OOHUVal125to149k | BE9: H23OOHUVal150to174k | BF9: H23OOHUVal175to199k | BG9: H23OOHUVal200to249k | BH9: H23OOHUVal250to299k | BI9: H23OOHUVal300to399k | BJ9: H23OOHUVal400to499k | BK9: H23OOHUVal500kOrMore | BL9: H23BOOHUMedVal | BM9: H41SingFamHU90cen | BN9: H41MultiFamHU90cen | BO9: H41MobileHom90cen | BP9: H43SingFamOwnHU90cen | BQ9: H43MultiFamOwnHU90cen | BR9: H43MobileHomOwnHU90cen | BS9: H43SingFamRntrHU90cen | BT9: H43MultiFamRntrHU90cen | BU9: H43MobileHomRntrHU90cen | BV9: H41HU1UnitDet | BW9: H41HU1UnitAtt | BX9: H41HU2Unit | BY9: H41HU3to4Unit | BZ9: H41HU5to9Unit | CA9: H41HU10to19Unit | CB9: H41HU20to49Unit | CC9: H41HU50PlusUnit | CD9: H41HUMobilH | CE9: H41HUOther
A10: =VLOOKUP(DropDownList!$B$47,CntyQuery!$A$51:$CE$93,A$1) -> Rochester | B10: =VLOOKUP(DropDownList!$B$47,CntyQuery!$A$51:$CE$93,B$1) -> 910 | C10: =VLOOKUP(DropDownList!$B$47,CntyQuery!$A$51:$CE$93,C$1) -> 17050 | D10: =VLOOKUP(DropDownList!$B$47,CntyQuery!$A$51:$CE$93,D$1) -> 65140 | E10: =VLOOKUP(DropDownList!$B$47,CntyQuery!$A$51:$CE$93,E$1) -> 28688.05 | F10: =VLOOKUP(DropDownList!$B$47,CntyQuery!$A$51:$CE$93,F$1) -> 392.49 | G10: =VLOOKUP(DropDownList!$B$47,CntyQuery!$A$51:$CE$93,G$1) -> 11076 | H10: =VLOOKUP(DropDownList!$B$47,CntyQuery!$A$51:$CE$93,H$1) -> 26630 | I10: =VLOOKUP(DropDownList!$B$47,CntyQuery!$A$51:$CE$93,I$1) -> 7332 | J10: =VLOOKUP(DropDownList!$B$47,CntyQuery!$A$51:$CE$93,J$1) -> 10221 | K10: =VLOOKUP(DropDownList!$B$47,CntyQuery!$A$51:$CE$93,K$1) -> 12931 | L10: =VLOOKUP(DropDownList!$B$47,CntyQuery!$A$51:$CE$93,L$1) -> 13699 | M10: =VLOOKUP(DropDownList!$B$47,CntyQuery!$A$51:$CE$93,M$1) -> 26291 | N10: =VLOOKUP(DropDownList!$B$47,CntyQuery!$A$51:$CE$93,N$1) -> 85 | O10: =VLOOKUP(DropDownList!$B$47,CntyQuery!$A$51:$CE$93,O$1) -> 54 | P10: =VLOOKUP(DropDownList!$B$47,CntyQuery!$A$51:$CE$93,P$1) -> 147 | Q10: =VLOOKUP(DropDownList!$B$47,CntyQuery!$A$51:$CE$93,Q$1) -> 53 | R10: =VLOOKUP(DropDownList!$B$47,CntyQuery!$A$51:$CE$93,R$1) -> 192 | S10: =VLOOKUP(DropDownList!$B$47,CntyQuery!$A$51:$CE$93,S$1) -> 6067 | T10: =VLOOKUP(DropDownList!$B$47,CntyQuery!$A$51:$CE$93,T$1) -> 3386 | U10: =VLOOKUP(DropDownList!$B$47,CntyQuery!$A$51:$CE$93,U$1) -> 5151 | V10: =VLOOKUP(DropDownList!$B$47,CntyQuery!$A$51:$CE$93,V$1) -> 3862 | W10: =VLOOKUP(DropDownList!$B$47,CntyQuery!$A$51:$CE$93,W$1) -> 2510 | X10: =VLOOKUP(DropDownList!$B$47,CntyQuery!$A$51:$CE$93,X$1) -> 2258 | Y10: =VLOOKUP(DropDownList!$B$47,CntyQuery!$A$51:$CE$93,Y$1) -> 1886 | Z10: =VLOOKUP(DropDownList!$B$47,CntyQuery!$A$51:$CE$93,Z$1) -> 1510 | AA10: =VLOOKUP(DropDownList!$B$47,CntyQuery!$A$51:$CE$93,AA$1) -> 26327 | AB10: =VLOOKUP(DropDownList!$B$47,CntyQuery!$A$51:$CE$93,AB$1) -> 22703 | AC10: =VLOOKUP(DropDownList!$B$47,CntyQuery!$A$51:$CE$93,AC$1) -> 303 | AD10: =VLOOKUP(DropDownList!$B$47,CntyQuery!$A$51:$CE$93,AD$1) -> 2.575775364 | AE10: =VLOOKUP(DropDownList!$B$47,CntyQuery!$A$51:$CE$93,AE$1) -> 3.096426623 | AF10: =VLOOKUP(DropDownList!$B$47,CntyQuery!$A$51:$CE$93,AF$1) -> 2304 | AG10: =VLOOKUP(DropDownList!$B$47,CntyQuery!$A$51:$CE$93,AG$1) -> 5989 | AH10: =VLOOKUP(DropDownList!$B$47,CntyQuery!$A$51:$CE$93,AH$1) -> 1343 | AI10: =VLOOKUP(DropDownList!$B$47,CntyQuery!$A$51:$CE$93,AI$1) -> 585 | AJ10: =VLOOKUP(DropDownList!$B$47,CntyQuery!$A$51:$CE$93,AJ$1) -> 11076 | AK10: =VLOOKUP(DropDownList!$B$47,CntyQuery!$A$51:$CE$93,AK$1) -> 10221 | AL10: =VLOOKUP(DropDownList!$B$47,CntyQuery!$A$51:$CE$93,AL$1) -> 855 | AM10: =VLOOKUP(DropDownList!$B$47,CntyQuery!$A$51:$CE$93,AM$1) -> 7051 | AN10: =VLOOKUP(DropDownList!$B$47,CntyQuery!$A$51:$CE$93,AN$1) -> 3170 | AO10: =VLOOKUP(DropDownList!$B$47,CntyQuery!$A$51:$CE$93,AO$1) -> 446 | AP10: =VLOOKUP(DropDownList!$B$47,CntyQuery!$A$51:$CE$93,AP$1) -> 212 | AQ10: =VLOOKUP(DropDownList!$B$47,CntyQuery!$A$51:$CE$93,AQ$1) -> 50 | AR10: =VLOOKUP(DropDownList!$B$47,CntyQuery!$A$51:$CE$93,AR$1) -> 15 | AS10: =VLOOKUP(DropDownList!$B$47,CntyQuery!$A$51:$CE$93,AS$1) -> 6 | AT10: =VLOOKUP(DropDownList!$B$47,CntyQuery!$A$51:$CE$93,AT$1) -> 18 | AU10: =VLOOKUP(DropDownList!$B$47,CntyQuery!$A$51:$CE$93,AU$1) -> 10 | AV10: =VLOOKUP(DropDownList!$B$47,CntyQuery!$A$51:$CE$93,AV$1) -> 20 | AW10: =VLOOKUP(DropDownList!$B$47,CntyQuery!$A$51:$CE$93,AW$1) -> 35 | AX10: =VLOOKUP(DropDownList!$B$47,CntyQuery!$A$51:$CE$93,AX$1) -> 33 | AY10: =VLOOKUP(DropDownList!$B$47,CntyQuery!$A$51:$CE$93,AY$1) -> 31 | AZ10: =VLOOKUP(DropDownList!$B$47,CntyQuery!$A$51:$CE$93,AZ$1) -> 78 | BA10: =VLOOKUP(DropDownList!$B$47,CntyQuery!$A$51:$CE$93,BA$1) -> 311 | BB10: =VLOOKUP(DropDownList!$B$47,CntyQuery!$A$51:$CE$93,BB$1) -> 1366 | BC10: =VLOOKUP(DropDownList!$B$47,CntyQuery!$A$51:$CE$93,BC$1) -> 1172 | BD10: =VLOOKUP(DropDownList!$B$47,CntyQuery!$A$51:$CE$93,BD$1) -> 720 | BE10: =VLOOKUP(DropDownList!$B$47,CntyQuery!$A$51:$CE$93,BE$1) -> 265 | BF10: =VLOOKUP(DropDownList!$B$47,CntyQuery!$A$51:$CE$93,BF$1) -> 102 | BG10: =VLOOKUP(DropDownList!$B$47,CntyQuery!$A$51:$CE$93,BG$1) -> 97 | BH10: =VLOOKUP(DropDownList!$B$47,CntyQuery!$A$51:$CE$93,BH$1) -> 34 | BI10: =VLOOKUP(DropDownList!$B$47,CntyQuery!$A$51:$CE$93,BI$1) -> 12 | BJ10: =VLOOKUP(DropDownList!$B$47,CntyQuery!$A$51:$CE$93,BJ$1) -> 3 | BK10: =VLOOKUP(DropDownList!$B$47,CntyQuery!$A$51:$CE$93,BK$1) -> 4 | BL10: =VLOOKUP(DropDownList!$B$47,CntyQuery!$A$51:$CE$93,BL$1) -> 105200 | BM10: =VLOOKUP(DropDownList!$B$47,CntyQuery!$A$51:$CE$93,BM$1) -> 5129 | BN10: =VLOOKUP(DropDownList!$B$47,CntyQuery!$A$51:$CE$93,BN$1) -> 3796 | BO10: =VLOOKUP(DropDownList!$B$47,CntyQuery!$A$51:$CE$93,BO$1) -> 2151 | BP10: =VLOOKUP(DropDownList!$B$47,CntyQuery!$A$51:$CE$93,BP$1) -> 4588 | BQ10: =VLOOKUP(DropDownList!$B$47,CntyQuery!$A$51:$CE$93,BQ$1) -> 626 | BR10: =VLOOKUP(DropDownList!$B$47,CntyQuery!$A$51:$CE$93,BR$1) -> 1837 | BS10: =VLOOKUP(DropDownList!$B$47,CntyQuery!$A$51:$CE$93,BS$1) -> 392 | BT10: =VLOOKUP(DropDownList!$B$47,CntyQuery!$A$51:$CE$93,BT$1) -> 2646 | BU10: =VLOOKUP(DropDownList!$B$47,CntyQuery!$A$51:$CE$93,BU$1) -> 132 | BV10: =VLOOKUP(DropDownList!$B$47,CntyQuery!$A$51:$CE$93,BV$1) -> 5129 | BW10: =VLOOKUP(DropDownList!$B$47,CntyQuery!$A$51:$CE$93,BW$1) -> 362 | BX10: =VLOOKUP(DropDownList!$B$47,CntyQuery!$A$51:$CE$93,BX$1) -> 942 | BY10: =VLOOKUP(DropDownList!$B$47,CntyQuery!$A$51:$CE$93,BY$1) -> 1151 | BZ10: =VLOOKUP(DropDownList!$B$47,CntyQuery!$A$51:$CE$93,BZ$1) -> 696 | CA10: =VLOOKUP(DropDownList!$B$47,CntyQuery!$A$51:$CE$93,CA$1) -> 273 | CB10: =VLOOKUP(DropDownList!$B$47,CntyQuery!$A$51:$CE$93,CB$1) -> 218 | CC10: =VLOOKUP(DropDownList!$B$47,CntyQuery!$A$51:$CE$93,CC$1) -> 154 | CD10: =VLOOKUP(DropDownList!$B$47,CntyQuery!$A$51:$CE$93,CD$1) -> 2041 | CE10: =VLOOKUP(DropDownList!$B$47,CntyQuery!$A$51:$CE$93,CE$1) -> 110
A13: Census 1990 Data - Query Name: TownSTF3Qry1
A14: NAME | B14: FIPS | C14: COUSUBFP | D14: LandAcres | E14: WaterAcres | F14: HousingUnits90Cen | G14: P01Persons90Cen | H14: P02Families90Cen | I14: P03Households90cen | J14: H25HU<5yrs90cen | K14: H25HU5to20yrs90cen | L14: H25HU20to50yrs90cen | M14: H25HU>50yrs90cen | N14: H31Units0Bedroom90cen | O14: H31Units1Bedroom90cen | P14: H31Units2Bedroom90cen | Q14: H31Units3Bedroom90cen | R14: H31Units4Bedroom90cen | S14: H31Units5+Bedroom90cen | T14: P80HI<5K | U14: P80HI5Kto10K | V14: P80HI10Kto15K | W14: P80HI15Kto25K | X14: P80HI25Kto35K | Y14: P80HI35Kto50K | Z14: P80HI50Kto75K | AA14: P80HI75Kto100K | AB14: P80HI>100K | AC14: P80AMedHI | AD14: P86HH<25HI<5K | AE14: P86HH<25HI5Kto10K | AF14: P86HH<25HI10Kto15K | AG14: P86HH<25HI15Kto25K | AH14: P86HH<25HI25Kto35K | AI14: P86HH<25HI35Kto50K | AJ14: P86HH<25HI50Kto75K | AK14: P86HH<25HI75Kto100K | AL14: P86HH<25HI>100K | AM14: P86HH25to34HI<5K | AN14: P86HH25to34HI5Kto10K | AO14: P86HH25to34HI10Kto15K | AP14: P86HH25to34HI15Kto25K | AQ14: P86HH25to34HI25Kto35K | AR14: P86HH25to34HI35Kto50K | AS14: P86HH25to34HI50Kto75K | AT14: P86HH25to34HI75Kto100K | AU14: P86HH25to34HI>100K | AV14: P86HH35to44HI<5K | AW14: P86HH35to44HI5Kto10K | AX14: P86HH35to44HI10Kto15K | AY14: P86HH35to44HI15Kto25K | AZ14: P86HH35to44HI25Kto35K | BA14: P86HH35to44HI35Kto50K | BB14: P86HH35to44HI50Kto75K | BC14: P86HH35to44HI75Kto100K | BD14: P86HH35to44HI>100K | BE14: P86HH45to54HI<5K | BF14: P86HH45to54HI5Kto10K | BG14: P86HH45to54HI10Kto15K | BH14: P86HH45to54HI15Kto25K | BI14: P86HH45to54HI25Kto35K | BJ14: P86HH45to54HI35Kto50K | BK14: P86HH45to54HI50Kto75K | BL14: P86HH45to54HI75Kto100K | BM14: P86HH45to54HI>100K | BN14: P86HH55to64HI<5K | BO14: P86HH55to64HI5Kto10K | BP14: P86HH55to64HI10Kto15K | BQ14: P86HH55to64HI15Kto25K | BR14: P86HH55to64HI25Kto35K | BS14: P86HH55to64HI35Kto50K | BT14: P86HH55to64HI50Kto75K | BU14: P86HH55to64HI75Kto100K | BV14: P86HH55to64HI>100K | BW14: P86HH65to74HI<5K | BX14: P86HH65to74HI5Kto10K | BY14: P86HH65to74HI10Kto15K | BZ14: P86HH65to74HI15Kto25K | CA14: P86HH65to74HI25Kto35K | CB14: P86HH65to74HI35Kto50K | CC14: P86HH65to74HI50Kto75K | CD14: P86HH65to74HI75Kto100K | CE14: P86HH65to74HI>100K | CF14: P86HH>75HI<5K | CG14: P86HH>75HI5Kto10K | CH14: P86HH>75HI10Kto15K | CI14: P86HH>75HI15Kto25K | CJ14: P86HH>75HI25Kto35K | CK14: P86HH>75HI35Kto50K | CL14: P86HH>75HI50Kto75K | CM14: P86HH>75HI75Kto100K | CN14: P86HH>75HI>100K | CO14: P54SchlEnrlPrePrim | CP14: P54SchlEnrlElemThrHS | CQ14: P54SchlEnrlCollege | CR14: P54NotEnrlInSch | CS14: P57Pop25andOver | CT14: P57LessThan9thGrade | CU14: P579thto12thNoDip | CV14: P57HSGrad | CW14: P57SomeCollege | CX14: P57AssocDeg | CY14: P57BachelDeg | CZ14: P57GradorProfDeg | DA14: P57HSGradorHigher | DB14: P57CollGradorHigher | DC14: P42NativePop | DD14: P42ForeignBornPop | DE14: P42BornStateOfRes | DF14: P37NativePop2 | DG14: P37ForeignBornPop2 | DH14: P49DroveAlone | DI14: P49CarPooled | DJ14: P49PublicTranspt | DK14: P49Walked | DL14: P49OtherMeans | DM14: P49WorkedAtHome | DN14: P80HHInc<10K | DO14: P80HHInc10to15K | DP14: P80HHInc15to25K | DQ14: P80HHInc25to35K | DR14: P80HHInc35to50K | DS14: P80HHInc50to75K | DT14: P80HHInc75to100K | DU14: P80HHInc100to150K | DV14: P80HHInc>150K | DW14: H25YearStBlt89to90 | DX14: H25YearStBlt85to88 | DY14: H25YearStBlt80to84 | DZ14: H25YearStBlt70to79 | EA14: H25YearStBlt60to69 | EB14: H25YearStBlt50to59 | EC14: H25YearStBlt40to49 | ED14: H25YearStBlt39earlier | EE14: P107FamInc<10K | EF14: P107FamInc10to15K | EG14: P107FamInc15to25K | EH14: P107FamInc25to35K | EI14: P107FamInc35to50K | EJ14: P107FamInc50to75K | EK14: P107FamInc75to100K | EL14: P107FamInc100to150K | EM14: P107FamInc>150K | EN14: P107AMedFamInc | EO14: P110NonFamInc<10K | EP14: P110NonFamInc10to15K | EQ14: P110NonFamInc15to25K | ER14: P110NonFamInc25to35K | ES14: P110NonFamInc35to50K | ET14: P110NonFamInc50to75K | EU14: P110NonFamInc75to100K | EV14: P110NonFamInc100to150K | EW14: P110NonFamInc>150K | EX14: P110AMedNonFamInc | EY14: H16HU1Room | EZ14: H16HU2Room | FA14: H16HU3Room | FB14: H16HU4Room | FC14: H16HU5Room | FD14: H16HU6Room | FE14: H16HU7Room | FF14: H16HU8Room | FG14: H16HU9+Room | FH14: H43GrossRnt<100 | FI14: H43GrossRnt100to149 | FJ14: H43GrossRnt150to199 | FK14: H43GrossRnt200to249 | FL14: H43GrossRnt250to299 | FM14: H43GrossRnt300to349 | FN14: H43GrossRnt350to399 | FO14: H43GrossRnt400to449 | FP14: H43GrossRnt450to499 | FQ14: H43GrossRnt500to549 | FR14: H43GrossRnt550to599 | FS14: H43GrossRnt600to649 | FT14: H43GrossRnt650to699 | FU14: H43GrossRnt700to749 | FV14: H43GrossRnt750to999 | FW14: H43GrossRnt1000Plus | FX14: H43NoCashRent | FY14: H43MedGrossRent | FZ14: H51GrossRnt<20PctHHInc | GA14: H51GrossRnt20to24PctHHInc | GB14: H51GrossRnt25to29PctHHInc | GC14: H51GrossRnt30to34PctHHInc | GD14: H51GrossRnt35PctOrMoreHHInc | GE14: H51GrossRntAsPctHHIncNotComp | GF14: H52HUwMtgMoOwnCst<200 | GG14: H52HUwMtgMoOwnCst200to299 | GH14: H52HUwMtgMoOwnCst300to399 | GI14: H52HUwMtgMoOwnCst400to499 | GJ14: H52HUwMtgMoOwnCst500to599 | GK14: H52HUwMtgMoOwnCst600to699 | GL14: H52HUwMtgMoOwnCst700to799 | GM14: H52HUwMtgMoOwnCst800to899 | GN14: H52HUwMtgMoOwnCst900to999 | GO14: H52HUwMtgMoOwnCst1000to1249 | GP14: H52HUwMtgMoOwnCst1250to1499 | GQ14: H52HUwMtgMoOwnCst1500to1999 | GR14: H52HUwMtgMoOwnCst2000More | GS14: H52HUwNoMtgMoOwnCst<100 | GT14: H52HUwNoMtgMoOwnCst100to149 | GU14: H52HUwNoMtgMoOwnCst150to199 | GV14: H52HUwNoMtgMoOwnCst200to249 | GW14: H52HUwNoMtgMoOwnCst250to299 | GX14: H52HUwNoMtgMoOwnCst300to349 | GY14: H52HUwNoMtgMoOwnCst350to399 | GZ14: H52HUwNoMtgMoOwnCst400More | HA14: H52AMedMoOwnCstWMortg | HB14: H52AMedMoOwnCstWNoMortg | HC14: H58HUwMtgMOC<20pHHInc | HD14: H58HUwMtgMOC20to24pHHInc | HE14: H58HUwMtgMOC25to29pHHInc | HF14: H58HUwMtgMOC30to34pHHInc | HG14: H58wMtgMOC>35pHHInc | HH14: H58HUwMtgMOCNotComp | HI14: H58HUwNoMtgMOC<20pHHInc | HJ14: H58HUwNoMtgMOC20to24pHHInc | HK14: H58HUwNoMtgMOC25to29pHHInc | HL14: H58HUwNoMtgMOC30to34pHHInc | HM14: H58wNoMtgMOC>35pHHInc | HN14: H58HUwNoMtgMOCNotComp | HO14: H61OOHUVal<15k | HP14: H61OOHUVal15to19k | HQ14: H61OOHUVal20to24k | HR14: H61OOHUVal25to29k | HS14: H61OOHUVal30to34k | HT14: H61OOHUVal35to39k | HU14: H61OOHUVal40to44k | HV14: H61OOHUVal45to49k | HW14: H61OOHUVal50to59k | HX14: H61OOHUVal60to74k | HY14: H61OOHUVal75to99k | HZ14: H61OOHUVal100to124k | IA14: H61OOHUVal125to149k | IB14: H61OOHUVal150to174k | IC14: H61OOHUVal175to199k | ID14: H61OOHUVal200to249k | IE14: H61OOHUVal250to299k | IF14: H61OOHUVal300to399k | IG14: H61OOHUVal400to499k | IH14: H61OOHUVal500kOrMore | II14: H61aOOHUMedVal
A18: Other Demo Data - Query Name: QryAllTowns-ACSDemographicSheet
A19: TOWN_NAME | B19: FIPS | C19: TOWNCNTY | D19: COUSUB | E19: POP80 | F19: POP90CDCEN | G19: POP2000CEN | H19: POP2010CEN | I19: POP2020CEN | J19: POP2025-Proj | K19: POP2030-Proj | L19: POP2035-Proj | M19: SF80 | N19: MF80 | O19: MH80 | P19: SF81 | Q19: MF81 | R19: MH81 | S19: SF82 | T19: MF82 | U19: MH82 | V19: SF83 | W19: MF83 | X19: MH83 | Y19: SF84_OSP | Z19: MF84_OSP | AA19: MH84_OSP | AB19: SF85_OSP | AC19: MF85_OSP | AD19: MH85_OSP | AE19: SF86_OSP | AF19: MF86_OSP | AG19: MH86_OSP | AH19: SF87_OSP | AI19: MF87_OSP | AJ19: MH87_OSP | AK19: SF88_OSP | AL19: MF88_OSP | AM19: MH88_OSP | AN19: SF89_OSP | AO19: MF89_OSP | AP19: MH89_OSP | AQ19: SF90_OSP | AR19: MF90_OSP | AS19: MH90_OSP | AT19: SF91_OSP | AU19: MF91_OSP | AV19: MH91_OSP | AW19: SF92_OSP | AX19: MF92_OSP | AY19: MH92_OSP | AZ19: SF93_OSP | BA19: MF93_OSP | BB19: MH93_OSP | BC19: SF94_OSP | BD19: MF94_OSP | BE19: MH94_OSP | BF19: SF95_OSP | BG19: MF95_OSP | BH19: MH95_OSP | BI19: SF96_OSP | BJ19: MF96_OSP | BK19: MH96_OSP | BL19: SF97_OSP | BM19: MF97_OSP | BN19: MH97_OSP | BO19: SF98_OSP | BP19: MF98_OSP | BQ19: MH98_OSP | BR19: SF99_OSP | BS19: MF99_OSP | BT19: MH99_OSP | BU19: SF00_OSP | BV19: MF00_OSP | BW19: MH00_OSP | BX19: SF01_OSP | BY19: MF01_OSP | BZ19: MH01_OSP | CA19: SF02_OSP | CB19: MF02_OSP | CC19: MH02_OSP | CD19: SF03_OSP | CE19: MF03_OSP | CF19: MH03_OSP | CG19: SF04_OSP | CH19: MF04_OSP | CI19: MH04_OSP | CJ19: SF05_OSP | CK19: MF05_OSP | CL19: MH05_OSP | CM19: SF06_OSP | CN19: MF06_OSP | CO19: MH06_OSP | CP19: SF07_OSP | CQ19: MF07_OSP | CR19: MH07_OSP | CS19: SF08_OSP | CT19: MF08_OSP | CU19: MH08_OSP | CV19: SF09_OSP | CW19: MF09_OSP | CX19: MH09_OSP | CY19: SF10_OSP | CZ19: MF10_OSP | DA19: MH10_OSP | DB19: SF11_OSP | DC19: MF11_OSP | DD19: MH11_OSP | DE19: SF12_OSP | DF19: MF12_OSP | DG19: MH12_OSP | DH19: SF13_OSP | DI19: MF13_OSP | DJ19: MH13_OSP | DK19: SF14_OSP | DL19: MF14_OSP | DM19: MH14_OSP | DN19: SF15_OSP | DO19: MF15_OSP | DP19: MH15_OSP | DQ19: SF16_OSP | DR19: MF16_OSP | DS19: MH16_OSP | DT19: SF17_OSP | DU19: MF17_OSP | DV19: MH17_OSP | DW19: SF18_OSP | DX19: MF18_OSP | DY19: MH18_OSP | DZ19: SF19_OSP | EA19: MF19_OSP | EB19: MH19_OSP | EC19: SF20_OSP | ED19: MF20_OSP | EE19: MH20_OSP | EF19: SF20 Census_OSP | EG19: MF20 Census OSP | EH19: MH20 Census_OSP | EI19: SF21_OSP | EJ19: MF21_OSP | EK19: MH21_OSP | EL19: COMMENTS | EM19: CNTY_CODE
A20: =VLOOKUP(DropDownList!$A$47,CntyQuery!$A$118:$FZ$130,A$1) -> Rochester | B20: =VLOOKUP(DropDownList!$A$47,CntyQuery!$A$118:$FZ$130,B$1) -> 17050 | C20: =VLOOKUP(DropDownList!$A$47,CntyQuery!$A$118:$FZ$130,C$1) -> 910 | D20: =VLOOKUP(DropDownList!$A$47,CntyQuery!$A$118:$FZ$130,D$1) -> 65140 | E20: =VLOOKUP(DropDownList!$A$47,CntyQuery!$A$118:$FZ$130,E$1) -> 21560 | F20: =VLOOKUP(DropDownList!$A$47,CntyQuery!$A$118:$FZ$130,F$1) -> 26630 | G20: =VLOOKUP(DropDownList!$A$47,CntyQuery!$A$118:$FZ$130,G$1) -> 28461 | H20: =VLOOKUP(DropDownList!$A$47,CntyQuery!$A$118:$FZ$130,H$1) -> 29752 | I20: =VLOOKUP(DropDownList!$A$47,CntyQuery!$A$118:$FZ$130,I$1) -> 32492 | J20: =VLOOKUP(DropDownList!$A$47,CntyQuery!$A$118:$FZ$130,J$1) -> 33801 | K20: =VLOOKUP(DropDownList!$A$47,CntyQuery!$A$118:$FZ$130,K$1) -> 34894 | L20: =VLOOKUP(DropDownList!$A$47,CntyQuery!$A$118:$FZ$130,L$1) -> 35800 | M20: =VLOOKUP(DropDownList!$A$47,CntyQuery!$A$118:$FZ$130,M$1) -> 46 | N20: =VLOOKUP(DropDownList!$A$47,CntyQuery!$A$118:$FZ$130,N$1) -> 48 | O20: =VLOOKUP(DropDownList!$A$47,CntyQuery!$A$118:$FZ$130,O$1) -> 11 | P20: =VLOOKUP(DropDownList!$A$47,CntyQuery!$A$118:$FZ$130,P$1) -> 31 | Q20: =VLOOKUP(DropDownList!$A$47,CntyQuery!$A$118:$FZ$130,Q$1) -> 0 | R20: =VLOOKUP(DropDownList!$A$47,CntyQuery!$A$118:$FZ$130,R$1) -> 6 | S20: =VLOOKUP(DropDownList!$A$47,CntyQuery!$A$118:$FZ$130,S$1) -> 19 | T20: =VLOOKUP(DropDownList!$A$47,CntyQuery!$A$118:$FZ$130,T$1) -> 10 | U20: =VLOOKUP(DropDownList!$A$47,CntyQuery!$A$118:$FZ$130,U$1) -> 8 | V20: =VLOOKUP(DropDownList!$A$47,CntyQuery!$A$118:$FZ$130,V$1) -> 42 | W20: =VLOOKUP(DropDownList!$A$47,CntyQuery!$A$118:$FZ$130,W$1) -> 2 | X20: =VLOOKUP(DropDownList!$A$47,CntyQuery!$A$118:$FZ$130,X$1) -> 38 | Y20: =VLOOKUP(DropDownList!$A$47,CntyQuery!$A$118:$FZ$130,Y$1) -> 111 | Z20: =VLOOKUP(DropDownList!$A$47,CntyQuery!$A$118:$FZ$130,Z$1) -> 27 | AA20: =VLOOKUP(DropDownList!$A$47,CntyQuery!$A$118:$FZ$130,AA$1) -> 52 | AB20: =VLOOKUP(DropDownList!$A$47,CntyQuery!$A$118:$FZ$130,AB$1) -> 159 | AC20: =VLOOKUP(DropDownList!$A$47,CntyQuery!$A$118:$FZ$130,AC$1) -> 73 | AD20: =VLOOKUP(DropDownList!$A$47,CntyQuery!$A$118:$FZ$130,AD$1) -> 132 | AE20: =VLOOKUP(DropDownList!$A$47,CntyQuery!$A$118:$FZ$130,AE$1) -> 321 | AF20: =VLOOKUP(DropDownList!$A$47,CntyQuery!$A$118:$FZ$130,AF$1) -> 334 | AG20: =VLOOKUP(DropDownList!$A$47,CntyQuery!$A$118:$FZ$130,AG$1) -> 250 | AH20: =VLOOKUP(DropDownList!$A$47,CntyQuery!$A$118:$FZ$130,AH$1) -> 335 | AI20: =VLOOKUP(DropDownList!$A$47,CntyQuery!$A$118:$FZ$130,AI$1) -> 117 | AJ20: =VLOOKUP(DropDownList!$A$47,CntyQuery!$A$118:$FZ$130,AJ$1) -> 159 | AK20: =VLOOKUP(DropDownList!$A$47,CntyQuery!$A$118:$FZ$130,AK$1) -> 81 | AL20: =VLOOKUP(DropDownList!$A$47,CntyQuery!$A$118:$FZ$130,AL$1) -> 28 | AM20: =VLOOKUP(DropDownList!$A$47,CntyQuery!$A$118:$FZ$130,AM$1) -> 87 | AN20: =VLOOKUP(DropDownList!$A$47,CntyQuery!$A$118:$FZ$130,AN$1) -> 114 | AO20: =VLOOKUP(DropDownList!$A$47,CntyQuery!$A$118:$FZ$130,AO$1) -> 1 | AP20: =VLOOKUP(DropDownList!$A$47,CntyQuery!$A$118:$FZ$130,AP$1) -> 78 | AQ20: =VLOOKUP(DropDownList!$A$47,CntyQuery!$A$118:$FZ$130,AQ$1) -> 54 | AR20: =VLOOKUP(DropDownList!$A$47,CntyQuery!$A$118:$FZ$130,AR$1) -> 0 | AS20: =VLOOKUP(DropDownList!$A$47,CntyQuery!$A$118:$FZ$130,AS$1) -> 30 | AT20: =VLOOKUP(DropDownList!$A$47,CntyQuery!$A$118:$FZ$130,AT$1) -> 36 | AU20: =VLOOKUP(DropDownList!$A$47,CntyQuery!$A$118:$FZ$130,AU$1) -> -7 | AV20: =VLOOKUP(DropDownList!$A$47,CntyQuery!$A$118:$FZ$130,AV$1) -> 32 | AW20: =VLOOKUP(DropDownList!$A$47,CntyQuery!$A$118:$FZ$130,AW$1) -> 36 | AX20: =VLOOKUP(DropDownList!$A$47,CntyQuery!$A$118:$FZ$130,AX$1) -> 2 | AY20: =VLOOKUP(DropDownList!$A$47,CntyQuery!$A$118:$FZ$130,AY$1) -> 28 | AZ20: =VLOOKUP(DropDownList!$A$47,CntyQuery!$A$118:$FZ$130,AZ$1) -> 19 | BA20: =VLOOKUP(DropDownList!$A$47,CntyQuery!$A$118:$FZ$130,BA$1) -> -6 | BB20: =VLOOKUP(DropDownList!$A$47,CntyQuery!$A$118:$FZ$130,BB$1) -> 69 | BC20: =VLOOKUP(DropDownList!$A$47,CntyQuery!$A$118:$FZ$130,BC$1) -> 47 | BD20: =VLOOKUP(DropDownList!$A$47,CntyQuery!$A$118:$FZ$130,BD$1) -> 43 | BE20: =VLOOKUP(DropDownList!$A$47,CntyQuery!$A$118:$FZ$130,BE$1) -> 61 | BF20: =VLOOKUP(DropDownList!$A$47,CntyQuery!$A$118:$FZ$130,BF$1) -> 30 | BG20: =VLOOKUP(DropDownList!$A$47,CntyQuery!$A$118:$FZ$130,BG$1) -> 5 | BH20: =VLOOKUP(DropDownList!$A$47,CntyQuery!$A$118:$FZ$130,BH$1) -> 37 | BI20: =VLOOKUP(DropDownList!$A$47,CntyQuery!$A$118:$FZ$130,BI$1) -> 26 | BJ20: =VLOOKUP(DropDownList!$A$47,CntyQuery!$A$118:$FZ$130,BJ$1) -> 0 | BK20: =VLOOKUP(DropDownList!$A$47,CntyQuery!$A$118:$FZ$130,BK$1) -> 62 | BL20: =VLOOKUP(DropDownList!$A$47,CntyQuery!$A$118:$FZ$130,BL$1) -> 30 | BM20: =VLOOKUP(DropDownList!$A$47,CntyQuery!$A$118:$FZ$130,BM$1) -> 0 | BN20: =VLOOKUP(DropDownList!$A$47,CntyQuery!$A$118:$FZ$130,BN$1) -> 56 | BO20: =VLOOKUP(DropDownList!$A$47,CntyQuery!$A$118:$FZ$130,BO$1) -> 50 | BP20: =VLOOKUP(DropDownList!$A$47,CntyQuery!$A$118:$FZ$130,BP$1) -> 63 | BQ20: =VLOOKUP(DropDownList!$A$47,CntyQuery!$A$118:$FZ$130,BQ$1) -> 88 | BR20: =VLOOKUP(DropDownList!$A$47,CntyQuery!$A$118:$FZ$130,BR$1) -> 79 | BS20: =VLOOKUP(DropDownList!$A$47,CntyQuery!$A$118:$FZ$130,BS$1) -> 0 | BT20: =VLOOKUP(DropDownList!$A$47,CntyQuery!$A$118:$FZ$130,BT$1) -> 52 | BU20: =VLOOKUP(DropDownList!$A$47,CntyQuery!$A$118:$FZ$130,BU$1) -> 87 | BV20: =VLOOKUP(DropDownList!$A$47,CntyQuery!$A$118:$FZ$130,BV$1) -> 16 | BW20: =VLOOKUP(DropDownList!$A$47,CntyQuery!$A$118:$FZ$130,BW$1) -> 40 | BX20: =VLOOKUP(DropDownList!$A$47,CntyQuery!$A$118:$FZ$130,BX$1) -> 62 | BY20: =VLOOKUP(DropDownList!$A$47,CntyQuery!$A$118:$FZ$130,BY$1) -> -3 | BZ20: =VLOOKUP(DropDownList!$A$47,CntyQuery!$A$118:$FZ$130,BZ$1) -> 71 | CA20: =VLOOKUP(DropDownList!$A$47,CntyQuery!$A$118:$FZ$130,CA$1) -> 108 | CB20: =VLOOKUP(DropDownList!$A$47,CntyQuery!$A$118:$FZ$130,CB$1) -> 7 | CC20: =VLOOKUP(DropDownList!$A$47,CntyQuery!$A$118:$FZ$130,CC$1) -> 88 | CD20: =VLOOKUP(DropDownList!$A$47,CntyQuery!$A$118:$FZ$130,CD$1) -> 86 | CE20: =VLOOKUP(DropDownList!$A$47,CntyQuery!$A$118:$FZ$130,CE$1) -> 193 | CF20: =VLOOKUP(DropDownList!$A$47,CntyQuery!$A$118:$FZ$130,CF$1) -> 61 | CG20: =VLOOKUP(DropDownList!$A$47,CntyQuery!$A$118:$FZ$130,CG$1) -> 158 | CH20: =VLOOKUP(DropDownList!$A$47,CntyQuery!$A$118:$FZ$130,CH$1) -> 90 | CI20: =VLOOKUP(DropDownList!$A$47,CntyQuery!$A$118:$FZ$130,CI$1) -> 44 | CJ20: =VLOOKUP(DropDownList!$A$47,CntyQuery!$A$118:$FZ$130,CJ$1) -> 92 | CK20: =VLOOKUP(DropDownList!$A$47,CntyQuery!$A$118:$FZ$130,CK$1) -> 26 | CL20: =VLOOKUP(DropDownList!$A$47,CntyQuery!$A$118:$FZ$130,CL$1) -> 26 | CM20: =VLOOKUP(DropDownList!$A$47,CntyQuery!$A$118:$FZ$130,CM$1) -> 66 | CN20: =VLOOKUP(DropDownList!$A$47,CntyQuery!$A$118:$FZ$130,CN$1) -> 145 | CO20: =VLOOKUP(DropDownList!$A$47,CntyQuery!$A$118:$FZ$130,CO$1) -> 11 | CP20: =VLOOKUP(DropDownList!$A$47,CntyQuery!$A$118:$FZ$130,CP$1) -> 69 | CQ20: =VLOOKUP(DropDownList!$A$47,CntyQuery!$A$118:$FZ$130,CQ$1) -> 4 | CR20: =VLOOKUP(DropDownList!$A$47,CntyQuery!$A$118:$FZ$130,CR$1) -> 0 | CS20: =VLOOKUP(DropDownList!$A$47,CntyQuery!$A$118:$FZ$130,CS$1) -> 63 | CT20: =VLOOKUP(DropDownList!$A$47,CntyQuery!$A$118:$FZ$130,CT$1) -> 0 | CU20: =VLOOKUP(DropDownList!$A$47,CntyQuery!$A$118:$FZ$130,CU$1) -> 18 | CV20: =VLOOKUP(DropDownList!$A$47,CntyQuery!$A$118:$FZ$130,CV$1) -> 15 | CW20: =VLOOKUP(DropDownList!$A$47,CntyQuery!$A$118:$FZ$130,CW$1) -> 30 | CX20: =VLOOKUP(DropDownList!$A$47,CntyQuery!$A$118:$FZ$130,CX$1) -> 1 | CY20: =VLOOKUP(DropDownList!$A$47,CntyQuery!$A$118:$FZ$130,CY$1) -> 20 | CZ20: =VLOOKUP(DropDownList!$A$47,CntyQuery!$A$118:$FZ$130,CZ$1) -> 31 | DA20: =VLOOKUP(DropDownList!$A$47,CntyQuery!$A$118:$FZ$130,DA$1) -> 5 | DB20: =VLOOKUP(DropDownList!$A$47,CntyQuery!$A$118:$FZ$130,DB$1) -> 20 | DC20: =VLOOKUP(DropDownList!$A$47,CntyQuery!$A$118:$FZ$130,DC$1) -> 0 | DD20: =VLOOKUP(DropDownList!$A$47,CntyQuery!$A$118:$FZ$130,DD$1) -> 0 | DE20: =VLOOKUP(DropDownList!$A$47,CntyQuery!$A$118:$FZ$130,DE$1) -> 39 | DF20: =VLOOKUP(DropDownList!$A$47,CntyQuery!$A$118:$FZ$130,DF$1) -> 0 | DG20: =VLOOKUP(DropDownList!$A$47,CntyQuery!$A$118:$FZ$130,DG$1) -> 36 | DH20: =VLOOKUP(DropDownList!$A$47,CntyQuery!$A$118:$FZ$130,DH$1) -> 0 | DI20: =VLOOKUP(DropDownList!$A$47,CntyQuery!$A$118:$FZ$130,DI$1) -> 0 | DJ20: =VLOOKUP(DropDownList!$A$47,CntyQuery!$A$118:$FZ$130,DJ$1) -> 3 | DK20: =VLOOKUP(DropDownList!$A$47,CntyQuery!$A$118:$FZ$130,DK$1) -> 27 | DL20: =VLOOKUP(DropDownList!$A$47,CntyQuery!$A$118:$FZ$130,DL$1) -> 24 | DM20: =VLOOKUP(DropDownList!$A$47,CntyQuery!$A$118:$FZ$130,DM$1) -> 7 | DN20: =VLOOKUP(DropDownList!$A$47,CntyQuery!$A$118:$FZ$130,DN$1) -> 45 | DO20: =VLOOKUP(DropDownList!$A$47,CntyQuery!$A$118:$FZ$130,DO$1) -> 51 | DP20: =VLOOKUP(DropDownList!$A$47,CntyQuery!$A$118:$FZ$130,DP$1) -> 0 | DQ20: =VLOOKUP(DropDownList!$A$47,CntyQuery!$A$118:$FZ$130,DQ$1) -> 7 | DR20: =VLOOKUP(DropDownList!$A$47,CntyQuery!$A$118:$FZ$130,DR$1) -> 71 | DS20: =VLOOKUP(DropDownList!$A$47,CntyQuery!$A$118:$FZ$130,DS$1) -> 10 | DT20: =VLOOKUP(DropDownList!$A$47,CntyQuery!$A$118:$FZ$130,DT$1) -> 71 | DU20: =VLOOKUP(DropDownList!$A$47,CntyQuery!$A$118:$FZ$130,DU$1) -> 113 | DV20: =VLOOKUP(DropDownList!$A$47,CntyQuery!$A$118:$FZ$130,DV$1) -> 28 | DW20: =VLOOKUP(DropDownList!$A$47,CntyQuery!$A$118:$FZ$130,DW$1) -> 61 | DX20: =VLOOKUP(DropDownList!$A$47,CntyQuery!$A$118:$FZ$130,DX$1) -> 58 | DY20: =VLOOKUP(DropDownList!$A$47,CntyQuery!$A$118:$FZ$130,DY$1) -> 24 | DZ20: =VLOOKUP(DropDownList!$A$47,CntyQuery!$A$118:$FZ$130,DZ$1) -> 33 | EA20: =VLOOKUP(DropDownList!$A$47,CntyQuery!$A$118:$FZ$130,EA$1) -> 123 | EB20: =VLOOKUP(DropDownList!$A$47,CntyQuery!$A$118:$FZ$130,EB$1) -> 5 | EC20: =VLOOKUP(DropDownList!$A$47,CntyQuery!$A$118:$FZ$130,EC$1) -> 55 | ED20: =VLOOKUP(DropDownList!$A$47,CntyQuery!$A$118:$FZ$130,ED$1) -> 15 | EE20: =VLOOKUP(DropDownList!$A$47,CntyQuery!$A$118:$FZ$130,EE$1) -> 22 | EF20: =VLOOKUP(DropDownList!$A$47,CntyQuery!$A$118:$FZ$130,EF$1) -> 0 | EG20: =VLOOKUP(DropDownList!$A$47,CntyQuery!$A$118:$FZ$130,EG$1) -> 0 | EH20: =VLOOKUP(DropDownList!$A$47,CntyQuery!$A$118:$FZ$130,EH$1) -> 0 | EI20: =VLOOKUP(DropDownList!$A$47,CntyQuery!$A$118:$FZ$130,EI$1) -> 54 | EJ20: =VLOOKUP(DropDownList!$A$47,CntyQuery!$A$118:$FZ$130,EJ$1) -> 90 | EK20: =VLOOKUP(DropDownList!$A$47,CntyQuery!$A$118:$FZ$130,EK$1) -> 8 | EL20: =VLOOKUP(DropDownList!$A$47,CntyQuery!$A$118:$FZ$130,EL$1) ->  | EM20: =VLOOKUP(DropDownList!$A$47,CntyQuery!$A$118:$FZ$130,EM$1) -> 9
A24: AreaName | B24: COUNTYCODE | C24: TOTP & G2001 | D24: TOT2001 | E24: GOODPRO2001 | F24: SERVICEPROMAN2001 | G24: WAGEP & G2001 | H24: WAGETOT2001 | I24: WAGEGOODPRO2001 | J24: WAGESERVICEPRO2001 | K24: TOTP & G2002 | L24: TOT2002 | M24: GOODPRO2002 | N24: SERVICEPROMAN2002 | O24: WAGEP & G2002 | P24: WAGETOT2002 | Q24: WAGEGOODPRO2002 | R24: WAGESERVICEPRO2002 | S24: TOTP & G2003 | T24: TOT2003 | U24: GOODPRO2003 | V24: SERVICEPROMAN2003 | W24: WAGEP & G2003 | X24: WAGETOT2003 | Y24: WAGEGOODPRO2003 | Z24: WAGESERVICEPRO2003 | AA24: TOTP & G2004 | AB24: TOT2004 | AC24: GOODPRO2004 | AD24: SERVICEPROMAN2004 | AE24: WAGEP & G2004 | AF24: WAGETOT2004 | AG24: WAGEGOODPRO2004 | AH24: WAGESERVICEPRO2004 | AI24: TOTP & G2005 | AJ24: TOT2005 | AK24: GOODPRO2005 | AL24: SERVICEPROMAN2005 | AM24: WAGEP & G2005 | AN24: WAGETOT2005 | AO24: WAGEGOODPRO2005 | AP24: WAGESERVICEPRO2005 | AQ24: TOTP & G2006 | AR24: TOT2006 | AS24: GOODPRO2006 | AT24: SERVICEPROMAN2006 | AU24: WAGEP & G2006 | AV24: WAGETOT2006 | AW24: WAGEGOODPRO2006 | AX24: WAGESERVICEPRO2006 | AY24: TOTP & G2007 | AZ24: TOT2007 | BA24: GOODPRO2007 | BB24: SERVICEPROMAN2007 | BC24: WAGEP & G2007 | BD24: WAGETOT2007 | BE24: WAGEGOODPRO2007 | BF24: WAGESERVICEPRO2007 | BG24: TOTP & G2008 | BH24: TOT2008 | BI24: GOODPRO2008 | BJ24: SERVICEPROMAN2008 | BK24: WAGEP & G2008 | BL24: WAGETOT2008 | BM24: WAGEGOODPRO2008 | BN24: WAGESERVICEPRO2008 | BO24: TOTP & G2009 | BP24: TOT2009 | BQ24: GOODPRO2009 | BR24: SERVICEPROMAN2009 | BS24: WAGEP & G2009 | BT24: WAGETOT2009 | BU24: WAGEGOODPRO2009 | BV24: WAGESERVICEPRO2009 | BW24: TOTP & G2010 | BX24: TOT2010 | BY24: GOODPRO2010 | BZ24: SERVICEPROMAN2010 | CA24: WAGEP & G2010 | CB24: WAGETOT2010 | CC24: WAGEGOODPRO2010 | CD24: WAGESERVICEPRO2010 | CE24: TOTP & G2011 | CF24: TOT2011 | CG24: GOODPRO2011 | CH24: SERVICEPROMAN2011 | CI24: WAGEP & G2011 | CJ24: WAGETOT2011 | CK24: WAGEGOODPRO2011 | CL24: WAGESERVICEPRO2011 | CM24: TOTP & G2012 | CN24: TOT2012 | CO24: GOODPRO2012 | CP24: SERVICEPROMAN2012 | CQ24: WAGEP & G2012 | CR24: WAGETOT2012 | CS24: WAGEGOODPRO2012 | CT24: WAGESERVICEPRO2012 | CU24: TOTP & G2013 | CV24: TOT2013 | CW24: GOODPRO2013 | CX24: SERVICEPROMAN2013 | CY24: WAGEP & G2013 | CZ24: WAGETOT2013 | DA24: WAGEGOODPRO2013 | DB24: WAGESERVICEPRO2013 | DC24: TOTP & G2014 | DD24: TOT2014 | DE24: GOODPRO2014 | DF24: SERVICEPROMAN2014 | DG24: WAGEP & G2014 | DH24: WAGETOT2014 | DI24: WAGEGOODPRO2014 | DJ24: WAGESERVICEPRO2014 | DK24: TOTP & G2015 | DL24: TOT2015 | DM24: GOODPRO2015 | DN24: SERVICEPROMAN2015 | DO24: WAGEP & G2015 | DP24: WAGETOT2015 | DQ24: WAGEGOODPRO2015 | DR24: WAGESERVICEPRO2015 | DS24: TOTP & G2016 | DT24: TOT2016 | DU24: GOODPRO2016 | DV24: SERVICEPROMAN2016 | DW24: WAGEP & G2016 | DX24: WAGETOT2016 | DY24: WAGEGOODPRO2016 | DZ24: WAGESERVICEPRO2016 | EA24: TOTP & G2017 | EB24: TOT2017 | EC24: GOODPRO2017 | ED24: SERVICEPROMAN2017 | EE24: WAGEP & G2017 | EF24: WAGETOT2017 | EG24: WAGEGOODPRO2017 | EH24: WAGESERVICEPRO2017 | EI24: TOTP & G2018 | EJ24: TOT2018 | EK24: GOODPRO2018 | EL24: SERVICEPROMAN2018 | EM24: WAGEP & G2018 | EN24: WAGETOT2018 | EO24: WAGEGOODPRO2018 | EP24: WAGESERVICEPRO2018 | EQ24: TOTP & G2019 | ER24: TOT2019 | ES24: TOTGov2019 | ET24: GOODPRO2019 | EU24: SERVICEPROMAN2019 | EV24: WAGEP & G2019 | EW24: WAGETOT2019 | EX24: WAGEGov2019 | EY24: WAGEGOODPRO2019 | EZ24: WAGESERVICEPRO2019 | FA24: TOTP & G2020 | FB24: TOT2020 | FC24: TOTGov2020 | FD24: GOODPRO2020 | FE24: SERVICEPROMAN2020 | FF24: WAGEP & G2020 | FG24: WAGETOT2020 | FH24: WAGEGov2020 | FI24: WAGEGOODPRO2020 | FJ24: WAGESERVICEPRO2020 | FK24: TOTP & G2021 | FL24: TOT2021 | FM24: TOTGov2021 | FN24: GOODPRO2021 | FO24: SERVICEPROMAN2021 | FP24: WAGEP & G2021 | FQ24: WAGETOT2021 | FR24: WAGEGov2021 | FS24: WAGEGOODPRO2021 | FT24: WAGESERVICEPRO2021 | FU24: TOTP & G2022 | FV24: TOT2022 | FW24: TOTGov2022 | FX24: GOODPRO2022 | FY24: SERVICEPROMAN2022 | FZ24: WAGEP & G2022 | GA24: WAGETOT2022 | GB24: WAGEGov2022 | GC24: WAGEGOODPRO2022 | GD24: WAGESERVICEPRO2022 | GE24: COUNTYCODE
A25: =VLOOKUP(DropDownList!$B$47,CntyQuery!$A$170:$GZ$183,A$1) -> Rochester | B25: =VLOOKUP(DropDownList!$B$47,CntyQuery!$A$170:$GZ$183,B$1) -> 9 | C25: =VLOOKUP(DropDownList!$B$47,CntyQuery!$A$170:$GZ$183,C$1) -> 11888 | D25: =VLOOKUP(DropDownList!$B$47,CntyQuery!$A$170:$GZ$183,D$1) -> 10711 | E25: =VLOOKUP(DropDownList!$B$47,CntyQuery!$A$170:$GZ$183,E$1) -> 2575 | F25: =VLOOKUP(DropDownList!$B$47,CntyQuery!$A$170:$GZ$183,F$1) -> 8136 | G25: =VLOOKUP(DropDownList!$B$47,CntyQuery!$A$170:$GZ$183,G$1) -> 715.39 | H25: =VLOOKUP(DropDownList!$B$47,CntyQuery!$A$170:$GZ$183,H$1) -> 729.43 | I25: =VLOOKUP(DropDownList!$B$47,CntyQuery!$A$170:$GZ$183,I$1) -> 795.69 | J25: =VLOOKUP(DropDownList!$B$47,CntyQuery!$A$170:$GZ$183,J$1) -> 708.46 | K25: =VLOOKUP(DropDownList!$B$47,CntyQuery!$A$170:$GZ$183,K$1) -> 11143 | L25: =VLOOKUP(DropDownList!$B$47,CntyQuery!$A$170:$GZ$183,L$1) -> 9848 | M25: =VLOOKUP(DropDownList!$B$47,CntyQuery!$A$170:$GZ$183,M$1) -> 1791 | N25: =VLOOKUP(DropDownList!$B$47,CntyQuery!$A$170:$GZ$183,N$1) -> 8057 | O25: =VLOOKUP(DropDownList!$B$47,CntyQuery!$A$170:$GZ$183,O$1) -> 649.78 | P25: =VLOOKUP(DropDownList!$B$47,CntyQuery!$A$170:$GZ$183,P$1) -> 660.08 | Q25: =VLOOKUP(DropDownList!$B$47,CntyQuery!$A$170:$GZ$183,Q$1) -> 817.04 | R25: =VLOOKUP(DropDownList!$B$47,CntyQuery!$A$170:$GZ$183,R$1) -> 625.18 | S25: =VLOOKUP(DropDownList!$B$47,CntyQuery!$A$170:$GZ$183,S$1) -> 11059 | T25: =VLOOKUP(DropDownList!$B$47,CntyQuery!$A$170:$GZ$183,T$1) -> 9763 | U25: =VLOOKUP(DropDownList!$B$47,CntyQuery!$A$170:$GZ$183,U$1) -> 1708 | V25: =VLOOKUP(DropDownList!$B$47,CntyQuery!$A$170:$GZ$183,V$1) -> 8055 | W25: =VLOOKUP(DropDownList!$B$47,CntyQuery!$A$170:$GZ$183,W$1) -> 642.31 | X25: =VLOOKUP(DropDownList!$B$47,CntyQuery!$A$170:$GZ$183,X$1) -> 647.39 | Y25: =VLOOKUP(DropDownList!$B$47,CntyQuery!$A$170:$GZ$183,Y$1) -> 773.1 | Z25: =VLOOKUP(DropDownList!$B$47,CntyQuery!$A$170:$GZ$183,Z$1) -> 620.74 | AA25: =VLOOKUP(DropDownList!$B$47,CntyQuery!$A$170:$GZ$183,AA$1) -> 10935 | AB25: =VLOOKUP(DropDownList!$B$47,CntyQuery!$A$170:$GZ$183,AB$1) -> 9664 | AC25: =VLOOKUP(DropDownList!$B$47,CntyQuery!$A$170:$GZ$183,AC$1) -> 1666 | AD25: =VLOOKUP(DropDownList!$B$47,CntyQuery!$A$170:$GZ$183,AD$1) -> 7998 | AE25: =VLOOKUP(DropDownList!$B$47,CntyQuery!$A$170:$GZ$183,AE$1) -> 641.45 | AF25: =VLOOKUP(DropDownList!$B$47,CntyQuery!$A$170:$GZ$183,AF$1) -> 641.09 | AG25: =VLOOKUP(DropDownList!$B$47,CntyQuery!$A$170:$GZ$183,AG$1) -> 768.85 | AH25: =VLOOKUP(DropDownList!$B$47,CntyQuery!$A$170:$GZ$183,AH$1) -> 614.47 | AI25: =VLOOKUP(DropDownList!$B$47,CntyQuery!$A$170:$GZ$183,AI$1) -> 10944 | AJ25: =VLOOKUP(DropDownList!$B$47,CntyQuery!$A$170:$GZ$183,AJ$1) -> 9654 | AK25: =VLOOKUP(DropDownList!$B$47,CntyQuery!$A$170:$GZ$183,AK$1) -> 1713 | AL25: =VLOOKUP(DropDownList!$B$47,CntyQuery!$A$170:$GZ$183,AL$1) -> 7941 | AM25: =VLOOKUP(DropDownList!$B$47,CntyQuery!$A$170:$GZ$183,AM$1) -> 644.64 | AN25: =VLOOKUP(DropDownList!$B$47,CntyQuery!$A$170:$GZ$183,AN$1) -> 644.06 | AO25: =VLOOKUP(DropDownList!$B$47,CntyQuery!$A$170:$GZ$183,AO$1) -> 764.91 | AP25: =VLOOKUP(DropDownList!$B$47,CntyQuery!$A$170:$GZ$183,AP$1) -> 618 | AQ25: =VLOOKUP(DropDownList!$B$47,CntyQuery!$A$170:$GZ$183,AQ$1) -> 11250 | AR25: =VLOOKUP(DropDownList!$B$47,CntyQuery!$A$170:$GZ$183,AR$1) -> 9937 | AS25: =VLOOKUP(DropDownList!$B$47,CntyQuery!$A$170:$GZ$183,AS$1) -> 1790 | AT25: =VLOOKUP(DropDownList!$B$47,CntyQuery!$A$170:$GZ$183,AT$1) -> 8147 | AU25: =VLOOKUP(DropDownList!$B$47,CntyQuery!$A$170:$GZ$183,AU$1) -> 650.77 | AV25: =VLOOKUP(DropDownList!$B$47,CntyQuery!$A$170:$GZ$183,AV$1) -> 648.55 | AW25: =VLOOKUP(DropDownList!$B$47,CntyQuery!$A$170:$GZ$183,AW$1) -> 818 | AX25: =VLOOKUP(DropDownList!$B$47,CntyQuery!$A$170:$GZ$183,AX$1) -> 611.32 | AY25: =VLOOKUP(DropDownList!$B$47,CntyQuery!$A$170:$GZ$183,AY$1) -> 11702 | AZ25: =VLOOKUP(DropDownList!$B$47,CntyQuery!$A$170:$GZ$183,AZ$1) -> 10330 | BA25: =VLOOKUP(DropDownList!$B$47,CntyQuery!$A$170:$GZ$183,BA$1) -> 1853 | BB25: =VLOOKUP(DropDownList!$B$47,CntyQuery!$A$170:$GZ$183,BB$1) -> 8476 | BC25: =VLOOKUP(DropDownList!$B$47,CntyQuery!$A$170:$GZ$183,BC$1) -> 670.68 | BD25: =VLOOKUP(DropDownList!$B$47,CntyQuery!$A$170:$GZ$183,BD$1) -> 667.45 | BE25: =VLOOKUP(DropDownList!$B$47,CntyQuery!$A$170:$GZ$183,BE$1) -> 846.88 | BF25: =VLOOKUP(DropDownList!$B$47,CntyQuery!$A$170:$GZ$183,BF$1) -> 628.21 | BG25: =VLOOKUP(DropDownList!$B$47,CntyQuery!$A$170:$GZ$183,BG$1) -> 11760 | BH25: =VLOOKUP(DropDownList!$B$47,CntyQuery!$A$170:$GZ$183,BH$1) -> 10354 | BI25: =VLOOKUP(DropDownList!$B$47,CntyQuery!$A$170:$GZ$183,BI$1) -> 1844 | BJ25: =VLOOKUP(DropDownList!$B$47,CntyQuery!$A$170:$GZ$183,BJ$1) -> 8511 | BK25: =VLOOKUP(DropDownList!$B$47,CntyQuery!$A$170:$GZ$183,BK$1) -> 690.71 | BL25: =VLOOKUP(DropDownList!$B$47,CntyQuery!$A$170:$GZ$183,BL$1) -> 688.41 | BM25: =VLOOKUP(DropDownList!$B$47,CntyQuery!$A$170:$GZ$183,BM$1) -> 856 | BN25: =VLOOKUP(DropDownList!$B$47,CntyQuery!$A$170:$GZ$183,BN$1) -> 652.11 | BO25: =VLOOKUP(DropDownList!$B$47,CntyQuery!$A$170:$GZ$183,BO$1) -> 11201 | BP25: =VLOOKUP(DropDownList!$B$47,CntyQuery!$A$170:$GZ$183,BP$1) -> 9784 | BQ25: =VLOOKUP(DropDownList!$B$47,CntyQuery!$A$170:$GZ$183,BQ$1) -> 1613 | BR25: =VLOOKUP(DropDownList!$B$47,CntyQuery!$A$170:$GZ$183,BR$1) -> 8171 | BS25: =VLOOKUP(DropDownList!$B$47,CntyQuery!$A$170:$GZ$183,BS$1) -> 686 | BT25: =VLOOKUP(DropDownList!$B$47,CntyQuery!$A$170:$GZ$183,BT$1) -> 680.33 | BU25: =VLOOKUP(DropDownList!$B$47,CntyQuery!$A$170:$GZ$183,BU$1) -> 907.22 | BV25: =VLOOKUP(DropDownList!$B$47,CntyQuery!$A$170:$GZ$183,BV$1) -> 635.54 | BW25: =VLOOKUP(DropDownList!$B$47,CntyQuery!$A$170:$GZ$183,BW$1) -> 11079 | BX25: =VLOOKUP(DropDownList!$B$47,CntyQuery!$A$170:$GZ$183,BX$1) -> 9599 | BY25: =VLOOKUP(DropDownList!$B$47,CntyQuery!$A$170:$GZ$183,BY$1) -> 1671 | BZ25: =VLOOKUP(DropDownList!$B$47,CntyQuery!$A$170:$GZ$183,BZ$1) -> 7928 | CA25: =VLOOKUP(DropDownList!$B$47,CntyQuery!$A$170:$GZ$183,CA$1) -> 706.57 | CB25: =VLOOKUP(DropDownList!$B$47,CntyQuery!$A$170:$GZ$183,CB$1) -> 705.31 | CC25: =VLOOKUP(DropDownList!$B$47,CntyQuery!$A$170:$GZ$183,CC$1) -> 977.22 | CD25: =VLOOKUP(DropDownList!$B$47,CntyQuery!$A$170:$GZ$183,CD$1) -> 647.99 | CE25: =VLOOKUP(DropDownList!$B$47,CntyQuery!$A$170:$GZ$183,CE$1) -> 10780 | CF25: =VLOOKUP(DropDownList!$B$47,CntyQuery!$A$170:$GZ$183,CF$1) -> 9364 | CG25: =VLOOKUP(DropDownList!$B$47,CntyQuery!$A$170:$GZ$183,CG$1) -> 1614 | CH25: =VLOOKUP(DropDownList!$B$47,CntyQuery!$A$170:$GZ$183,CH$1) -> 7750 | CI25: =VLOOKUP(DropDownList!$B$47,CntyQuery!$A$170:$GZ$183,CI$1) -> 734.07 | CJ25: =VLOOKUP(DropDownList!$B$47,CntyQuery!$A$170:$GZ$183,CJ$1) -> 733.64 | CK25: =VLOOKUP(DropDownList!$B$47,CntyQuery!$A$170:$GZ$183,CK$1) -> 1062.29 | CL25: =VLOOKUP(DropDownList!$B$47,CntyQuery!$A$170:$GZ$183,CL$1) -> 665.17 | CM25: =VLOOKUP(DropDownList!$B$47,CntyQuery!$A$170:$GZ$183,CM$1) -> 10732 | CN25: =VLOOKUP(DropDownList!$B$47,CntyQuery!$A$170:$GZ$183,CN$1) -> 9318 | CO25: =VLOOKUP(DropDownList!$B$47,CntyQuery!$A$170:$GZ$183,CO$1) -> 1559 | CP25: =VLOOKUP(DropDownList!$B$47,CntyQuery!$A$170:$GZ$183,CP$1) -> 7760 | CQ25: =VLOOKUP(DropDownList!$B$47,CntyQuery!$A$170:$GZ$183,CQ$1) -> 750.73 | CR25: =VLOOKUP(DropDownList!$B$47,CntyQuery!$A$170:$GZ$183,CR$1) -> 752.87 | CS25: =VLOOKUP(DropDownList!$B$47,CntyQuery!$A$170:$GZ$183,CS$1) -> 1163.86 | CT25: =VLOOKUP(DropDownList!$B$47,CntyQuery!$A$170:$GZ$183,CT$1) -> 670.33 | CU25: =VLOOKUP(DropDownList!$B$47,CntyQuery!$A$170:$GZ$183,CU$1) -> 11035 | CV25: =VLOOKUP(DropDownList!$B$47,CntyQuery!$A$170:$GZ$183,CV$1) -> 9644 | CW25: =VLOOKUP(DropDownList!$B$47,CntyQuery!$A$170:$GZ$183,CW$1) -> 1759 | CX25: =VLOOKUP(DropDownList!$B$47,CntyQuery!$A$170:$GZ$183,CX$1) -> 7885 | CY25: =VLOOKUP(DropDownList!$B$47,CntyQuery!$A$170:$GZ$183,CY$1) -> 767.61 | CZ25: =VLOOKUP(DropDownList!$B$47,CntyQuery!$A$170:$GZ$183,CZ$1) -> 766.34 | DA25: =VLOOKUP(DropDownList!$B$47,CntyQuery!$A$170:$GZ$183,DA$1) -> 1198.75 | DB25: =VLOOKUP(DropDownList!$B$47,CntyQuery!$A$170:$GZ$183,DB$1) -> 669.88 | DC25: =VLOOKUP(DropDownList!$B$47,CntyQuery!$A$170:$GZ$183,DC$1) -> 11249 | DD25: =VLOOKUP(DropDownList!$B$47,CntyQuery!$A$170:$GZ$183,DD$1) -> 9811 | DE25: =VLOOKUP(DropDownList!$B$47,CntyQuery!$A$170:$GZ$183,DE$1) -> 1897 | DF25: =VLOOKUP(DropDownList!$B$47,CntyQuery!$A$170:$GZ$183,DF$1) -> 7914 | DG25: =VLOOKUP(DropDownList!$B$47,CntyQuery!$A$170:$GZ$183,DG$1) -> 791.7 | DH25: =VLOOKUP(DropDownList!$B$47,CntyQuery!$A$170:$GZ$183,DH$1) -> 794.8 | DI25: =VLOOKUP(DropDownList!$B$47,CntyQuery!$A$170:$GZ$183,DI$1) -> 1206.82 | DJ25: =VLOOKUP(DropDownList!$B$47,CntyQuery!$A$170:$GZ$183,DJ$1) -> 696.03 | DK25: =VLOOKUP(DropDownList!$B$47,CntyQuery!$A$170:$GZ$183,DK$1) -> 11523 | DL25: =VLOOKUP(DropDownList!$B$47,CntyQuery!$A$170:$GZ$183,DL$1) -> 10100 | DM25: =VLOOKUP(DropDownList!$B$47,CntyQuery!$A$170:$GZ$183,DM$1) -> 1939 | DN25: =VLOOKUP(DropDownList!$B$47,CntyQuery!$A$170:$GZ$183,DN$1) -> 8161 | DO25: =VLOOKUP(DropDownList!$B$47,CntyQuery!$A$170:$GZ$183,DO$1) -> 843.18 | DP25: =VLOOKUP(DropDownList!$B$47,CntyQuery!$A$170:$GZ$183,DP$1) -> 849.52 | DQ25: =VLOOKUP(DropDownList!$B$47,CntyQuery!$A$170:$GZ$183,DQ$1) -> 1305.07 | DR25: =VLOOKUP(DropDownList!$B$47,CntyQuery!$A$170:$GZ$183,DR$1) -> 741.27 | DS25: =VLOOKUP(DropDownList!$B$47,CntyQuery!$A$170:$GZ$183,DS$1) -> 11928 | DT25: =VLOOKUP(DropDownList!$B$47,CntyQuery!$A$170:$GZ$183,DT$1) -> 10514 | DU25: =VLOOKUP(DropDownList!$B$47,CntyQuery!$A$170:$GZ$183,DU$1) -> 2072 | DV25: =VLOOKUP(DropDownList!$B$47,CntyQuery!$A$170:$GZ$183,DV$1) -> 8442 | DW25: =VLOOKUP(DropDownList!$B$47,CntyQuery!$A$170:$GZ$183,DW$1) -> 845.47 | DX25: =VLOOKUP(DropDownList!$B$47,CntyQuery!$A$170:$GZ$183,DX$1) -> 851.07 | DY25: =VLOOKUP(DropDownList!$B$47,CntyQuery!$A$170:$GZ$183,DY$1) -> 1296.42 | DZ25: =VLOOKUP(DropDownList!$B$47,CntyQuery!$A$170:$GZ$183,DZ$1) -> 741.78 | EA25: =VLOOKUP(DropDownList!$B$47,CntyQuery!$A$170:$GZ$183,EA$1) -> 12108 | EB25: =VLOOKUP(DropDownList!$B$47,CntyQuery!$A$170:$GZ$183,EB$1) -> 10693 | EC25: =VLOOKUP(DropDownList!$B$47,CntyQuery!$A$170:$GZ$183,EC$1) -> 2170 | ED25: =VLOOKUP(DropDownList!$B$47,CntyQuery!$A$170:$GZ$183,ED$1) -> 8522 | EE25: =VLOOKUP(DropDownList!$B$47,CntyQuery!$A$170:$GZ$183,EE$1) -> 877.87 | EF25: =VLOOKUP(DropDownList!$B$47,CntyQuery!$A$170:$GZ$183,EF$1) -> 884.76 | EG25: =VLOOKUP(DropDownList!$B$47,CntyQuery!$A$170:$GZ$183,EG$1) -> 1388.36 | EH25: =VLOOKUP(DropDownList!$B$47,CntyQuery!$A$170:$GZ$183,EH$1) -> 756.52 | EI25: =VLOOKUP(DropDownList!$B$47,CntyQuery!$A$170:$GZ$183,EI$1) -> 12359 | EJ25: =VLOOKUP(DropDownList!$B$47,CntyQuery!$A$170:$GZ$183,EJ$1) -> 10941 | EK25: =VLOOKUP(DropDownList!$B$47,CntyQuery!$A$170:$GZ$183,EK$1) -> 2260 | EL25: =VLOOKUP(DropDownList!$B$47,CntyQuery!$A$170:$GZ$183,EL$1) -> 8681 | EM25: =VLOOKUP(DropDownList!$B$47,CntyQuery!$A$170:$GZ$183,EM$1) -> 889.69 | EN25: =VLOOKUP(DropDownList!$B$47,CntyQuery!$A$170:$GZ$183,EN$1) -> 895.48 | EO25: =VLOOKUP(DropDownList!$B$47,CntyQuery!$A$170:$GZ$183,EO$1) -> 1302.67 | EP25: =VLOOKUP(DropDownList!$B$47,CntyQuery!$A$170:$GZ$183,EP$1) -> 789.49 | EQ25: =VLOOKUP(DropDownList!$B$47,CntyQuery!$A$170:$GZ$183,EQ$1) -> 12483 | ER25: =VLOOKUP(DropDownList!$B$47,CntyQuery!$A$170:$GZ$183,ER$1) -> 11067 | ES25: =VLOOKUP(DropDownList!$B$47,CntyQuery!$A$170:$GZ$183,ES$1) -> 1415 | ET25: =VLOOKUP(DropDownList!$B$47,CntyQuery!$A$170:$GZ$183,ET$1) -> 2370 | EU25: =VLOOKUP(DropDownList!$B$47,CntyQuery!$A$170:$GZ$183,EU$1) -> 8697 | EV25: =VLOOKUP(DropDownList!$B$47,CntyQuery!$A$170:$GZ$183,EV$1) -> 901.03 | EW25: =VLOOKUP(DropDownList!$B$47,CntyQuery!$A$170:$GZ$183,EW$1) -> 906.17 | EX25: =VLOOKUP(DropDownList!$B$47,CntyQuery!$A$170:$GZ$183,EX$1) -> 860.8 | EY25: =VLOOKUP(DropDownList!$B$47,CntyQuery!$A$170:$GZ$183,EY$1) -> 1307.21 | EZ25: =VLOOKUP(DropDownList!$B$47,CntyQuery!$A$170:$GZ$183,EZ$1) -> 796.89 | FA25: =VLOOKUP(DropDownList!$B$47,CntyQuery!$A$170:$GZ$183,FA$1) -> 11425 | FB25: =VLOOKUP(DropDownList!$B$47,CntyQuery!$A$170:$GZ$183,FB$1) -> 10041 | FC25: =VLOOKUP(DropDownList!$B$47,CntyQuery!$A$170:$GZ$183,FC$1) -> 1384 | FD25: =VLOOKUP(DropDownList!$B$47,CntyQuery!$A$170:$GZ$183,FD$1) -> 2061 | FE25: =VLOOKUP(DropDownList!$B$47,CntyQuery!$A$170:$GZ$183,FE$1) -> 7980 | FF25: =VLOOKUP(DropDownList!$B$47,CntyQuery!$A$170:$GZ$183,FF$1) -> 967.66 | FG25: =VLOOKUP(DropDownList!$B$47,CntyQuery!$A$170:$GZ$183,FG$1) -> 976.39 | FH25: =VLOOKUP(DropDownList!$B$47,CntyQuery!$A$170:$GZ$183,FH$1) -> 904.31 | FI25: =VLOOKUP(DropDownList!$B$47,CntyQuery!$A$170:$GZ$183,FI$1) -> 1406.28 | FJ25: =VLOOKUP(DropDownList!$B$47,CntyQuery!$A$170:$GZ$183,FJ$1) -> 865.36 | FK25: =VLOOKUP(DropDownList!$B$47,CntyQuery!$A$170:$GZ$183,FK$1) -> 11529 | FL25: =VLOOKUP(DropDownList!$B$47,CntyQuery!$A$170:$GZ$183,FL$1) -> 10204 | FM25: =VLOOKUP(DropDownList!$B$47,CntyQuery!$A$170:$GZ$183,FM$1) -> 1326 | FN25: =VLOOKUP(DropDownList!$B$47,CntyQuery!$A$170:$GZ$183,FN$1) -> 2128 | FO25: =VLOOKUP(DropDownList!$B$47,CntyQuery!$A$170:$GZ$183,FO$1) -> 8076 | FP25: =VLOOKUP(DropDownList!$B$47,CntyQuery!$A$170:$GZ$183,FP$1) -> 990.28 | FQ25: =VLOOKUP(DropDownList!$B$47,CntyQuery!$A$170:$GZ$183,FQ$1) -> 995.49 | FR25: =VLOOKUP(DropDownList!$B$47,CntyQuery!$A$170:$GZ$183,FR$1) -> 950.19 | FS25: =VLOOKUP(DropDownList!$B$47,CntyQuery!$A$170:$GZ$183,FS$1) -> 1416.61 | FT25: =VLOOKUP(DropDownList!$B$47,CntyQuery!$A$170:$GZ$183,FT$1) -> 884.52 | FU25: =VLOOKUP(DropDownList!$B$47,CntyQuery!$A$170:$GZ$183,FU$1) -> 11852 | FV25: =VLOOKUP(DropDownList!$B$47,CntyQuery!$A$170:$GZ$183,FV$1) -> 10576 | FW25: =VLOOKUP(DropDownList!$B$47,CntyQuery!$A$170:$GZ$183,FW$1) -> 1276 | FX25: =VLOOKUP(DropDownList!$B$47,CntyQuery!$A$170:$GZ$183,FX$1) -> 2349 | FY25: =VLOOKUP(DropDownList!$B$47,CntyQuery!$A$170:$GZ$183,FY$1) -> 8227 | FZ25: =VLOOKUP(DropDownList!$B$47,CntyQuery!$A$170:$GZ$183,FZ$1) -> 1042 | GA25: =VLOOKUP(DropDownList!$B$47,CntyQuery!$A$170:$GZ$183,GA$1) -> 1048 | GB25: =VLOOKUP(DropDownList!$B$47,CntyQuery!$A$170:$GZ$183,GB$1) -> 995 | GC25: =VLOOKUP(DropDownList!$B$47,CntyQuery!$A$170:$GZ$183,GC$1) -> 1433 | GD25: =VLOOKUP(DropDownList!$B$47,CntyQuery!$A$170:$GZ$183,GD$1) -> 938 | GE25: =VLOOKUP(DropDownList!$B$47,CntyQuery!$A$170:$GZ$183,GE$1) -> 9
A28: Labor Force and Unemployment Rate | B28: Query Name: DPQryUnempByCnty
A29: PlaceName | B29: LaborForce1990 | C29: LaborForce1991 | D29: LaborForce1992 | E29: LaborForce1993 | F29: LaborForce1994 | G29: LaborForce1995 | H29: LaborForce1996 | I29: LaborForce1997 | J29: LaborForce1998 | K29: LaborForce1999 | L29: LaborForce2000 | M29: LaborForce2001 | N29: LaborForce2002 | O29: LaborForce2003 | P29: NumbEmployed1990 | Q29: NumbEmployed1991 | R29: NumbEmployed1992 | S29: NumbEmployed1993 | T29: NumbEmployed1994 | U29: NumbEmployed1995 | V29: NumbEmployed1996 | W29: NumbEmployed1997 | X29: NumbEmployed1998 | Y29: NumbEmployed1999 | Z29: NumbEmployed2000 | AA29: NumbEmployed2001 | AB29: NumbEmployed2002 | AC29: NumbEmployed2003 | AD29: UnempRate1990 | AE29: UnempRate1991 | AF29: UnempRate1992 | AG29: UnempRate1993 | AH29: UnempRate1994 | AI29: UnempRate1995 | AJ29: UnempRate1996 | AK29: UnempRate1997 | AL29: UnempRate1998 | AM29: UnempRate1999 | AN29: UnempRate2000 | AO29: UnempRate2001 | AP29: UnempRate2002 | AQ29: UnempRate2003 | AR29: NumbUnEmp1990 | AS29: NumbUnEmp1991 | AT29: NumbUnEmp1992 | AU29: NumbUnEmp1993 | AV29: NumbUnEmp1994 | AW29: NumbUnEmp1995 | AX29: NumbUnEmp1996 | AY29: NumbUnEmp1997 | AZ29: NumbUnEmp1998 | BA29: NumbUnEmp1999 | BB29: NumbUnEmp2000 | BC29: NumbUnEmp2001 | BD29: NumbUnEmp2002 | BE29: NumbUnEmp2003 | BF29: LaborForce2004 | BG29: NumbEmployed2004 | BH29: UnempRate2004 | BI29: NumbUnEmp2004 | BJ29: LaborForce2005 | BK29: NumbEmployed2005 | BL29: NumbUnEmp2005 | BM29: UnempRate2005 | BN29: LaborForce2006 | BO29: NumbEmployed2006 | BP29: NumbUnEmp2006 | BQ29: UnempRate2006 | BR29: LaborForce2007 | BS29: NumbEmployed2007 | BT29: NumbUnEmp2007 | BU29: UnempRate2007 | BV29: LaborForce2008 | BW29: NumbEmployed2008 | BX29: NumbUnEmp2008 | BY29: UnempRate2008 | BZ29: LaborForce2009 | CA29: NumbEmployed2009 | CB29: NumbUnEmp2009 | CC29: UnempRate2009 | CD29: LaborForce2010 | CE29: NumbEmployed2010 | CF29: NumbUnEmp2010 | CG29: UnempRate2010 | CH29: LaborForce2011 | CI29: NumbEmployed2011 | CJ29: NumbUnEmp2011 | CK29: UnempRate2011 | CL29: LaborForce2012 | CM29: NumbEmployed2012 | CN29: NumbUnEmp2012 | CO29: UnempRate2012 | CP29: LaborForce2013 | CQ29: NumbEmployed2013 | CR29: NumbUnEmp2013 | CS29: UnempRate2013 | CT29: LaborForce2014 | CU29: NumbEmployed2014 | CV29: NumbUnEmp2014 | CW29: UnempRate2014 | CX29: LaborForce2015 | CY29: NumbEmployed2015 | CZ29: NumbUnEmp2015 | DA29: UnempRate2015 | DB29: LaborForce2016 | DC29: NumbEmployed2016 | DD29: NumbUnEmp2016 | DE29: UnempRate2016 | DF29: LaborForce2017 | DG29: NumbEmployed2017 | DH29: NumbUnEmp2017 | DI29: UnempRate2017 | DJ29: LaborForce2018 | DK29: NumbEmployed2018 | DL29: NumbUnEmp2018 | DM29: UnempRate2018 | DN29: LaborForce2019 | DO29: NumbEmployed2019 | DP29: NumbUnEmp2019 | DQ29: UnempRate2019 | DR29: LaborForce2020 | DS29: NumbEmployed2020 | DT29: NumbUnEmp2020 | DU29: UnempRate2020 | DV29: LaborForce2021 | DW29: NumbEmployed2021 | DX29: NumbUnEmp2021 | DY29: UnempRate2021 | DZ29: Place-TownIDNumber
A30: =VLOOKUP(DropDownList!$B$47,CntyQuery!$A$220:$EF$229,A$1) -> Rochester | B30: =VLOOKUP(DropDownList!$B$47,CntyQuery!$A$220:$EF$229,B$1) -> 14242 | C30: =VLOOKUP(DropDownList!$B$47,CntyQuery!$A$220:$EF$229,C$1) -> 14280 | D30: =VLOOKUP(DropDownList!$B$47,CntyQuery!$A$220:$EF$229,D$1) -> 14153 | E30: =VLOOKUP(DropDownList!$B$47,CntyQuery!$A$220:$EF$229,E$1) -> 14123 | F30: =VLOOKUP(DropDownList!$B$47,CntyQuery!$A$220:$EF$229,F$1) -> 13917 | G30: =VLOOKUP(DropDownList!$B$47,CntyQuery!$A$220:$EF$229,G$1) -> 14056 | H30: =VLOOKUP(DropDownList!$B$47,CntyQuery!$A$220:$EF$229,H$1) -> 14172 | I30: =VLOOKUP(DropDownList!$B$47,CntyQuery!$A$220:$EF$229,I$1) -> 14407 | J30: =VLOOKUP(DropDownList!$B$47,CntyQuery!$A$220:$EF$229,J$1) -> 14297 | K30: =VLOOKUP(DropDownList!$B$47,CntyQuery!$A$220:$EF$229,K$1) -> 14288 | L30: =VLOOKUP(DropDownList!$B$47,CntyQuery!$A$220:$EF$229,L$1) -> 15280 | M30: =VLOOKUP(DropDownList!$B$47,CntyQuery!$A$220:$EF$229,M$1) -> 15450 | N30: =VLOOKUP(DropDownList!$B$47,CntyQuery!$A$220:$EF$229,N$1) -> 15670 | O30: =VLOOKUP(DropDownList!$B$47,CntyQuery!$A$220:$EF$229,O$1) -> 15900 | P30: =VLOOKUP(DropDownList!$B$47,CntyQuery!$A$220:$EF$229,P$1) -> 13158 | Q30: =VLOOKUP(DropDownList!$B$47,CntyQuery!$A$220:$EF$229,Q$1) -> 12952 | R30: =VLOOKUP(DropDownList!$B$47,CntyQuery!$A$220:$EF$229,R$1) -> 12771 | S30: =VLOOKUP(DropDownList!$B$47,CntyQuery!$A$220:$EF$229,S$1) -> 13032 | T30: =VLOOKUP(DropDownList!$B$47,CntyQuery!$A$220:$EF$229,T$1) -> 13177 | U30: =VLOOKUP(DropDownList!$B$47,CntyQuery!$A$220:$EF$229,U$1) -> 13387 | V30: =VLOOKUP(DropDownList!$B$47,CntyQuery!$A$220:$EF$229,V$1) -> 13529 | W30: =VLOOKUP(DropDownList!$B$47,CntyQuery!$A$220:$EF$229,W$1) -> 13825 | X30: =VLOOKUP(DropDownList!$B$47,CntyQuery!$A$220:$EF$229,X$1) -> 13799 | Y30: =VLOOKUP(DropDownList!$B$47,CntyQuery!$A$220:$EF$229,Y$1) -> 13892 | Z30: =VLOOKUP(DropDownList!$B$47,CntyQuery!$A$220:$EF$229,Z$1) -> 14820 | AA30: =VLOOKUP(DropDownList!$B$47,CntyQuery!$A$220:$EF$229,AA$1) -> 14880 | AB30: =VLOOKUP(DropDownList!$B$47,CntyQuery!$A$220:$EF$229,AB$1) -> 14870 | AC30: =VLOOKUP(DropDownList!$B$47,CntyQuery!$A$220:$EF$229,AC$1) -> 15210 | AD30: =VLOOKUP(DropDownList!$B$47,CntyQuery!$A$220:$EF$229,AD$1) -> 7.6 | AE30: =VLOOKUP(DropDownList!$B$47,CntyQuery!$A$220:$EF$229,AE$1) -> 9.3 | AF30: =VLOOKUP(DropDownList!$B$47,CntyQuery!$A$220:$EF$229,AF$1) -> 9.8 | AG30: =VLOOKUP(DropDownList!$B$47,CntyQuery!$A$220:$EF$229,AG$1) -> 7.7 | AH30: =VLOOKUP(DropDownList!$B$47,CntyQuery!$A$220:$EF$229,AH$1) -> 5.3 | AI30: =VLOOKUP(DropDownList!$B$47,CntyQuery!$A$220:$EF$229,AI$1) -> 4.8 | AJ30: =VLOOKUP(DropDownList!$B$47,CntyQuery!$A$220:$EF$229,AJ$1) -> 4.5 | AK30: =VLOOKUP(DropDownList!$B$47,CntyQuery!$A$220:$EF$229,AK$1) -> 4 | AL30: =VLOOKUP(DropDownList!$B$47,CntyQuery!$A$220:$EF$229,AL$1) -> 3.5 | AM30: =VLOOKUP(DropDownList!$B$47,CntyQuery!$A$220:$EF$229,AM$1) -> 2.8 | AN30: =VLOOKUP(DropDownList!$B$47,CntyQuery!$A$220:$EF$229,AN$1) -> 3 | AO30: =VLOOKUP(DropDownList!$B$47,CntyQuery!$A$220:$EF$229,AO$1) -> 3.7 | AP30: =VLOOKUP(DropDownList!$B$47,CntyQuery!$A$220:$EF$229,AP$1) -> 5.1 | AQ30: =VLOOKUP(DropDownList!$B$47,CntyQuery!$A$220:$EF$229,AQ$1) -> 4.3 | AR30: =VLOOKUP(DropDownList!$B$47,CntyQuery!$A$220:$EF$229,AR$1) -> 1084 | AS30: =VLOOKUP(DropDownList!$B$47,CntyQuery!$A$220:$EF$229,AS$1) -> 1328 | AT30: =VLOOKUP(DropDownList!$B$47,CntyQuery!$A$220:$EF$229,AT$1) -> 1382 | AU30: =VLOOKUP(DropDownList!$B$47,CntyQuery!$A$220:$EF$229,AU$1) -> 1091 | AV30: =VLOOKUP(DropDownList!$B$47,CntyQuery!$A$220:$EF$229,AV$1) -> 740 | AW30: =VLOOKUP(DropDownList!$B$47,CntyQuery!$A$220:$EF$229,AW$1) -> 669 | AX30: =VLOOKUP(DropDownList!$B$47,CntyQuery!$A$220:$EF$229,AX$1) -> 643 | AY30: =VLOOKUP(DropDownList!$B$47,CntyQuery!$A$220:$EF$229,AY$1) -> 582 | AZ30: =VLOOKUP(DropDownList!$B$47,CntyQuery!$A$220:$EF$229,AZ$1) -> 498 | BA30: =VLOOKUP(DropDownList!$B$47,CntyQuery!$A$220:$EF$229,BA$1) -> 396 | BB30: =VLOOKUP(DropDownList!$B$47,CntyQuery!$A$220:$EF$229,BB$1) -> 460 | BC30: =VLOOKUP(DropDownList!$B$47,CntyQuery!$A$220:$EF$229,BC$1) -> 570 | BD30: =VLOOKUP(DropDownList!$B$47,CntyQuery!$A$220:$EF$229,BD$1) -> 800 | BE30: =VLOOKUP(DropDownList!$B$47,CntyQuery!$A$220:$EF$229,BE$1) -> 690 | BF30: =VLOOKUP(DropDownList!$B$47,CntyQuery!$A$220:$EF$229,BF$1) -> 16150 | BG30: =VLOOKUP(DropDownList!$B$47,CntyQuery!$A$220:$EF$229,BG$1) -> 15550 | BH30: =VLOOKUP(DropDownList!$B$47,CntyQuery!$A$220:$EF$229,BH$1) -> 3.7 | BI30: =VLOOKUP(DropDownList!$B$47,CntyQuery!$A$220:$EF$229,BI$1) -> 600 | BJ30: =VLOOKUP(DropDownList!$B$47,CntyQuery!$A$220:$EF$229,BJ$1) -> 16360 | BK30: =VLOOKUP(DropDownList!$B$47,CntyQuery!$A$220:$EF$229,BK$1) -> 15740 | BL30: =VLOOKUP(DropDownList!$B$47,CntyQuery!$A$220:$EF$229,BL$1) -> 620 | BM30: =VLOOKUP(DropDownList!$B$47,CntyQuery!$A$220:$EF$229,BM$1) -> 3.8 | BN30: =VLOOKUP(DropDownList!$B$47,CntyQuery!$A$220:$EF$229,BN$1) -> 16340 | BO30: =VLOOKUP(DropDownList!$B$47,CntyQuery!$A$220:$EF$229,BO$1) -> 15790 | BP30: =VLOOKUP(DropDownList!$B$47,CntyQuery!$A$220:$EF$229,BP$1) -> 550 | BQ30: =VLOOKUP(DropDownList!$B$47,CntyQuery!$A$220:$EF$229,BQ$1) -> 3.3 | BR30: =VLOOKUP(DropDownList!$B$47,CntyQuery!$A$220:$EF$229,BR$1) -> 16700 | BS30: =VLOOKUP(DropDownList!$B$47,CntyQuery!$A$220:$EF$229,BS$1) -> 16100 | BT30: =VLOOKUP(DropDownList!$B$47,CntyQuery!$A$220:$EF$229,BT$1) -> 600 | BU30: =VLOOKUP(DropDownList!$B$47,CntyQuery!$A$220:$EF$229,BU$1) -> 3.6 | BV30: =VLOOKUP(DropDownList!$B$47,CntyQuery!$A$220:$EF$229,BV$1) -> 17120 | BW30: =VLOOKUP(DropDownList!$B$47,CntyQuery!$A$220:$EF$229,BW$1) -> 16410 | BX30: =VLOOKUP(DropDownList!$B$47,CntyQuery!$A$220:$EF$229,BX$1) -> 710 | BY30: =VLOOKUP(DropDownList!$B$47,CntyQuery!$A$220:$EF$229,BY$1) -> 4.1 | BZ30: =VLOOKUP(DropDownList!$B$47,CntyQuery!$A$220:$EF$229,BZ$1) -> 17210 | CA30: =VLOOKUP(DropDownList!$B$47,CntyQuery!$A$220:$EF$229,CA$1) -> 15950 | CB30: =VLOOKUP(DropDownList!$B$47,CntyQuery!$A$220:$EF$229,CB$1) -> 1260 | CC30: =VLOOKUP(DropDownList!$B$47,CntyQuery!$A$220:$EF$229,CC$1) -> 7.3 | CD30: =VLOOKUP(DropDownList!$B$47,CntyQuery!$A$220:$EF$229,CD$1) -> 16940 | CE30: =VLOOKUP(DropDownList!$B$47,CntyQuery!$A$220:$EF$229,CE$1) -> 15815 | CF30: =VLOOKUP(DropDownList!$B$47,CntyQuery!$A$220:$EF$229,CF$1) -> 1125 | CG30: =VLOOKUP(DropDownList!$B$47,CntyQuery!$A$220:$EF$229,CG$1) -> 6.6 | CH30: =VLOOKUP(DropDownList!$B$47,CntyQuery!$A$220:$EF$229,CH$1) -> 16868 | CI30: =VLOOKUP(DropDownList!$B$47,CntyQuery!$A$220:$EF$229,CI$1) -> 15894 | CJ30: =VLOOKUP(DropDownList!$B$47,CntyQuery!$A$220:$EF$229,CJ$1) -> 974 | CK30: =VLOOKUP(DropDownList!$B$47,CntyQuery!$A$220:$EF$229,CK$1) -> 5.8 | CL30: =VLOOKUP(DropDownList!$B$47,CntyQuery!$A$220:$EF$229,CL$1) -> 16840 | CM30: =VLOOKUP(DropDownList!$B$47,CntyQuery!$A$220:$EF$229,CM$1) -> 15863 | CN30: =VLOOKUP(DropDownList!$B$47,CntyQuery!$A$220:$EF$229,CN$1) -> 977 | CO30: =VLOOKUP(DropDownList!$B$47,CntyQuery!$A$220:$EF$229,CO$1) -> 5.8 | CP30: =VLOOKUP(DropDownList!$B$47,CntyQuery!$A$220:$EF$229,CP$1) -> 16849 | CQ30: =VLOOKUP(DropDownList!$B$47,CntyQuery!$A$220:$EF$229,CQ$1) -> 15932 | CR30: =VLOOKUP(DropDownList!$B$47,CntyQuery!$A$220:$EF$229,CR$1) -> 917 | CS30: =VLOOKUP(DropDownList!$B$47,CntyQuery!$A$220:$EF$229,CS$1) -> 5.4 | CT30: =VLOOKUP(DropDownList!$B$47,CntyQuery!$A$220:$EF$229,CT$1) -> 16923 | CU30: =VLOOKUP(DropDownList!$B$47,CntyQuery!$A$220:$EF$229,CU$1) -> 16214 | CV30: =VLOOKUP(DropDownList!$B$47,CntyQuery!$A$220:$EF$229,CV$1) -> 709 | CW30: =VLOOKUP(DropDownList!$B$47,CntyQuery!$A$220:$EF$229,CW$1) -> 4.2 | CX30: =VLOOKUP(DropDownList!$B$47,CntyQuery!$A$220:$EF$229,CX$1) -> 16914 | CY30: =VLOOKUP(DropDownList!$B$47,CntyQuery!$A$220:$EF$229,CY$1) -> 16360 | CZ30: =VLOOKUP(DropDownList!$B$47,CntyQuery!$A$220:$EF$229,CZ$1) -> 554 | DA30: =VLOOKUP(DropDownList!$B$47,CntyQuery!$A$220:$EF$229,DA$1) -> 3.3 | DB30: =VLOOKUP(DropDownList!$B$47,CntyQuery!$A$220:$EF$229,DB$1) -> 17257 | DC30: =VLOOKUP(DropDownList!$B$47,CntyQuery!$A$220:$EF$229,DC$1) -> 16818 | DD30: =VLOOKUP(DropDownList!$B$47,CntyQuery!$A$220:$EF$229,DD$1) -> 439 | DE30: =VLOOKUP(DropDownList!$B$47,CntyQuery!$A$220:$EF$229,DE$1) -> 2.5 | DF30: =VLOOKUP(DropDownList!$B$47,CntyQuery!$A$220:$EF$229,DF$1) -> 17433 | DG30: =VLOOKUP(DropDownList!$B$47,CntyQuery!$A$220:$EF$229,DG$1) -> 17005 | DH30: =VLOOKUP(DropDownList!$B$47,CntyQuery!$A$220:$EF$229,DH$1) -> 428 | DI30: =VLOOKUP(DropDownList!$B$47,CntyQuery!$A$220:$EF$229,DI$1) -> 2.5 | DJ30: =VLOOKUP(DropDownList!$B$47,CntyQuery!$A$220:$EF$229,DJ$1) -> 17920 | DK30: =VLOOKUP(DropDownList!$B$47,CntyQuery!$A$220:$EF$229,DK$1) -> 17480 | DL30: =VLOOKUP(DropDownList!$B$47,CntyQuery!$A$220:$EF$229,DL$1) -> 440 | DM30: =VLOOKUP(DropDownList!$B$47,CntyQuery!$A$220:$EF$229,DM$1) -> 2.4 | DN30: =VLOOKUP(DropDownList!$B$47,CntyQuery!$A$220:$EF$229,DN$1) -> 18140 | DO30: =VLOOKUP(DropDownList!$B$47,CntyQuery!$A$220:$EF$229,DO$1) -> 17700 | DP30: =VLOOKUP(DropDownList!$B$47,CntyQuery!$A$220:$EF$229,DP$1) -> 440 | DQ30: =VLOOKUP(DropDownList!$B$47,CntyQuery!$A$220:$EF$229,DQ$1) -> 2.4 | DR30: =VLOOKUP(DropDownList!$B$47,CntyQuery!$A$220:$EF$229,DR$1) -> 17760 | DS30: =VLOOKUP(DropDownList!$B$47,CntyQuery!$A$220:$EF$229,DS$1) -> 16520 | DT30: =VLOOKUP(DropDownList!$B$47,CntyQuery!$A$220:$EF$229,DT$1) -> 1240 | DU30: =VLOOKUP(DropDownList!$B$47,CntyQuery!$A$220:$EF$229,DU$1) -> 7 | DV30: =VLOOKUP(DropDownList!$B$47,CntyQuery!$A$220:$EF$229,DV$1) -> 17640 | DW30: =VLOOKUP(DropDownList!$B$47,CntyQuery!$A$220:$EF$229,DW$1) -> 17040 | DX30: =VLOOKUP(DropDownList!$B$47,CntyQuery!$A$220:$EF$229,DX$1) -> 600 | DY30: =VLOOKUP(DropDownList!$B$47,CntyQuery!$A$220:$EF$229,DY$1) -> 3.4 | DZ30: =VLOOKUP(DropDownList!$B$47,CntyQuery!$A$220:$EF$229,DZ$1) -> 17850
M32: =IF((CntyDataLink!$BL$25)="n",NA(),IF(VALUE(CntyDataLink!$BL$25)="",NA(),VALUE(CntyDataLink!$BL$25))) -> 688.41
A33: Census 2000 - Query Name: TownAllQuery3 | B33: 2 | C33: =B33+1 -> 3 | D33: =C33+1 -> 4 | E33: 5 | F33: 6 | G33: 7 | H33: 8 | I33: 9 | J33: 10 | K33: 11 | L33: 12 | M33: 13 | N33: 14 | O33: 15 | P33: 16 | Q33: 17 | R33: 18 | S33: 19 | T33: 20 | U33: 21 | V33: 22 | W33: 23 | X33: 24 | Y33: 25 | Z33: 26 | AA33: 27 | AB33: 28 | AC33: 29 | AD33: 30 | AE33: 31 | AF33: 32 | AG33: 33 | AH33: 34 | AI33: 35 | AJ33: 36 | AK33: 37 | AL33: 38 | AM33: 39 | AN33: 40 | AO33: 41 | AP33: 42 | AQ33: 43 | AR33: 44 | AS33: 45 | AT33: 46 | AU33: 47 | AV33: 48 | AW33: 49 | AX33: 50 | AY33: 51 | AZ33: 52 | BA33: 53 | BB33: 54 | BC33: 55 | BD33: 56 | BE33: 57 | BF33: 58 | BG33: 59 | BH33: 60 | BI33: 61 | BJ33: 62 | BK33: 63 | BL33: 64 | BM33: 65 | BN33: 66 | BO33: 67 | BP33: =BO33+1 -> 68 | BQ33: 69 | BR33: 70 | BS33: 71 | BT33: 72 | BU33: 73 | BV33: 74 | BW33: 75 | BX33: 76 | BY33: 77 | BZ33: 78 | CA33: 79 | CB33: 80 | CC33: 81 | CD33: 82 | CE33: 83 | CF33: 84 | CG33: 85 | CH33: 86 | CI33: 87 | CJ33: 88 | CK33: 89 | CL33: 90 | CM33: 91 | CN33: 92 | CO33: 93 | CP33: 94 | CQ33: 95 | CR33: 96 | CS33: 97 | CT33: 98 | CU33: 99 | CV33: 100 | CW33: 101 | CX33: 102
A34: NAME | B34: COUNTY | C34: LOGRECNO | D34: COUSUB | E34: TRACT | F34: AREALAND | G34: AREAWATR | H34: POP100 | I34: HU100 | J34: 2000Population | K34: PopOfOneRace | L34: PopWhite | M34: PopBlack | N34: PopAmIndian | O34: PopAsian | P34: PopHawaiian | Q34: PopOtherRace | R34: Pop2orMoreRaces | S34: PopHispanicLatino | T34: PopNotHispanicLatino | U34: PopMale | V34: PopMale<15 | W34: PopMale15to24 | X34: PopMale25to34 | Y34: PopMale35to44 | Z34: PopMale45to54 | AA34: PopMale55to64 | AB34: PopMale65to74 | AC34: PopMale75to84 | AD34: PopMale85andOver | AE34: PopFemale | AF34: PopFemale<15 | AG34: PopFemale15to24 | AH34: PopFemale25to34 | AI34: PopFemale35t44 | AJ34: PopFemale45to54 | AK34: PopFemale55to64 | AL34: PopFemale65to74 | AM34: PopFemale75to84 | AN34: PopFemale85andOver | AO34: Households2000 | AP34: PopInHH | AQ34: AvgHHSize | AR34: HHs1Person | AS34: HHs2orMorePerson | AT34: HHsFamily | AU34: HHMarriedCoupleFam | AV34: HHSingleParentFam | AW34: HHsNonFamily | AX34: Families | AY34: PopInFam | AZ34: AvgFamSize | BA34: TotHsUnits | BB34: OccHsUnits | BC34: OwnerOccHU | BD34: RenterOccHU | BE34: VctHsUnits | BF34: VctHUForRent | BG34: VctHUForSale | BH34: VctHUSeasonal | BI34: PopInOccHU | BJ34: PopInOwnOccHU | BK34: PopInRntOccHU | BL34: AvgHHSize2 | BM34: AvgHHSizOwnOcc | BN34: AvgHHSizRntOcc | BO34: OwnOccWhtHsHldr | BP34: OwnOccBlkHsHldr | BQ34: OwnOccAmIHsHldr | BR34: OwnOccAsnHsHldr | BS34: OwnOccPIsHsHldr | BT34: OwnOccORHsHldr | BU34: OwnOcc2RcHsHldr | BV34: RntOccWhtHsHldr | BW34: RntOccBlkHsHldr | BX34: RntOccAmIHsHldr | BY34: RntOccAsnHsHldr | BZ34: RntOccPIsHsHldr | CA34: RntOccORHsHldr | CB34: RntOcc2RcHsHldr | CC34: OwnOccHH15to24 | CD34: OwnOccHH25to34 | CE34: OwnOccHH35to44 | CF34: OwnOccHH45to54 | CG34: OwnOccHH55to64 | CH34: OwnOccHH65to74 | CI34: OwnOccHH75to84 | CJ34: OwnOccHH85Over | CK34: RntOccHH15to24 | CL34: RntOccHH25to34 | CM34: RntOccHH35to44 | CN34: RntOccHH45to54 | CO34: RntOccHH55to64 | CP34: RntOccHH65to74 | CQ34: RntOccHH75to84 | CR34: RntOccHH85Over | CS34: P27TotalPop | CT34: P27PopInHseHlds | CU34: P27PopInGrpQtrs | CV34: Median Age Total | CW34: Median Age (Male) | CX34: Median Age (Female)
A35: =VLOOKUP(DropDownList!$B$47,CntyQryCensus!$A$4:$CW$46,A$1) -> Rochester | B35: =VLOOKUP(DropDownList!$B$47,CntyQryCensus!$A$4:$CW$46,B$1) -> 017 | C35: =VLOOKUP(DropDownList!$B$47,CntyQryCensus!$A$4:$CW$46,C$1) -> 0034907 | D35: =VLOOKUP(DropDownList!$B$47,CntyQryCensus!$A$4:$CW$46,D$1) -> 65140 | E35: =VLOOKUP(DropDownList!$B$47,CntyQryCensus!$A$4:$CW$46,E$1) ->  | F35: =VLOOKUP(DropDownList!$B$47,CntyQryCensus!$A$4:$CW$46,F$1) -> 116940933 | G35: =VLOOKUP(DropDownList!$B$47,CntyQryCensus!$A$4:$CW$46,G$1) -> 1625224 | H35: =VLOOKUP(DropDownList!$B$47,CntyQryCensus!$A$4:$CW$46,H$1) -> 28461 | I35: =VLOOKUP(DropDownList!$B$47,CntyQryCensus!$A$4:$CW$46,I$1) -> 11836 | J35: =VLOOKUP(DropDownList!$B$47,CntyQryCensus!$A$4:$CW$46,J$1) -> 28461 | K35: =VLOOKUP(DropDownList!$B$47,CntyQryCensus!$A$4:$CW$46,K$1) -> 28182 | L35: =VLOOKUP(DropDownList!$B$47,CntyQryCensus!$A$4:$CW$46,L$1) -> 27640 | M35: =VLOOKUP(DropDownList!$B$47,CntyQryCensus!$A$4:$CW$46,M$1) -> 149 | N35: =VLOOKUP(DropDownList!$B$47,CntyQryCensus!$A$4:$CW$46,N$1) -> 62 | O35: =VLOOKUP(DropDownList!$B$47,CntyQryCensus!$A$4:$CW$46,O$1) -> 248 | P35: =VLOOKUP(DropDownList!$B$47,CntyQryCensus!$A$4:$CW$46,P$1) -> 9 | Q35: =VLOOKUP(DropDownList!$B$47,CntyQryCensus!$A$4:$CW$46,Q$1) -> 74 | R35: =VLOOKUP(DropDownList!$B$47,CntyQryCensus!$A$4:$CW$46,R$1) -> 279 | S35: =VLOOKUP(DropDownList!$B$47,CntyQryCensus!$A$4:$CW$46,S$1) -> 255 | T35: =VLOOKUP(DropDownList!$B$47,CntyQryCensus!$A$4:$CW$46,T$1) -> 28206 | U35: =VLOOKUP(DropDownList!$B$47,CntyQryCensus!$A$4:$CW$46,U$1) -> 13838 | V35: =VLOOKUP(DropDownList!$B$47,CntyQryCensus!$A$4:$CW$46,V$1) -> 3142 | W35: =VLOOKUP(DropDownList!$B$47,CntyQryCensus!$A$4:$CW$46,W$1) -> 1655 | X35: =VLOOKUP(DropDownList!$B$47,CntyQryCensus!$A$4:$CW$46,X$1) -> 2002 | Y35: =VLOOKUP(DropDownList!$B$47,CntyQryCensus!$A$4:$CW$46,Y$1) -> 2422 | Z35: =VLOOKUP(DropDownList!$B$47,CntyQryCensus!$A$4:$CW$46,Z$1) -> 1852 | AA35: =VLOOKUP(DropDownList!$B$47,CntyQryCensus!$A$4:$CW$46,AA$1) -> 1202 | AB35: =VLOOKUP(DropDownList!$B$47,CntyQryCensus!$A$4:$CW$46,AB$1) -> 955 | AC35: =VLOOKUP(DropDownList!$B$47,CntyQryCensus!$A$4:$CW$46,AC$1) -> 499 | AD35: =VLOOKUP(DropDownList!$B$47,CntyQryCensus!$A$4:$CW$46,AD$1) -> 109 | AE35: =VLOOKUP(DropDownList!$B$47,CntyQryCensus!$A$4:$CW$46,AE$1) -> 14623 | AF35: =VLOOKUP(DropDownList!$B$47,CntyQryCensus!$A$4:$CW$46,AF$1) -> 2847 | AG35: =VLOOKUP(DropDownList!$B$47,CntyQryCensus!$A$4:$CW$46,AG$1) -> 1731 | AH35: =VLOOKUP(DropDownList!$B$47,CntyQryCensus!$A$4:$CW$46,AH$1) -> 2031 | AI35: =VLOOKUP(DropDownList!$B$47,CntyQryCensus!$A$4:$CW$46,AI$1) -> 2519 | AJ35: =VLOOKUP(DropDownList!$B$47,CntyQryCensus!$A$4:$CW$46,AJ$1) -> 1976 | AK35: =VLOOKUP(DropDownList!$B$47,CntyQryCensus!$A$4:$CW$46,AK$1) -> 1248 | AL35: =VLOOKUP(DropDownList!$B$47,CntyQryCensus!$A$4:$CW$46,AL$1) -> 1116 | AM35: =VLOOKUP(DropDownList!$B$47,CntyQryCensus!$A$4:$CW$46,AM$1) -> 843 | AN35: =VLOOKUP(DropDownList!$B$47,CntyQryCensus!$A$4:$CW$46,AN$1) -> 312 | AO35: =VLOOKUP(DropDownList!$B$47,CntyQryCensus!$A$4:$CW$46,AO$1) -> 11434 | AP35: =VLOOKUP(DropDownList!$B$47,CntyQryCensus!$A$4:$CW$46,AP$1) -> 28168 | AQ35: =VLOOKUP(DropDownList!$B$47,CntyQryCensus!$A$4:$CW$46,AQ$1) -> 2.46 | AR35: =VLOOKUP(DropDownList!$B$47,CntyQryCensus!$A$4:$CW$46,AR$1) -> 2936 | AS35: =VLOOKUP(DropDownList!$B$47,CntyQryCensus!$A$4:$CW$46,AS$1) -> 8498 | AT35: =VLOOKUP(DropDownList!$B$47,CntyQryCensus!$A$4:$CW$46,AT$1) -> 7648 | AU35: =VLOOKUP(DropDownList!$B$47,CntyQryCensus!$A$4:$CW$46,AU$1) -> 5819 | AV35: =VLOOKUP(DropDownList!$B$47,CntyQryCensus!$A$4:$CW$46,AV$1) -> 1829 | AW35: =VLOOKUP(DropDownList!$B$47,CntyQryCensus!$A$4:$CW$46,AW$1) -> 850 | AX35: =VLOOKUP(DropDownList!$B$47,CntyQryCensus!$A$4:$CW$46,AX$1) -> 7648 | AY35: =VLOOKUP(DropDownList!$B$47,CntyQryCensus!$A$4:$CW$46,AY$1) -> 22584 | AZ35: =VLOOKUP(DropDownList!$B$47,CntyQryCensus!$A$4:$CW$46,AZ$1) -> 2.95 | BA35: =VLOOKUP(DropDownList!$B$47,CntyQryCensus!$A$4:$CW$46,BA$1) -> 11836 | BB35: =VLOOKUP(DropDownList!$B$47,CntyQryCensus!$A$4:$CW$46,BB$1) -> 11434 | BC35: =VLOOKUP(DropDownList!$B$47,CntyQryCensus!$A$4:$CW$46,BC$1) -> 7643 | BD35: =VLOOKUP(DropDownList!$B$47,CntyQryCensus!$A$4:$CW$46,BD$1) -> 3791 | BE35: =VLOOKUP(DropDownList!$B$47,CntyQryCensus!$A$4:$CW$46,BE$1) -> 402 | BF35: =VLOOKUP(DropDownList!$B$47,CntyQryCensus!$A$4:$CW$46,BF$1) -> 110 | BG35: =VLOOKUP(DropDownList!$B$47,CntyQryCensus!$A$4:$CW$46,BG$1) -> 68 | BH35: =VLOOKUP(DropDownList!$B$47,CntyQryCensus!$A$4:$CW$46,BH$1) -> 77 | BI35: =VLOOKUP(DropDownList!$B$47,CntyQryCensus!$A$4:$CW$46,BI$1) -> 28168 | BJ35: =VLOOKUP(DropDownList!$B$47,CntyQryCensus!$A$4:$CW$46,BJ$1) -> 19590 | BK35: =VLOOKUP(DropDownList!$B$47,CntyQryCensus!$A$4:$CW$46,BK$1) -> 8578 | BL35: =VLOOKUP(DropDownList!$B$47,CntyQryCensus!$A$4:$CW$46,BL$1) -> 2.46 | BM35: =VLOOKUP(DropDownList!$B$47,CntyQryCensus!$A$4:$CW$46,BM$1) -> 2.56 | BN35: =VLOOKUP(DropDownList!$B$47,CntyQryCensus!$A$4:$CW$46,BN$1) -> 2.26 | BO35: =VLOOKUP(DropDownList!$B$47,CntyQryCensus!$A$4:$CW$46,BO$1) -> 7538 | BP35: =VLOOKUP(DropDownList!$B$47,CntyQryCensus!$A$4:$CW$46,BP$1) -> 20 | BQ35: =VLOOKUP(DropDownList!$B$47,CntyQryCensus!$A$4:$CW$46,BQ$1) -> 15 | BR35: =VLOOKUP(DropDownList!$B$47,CntyQryCensus!$A$4:$CW$46,BR$1) -> 29 | BS35: =VLOOKUP(DropDownList!$B$47,CntyQryCensus!$A$4:$CW$46,BS$1) -> 1 | BT35: =VLOOKUP(DropDownList!$B$47,CntyQryCensus!$A$4:$CW$46,BT$1) -> 8 | BU35: =VLOOKUP(DropDownList!$B$47,CntyQryCensus!$A$4:$CW$46,BU$1) -> 32 | BV35: =VLOOKUP(DropDownList!$B$47,CntyQryCensus!$A$4:$CW$46,BV$1) -> 3647 | BW35: =VLOOKUP(DropDownList!$B$47,CntyQryCensus!$A$4:$CW$46,BW$1) -> 35 | BX35: =VLOOKUP(DropDownList!$B$47,CntyQryCensus!$A$4:$CW$46,BX$1) -> 15 | BY35: =VLOOKUP(DropDownList!$B$47,CntyQryCensus!$A$4:$CW$46,BY$1) -> 42 | BZ35: =VLOOKUP(DropDownList!$B$47,CntyQryCensus!$A$4:$CW$46,BZ$1) -> 0 | CA35: =VLOOKUP(DropDownList!$B$47,CntyQryCensus!$A$4:$CW$46,CA$1) -> 13 | CB35: =VLOOKUP(DropDownList!$B$47,CntyQryCensus!$A$4:$CW$46,CB$1) -> 39 | CC35: =VLOOKUP(DropDownList!$B$47,CntyQryCensus!$A$4:$CW$46,CC$1) -> 127 | CD35: =VLOOKUP(DropDownList!$B$47,CntyQryCensus!$A$4:$CW$46,CD$1) -> 986 | CE35: =VLOOKUP(DropDownList!$B$47,CntyQryCensus!$A$4:$CW$46,CE$1) -> 1890 | CF35: =VLOOKUP(DropDownList!$B$47,CntyQryCensus!$A$4:$CW$46,CF$1) -> 1632 | CG35: =VLOOKUP(DropDownList!$B$47,CntyQryCensus!$A$4:$CW$46,CG$1) -> 1155 | CH35: =VLOOKUP(DropDownList!$B$47,CntyQryCensus!$A$4:$CW$46,CH$1) -> 1073 | CI35: =VLOOKUP(DropDownList!$B$47,CntyQryCensus!$A$4:$CW$46,CI$1) -> 639 | CJ35: =VLOOKUP(DropDownList!$B$47,CntyQryCensus!$A$4:$CW$46,CJ$1) -> 141 | CK35: =VLOOKUP(DropDownList!$B$47,CntyQryCensus!$A$4:$CW$46,CK$1) -> 434 | CL35: =VLOOKUP(DropDownList!$B$47,CntyQryCensus!$A$4:$CW$46,CL$1) -> 1021 | CM35: =VLOOKUP(DropDownList!$B$47,CntyQryCensus!$A$4:$CW$46,CM$1) -> 919 | CN35: =VLOOKUP(DropDownList!$B$47,CntyQryCensus!$A$4:$CW$46,CN$1) -> 552 | CO35: =VLOOKUP(DropDownList!$B$47,CntyQryCensus!$A$4:$CW$46,CO$1) -> 301 | CP35: =VLOOKUP(DropDownList!$B$47,CntyQryCensus!$A$4:$CW$46,CP$1) -> 261 | CQ35: =VLOOKUP(DropDownList!$B$47,CntyQryCensus!$A$4:$CW$46,CQ$1) -> 232 | CR35: =VLOOKUP(DropDownList!$B$47,CntyQryCensus!$A$4:$CW$46,CR$1) -> 71 | CS35: =VLOOKUP(DropDownList!$B$47,CntyQryCensus!$A$4:$CW$46,CS$1) -> 28461 | CT35: =VLOOKUP(DropDownList!$B$47,CntyQryCensus!$A$4:$CW$46,CT$1) -> 28168 | CU35: =VLOOKUP(DropDownList!$B$47,CntyQryCensus!$A$4:$CW$46,CU$1) -> 293 | CV35: =VLOOKUP(DropDownList!$B$47,CntyQryCensus!$A$4:$CW$46,CV$1) -> 36.7 | CW35: =VLOOKUP(DropDownList!$B$47,CntyQryCensus!$A$4:$CW$46,CW$1) -> 35.5 | CX35: =VLOOKUP(DropDownList!$B$47,CntyQryCensus!$A$4:$CW$46,CX$1) -> 
A38: Census 2000 DemoProfile Sample Data Tables 2&3 - DPTab23TownQry
A39: NAME | B39: COUSUB | C39: AREANAME | D39: PopInSchool | E39: Preschool | F39: Kindergarten | G39: Elementary | H39: HighSchool | I39: College | J39: Pop25andOver | K39: HighSchoolGrad | L39: SomeCollege | M39: AssocDegree | N39: BachelDegree | O39: GradDegree | P39: HSGradorHigher | Q39: CollegeGradorHigher | R39: Pop5to20yrs | S39: Pop5to20wDis | T39: Pop21to64 | U39: Pop21to64wDis | V39: Pop65over | W39: Pop65overwDis | X39: Pop5yrsOver | Y39: SameHUin95 | Z39: DiffHUinUSin95 | AA39: HUinSameCountyin95 | AB39: HUinSameStatein95 | AC39: TotalPop | AD39: NativePop | AE39: NatPopBornUS | AF39: NatPopBornInStatRes | AG39: NatPopBornDiffState | AH39: NatPopBornOutUS | AI39: FornBornPop | AJ39: FornPopEnt90to00 | AK39: FornPopNatCit | AL39: FornPopNotCit | AM39: Households | AN39: HHIncLessThn10k | AO39: HHInc10to15K | AP39: HHInc15to25K | AQ39: HHInc25to35K | AR39: HHInc35to50K | AS39: HHInc50to75K | AT39: HHInc75to100K | AU39: HHInc100to150K | AV39: HHInc150to200K | AW39: HHIncOver200K | AX39: MedianHHInc | AY39: HHwithPubAssistInc | AZ39: MeanPubAssist | BA39: FamilyHH | BB39: FHHIncLessThn10k | BC39: FHHInc10to15K | BD39: FHHInc15to25K | BE39: FHHInc25to35K | BF39: FHHInc35to50K | BG39: FHHInc50to75K | BH39: FHHInc75to100K | BI39: FHHInc100to150K | BJ39: FHHInc150to200K | BK39: FHHIncOver200K | BL39: MedianFHHInc | BM39: PerCapitaInc | BN39: PovStatFamilies | BO39: PovStatFHHwChilUnd18 | BP39: PovStatFHHwChilUnd5 | BQ39: PovStFmalHH | BR39: DP3088 | BS39: DP3089 | BT39: PovStatIndiv | BU39: PovStatIndiv18yrOver | BV39: PovStatIndiv65yrOver | BW39: DP3093 | BX39: DP3094 | BY39: DP3095
A40: =VLOOKUP(DropDownList!$B$47,CntyQryCensus!$A$53:$BY$96,A$1) -> Rochester | B40: =VLOOKUP(DropDownList!$B$47,CntyQryCensus!$A$53:$BY$96,B$1) -> 65140 | C40: =VLOOKUP(DropDownList!$B$47,CntyQryCensus!$A$53:$BY$96,C$1) -> Rochester city, New Hampshire | D40: =VLOOKUP(DropDownList!$B$47,CntyQryCensus!$A$53:$BY$96,D$1) -> 6893 | E40: =VLOOKUP(DropDownList!$B$47,CntyQryCensus!$A$53:$BY$96,E$1) -> 489 | F40: =VLOOKUP(DropDownList!$B$47,CntyQryCensus!$A$53:$BY$96,F$1) -> 302 | G40: =VLOOKUP(DropDownList!$B$47,CntyQryCensus!$A$53:$BY$96,G$1) -> 3387 | H40: =VLOOKUP(DropDownList!$B$47,CntyQryCensus!$A$53:$BY$96,H$1) -> 1635 | I40: =VLOOKUP(DropDownList!$B$47,CntyQryCensus!$A$53:$BY$96,I$1) -> 1080 | J40: =VLOOKUP(DropDownList!$B$47,CntyQryCensus!$A$53:$BY$96,J$1) -> 19122 | K40: =VLOOKUP(DropDownList!$B$47,CntyQryCensus!$A$53:$BY$96,K$1) -> 7264 | L40: =VLOOKUP(DropDownList!$B$47,CntyQryCensus!$A$53:$BY$96,L$1) -> 4004 | M40: =VLOOKUP(DropDownList!$B$47,CntyQryCensus!$A$53:$BY$96,M$1) -> 1666 | N40: =VLOOKUP(DropDownList!$B$47,CntyQryCensus!$A$53:$BY$96,N$1) -> 1953 | O40: =VLOOKUP(DropDownList!$B$47,CntyQryCensus!$A$53:$BY$96,O$1) -> 955 | P40: =VLOOKUP(DropDownList!$B$47,CntyQryCensus!$A$53:$BY$96,P$1) -> 15842 | Q40: =VLOOKUP(DropDownList!$B$47,CntyQryCensus!$A$53:$BY$96,Q$1) -> 2908 | R40: =VLOOKUP(DropDownList!$B$47,CntyQryCensus!$A$53:$BY$96,R$1) -> 6221 | S40: =VLOOKUP(DropDownList!$B$47,CntyQryCensus!$A$53:$BY$96,S$1) -> 538 | T40: =VLOOKUP(DropDownList!$B$47,CntyQryCensus!$A$53:$BY$96,T$1) -> 16484 | U40: =VLOOKUP(DropDownList!$B$47,CntyQryCensus!$A$53:$BY$96,U$1) -> 3336 | V40: =VLOOKUP(DropDownList!$B$47,CntyQryCensus!$A$53:$BY$96,V$1) -> 3609 | W40: =VLOOKUP(DropDownList!$B$47,CntyQryCensus!$A$53:$BY$96,W$1) -> 1534 | X40: =VLOOKUP(DropDownList!$B$47,CntyQryCensus!$A$53:$BY$96,X$1) -> 26567 | Y40: =VLOOKUP(DropDownList!$B$47,CntyQryCensus!$A$53:$BY$96,Y$1) -> 13721 | Z40: =VLOOKUP(DropDownList!$B$47,CntyQryCensus!$A$53:$BY$96,Z$1) -> 12721 | AA40: =VLOOKUP(DropDownList!$B$47,CntyQryCensus!$A$53:$BY$96,AA$1) -> 7981 | AB40: =VLOOKUP(DropDownList!$B$47,CntyQryCensus!$A$53:$BY$96,AB$1) -> 4740 | AC40: =VLOOKUP(DropDownList!$B$47,CntyQryCensus!$A$53:$BY$96,AC$1) -> 28461 | AD40: =VLOOKUP(DropDownList!$B$47,CntyQryCensus!$A$53:$BY$96,AD$1) -> 27738 | AE40: =VLOOKUP(DropDownList!$B$47,CntyQryCensus!$A$53:$BY$96,AE$1) -> 27389 | AF40: =VLOOKUP(DropDownList!$B$47,CntyQryCensus!$A$53:$BY$96,AF$1) -> 16186 | AG40: =VLOOKUP(DropDownList!$B$47,CntyQryCensus!$A$53:$BY$96,AG$1) -> 11203 | AH40: =VLOOKUP(DropDownList!$B$47,CntyQryCensus!$A$53:$BY$96,AH$1) -> 349 | AI40: =VLOOKUP(DropDownList!$B$47,CntyQryCensus!$A$53:$BY$96,AI$1) -> 723 | AJ40: =VLOOKUP(DropDownList!$B$47,CntyQryCensus!$A$53:$BY$96,AJ$1) -> 160 | AK40: =VLOOKUP(DropDownList!$B$47,CntyQryCensus!$A$53:$BY$96,AK$1) -> 417 | AL40: =VLOOKUP(DropDownList!$B$47,CntyQryCensus!$A$53:$BY$96,AL$1) -> 306 | AM40: =VLOOKUP(DropDownList!$B$47,CntyQryCensus!$A$53:$BY$96,AM$1) -> 11397 | AN40: =VLOOKUP(DropDownList!$B$47,CntyQryCensus!$A$53:$BY$96,AN$1) -> 857 | AO40: =VLOOKUP(DropDownList!$B$47,CntyQryCensus!$A$53:$BY$96,AO$1) -> 765 | AP40: =VLOOKUP(DropDownList!$B$47,CntyQryCensus!$A$53:$BY$96,AP$1) -> 1546 | AQ40: =VLOOKUP(DropDownList!$B$47,CntyQryCensus!$A$53:$BY$96,AQ$1) -> 1600 | AR40: =VLOOKUP(DropDownList!$B$47,CntyQryCensus!$A$53:$BY$96,AR$1) -> 2453 | AS40: =VLOOKUP(DropDownList!$B$47,CntyQryCensus!$A$53:$BY$96,AS$1) -> 2501 | AT40: =VLOOKUP(DropDownList!$B$47,CntyQryCensus!$A$53:$BY$96,AT$1) -> 965 | AU40: =VLOOKUP(DropDownList!$B$47,CntyQryCensus!$A$53:$BY$96,AU$1) -> 509 | AV40: =VLOOKUP(DropDownList!$B$47,CntyQryCensus!$A$53:$BY$96,AV$1) -> 118 | AW40: =VLOOKUP(DropDownList!$B$47,CntyQryCensus!$A$53:$BY$96,AW$1) -> 83 | AX40: =VLOOKUP(DropDownList!$B$47,CntyQryCensus!$A$53:$BY$96,AX$1) -> 40596 | AY40: =VLOOKUP(DropDownList!$B$47,CntyQryCensus!$A$53:$BY$96,AY$1) -> 625 | AZ40: =VLOOKUP(DropDownList!$B$47,CntyQryCensus!$A$53:$BY$96,AZ$1) -> 2802 | BA40: =VLOOKUP(DropDownList!$B$47,CntyQryCensus!$A$53:$BY$96,BA$1) -> 7671 | BB40: =VLOOKUP(DropDownList!$B$47,CntyQryCensus!$A$53:$BY$96,BB$1) -> 307 | BC40: =VLOOKUP(DropDownList!$B$47,CntyQryCensus!$A$53:$BY$96,BC$1) -> 345 | BD40: =VLOOKUP(DropDownList!$B$47,CntyQryCensus!$A$53:$BY$96,BD$1) -> 776 | BE40: =VLOOKUP(DropDownList!$B$47,CntyQryCensus!$A$53:$BY$96,BE$1) -> 930 | BF40: =VLOOKUP(DropDownList!$B$47,CntyQryCensus!$A$53:$BY$96,BF$1) -> 1757 | BG40: =VLOOKUP(DropDownList!$B$47,CntyQryCensus!$A$53:$BY$96,BG$1) -> 2051 | BH40: =VLOOKUP(DropDownList!$B$47,CntyQryCensus!$A$53:$BY$96,BH$1) -> 858 | BI40: =VLOOKUP(DropDownList!$B$47,CntyQryCensus!$A$53:$BY$96,BI$1) -> 480 | BJ40: =VLOOKUP(DropDownList!$B$47,CntyQryCensus!$A$53:$BY$96,BJ$1) -> 96 | BK40: =VLOOKUP(DropDownList!$B$47,CntyQryCensus!$A$53:$BY$96,BK$1) -> 71 | BL40: =VLOOKUP(DropDownList!$B$47,CntyQryCensus!$A$53:$BY$96,BL$1) -> 47324 | BM40: =VLOOKUP(DropDownList!$B$47,CntyQryCensus!$A$53:$BY$96,BM$1) -> 18859 | BN40: =VLOOKUP(DropDownList!$B$47,CntyQryCensus!$A$53:$BY$96,BN$1) -> 481 | BO40: =VLOOKUP(DropDownList!$B$47,CntyQryCensus!$A$53:$BY$96,BO$1) -> 399 | BP40: =VLOOKUP(DropDownList!$B$47,CntyQryCensus!$A$53:$BY$96,BP$1) -> 197 | BQ40: =VLOOKUP(DropDownList!$B$47,CntyQryCensus!$A$53:$BY$96,BQ$1) -> 325 | BR40: =VLOOKUP(DropDownList!$B$47,CntyQryCensus!$A$53:$BY$96,BR$1) -> 313 | BS40: =VLOOKUP(DropDownList!$B$47,CntyQryCensus!$A$53:$BY$96,BS$1) -> 155 | BT40: =VLOOKUP(DropDownList!$B$47,CntyQryCensus!$A$53:$BY$96,BT$1) -> 2357 | BU40: =VLOOKUP(DropDownList!$B$47,CntyQryCensus!$A$53:$BY$96,BU$1) -> 1481 | BV40: =VLOOKUP(DropDownList!$B$47,CntyQryCensus!$A$53:$BY$96,BV$1) -> 316 | BW40: =VLOOKUP(DropDownList!$B$47,CntyQryCensus!$A$53:$BY$96,BW$1) -> 823 | BX40: =VLOOKUP(DropDownList!$B$47,CntyQryCensus!$A$53:$BY$96,BX$1) -> 579 | BY40: =VLOOKUP(DropDownList!$B$47,CntyQryCensus!$A$53:$BY$96,BY$1) -> 903
A43: Census 2000 DemoProfile Sample Data Table 4 - DPTab4TownQry
A44: NAME | B44: COUSUB | C44: TotHousingUnits | D44: 1UnitDet | E44: 1UnitAtt | F44: 2Units | G44: 3to4Units | H44: 5to9Units | I44: 10to19Units | J44: 20orMoreUnits | K44: MobileHomes | L44: BoatRvVan | M44: SingleFamilyUnits | N44: MultiFamUnits | O44: MobileHomeUnits | P44: YearBuilt99to00 | Q44: YearBuilt95to98 | R44: YearBUilt90to94 | S44: YearBuilt80to89 | T44: YearBuilt70to79 | U44: YearBuilt60to69 | V44: YearBuilt40to59 | W44: YearBuilt39orEarlier | X44: Rooms1 | Y44: Rooms2 | Z44: Rooms3 | AA44: Rooms4 | AB44: Rooms5 | AC44: Rooms6 | AD44: Rooms7 | AE44: Rooms8 | AF44: Rooms9orMore | AG44: MedianRooms | AH44: OccHU1 | AI44: YrHHMvdIn99to00 | AJ44: YrHHMvdIn95to98 | AK44: YrHHMvdIn90to94 | AL44: YrHHMvdIn80to89 | AM44: YrHHMvdIn70to79 | AN44: YrHHMvdIn69orBefore | AO44: HeatFuelNatGas | AP44: HeatFuelBotGas | AQ44: HeatFuelElectric | AR44: HeatFuelOil | AS44: HeatFuelCoal | AT44: HeatFuelWood | AU44: HeatFuelSolar | AV44: HeatFuelOther | AW44: HeatFuelNone | AX44: LackCompPlumb | AY44: LackCompKit | AZ44: NoTelephone | BA44: OccHU | BB44: OccPerRm1orLess | BC44: OccPerRm1to1_5 | BD44: OccPerRm1_5orMore | BE44: SpecOwnOccUnits | BF44: Value<50K | BG44: Value50to100K | BH44: Value100to150K | BI44: Value150to200K | BJ44: Value200to300K | BK44: Value300to500K | BL44: Value500Kto1mil | BM44: Value1MilorMore | BN44: MedianValue | BO44: WithMortg | BP44: MnthOwnCst<300 | BQ44: MnthOwnCst300to500 | BR44: MnthOwnCst500to700 | BS44: MnthOwnCst700to1000 | BT44: MnthOwnCst1000to1500 | BU44: MnthOwnCst1500to2000 | BV44: MnthOwnCst2000orMore | BW44: MediMnthOwnCst | BX44: NotMrtg | BY44: NotMrtgMediMnthOwnCst | BZ44: OwnCst%HHInc<15 | CA44: OwnCst%HHInc15to20 | CB44: OwnCst%HHInc20to25 | CC44: OwnCst%HHInc25to30 | CD44: OwnCst%HHInc30to35 | CE44: OwnCst%HHInc35orMor | CF44: NotComputed | CG44: SpecRntOccUnits | CH44: Rnt<200 | CI44: Rnt200to300 | CJ44: Rnt300to500 | CK44: Rnt500to750 | CL44: Rnt750to1000 | CM44: Rnt1000to1500 | CN44: Rnt1500orMore | CO44: NoRent | CP44: MedianRent | CQ44: Rnt%HHInc<15 | CR44: Rnt%HHInc15to20 | CS44: Rnt%HHInc20to25 | CT44: Rnt%HHInc25to30 | CU44: Rnt%HHInc30to35 | CV44: Rnt%HHInc35orMore | CW44: Rnt%NotCompute
A45: =VLOOKUP(DropDownList!$B$47,CntyQryCensus!$A$103:$CX$146,A$1) -> Rochester | B45: =VLOOKUP(DropDownList!$B$47,CntyQryCensus!$A$103:$CX$146,B$1) -> 65140 | C45: =VLOOKUP(DropDownList!$B$47,CntyQryCensus!$A$103:$CX$146,C$1) -> 11836 | D45: =VLOOKUP(DropDownList!$B$47,CntyQryCensus!$A$103:$CX$146,D$1) -> 5727 | E45: =VLOOKUP(DropDownList!$B$47,CntyQryCensus!$A$103:$CX$146,E$1) -> 402 | F45: =VLOOKUP(DropDownList!$B$47,CntyQryCensus!$A$103:$CX$146,F$1) -> 707 | G45: =VLOOKUP(DropDownList!$B$47,CntyQryCensus!$A$103:$CX$146,G$1) -> 1133 | H45: =VLOOKUP(DropDownList!$B$47,CntyQryCensus!$A$103:$CX$146,H$1) -> 890 | I45: =VLOOKUP(DropDownList!$B$47,CntyQryCensus!$A$103:$CX$146,I$1) -> 169 | J45: =VLOOKUP(DropDownList!$B$47,CntyQryCensus!$A$103:$CX$146,J$1) -> 563 | K45: =VLOOKUP(DropDownList!$B$47,CntyQryCensus!$A$103:$CX$146,K$1) -> 2239 | L45: =VLOOKUP(DropDownList!$B$47,CntyQryCensus!$A$103:$CX$146,L$1) -> 6 | M45: =VLOOKUP(DropDownList!$B$47,CntyQryCensus!$A$103:$CX$146,M$1) -> 5727 | N45: =VLOOKUP(DropDownList!$B$47,CntyQryCensus!$A$103:$CX$146,N$1) -> 3864 | O45: =VLOOKUP(DropDownList!$B$47,CntyQryCensus!$A$103:$CX$146,O$1) -> 2245 | P45: =VLOOKUP(DropDownList!$B$47,CntyQryCensus!$A$103:$CX$146,P$1) -> 252 | Q45: =VLOOKUP(DropDownList!$B$47,CntyQryCensus!$A$103:$CX$146,Q$1) -> 647 | R45: =VLOOKUP(DropDownList!$B$47,CntyQryCensus!$A$103:$CX$146,R$1) -> 726 | S45: =VLOOKUP(DropDownList!$B$47,CntyQryCensus!$A$103:$CX$146,S$1) -> 2520 | T45: =VLOOKUP(DropDownList!$B$47,CntyQryCensus!$A$103:$CX$146,T$1) -> 1966 | U45: =VLOOKUP(DropDownList!$B$47,CntyQryCensus!$A$103:$CX$146,U$1) -> 925 | V45: =VLOOKUP(DropDownList!$B$47,CntyQryCensus!$A$103:$CX$146,V$1) -> 1799 | W45: =VLOOKUP(DropDownList!$B$47,CntyQryCensus!$A$103:$CX$146,W$1) -> 3001 | X45: =VLOOKUP(DropDownList!$B$47,CntyQryCensus!$A$103:$CX$146,X$1) -> 55 | Y45: =VLOOKUP(DropDownList!$B$47,CntyQryCensus!$A$103:$CX$146,Y$1) -> 281 | Z45: =VLOOKUP(DropDownList!$B$47,CntyQryCensus!$A$103:$CX$146,Z$1) -> 1391 | AA45: =VLOOKUP(DropDownList!$B$47,CntyQryCensus!$A$103:$CX$146,AA$1) -> 2703 | AB45: =VLOOKUP(DropDownList!$B$47,CntyQryCensus!$A$103:$CX$146,AB$1) -> 2850 | AC45: =VLOOKUP(DropDownList!$B$47,CntyQryCensus!$A$103:$CX$146,AC$1) -> 2026 | AD45: =VLOOKUP(DropDownList!$B$47,CntyQryCensus!$A$103:$CX$146,AD$1) -> 1263 | AE45: =VLOOKUP(DropDownList!$B$47,CntyQryCensus!$A$103:$CX$146,AE$1) -> 751 | AF45: =VLOOKUP(DropDownList!$B$47,CntyQryCensus!$A$103:$CX$146,AF$1) -> 516 | AG45: =VLOOKUP(DropDownList!$B$47,CntyQryCensus!$A$103:$CX$146,AG$1) -> 5 | AH45: =VLOOKUP(DropDownList!$B$47,CntyQryCensus!$A$103:$CX$146,AH$1) -> 11434 | AI45: =VLOOKUP(DropDownList!$B$47,CntyQryCensus!$A$103:$CX$146,AI$1) -> 2293 | AJ45: =VLOOKUP(DropDownList!$B$47,CntyQryCensus!$A$103:$CX$146,AJ$1) -> 3618 | AK45: =VLOOKUP(DropDownList!$B$47,CntyQryCensus!$A$103:$CX$146,AK$1) -> 1710 | AL45: =VLOOKUP(DropDownList!$B$47,CntyQryCensus!$A$103:$CX$146,AL$1) -> 1929 | AM45: =VLOOKUP(DropDownList!$B$47,CntyQryCensus!$A$103:$CX$146,AM$1) -> 854 | AN45: =VLOOKUP(DropDownList!$B$47,CntyQryCensus!$A$103:$CX$146,AN$1) -> 1030 | AO45: =VLOOKUP(DropDownList!$B$47,CntyQryCensus!$A$103:$CX$146,AO$1) -> 2273 | AP45: =VLOOKUP(DropDownList!$B$47,CntyQryCensus!$A$103:$CX$146,AP$1) -> 1063 | AQ45: =VLOOKUP(DropDownList!$B$47,CntyQryCensus!$A$103:$CX$146,AQ$1) -> 739 | AR45: =VLOOKUP(DropDownList!$B$47,CntyQryCensus!$A$103:$CX$146,AR$1) -> 7069 | AS45: =VLOOKUP(DropDownList!$B$47,CntyQryCensus!$A$103:$CX$146,AS$1) -> 7 | AT45: =VLOOKUP(DropDownList!$B$47,CntyQryCensus!$A$103:$CX$146,AT$1) -> 188 | AU45: =VLOOKUP(DropDownList!$B$47,CntyQryCensus!$A$103:$CX$146,AU$1) -> 0 | AV45: =VLOOKUP(DropDownList!$B$47,CntyQryCensus!$A$103:$CX$146,AV$1) -> 54 | AW45: =VLOOKUP(DropDownList!$B$47,CntyQryCensus!$A$103:$CX$146,AW$1) -> 41 | AX45: =VLOOKUP(DropDownList!$B$47,CntyQryCensus!$A$103:$CX$146,AX$1) -> 86 | AY45: =VLOOKUP(DropDownList!$B$47,CntyQryCensus!$A$103:$CX$146,AY$1) -> 32 | AZ45: =VLOOKUP(DropDownList!$B$47,CntyQryCensus!$A$103:$CX$146,AZ$1) -> 199 | BA45: =VLOOKUP(DropDownList!$B$47,CntyQryCensus!$A$103:$CX$146,BA$1) -> 11434 | BB45: =VLOOKUP(DropDownList!$B$47,CntyQryCensus!$A$103:$CX$146,BB$1) -> 11228 | BC45: =VLOOKUP(DropDownList!$B$47,CntyQryCensus!$A$103:$CX$146,BC$1) -> 157 | BD45: =VLOOKUP(DropDownList!$B$47,CntyQryCensus!$A$103:$CX$146,BD$1) -> 49 | BE45: =VLOOKUP(DropDownList!$B$47,CntyQryCensus!$A$103:$CX$146,BE$1) -> 4928 | BF45: =VLOOKUP(DropDownList!$B$47,CntyQryCensus!$A$103:$CX$146,BF$1) -> 68 | BG45: =VLOOKUP(DropDownList!$B$47,CntyQryCensus!$A$103:$CX$146,BG$1) -> 2442 | BH45: =VLOOKUP(DropDownList!$B$47,CntyQryCensus!$A$103:$CX$146,BH$1) -> 1780 | BI45: =VLOOKUP(DropDownList!$B$47,CntyQryCensus!$A$103:$CX$146,BI$1) -> 427 | BJ45: =VLOOKUP(DropDownList!$B$47,CntyQryCensus!$A$103:$CX$146,BJ$1) -> 173 | BK45: =VLOOKUP(DropDownList!$B$47,CntyQryCensus!$A$103:$CX$146,BK$1) -> 38 | BL45: =VLOOKUP(DropDownList!$B$47,CntyQryCensus!$A$103:$CX$146,BL$1) -> 0 | BM45: =VLOOKUP(DropDownList!$B$47,CntyQryCensus!$A$103:$CX$146,BM$1) -> 0 | BN45: =VLOOKUP(DropDownList!$B$47,CntyQryCensus!$A$103:$CX$146,BN$1) -> 99400 | BO45: =VLOOKUP(DropDownList!$B$47,CntyQryCensus!$A$103:$CX$146,BO$1) -> 3576 | BP45: =VLOOKUP(DropDownList!$B$47,CntyQryCensus!$A$103:$CX$146,BP$1) -> 15 | BQ45: =VLOOKUP(DropDownList!$B$47,CntyQryCensus!$A$103:$CX$146,BQ$1) -> 62 | BR45: =VLOOKUP(DropDownList!$B$47,CntyQryCensus!$A$103:$CX$146,BR$1) -> 281 | BS45: =VLOOKUP(DropDownList!$B$47,CntyQryCensus!$A$103:$CX$146,BS$1) -> 1282 | BT45: =VLOOKUP(DropDownList!$B$47,CntyQryCensus!$A$103:$CX$146,BT$1) -> 1541 | BU45: =VLOOKUP(DropDownList!$B$47,CntyQryCensus!$A$103:$CX$146,BU$1) -> 268 | BV45: =VLOOKUP(DropDownList!$B$47,CntyQryCensus!$A$103:$CX$146,BV$1) -> 127 | BW45: =VLOOKUP(DropDownList!$B$47,CntyQryCensus!$A$103:$CX$146,BW$1) -> 1036 | BX45: =VLOOKUP(DropDownList!$B$47,CntyQryCensus!$A$103:$CX$146,BX$1) -> 1352 | BY45: =VLOOKUP(DropDownList!$B$47,CntyQryCensus!$A$103:$CX$146,BY$1) -> 393 | BZ45: =VLOOKUP(DropDownList!$B$47,CntyQryCensus!$A$103:$CX$146,BZ$1) -> 1190 | CA45: =VLOOKUP(DropDownList!$B$47,CntyQryCensus!$A$103:$CX$146,CA$1) -> 1004 | CB45: =VLOOKUP(DropDownList!$B$47,CntyQryCensus!$A$103:$CX$146,CB$1) -> 1039 | CC45: =VLOOKUP(DropDownList!$B$47,CntyQryCensus!$A$103:$CX$146,CC$1) -> 505 | CD45: =VLOOKUP(DropDownList!$B$47,CntyQryCensus!$A$103:$CX$146,CD$1) -> 458 | CE45: =VLOOKUP(DropDownList!$B$47,CntyQryCensus!$A$103:$CX$146,CE$1) -> 702 | CF45: =VLOOKUP(DropDownList!$B$47,CntyQryCensus!$A$103:$CX$146,CF$1) -> 30 | CG45: =VLOOKUP(DropDownList!$B$47,CntyQryCensus!$A$103:$CX$146,CG$1) -> 3777 | CH45: =VLOOKUP(DropDownList!$B$47,CntyQryCensus!$A$103:$CX$146,CH$1) -> 217 | CI45: =VLOOKUP(DropDownList!$B$47,CntyQryCensus!$A$103:$CX$146,CI$1) -> 204 | CJ45: =VLOOKUP(DropDownList!$B$47,CntyQryCensus!$A$103:$CX$146,CJ$1) -> 726 | CK45: =VLOOKUP(DropDownList!$B$47,CntyQryCensus!$A$103:$CX$146,CK$1) -> 1743 | CL45: =VLOOKUP(DropDownList!$B$47,CntyQryCensus!$A$103:$CX$146,CL$1) -> 595 | CM45: =VLOOKUP(DropDownList!$B$47,CntyQryCensus!$A$103:$CX$146,CM$1) -> 174 | CN45: =VLOOKUP(DropDownList!$B$47,CntyQryCensus!$A$103:$CX$146,CN$1) -> 7 | CO45: =VLOOKUP(DropDownList!$B$47,CntyQryCensus!$A$103:$CX$146,CO$1) -> 111 | CP45: =VLOOKUP(DropDownList!$B$47,CntyQryCensus!$A$103:$CX$146,CP$1) -> 601 | CQ45: =VLOOKUP(DropDownList!$B$47,CntyQryCensus!$A$103:$CX$146,CQ$1) -> 660 | CR45: =VLOOKUP(DropDownList!$B$47,CntyQryCensus!$A$103:$CX$146,CR$1) -> 594 | CS45: =VLOOKUP(DropDownList!$B$47,CntyQryCensus!$A$103:$CX$146,CS$1) -> 464 | CT45: =VLOOKUP(DropDownList!$B$47,CntyQryCensus!$A$103:$CX$146,CT$1) -> 519 | CU45: =VLOOKUP(DropDownList!$B$47,CntyQryCensus!$A$103:$CX$146,CU$1) -> 267 | CV45: =VLOOKUP(DropDownList!$B$47,CntyQryCensus!$A$103:$CX$146,CV$1) -> 1123 | CW45: =VLOOKUP(DropDownList!$B$47,CntyQryCensus!$A$103:$CX$146,CW$1) -> 150
A48: Census 2000 SummaryFile3 Sample Data - SF3TownQry1SocialChar
A49: TOWN_NAME | B49: LOGRECNO | C49: COUSUB | D49: P01TotalPopulation | E49: P02SampleCountOfPop | F49: P03Pop100pctCount | G49: P05UrbanPopulation | H49: P05RuralPopulation | I49: P06WhiteAlone | J49: P06BlackOrAfAm | K49: P06AmIndAlone | L49: P06AsianAlone | M49: P06HawaiianOrPI | N49: P06OtherRace | O49: P06TwoPlusRaces | P49: P07NotHispanicOrLatino | Q49: P07HispanicOrLatino | R49: P08MalePop | S49: P08FemalePop | T49: P09PopInHouseholds | U49: P09PopInFamHH | V49: P09PopInNonFamHH | W49: P09PopInGroupQtr | X49: P13TotalHH | Y49: P13FamilyHH | Z49: P13FamHHolder15to24yrs | AA49: P13FamHHolder25to34yrs | AB49: P13FamHHolder35to44yrs | AC49: P13FamHHolder45to54yrs | AD49: P13FamHHolder55to64yrs | AE49: P13FamHHolder65to74yrs | AF49: P13FamHHolder75to84yrs | AG49: P13FamHHolder85yrsOver | AH49: P13NonFamilyHH | AI49: P13NonFamHHolder15to24yrs | AJ49: P13NonFamHHolder25to34yrs | AK49: P13NonFamHHolder35to44yrs | AL49: P13NonFamHHolder45to54yrs | AM49: P13NonFamHHolder55to64yrs | AN49: P13NonFamHHolder65to74yrs | AO49: P13NonFamHHolder75to84yrs | AP49: P13NonFamHHolder85yrsOver | AQ49: P18Pop15yrsOver | AR49: P18MaritalStatNeverMarried | AS49: P18MaritalStatNowMarried | AT49: P18MaritalStatSeparated | AU49: P18MaritalStatWidowed | AV49: P18MaritalStatWidowFemale | AW49: P18MaritalStatDivorced | AX49: P18MaritalStatDivorcedFemale | AY49: P21NativeBornPop | AZ49: P21NatPopBornInState | BA49: P21NatPopBornOtherState | BB49: P021005 | BC49: P021006 | BD49: P021007 | BE49: P021008 | BF49: P21NatPopBornOutUS | BG49: P21ForeignBornPop | BH49: P021014 | BI49: P021015 | BJ49: P24Pop5YrsPlus | BK49: P24ResSameHouseIn95 | BL49: P24ResDiffHouseIn95 | BM49: P24ResDiffHouseInUSIn95 | BN49: P24ResDiffHouseSameCountyIn95 | BO49: P24ResDiffHouseDiffCountyIn95 | BP49: P24ResDiffHouseDiffCntySamStIn95 | BQ49: P24ResDiffHouseDiffCntyDifStIn95 | BR49: P24ResDiffHouseDiffCntyNEStIn95 | BS49: P24ResDiffHouseDiffCntyMWStIn95 | BT49: P24ResDiffHouseDiffCntySoStIn95 | BU49: P24ResDiffHouseDiffCntyWstStIn95 | BV49: P24ResDiffInPR | BW49: P24ResDiffElsewhereIn95 | BX49: P26Workers16yrsOver | BY49: P26WorkedInState | BZ49: P26WorkedInCnty | CA49: P26WorkedOutsideCnty | CB49: P26WorkedOutsideState | CC49: P30Workers16Over | CD49: P30TranspToWrkCar | CE49: P30TranspToWrkPublic | CF49: P30TranspToWrkOther | CG49: P30WrkdAtHome | CH49: P31WrkrsNotWrkAtHom | CI49: P31TravTim<5min | CJ49: P31TravTim5to9Min | CK49: P31TravTim10to14Min | CL49: P31TravTim15to19Min | CM49: P31TravTim20to24Min | CN49: P31TravTim25to29Min | CO49: P31TravTim30to34Min | CP49: P31TravTim35to39Min | CQ49: P31TravTim40to44Min | CR49: P31TravTim45to59Min | CS49: P31TravTim60to89Min | CT49: P31TravTim90MinMore | CU49: P31WorkAtHome | CV49: P36SchEnrlPop3yrOver | CW49: P36NurserSchEnrl | CX49: P36KinderSchEnrl | CY49: P36ElemSchEnrl | CZ49: P36HighSchEnrl | DA49: P36CollGradSchEnrl | DB49: P37Pop25yrsOver | DC49: P37EduAtain<9grd | DD49: P37EduAtainHSnoDip | DE49: P37EduAtainHSgrad | DF49: P37EduAtainCollNoDeg | DG49: P37EduAtainAssocDeg | DH49: P37EduAtainBachDeg | DI49: P37EduAtainGradProfDeg | DJ49: P42NIPop5to15 | DK49: P42NIPop5to15wDisabl | DL49: P42NIPop16to20 | DM49: P42NIPop16to20wDisab | DN49: P42NIPop16to20wDisEmp | DO49: P42NIPop16to21NoDis | DP49: P42NIPop16to21NoDisEmpl | DQ49: P42NIPop21to64 | DR49: P42NIPop21to64wDis | DS49: P42NIPop21to64wDisEmp | DT49: P42NIPop21to64NoDis | DU49: P42NIPop21to64NoDisEmp | DV49: P42NIPop65to74 | DW49: P42NIPop65to74wDis | DX49: P42NIPop75Over | DY49: P42NIPop75OverwDis | DZ49: P43Pop16YrsOver | EA49: P43Pop16OvrInLaborForce | EB49: P43Pop16OvrCivlLabFrc | EC49: P43Pop16OvrCivlLbrFrcEmp | ED49: P48Families | EE49: P48MarriedFam | EF49: P48MarrFamNoWorkers | EG49: P48MarrFam1Worker | EH49: P48MarrFam2Worker | EI49: P48MarrFamHusbWifeWorked | EJ49: P48MarrFamOther | EK49: P48MarrFam3PlusWorker | EL49: P48MarrFam3WorkHsbWif | EM49: P48MarrFam3PlsWrkOther | EN49: P48OtherFam | EO49: P48MaleHHNoWif | EP49: P48MaleHHNoWifNoWorker | EQ49: P48MaleHHNoWif1Worker | ER49: P48MaleHHNoWif2Worker | ES49: P48MaleHHNoWif3PlusWorker | ET49: P48FemaleHHNoHsb | EU49: P48FemaleHHNoHsbNoWorker | EV49: P48FemaleHHNoHsb1Worker | EW49: P48FemaleHHNoHsb2Worker | EX49: P48FemaleHHNoHsb3Worker | EY49: P49EmpCivPop16YrOver | EZ49: P49IndustAgricult | FA49: P49IndustConst | FB49: P49IndustMnftg | FC49: P49IndustWhlslTrd | FD49: P49IndustRtlTrd | FE49: P49IndustTrspWrhsUtlt | FF49: P49IndustInfrm | FG49: P49IndustFinInsRE | FH49: P49IndustPrfsScntfMngmt | FI49: P49IndustEduHlthSocSrv | FJ49: P49IndustArtsEntRec | FK49: P49IndustOthrSrvc | FL49: P49IndustPubAdm | FM49: P50OccupMngmtProfs | FN49: P50OccupService | FO49: P50OccupSalesOff | FP49: P50OccupFarmFishForest | FQ49: P50OccupConstExtrctMaint | FR49: P50OccupPrdctTrnspMatMv
A50: =VLOOKUP(DropDownList!$B$47,CntyQryCensus!$A$156:$FR$198,A$1) -> Rochester | B50: =VLOOKUP(DropDownList!$B$47,CntyQryCensus!$A$156:$FR$198,B$1) -> 0003956 | C50: =VLOOKUP(DropDownList!$B$47,CntyQryCensus!$A$156:$FR$198,C$1) -> 65140 | D50: =VLOOKUP(DropDownList!$B$47,CntyQryCensus!$A$156:$FR$198,D$1) -> 28461 | E50: =VLOOKUP(DropDownList!$B$47,CntyQryCensus!$A$156:$FR$198,E$1) -> 3853 | F50: =VLOOKUP(DropDownList!$B$47,CntyQryCensus!$A$156:$FR$198,F$1) -> 28461 | G50: =VLOOKUP(DropDownList!$B$47,CntyQryCensus!$A$156:$FR$198,G$1) -> 22614 | H50: =VLOOKUP(DropDownList!$B$47,CntyQryCensus!$A$156:$FR$198,H$1) -> 5847 | I50: =VLOOKUP(DropDownList!$B$47,CntyQryCensus!$A$156:$FR$198,I$1) -> 27753 | J50: =VLOOKUP(DropDownList!$B$47,CntyQryCensus!$A$156:$FR$198,J$1) -> 110 | K50: =VLOOKUP(DropDownList!$B$47,CntyQryCensus!$A$156:$FR$198,K$1) -> 5 | L50: =VLOOKUP(DropDownList!$B$47,CntyQryCensus!$A$156:$FR$198,L$1) -> 191 | M50: =VLOOKUP(DropDownList!$B$47,CntyQryCensus!$A$156:$FR$198,M$1) -> 11 | N50: =VLOOKUP(DropDownList!$B$47,CntyQryCensus!$A$156:$FR$198,N$1) -> 76 | O50: =VLOOKUP(DropDownList!$B$47,CntyQryCensus!$A$156:$FR$198,O$1) -> 315 | P50: =VLOOKUP(DropDownList!$B$47,CntyQryCensus!$A$156:$FR$198,P$1) -> 28129 | Q50: =VLOOKUP(DropDownList!$B$47,CntyQryCensus!$A$156:$FR$198,Q$1) -> 332 | R50: =VLOOKUP(DropDownList!$B$47,CntyQryCensus!$A$156:$FR$198,R$1) -> 13857 | S50: =VLOOKUP(DropDownList!$B$47,CntyQryCensus!$A$156:$FR$198,S$1) -> 14604 | T50: =VLOOKUP(DropDownList!$B$47,CntyQryCensus!$A$156:$FR$198,T$1) -> 28168 | U50: =VLOOKUP(DropDownList!$B$47,CntyQryCensus!$A$156:$FR$198,U$1) -> 23509 | V50: =VLOOKUP(DropDownList!$B$47,CntyQryCensus!$A$156:$FR$198,V$1) -> 4659 | W50: =VLOOKUP(DropDownList!$B$47,CntyQryCensus!$A$156:$FR$198,W$1) -> 293 | X50: =VLOOKUP(DropDownList!$B$47,CntyQryCensus!$A$156:$FR$198,X$1) -> 11397 | Y50: =VLOOKUP(DropDownList!$B$47,CntyQryCensus!$A$156:$FR$198,Y$1) -> 7671 | Z50: =VLOOKUP(DropDownList!$B$47,CntyQryCensus!$A$156:$FR$198,Z$1) -> 266 | AA50: =VLOOKUP(DropDownList!$B$47,CntyQryCensus!$A$156:$FR$198,AA$1) -> 1520 | AB50: =VLOOKUP(DropDownList!$B$47,CntyQryCensus!$A$156:$FR$198,AB$1) -> 2076 | AC50: =VLOOKUP(DropDownList!$B$47,CntyQryCensus!$A$156:$FR$198,AC$1) -> 1578 | AD50: =VLOOKUP(DropDownList!$B$47,CntyQryCensus!$A$156:$FR$198,AD$1) -> 985 | AE50: =VLOOKUP(DropDownList!$B$47,CntyQryCensus!$A$156:$FR$198,AE$1) -> 832 | AF50: =VLOOKUP(DropDownList!$B$47,CntyQryCensus!$A$156:$FR$198,AF$1) -> 370 | AG50: =VLOOKUP(DropDownList!$B$47,CntyQryCensus!$A$156:$FR$198,AG$1) -> 44 | AH50: =VLOOKUP(DropDownList!$B$47,CntyQryCensus!$A$156:$FR$198,AH$1) -> 3726 | AI50: =VLOOKUP(DropDownList!$B$47,CntyQryCensus!$A$156:$FR$198,AI$1) -> 216 | AJ50: =VLOOKUP(DropDownList!$B$47,CntyQryCensus!$A$156:$FR$198,AJ$1) -> 592 | AK50: =VLOOKUP(DropDownList!$B$47,CntyQryCensus!$A$156:$FR$198,AK$1) -> 605 | AL50: =VLOOKUP(DropDownList!$B$47,CntyQryCensus!$A$156:$FR$198,AL$1) -> 568 | AM50: =VLOOKUP(DropDownList!$B$47,CntyQryCensus!$A$156:$FR$198,AM$1) -> 504 | AN50: =VLOOKUP(DropDownList!$B$47,CntyQryCensus!$A$156:$FR$198,AN$1) -> 510 | AO50: =VLOOKUP(DropDownList!$B$47,CntyQryCensus!$A$156:$FR$198,AO$1) -> 539 | AP50: =VLOOKUP(DropDownList!$B$47,CntyQryCensus!$A$156:$FR$198,AP$1) -> 192 | AQ50: =VLOOKUP(DropDownList!$B$47,CntyQryCensus!$A$156:$FR$198,AQ$1) -> 22490 | AR50: =VLOOKUP(DropDownList!$B$47,CntyQryCensus!$A$156:$FR$198,AR$1) -> 5246 | AS50: =VLOOKUP(DropDownList!$B$47,CntyQryCensus!$A$156:$FR$198,AS$1) -> 12431 | AT50: =VLOOKUP(DropDownList!$B$47,CntyQryCensus!$A$156:$FR$198,AT$1) -> 401 | AU50: =VLOOKUP(DropDownList!$B$47,CntyQryCensus!$A$156:$FR$198,AU$1) -> 1468 | AV50: =VLOOKUP(DropDownList!$B$47,CntyQryCensus!$A$156:$FR$198,AV$1) -> 1278 | AW50: =VLOOKUP(DropDownList!$B$47,CntyQryCensus!$A$156:$FR$198,AW$1) -> 2944 | AX50: =VLOOKUP(DropDownList!$B$47,CntyQryCensus!$A$156:$FR$198,AX$1) -> 1665 | AY50: =VLOOKUP(DropDownList!$B$47,CntyQryCensus!$A$156:$FR$198,AY$1) -> 27738 | AZ50: =VLOOKUP(DropDownList!$B$47,CntyQryCensus!$A$156:$FR$198,AZ$1) -> 16186 | BA50: =VLOOKUP(DropDownList!$B$47,CntyQryCensus!$A$156:$FR$198,BA$1) -> 11203 | BB50: =VLOOKUP(DropDownList!$B$47,CntyQryCensus!$A$156:$FR$198,BB$1) -> 8937 | BC50: =VLOOKUP(DropDownList!$B$47,CntyQryCensus!$A$156:$FR$198,BC$1) -> 819 | BD50: =VLOOKUP(DropDownList!$B$47,CntyQryCensus!$A$156:$FR$198,BD$1) -> 955 | BE50: =VLOOKUP(DropDownList!$B$47,CntyQryCensus!$A$156:$FR$198,BE$1) -> 492 | BF50: =VLOOKUP(DropDownList!$B$47,CntyQryCensus!$A$156:$FR$198,BF$1) -> 349 | BG50: =VLOOKUP(DropDownList!$B$47,CntyQryCensus!$A$156:$FR$198,BG$1) -> 723 | BH50: =VLOOKUP(DropDownList!$B$47,CntyQryCensus!$A$156:$FR$198,BH$1) -> 417 | BI50: =VLOOKUP(DropDownList!$B$47,CntyQryCensus!$A$156:$FR$198,BI$1) -> 306 | BJ50: =VLOOKUP(DropDownList!$B$47,CntyQryCensus!$A$156:$FR$198,BJ$1) -> 26567 | BK50: =VLOOKUP(DropDownList!$B$47,CntyQryCensus!$A$156:$FR$198,BK$1) -> 13721 | BL50: =VLOOKUP(DropDownList!$B$47,CntyQryCensus!$A$156:$FR$198,BL$1) -> 12846 | BM50: =VLOOKUP(DropDownList!$B$47,CntyQryCensus!$A$156:$FR$198,BM$1) -> 12721 | BN50: =VLOOKUP(DropDownList!$B$47,CntyQryCensus!$A$156:$FR$198,BN$1) -> 7981 | BO50: =VLOOKUP(DropDownList!$B$47,CntyQryCensus!$A$156:$FR$198,BO$1) -> 4740 | BP50: =VLOOKUP(DropDownList!$B$47,CntyQryCensus!$A$156:$FR$198,BP$1) -> 1603 | BQ50: =VLOOKUP(DropDownList!$B$47,CntyQryCensus!$A$156:$FR$198,BQ$1) -> 3137 | BR50: =VLOOKUP(DropDownList!$B$47,CntyQryCensus!$A$156:$FR$198,BR$1) -> 1890 | BS50: =VLOOKUP(DropDownList!$B$47,CntyQryCensus!$A$156:$FR$198,BS$1) -> 240 | BT50: =VLOOKUP(DropDownList!$B$47,CntyQryCensus!$A$156:$FR$198,BT$1) -> 695 | BU50: =VLOOKUP(DropDownList!$B$47,CntyQryCensus!$A$156:$FR$198,BU$1) -> 312 | BV50: =VLOOKUP(DropDownList!$B$47,CntyQryCensus!$A$156:$FR$198,BV$1) -> 0 | BW50: =VLOOKUP(DropDownList!$B$47,CntyQryCensus!$A$156:$FR$198,BW$1) -> 125 | BX50: =VLOOKUP(DropDownList!$B$47,CntyQryCensus!$A$156:$FR$198,BX$1) -> 14407 | BY50: =VLOOKUP(DropDownList!$B$47,CntyQryCensus!$A$156:$FR$198,BY$1) -> 13412 | BZ50: =VLOOKUP(DropDownList!$B$47,CntyQryCensus!$A$156:$FR$198,BZ$1) -> 9640 | CA50: =VLOOKUP(DropDownList!$B$47,CntyQryCensus!$A$156:$FR$198,CA$1) -> 3772 | CB50: =VLOOKUP(DropDownList!$B$47,CntyQryCensus!$A$156:$FR$198,CB$1) -> 995 | CC50: =VLOOKUP(DropDownList!$B$47,CntyQryCensus!$A$156:$FR$198,CC$1) -> 14407 | CD50: =VLOOKUP(DropDownList!$B$47,CntyQryCensus!$A$156:$FR$198,CD$1) -> 13616 | CE50: =VLOOKUP(DropDownList!$B$47,CntyQryCensus!$A$156:$FR$198,CE$1) -> 86 | CF50: =VLOOKUP(DropDownList!$B$47,CntyQryCensus!$A$156:$FR$198,CF$1) -> 1659 | CG50: =VLOOKUP(DropDownList!$B$47,CntyQryCensus!$A$156:$FR$198,CG$1) -> 332 | CH50: =VLOOKUP(DropDownList!$B$47,CntyQryCensus!$A$156:$FR$198,CH$1) -> 14075 | CI50: =VLOOKUP(DropDownList!$B$47,CntyQryCensus!$A$156:$FR$198,CI$1) -> 450 | CJ50: =VLOOKUP(DropDownList!$B$47,CntyQryCensus!$A$156:$FR$198,CJ$1) -> 1681 | CK50: =VLOOKUP(DropDownList!$B$47,CntyQryCensus!$A$156:$FR$198,CK$1) -> 2294 | CL50: =VLOOKUP(DropDownList!$B$47,CntyQryCensus!$A$156:$FR$198,CL$1) -> 2125 | CM50: =VLOOKUP(DropDownList!$B$47,CntyQryCensus!$A$156:$FR$198,CM$1) -> 2202 | CN50: =VLOOKUP(DropDownList!$B$47,CntyQryCensus!$A$156:$FR$198,CN$1) -> 813 | CO50: =VLOOKUP(DropDownList!$B$47,CntyQryCensus!$A$156:$FR$198,CO$1) -> 1870 | CP50: =VLOOKUP(DropDownList!$B$47,CntyQryCensus!$A$156:$FR$198,CP$1) -> 406 | CQ50: =VLOOKUP(DropDownList!$B$47,CntyQryCensus!$A$156:$FR$198,CQ$1) -> 451 | CR50: =VLOOKUP(DropDownList!$B$47,CntyQryCensus!$A$156:$FR$198,CR$1) -> 929 | CS50: =VLOOKUP(DropDownList!$B$47,CntyQryCensus!$A$156:$FR$198,CS$1) -> 587 | CT50: =VLOOKUP(DropDownList!$B$47,CntyQryCensus!$A$156:$FR$198,CT$1) -> 267 | CU50: =VLOOKUP(DropDownList!$B$47,CntyQryCensus!$A$156:$FR$198,CU$1) -> 332 | CV50: =VLOOKUP(DropDownList!$B$47,CntyQryCensus!$A$156:$FR$198,CV$1) -> 27274 | CW50: =VLOOKUP(DropDownList!$B$47,CntyQryCensus!$A$156:$FR$198,CW$1) -> 489 | CX50: =VLOOKUP(DropDownList!$B$47,CntyQryCensus!$A$156:$FR$198,CX$1) -> 302 | CY50: =VLOOKUP(DropDownList!$B$47,CntyQryCensus!$A$156:$FR$198,CY$1) -> 3387 | CZ50: =VLOOKUP(DropDownList!$B$47,CntyQryCensus!$A$156:$FR$198,CZ$1) -> 1635 | DA50: =VLOOKUP(DropDownList!$B$47,CntyQryCensus!$A$156:$FR$198,DA$1) -> 1080 | DB50: =VLOOKUP(DropDownList!$B$47,CntyQryCensus!$A$156:$FR$198,DB$1) -> 19122 | DC50: =VLOOKUP(DropDownList!$B$47,CntyQryCensus!$A$156:$FR$198,DC$1) -> 1009 | DD50: =VLOOKUP(DropDownList!$B$47,CntyQryCensus!$A$156:$FR$198,DD$1) -> 2271 | DE50: =VLOOKUP(DropDownList!$B$47,CntyQryCensus!$A$156:$FR$198,DE$1) -> 7264 | DF50: =VLOOKUP(DropDownList!$B$47,CntyQryCensus!$A$156:$FR$198,DF$1) -> 4004 | DG50: =VLOOKUP(DropDownList!$B$47,CntyQryCensus!$A$156:$FR$198,DG$1) -> 1666 | DH50: =VLOOKUP(DropDownList!$B$47,CntyQryCensus!$A$156:$FR$198,DH$1) -> 1953 | DI50: =VLOOKUP(DropDownList!$B$47,CntyQryCensus!$A$156:$FR$198,DI$1) -> 955 | DJ50: =VLOOKUP(DropDownList!$B$47,CntyQryCensus!$A$156:$FR$198,DJ$1) -> 4502 | DK50: =VLOOKUP(DropDownList!$B$47,CntyQryCensus!$A$156:$FR$198,DK$1) -> 384 | DL50: =VLOOKUP(DropDownList!$B$47,CntyQryCensus!$A$156:$FR$198,DL$1) -> 1719 | DM50: =VLOOKUP(DropDownList!$B$47,CntyQryCensus!$A$156:$FR$198,DM$1) -> 154 | DN50: =VLOOKUP(DropDownList!$B$47,CntyQryCensus!$A$156:$FR$198,DN$1) -> 70 | DO50: =VLOOKUP(DropDownList!$B$47,CntyQryCensus!$A$156:$FR$198,DO$1) -> 1565 | DP50: =VLOOKUP(DropDownList!$B$47,CntyQryCensus!$A$156:$FR$198,DP$1) -> 941 | DQ50: =VLOOKUP(DropDownList!$B$47,CntyQryCensus!$A$156:$FR$198,DQ$1) -> 16484 | DR50: =VLOOKUP(DropDownList!$B$47,CntyQryCensus!$A$156:$FR$198,DR$1) -> 3336 | DS50: =VLOOKUP(DropDownList!$B$47,CntyQryCensus!$A$156:$FR$198,DS$1) -> 2104 | DT50: =VLOOKUP(DropDownList!$B$47,CntyQryCensus!$A$156:$FR$198,DT$1) -> 13148 | DU50: =VLOOKUP(DropDownList!$B$47,CntyQryCensus!$A$156:$FR$198,DU$1) -> 11223 | DV50: =VLOOKUP(DropDownList!$B$47,CntyQryCensus!$A$156:$FR$198,DV$1) -> 2074 | DW50: =VLOOKUP(DropDownList!$B$47,CntyQryCensus!$A$156:$FR$198,DW$1) -> 779 | DX50: =VLOOKUP(DropDownList!$B$47,CntyQryCensus!$A$156:$FR$198,DX$1) -> 1535 | DY50: =VLOOKUP(DropDownList!$B$47,CntyQryCensus!$A$156:$FR$198,DY$1) -> 755 | DZ50: =VLOOKUP(DropDownList!$B$47,CntyQryCensus!$A$156:$FR$198,DZ$1) -> 22045 | EA50: =VLOOKUP(DropDownList!$B$47,CntyQryCensus!$A$156:$FR$198,EA$1) -> 15252 | EB50: =VLOOKUP(DropDownList!$B$47,CntyQryCensus!$A$156:$FR$198,EB$1) -> 15232 | EC50: =VLOOKUP(DropDownList!$B$47,CntyQryCensus!$A$156:$FR$198,EC$1) -> 14668 | ED50: =VLOOKUP(DropDownList!$B$47,CntyQryCensus!$A$156:$FR$198,ED$1) -> 7671 | EE50: =VLOOKUP(DropDownList!$B$47,CntyQryCensus!$A$156:$FR$198,EE$1) -> 5986 | EF50: =VLOOKUP(DropDownList!$B$47,CntyQryCensus!$A$156:$FR$198,EF$1) -> 719 | EG50: =VLOOKUP(DropDownList!$B$47,CntyQryCensus!$A$156:$FR$198,EG$1) -> 1072 | EH50: =VLOOKUP(DropDownList!$B$47,CntyQryCensus!$A$156:$FR$198,EH$1) -> 3216 | EI50: =VLOOKUP(DropDownList!$B$47,CntyQryCensus!$A$156:$FR$198,EI$1) -> 3116 | EJ50: =VLOOKUP(DropDownList!$B$47,CntyQryCensus!$A$156:$FR$198,EJ$1) -> 100 | EK50: =VLOOKUP(DropDownList!$B$47,CntyQryCensus!$A$156:$FR$198,EK$1) -> 979 | EL50: =VLOOKUP(DropDownList!$B$47,CntyQryCensus!$A$156:$FR$198,EL$1) -> 931 | EM50: =VLOOKUP(DropDownList!$B$47,CntyQryCensus!$A$156:$FR$198,EM$1) -> 48 | EN50: =VLOOKUP(DropDownList!$B$47,CntyQryCensus!$A$156:$FR$198,EN$1) -> 1685 | EO50: =VLOOKUP(DropDownList!$B$47,CntyQryCensus!$A$156:$FR$198,EO$1) -> 457 | EP50: =VLOOKUP(DropDownList!$B$47,CntyQryCensus!$A$156:$FR$198,EP$1) -> 43 | EQ50: =VLOOKUP(DropDownList!$B$47,CntyQryCensus!$A$156:$FR$198,EQ$1) -> 267 | ER50: =VLOOKUP(DropDownList!$B$47,CntyQryCensus!$A$156:$FR$198,ER$1) -> 124 | ES50: =VLOOKUP(DropDownList!$B$47,CntyQryCensus!$A$156:$FR$198,ES$1) -> 23 | ET50: =VLOOKUP(DropDownList!$B$47,CntyQryCensus!$A$156:$FR$198,ET$1) -> 1228 | EU50: =VLOOKUP(DropDownList!$B$47,CntyQryCensus!$A$156:$FR$198,EU$1) -> 110 | EV50: =VLOOKUP(DropDownList!$B$47,CntyQryCensus!$A$156:$FR$198,EV$1) -> 795 | EW50: =VLOOKUP(DropDownList!$B$47,CntyQryCensus!$A$156:$FR$198,EW$1) -> 213 | EX50: =VLOOKUP(DropDownList!$B$47,CntyQryCensus!$A$156:$FR$198,EX$1) -> 110 | EY50: =VLOOKUP(DropDownList!$B$47,CntyQryCensus!$A$156:$FR$198,EY$1) -> 14668 | EZ50: =VLOOKUP(DropDownList!$B$47,CntyQryCensus!$A$156:$FR$198,EZ$1) -> 119 | FA50: =VLOOKUP(DropDownList!$B$47,CntyQryCensus!$A$156:$FR$198,FA$1) -> 767 | FB50: =VLOOKUP(DropDownList!$B$47,CntyQryCensus!$A$156:$FR$198,FB$1) -> 3525 | FC50: =VLOOKUP(DropDownList!$B$47,CntyQryCensus!$A$156:$FR$198,FC$1) -> 384 | FD50: =VLOOKUP(DropDownList!$B$47,CntyQryCensus!$A$156:$FR$198,FD$1) -> 2394 | FE50: =VLOOKUP(DropDownList!$B$47,CntyQryCensus!$A$156:$FR$198,FE$1) -> 634 | FF50: =VLOOKUP(DropDownList!$B$47,CntyQryCensus!$A$156:$FR$198,FF$1) -> 407 | FG50: =VLOOKUP(DropDownList!$B$47,CntyQryCensus!$A$156:$FR$198,FG$1) -> 846 | FH50: =VLOOKUP(DropDownList!$B$47,CntyQryCensus!$A$156:$FR$198,FH$1) -> 997 | FI50: =VLOOKUP(DropDownList!$B$47,CntyQryCensus!$A$156:$FR$198,FI$1) -> 2549 | FJ50: =VLOOKUP(DropDownList!$B$47,CntyQryCensus!$A$156:$FR$198,FJ$1) -> 852 | FK50: =VLOOKUP(DropDownList!$B$47,CntyQryCensus!$A$156:$FR$198,FK$1) -> 567 | FL50: =VLOOKUP(DropDownList!$B$47,CntyQryCensus!$A$156:$FR$198,FL$1) -> 627 | FM50: =VLOOKUP(DropDownList!$B$47,CntyQryCensus!$A$156:$FR$198,FM$1) -> 3673 | FN50: =VLOOKUP(DropDownList!$B$47,CntyQryCensus!$A$156:$FR$198,FN$1) -> 2288 | FO50: =VLOOKUP(DropDownList!$B$47,CntyQryCensus!$A$156:$FR$198,FO$1) -> 4022 | FP50: =VLOOKUP(DropDownList!$B$47,CntyQryCensus!$A$156:$FR$198,FP$1) -> 53 | FQ50: =VLOOKUP(DropDownList!$B$47,CntyQryCensus!$A$156:$FR$198,FQ$1) -> 1425 | FR50: =VLOOKUP(DropDownList!$B$47,CntyQryCensus!$A$156:$FR$198,FR$1) -> 3207
A53: Census 2000 SummaryFile3 Sample Data - SF3TownQry2aIncomeChar
A54: NAME | B54: LOGRECNO | C54: COUNTY | D54: TotalPop | E54: P52Households1 | F54: P52HHInc<10K | G54: P52HHInc10to15K | H54: P52HHInc15to20K | I54: P52HHInc20to25K | J54: P52HHInc25to30K | K54: P52HHInc30to35K | L54: P52HHInc35to40K | M54: P52HHInc40to45K | N54: P52HHInc45to50K | O54: P52HHInc50to60K | P54: P52HHInc60to75K | Q54: P52HHInc75to100K | R54: P52HHInc100to125K | S54: P52HHInc125to150K | T54: P52HHInc150to200K | U54: P52HHInc>200K | V54: P53MedianHHInc | W54: P54AggregHHInc | X54: P55Households2 | Y54: P55HHUnder25yrs | Z54: P55HH<25HHInc<10K | AA54: P55HH<25HHInc10to15K | AB54: P55HH<25HHInc15to20K | AC54: P55HH<25HHInc20to25K | AD54: P55HH<25HHInc25to30K | AE54: P55HH<25HHInc30to35K | AF54: P55HH<25HHInc35to40K | AG54: P55HH<25HHInc40to45K | AH54: P55HH<25HHInc45to50K | AI54: P55HH<25HHInc50to60K | AJ54: P55HH<25HHInc60to75K | AK54: P55HH<25HHInc75to100K | AL54: P55HH<25HHInc100to125K | AM54: P55HH<25HHInc125to150K | AN54: P55HH<25HHInc150to200K | AO54: P55HH<25HHInc>200K | AP54: P55HH25to34yrs | AQ54: P55HH25to34HHInc<10K | AR54: P55HH25to34HHInc10to15K | AS54: P55HH25to34HHInc15to20K | AT54: P55HH25to34HHInc20to25K | AU54: P55HH25to34HHInc25to30K | AV54: P55HH25to34HHInc30to35K | AW54: P55HH25to34HHInc35to40K | AX54: P55HH25to34HHInc40to45K | AY54: P55HH25to34HHInc45to50K | AZ54: P55HH25to34HHInc50to60K | BA54: P55HH25to34HHInc60to75K | BB54: P55HH25to34HHInc75to100K | BC54: P55HH25to34HHInc100to125K | BD54: P55HH25to34HHInc125to150K | BE54: P55HH25to34HHInc150to200K | BF54: P55HH25to34HHInc>200K | BG54: P55HH35to44yrs | BH54: P55HH35to44HHInc<10K | BI54: P55HH35to44HHInc10to15K | BJ54: P55HH35to44HHInc15to20K | BK54: P55HH35to44HHInc20to25K | BL54: P55HH35to44HHInc25to30K | BM54: P55HH35to44HHInc30to35K | BN54: P55HH35to44HHInc35to40K | BO54: P55HH35to44HHInc40to45K | BP54: P55HH35to44HHInc45to50K | BQ54: P55HH35to44HHInc50to60K | BR54: P55HH35to44HHInc60to75K | BS54: P55HH35to44HHInc75to100K | BT54: P55HH35to44HHInc100to125K | BU54: P55HH35to44HHInc125to150K | BV54: P55HH35to44HHInc150to200K | BW54: P55HH35to44HHInc>200K | BX54: P55HH45to54yrs | BY54: P55HH45to55HHInc<10K | BZ54: P55HH45to55HHInc10to15K | CA54: P55HH45to55HHInc15to20K | CB54: P55HH45to55HHInc20to25K | CC54: P55HH45to55HHInc25to30K | CD54: P55HH45to55HHInc30to35K | CE54: P55HH45to55HHInc35to40K | CF54: P55HH45to55HHInc40to45K | CG54: P55HH45to55HHInc45to50K | CH54: P55HH45to55HHInc50to60K | CI54: P55HH45to55HHInc60to75K | CJ54: P55HH45to55HHInc75to100K | CK54: P55HH45to55HHInc100to125K | CL54: P55HH45to55HHInc125to150K | CM54: P55HH45to55HHInc150to200K | CN54: P55HH45to55HHInc>200K | CO54: P55HH55to64yrs | CP54: P55HH55to64HHInc<10K | CQ54: P55HH55to64HHInc10to15K | CR54: P55HH55to64HHInc15to20K | CS54: P55HH55to64HHInc20to25K | CT54: P55HH55to64HHInc25to30K | CU54: P55HH55to64HHInc30to35K | CV54: P55HH55to64HHInc35to40K | CW54: P55HH55to64HHInc40to45K | CX54: P55HH55to64HHInc45to50K | CY54: P55HH55to64HHInc50to60K | CZ54: P55HH55to64HHInc60to75K | DA54: P55HH55to64HHInc75to100K | DB54: P55HH55to64HHInc100to125K | DC54: P55HH55to64HHInc125to150K | DD54: P55HH55to64HHInc150to200K | DE54: P55HH55to64HHInc>200K | DF54: P55HH65to74yrs | DG54: P55HH65to74HHInc<10K | DH54: P55HH65to74HHInc10to15K | DI54: P55HH65to74HHInc15to20K | DJ54: P55HH65to74HHInc20to25K | DK54: P55HH65to74HHInc25to30K | DL54: P55HH65to74HHInc30to35K | DM54: P55HH65to74HHInc35to40K | DN54: P55HH65to74HHInc40to45K | DO54: P55HH65to74HHInc45to50K | DP54: P55HH65to74HHInc50to60K | DQ54: P55HH65to74HHInc60to75K | DR54: P55HH65to74HHInc75to100K | DS54: P55HH65to74HHInc100to125K | DT54: P55HH65to74HHInc125to150K | DU54: P55HH65to74HHInc150to200K | DV54: P55HH65to74HHInc>200K | DW54: P55HH>75yrs | DX54: P55HH>75HHInc<10K | DY54: P55HH>75HHInc10to15K | DZ54: P55HH>75HHInc15to20K | EA54: P55HH>75HHInc20to25K | EB54: P55HH>75HHInc25to30K | EC54: P55HH>75HHInc30to35K | ED54: P55HH>75HHInc35to40K | EE54: P55HH>75HHInc40to45K | EF54: P55HH>75HHInc45to50K | EG54: P55HH>75HHInc50to60K | EH54: P55HH>75HHInc60to75K | EI54: P55HH>75HHInc75to100K | EJ54: P55HH>75HHInc100to125K | EK54: P55HH>75HHInc125to150K | EL54: P55HH>75HHInc150to200K | EM54: P55HH>75HHInc>200K | EN54: P56MedHHInc | EO54: P56MedHHIncHH<25y | EP54: P56MedHHIncHH25to34y | EQ54: P56MedHHIncHH35to44y | ER54: P56MedHHIncHH45to54y | ES54: P56MedHHIncHH55to64y | ET54: P56MedHHIncHH65to74y | EU54: P56MedHHIncHH>75y | EV54: P58Households3 | EW54: P58HHwithEarnings | EX54: P58HHNoEarnings | EY54: P59HHwWageSalInc | EZ54: P59HHNoWageSalInc | FA54: P60HHwSelfEmpInc | FB54: P60HHNoSelfEmpInc | FC54: P61HHwIndDivInc | FD54: P61HHNoIndDivInc | FE54: P62HHwSocSecInc | FF54: P62HHNoSocSecInc | FG54: P63HHwSSI | FH54: P63HHNoSSI | FI54: P64HHwPubAssInc | FJ54: P64HHNoPubAssInc | FK54: P65HHwRetInc | FL54: P65HHNoRetInc | FM54: P66HHwOtherTypInc | FN54: P66HHNoOtherTypInc | FO54: P67AggregEarnings | FP54: P68AggregWageSalInc | FQ54: P69AggregSelfEmpInc | FR54: P70AggregIntDivInc | FS54: P71AggregSocSecInc | FT54: P72AggregSSIInc | FU54: P73AggregPublicAssInc | FV54: P74AggregRetireInc | FW54: P76Families1 | FX54: P76FamInc<10K | FY54: P76FamInc10to15K | FZ54: P76FamInc15to20K | GA54: P76FamInc20to25K | GB54: P76FamInc25to30K | GC54: P76FamInc30to35K | GD54: P76FamInc35to40K | GE54: P76FamInc40to45K | GF54: P76FamInc45to50K | GG54: P76FamInc50to60K | GH54: P76FamInc60to75K | GI54: P76FamInc75to100K | GJ54: P76FamInc100to125K | GK54: P76FamInc125to150K | GL54: P76FamInc150to200K | GM54: P76FamInc>200K | GN54: P77MedFamInc | GO54: P78AggregFamInc | GP54: P79NonFamHH | GQ54: P79NonFamHHwInc<10K | GR54: P79NonFamHHwInc10to15K | GS54: P79NonFamHHwInc15to20K | GT54: P79NonFamHHwInc20to25K | GU54: P79NonFamHHwInc25to30K | GV54: P79NonFamHHwInc30to35K | GW54: P79NonFamHHwInc35to40K | GX54: P79NonFamHHwInc40to45K | GY54: P79NonFamHHwInc45to50K | GZ54: P79NonFamHHwInc50to60K | HA54: P79NonFamHHwInc60to75K | HB54: P79NonFamHHwInc75to100K | HC54: P79NonFamHHwInc100to125K | HD54: P79NonFamHHwInc125to150K | HE54: P79NonFamHHwInc150to200K | HF54: P79NonFamHHwInc200KorMore | HG54: P80MedNonFamInc | HH54: P82PerCapitaInc
A55: =VLOOKUP(DropDownList!$B$47,CntyQryCensus!$A$206:$HH$248,A$1) -> Rochester | B55: =VLOOKUP(DropDownList!$B$47,CntyQryCensus!$A$206:$HH$248,B$1) -> 0003956 | C55: =VLOOKUP(DropDownList!$B$47,CntyQryCensus!$A$206:$HH$248,C$1) -> 65140 | D55: =VLOOKUP(DropDownList!$B$47,CntyQryCensus!$A$206:$HH$248,D$1) -> 28461 | E55: =VLOOKUP(DropDownList!$B$47,CntyQryCensus!$A$206:$HH$248,E$1) -> 11397 | F55: =VLOOKUP(DropDownList!$B$47,CntyQryCensus!$A$206:$HH$248,F$1) -> 857 | G55: =VLOOKUP(DropDownList!$B$47,CntyQryCensus!$A$206:$HH$248,G$1) -> 765 | H55: =VLOOKUP(DropDownList!$B$47,CntyQryCensus!$A$206:$HH$248,H$1) -> 696 | I55: =VLOOKUP(DropDownList!$B$47,CntyQryCensus!$A$206:$HH$248,I$1) -> 850 | J55: =VLOOKUP(DropDownList!$B$47,CntyQryCensus!$A$206:$HH$248,J$1) -> 702 | K55: =VLOOKUP(DropDownList!$B$47,CntyQryCensus!$A$206:$HH$248,K$1) -> 898 | L55: =VLOOKUP(DropDownList!$B$47,CntyQryCensus!$A$206:$HH$248,L$1) -> 816 | M55: =VLOOKUP(DropDownList!$B$47,CntyQryCensus!$A$206:$HH$248,M$1) -> 904 | N55: =VLOOKUP(DropDownList!$B$47,CntyQryCensus!$A$206:$HH$248,N$1) -> 733 | O55: =VLOOKUP(DropDownList!$B$47,CntyQryCensus!$A$206:$HH$248,O$1) -> 1170 | P55: =VLOOKUP(DropDownList!$B$47,CntyQryCensus!$A$206:$HH$248,P$1) -> 1331 | Q55: =VLOOKUP(DropDownList!$B$47,CntyQryCensus!$A$206:$HH$248,Q$1) -> 965 | R55: =VLOOKUP(DropDownList!$B$47,CntyQryCensus!$A$206:$HH$248,R$1) -> 401 | S55: =VLOOKUP(DropDownList!$B$47,CntyQryCensus!$A$206:$HH$248,S$1) -> 108 | T55: =VLOOKUP(DropDownList!$B$47,CntyQryCensus!$A$206:$HH$248,T$1) -> 118 | U55: =VLOOKUP(DropDownList!$B$47,CntyQryCensus!$A$206:$HH$248,U$1) -> 83 | V55: =VLOOKUP(DropDownList!$B$47,CntyQryCensus!$A$206:$HH$248,V$1) -> 40596 | W55: =VLOOKUP(DropDownList!$B$47,CntyQryCensus!$A$206:$HH$248,W$1) -> 531067100 | X55: =VLOOKUP(DropDownList!$B$47,CntyQryCensus!$A$206:$HH$248,X$1) -> 11397 | Y55: =VLOOKUP(DropDownList!$B$47,CntyQryCensus!$A$206:$HH$248,Y$1) -> 482 | Z55: =VLOOKUP(DropDownList!$B$47,CntyQryCensus!$A$206:$HH$248,Z$1) -> 60 | AA55: =VLOOKUP(DropDownList!$B$47,CntyQryCensus!$A$206:$HH$248,AA$1) -> 56 | AB55: =VLOOKUP(DropDownList!$B$47,CntyQryCensus!$A$206:$HH$248,AB$1) -> 17 | AC55: =VLOOKUP(DropDownList!$B$47,CntyQryCensus!$A$206:$HH$248,AC$1) -> 75 | AD55: =VLOOKUP(DropDownList!$B$47,CntyQryCensus!$A$206:$HH$248,AD$1) -> 30 | AE55: =VLOOKUP(DropDownList!$B$47,CntyQryCensus!$A$206:$HH$248,AE$1) -> 43 | AF55: =VLOOKUP(DropDownList!$B$47,CntyQryCensus!$A$206:$HH$248,AF$1) -> 69 | AG55: =VLOOKUP(DropDownList!$B$47,CntyQryCensus!$A$206:$HH$248,AG$1) -> 41 | AH55: =VLOOKUP(DropDownList!$B$47,CntyQryCensus!$A$206:$HH$248,AH$1) -> 33 | AI55: =VLOOKUP(DropDownList!$B$47,CntyQryCensus!$A$206:$HH$248,AI$1) -> 8 | AJ55: =VLOOKUP(DropDownList!$B$47,CntyQryCensus!$A$206:$HH$248,AJ$1) -> 27 | AK55: =VLOOKUP(DropDownList!$B$47,CntyQryCensus!$A$206:$HH$248,AK$1) -> 23 | AL55: =VLOOKUP(DropDownList!$B$47,CntyQryCensus!$A$206:$HH$248,AL$1) -> 0 | AM55: =VLOOKUP(DropDownList!$B$47,CntyQryCensus!$A$206:$HH$248,AM$1) -> 0 | AN55: =VLOOKUP(DropDownList!$B$47,CntyQryCensus!$A$206:$HH$248,AN$1) -> 0 | AO55: =VLOOKUP(DropDownList!$B$47,CntyQryCensus!$A$206:$HH$248,AO$1) -> 0 | AP55: =VLOOKUP(DropDownList!$B$47,CntyQryCensus!$A$206:$HH$248,AP$1) -> 2112 | AQ55: =VLOOKUP(DropDownList!$B$47,CntyQryCensus!$A$206:$HH$248,AQ$1) -> 117 | AR55: =VLOOKUP(DropDownList!$B$47,CntyQryCensus!$A$206:$HH$248,AR$1) -> 117 | AS55: =VLOOKUP(DropDownList!$B$47,CntyQryCensus!$A$206:$HH$248,AS$1) -> 130 | AT55: =VLOOKUP(DropDownList!$B$47,CntyQryCensus!$A$206:$HH$248,AT$1) -> 133 | AU55: =VLOOKUP(DropDownList!$B$47,CntyQryCensus!$A$206:$HH$248,AU$1) -> 154 | AV55: =VLOOKUP(DropDownList!$B$47,CntyQryCensus!$A$206:$HH$248,AV$1) -> 130 | AW55: =VLOOKUP(DropDownList!$B$47,CntyQryCensus!$A$206:$HH$248,AW$1) -> 159 | AX55: =VLOOKUP(DropDownList!$B$47,CntyQryCensus!$A$206:$HH$248,AX$1) -> 203 | AY55: =VLOOKUP(DropDownList!$B$47,CntyQryCensus!$A$206:$HH$248,AY$1) -> 210 | AZ55: =VLOOKUP(DropDownList!$B$47,CntyQryCensus!$A$206:$HH$248,AZ$1) -> 285 | BA55: =VLOOKUP(DropDownList!$B$47,CntyQryCensus!$A$206:$HH$248,BA$1) -> 304 | BB55: =VLOOKUP(DropDownList!$B$47,CntyQryCensus!$A$206:$HH$248,BB$1) -> 113 | BC55: =VLOOKUP(DropDownList!$B$47,CntyQryCensus!$A$206:$HH$248,BC$1) -> 31 | BD55: =VLOOKUP(DropDownList!$B$47,CntyQryCensus!$A$206:$HH$248,BD$1) -> 26 | BE55: =VLOOKUP(DropDownList!$B$47,CntyQryCensus!$A$206:$HH$248,BE$1) -> 0 | BF55: =VLOOKUP(DropDownList!$B$47,CntyQryCensus!$A$206:$HH$248,BF$1) -> 0 | BG55: =VLOOKUP(DropDownList!$B$47,CntyQryCensus!$A$206:$HH$248,BG$1) -> 2681 | BH55: =VLOOKUP(DropDownList!$B$47,CntyQryCensus!$A$206:$HH$248,BH$1) -> 105 | BI55: =VLOOKUP(DropDownList!$B$47,CntyQryCensus!$A$206:$HH$248,BI$1) -> 102 | BJ55: =VLOOKUP(DropDownList!$B$47,CntyQryCensus!$A$206:$HH$248,BJ$1) -> 68 | BK55: =VLOOKUP(DropDownList!$B$47,CntyQryCensus!$A$206:$HH$248,BK$1) -> 130 | BL55: =VLOOKUP(DropDownList!$B$47,CntyQryCensus!$A$206:$HH$248,BL$1) -> 179 | BM55: =VLOOKUP(DropDownList!$B$47,CntyQryCensus!$A$206:$HH$248,BM$1) -> 181 | BN55: =VLOOKUP(DropDownList!$B$47,CntyQryCensus!$A$206:$HH$248,BN$1) -> 171 | BO55: =VLOOKUP(DropDownList!$B$47,CntyQryCensus!$A$206:$HH$248,BO$1) -> 226 | BP55: =VLOOKUP(DropDownList!$B$47,CntyQryCensus!$A$206:$HH$248,BP$1) -> 186 | BQ55: =VLOOKUP(DropDownList!$B$47,CntyQryCensus!$A$206:$HH$248,BQ$1) -> 358 | BR55: =VLOOKUP(DropDownList!$B$47,CntyQryCensus!$A$206:$HH$248,BR$1) -> 435 | BS55: =VLOOKUP(DropDownList!$B$47,CntyQryCensus!$A$206:$HH$248,BS$1) -> 295 | BT55: =VLOOKUP(DropDownList!$B$47,CntyQryCensus!$A$206:$HH$248,BT$1) -> 184 | BU55: =VLOOKUP(DropDownList!$B$47,CntyQryCensus!$A$206:$HH$248,BU$1) -> 30 | BV55: =VLOOKUP(DropDownList!$B$47,CntyQryCensus!$A$206:$HH$248,BV$1) -> 19 | BW55: =VLOOKUP(DropDownList!$B$47,CntyQryCensus!$A$206:$HH$248,BW$1) -> 12 | BX55: =VLOOKUP(DropDownList!$B$47,CntyQryCensus!$A$206:$HH$248,BX$1) -> 2146 | BY55: =VLOOKUP(DropDownList!$B$47,CntyQryCensus!$A$206:$HH$248,BY$1) -> 125 | BZ55: =VLOOKUP(DropDownList!$B$47,CntyQryCensus!$A$206:$HH$248,BZ$1) -> 59 | CA55: =VLOOKUP(DropDownList!$B$47,CntyQryCensus!$A$206:$HH$248,CA$1) -> 72 | CB55: =VLOOKUP(DropDownList!$B$47,CntyQryCensus!$A$206:$HH$248,CB$1) -> 128 | CC55: =VLOOKUP(DropDownList!$B$47,CntyQryCensus!$A$206:$HH$248,CC$1) -> 86 | CD55: =VLOOKUP(DropDownList!$B$47,CntyQryCensus!$A$206:$HH$248,CD$1) -> 167 | CE55: =VLOOKUP(DropDownList!$B$47,CntyQryCensus!$A$206:$HH$248,CE$1) -> 150 | CF55: =VLOOKUP(DropDownList!$B$47,CntyQryCensus!$A$206:$HH$248,CF$1) -> 201 | CG55: =VLOOKUP(DropDownList!$B$47,CntyQryCensus!$A$206:$HH$248,CG$1) -> 101 | CH55: =VLOOKUP(DropDownList!$B$47,CntyQryCensus!$A$206:$HH$248,CH$1) -> 270 | CI55: =VLOOKUP(DropDownList!$B$47,CntyQryCensus!$A$206:$HH$248,CI$1) -> 276 | CJ55: =VLOOKUP(DropDownList!$B$47,CntyQryCensus!$A$206:$HH$248,CJ$1) -> 329 | CK55: =VLOOKUP(DropDownList!$B$47,CntyQryCensus!$A$206:$HH$248,CK$1) -> 87 | CL55: =VLOOKUP(DropDownList!$B$47,CntyQryCensus!$A$206:$HH$248,CL$1) -> 52 | CM55: =VLOOKUP(DropDownList!$B$47,CntyQryCensus!$A$206:$HH$248,CM$1) -> 31 | CN55: =VLOOKUP(DropDownList!$B$47,CntyQryCensus!$A$206:$HH$248,CN$1) -> 12 | CO55: =VLOOKUP(DropDownList!$B$47,CntyQryCensus!$A$206:$HH$248,CO$1) -> 1489 | CP55: =VLOOKUP(DropDownList!$B$47,CntyQryCensus!$A$206:$HH$248,CP$1) -> 119 | CQ55: =VLOOKUP(DropDownList!$B$47,CntyQryCensus!$A$206:$HH$248,CQ$1) -> 53 | CR55: =VLOOKUP(DropDownList!$B$47,CntyQryCensus!$A$206:$HH$248,CR$1) -> 69 | CS55: =VLOOKUP(DropDownList!$B$47,CntyQryCensus!$A$206:$HH$248,CS$1) -> 113 | CT55: =VLOOKUP(DropDownList!$B$47,CntyQryCensus!$A$206:$HH$248,CT$1) -> 51 | CU55: =VLOOKUP(DropDownList!$B$47,CntyQryCensus!$A$206:$HH$248,CU$1) -> 130 | CV55: =VLOOKUP(DropDownList!$B$47,CntyQryCensus!$A$206:$HH$248,CV$1) -> 111 | CW55: =VLOOKUP(DropDownList!$B$47,CntyQryCensus!$A$206:$HH$248,CW$1) -> 131 | CX55: =VLOOKUP(DropDownList!$B$47,CntyQryCensus!$A$206:$HH$248,CX$1) -> 153 | CY55: =VLOOKUP(DropDownList!$B$47,CntyQryCensus!$A$206:$HH$248,CY$1) -> 128 | CZ55: =VLOOKUP(DropDownList!$B$47,CntyQryCensus!$A$206:$HH$248,CZ$1) -> 143 | DA55: =VLOOKUP(DropDownList!$B$47,CntyQryCensus!$A$206:$HH$248,DA$1) -> 138 | DB55: =VLOOKUP(DropDownList!$B$47,CntyQryCensus!$A$206:$HH$248,DB$1) -> 66 | DC55: =VLOOKUP(DropDownList!$B$47,CntyQryCensus!$A$206:$HH$248,DC$1) -> 0 | DD55: =VLOOKUP(DropDownList!$B$47,CntyQryCensus!$A$206:$HH$248,DD$1) -> 48 | DE55: =VLOOKUP(DropDownList!$B$47,CntyQryCensus!$A$206:$HH$248,DE$1) -> 36 | DF55: =VLOOKUP(DropDownList!$B$47,CntyQryCensus!$A$206:$HH$248,DF$1) -> 1342 | DG55: =VLOOKUP(DropDownList!$B$47,CntyQryCensus!$A$206:$HH$248,DG$1) -> 130 | DH55: =VLOOKUP(DropDownList!$B$47,CntyQryCensus!$A$206:$HH$248,DH$1) -> 141 | DI55: =VLOOKUP(DropDownList!$B$47,CntyQryCensus!$A$206:$HH$248,DI$1) -> 200 | DJ55: =VLOOKUP(DropDownList!$B$47,CntyQryCensus!$A$206:$HH$248,DJ$1) -> 121 | DK55: =VLOOKUP(DropDownList!$B$47,CntyQryCensus!$A$206:$HH$248,DK$1) -> 114 | DL55: =VLOOKUP(DropDownList!$B$47,CntyQryCensus!$A$206:$HH$248,DL$1) -> 173 | DM55: =VLOOKUP(DropDownList!$B$47,CntyQryCensus!$A$206:$HH$248,DM$1) -> 108 | DN55: =VLOOKUP(DropDownList!$B$47,CntyQryCensus!$A$206:$HH$248,DN$1) -> 67 | DO55: =VLOOKUP(DropDownList!$B$47,CntyQryCensus!$A$206:$HH$248,DO$1) -> 31 | DP55: =VLOOKUP(DropDownList!$B$47,CntyQryCensus!$A$206:$HH$248,DP$1) -> 57 | DQ55: =VLOOKUP(DropDownList!$B$47,CntyQryCensus!$A$206:$HH$248,DQ$1) -> 122 | DR55: =VLOOKUP(DropDownList!$B$47,CntyQryCensus!$A$206:$HH$248,DR$1) -> 39 | DS55: =VLOOKUP(DropDownList!$B$47,CntyQryCensus!$A$206:$HH$248,DS$1) -> 25 | DT55: =VLOOKUP(DropDownList!$B$47,CntyQryCensus!$A$206:$HH$248,DT$1) -> 0 | DU55: =VLOOKUP(DropDownList!$B$47,CntyQryCensus!$A$206:$HH$248,DU$1) -> 14 | DV55: =VLOOKUP(DropDownList!$B$47,CntyQryCensus!$A$206:$HH$248,DV$1) -> 0 | DW55: =VLOOKUP(DropDownList!$B$47,CntyQryCensus!$A$206:$HH$248,DW$1) -> 1145 | DX55: =VLOOKUP(DropDownList!$B$47,CntyQryCensus!$A$206:$HH$248,DX$1) -> 201 | DY55: =VLOOKUP(DropDownList!$B$47,CntyQryCensus!$A$206:$HH$248,DY$1) -> 237 | DZ55: =VLOOKUP(DropDownList!$B$47,CntyQryCensus!$A$206:$HH$248,DZ$1) -> 140 | EA55: =VLOOKUP(DropDownList!$B$47,CntyQryCensus!$A$206:$HH$248,EA$1) -> 150 | EB55: =VLOOKUP(DropDownList!$B$47,CntyQryCensus!$A$206:$HH$248,EB$1) -> 88 | EC55: =VLOOKUP(DropDownList!$B$47,CntyQryCensus!$A$206:$HH$248,EC$1) -> 74 | ED55: =VLOOKUP(DropDownList!$B$47,CntyQryCensus!$A$206:$HH$248,ED$1) -> 48 | EE55: =VLOOKUP(DropDownList!$B$47,CntyQryCensus!$A$206:$HH$248,EE$1) -> 35 | EF55: =VLOOKUP(DropDownList!$B$47,CntyQryCensus!$A$206:$HH$248,EF$1) -> 19 | EG55: =VLOOKUP(DropDownList!$B$47,CntyQryCensus!$A$206:$HH$248,EG$1) -> 64 | EH55: =VLOOKUP(DropDownList!$B$47,CntyQryCensus!$A$206:$HH$248,EH$1) -> 24 | EI55: =VLOOKUP(DropDownList!$B$47,CntyQryCensus!$A$206:$HH$248,EI$1) -> 28 | EJ55: =VLOOKUP(DropDownList!$B$47,CntyQryCensus!$A$206:$HH$248,EJ$1) -> 8 | EK55: =VLOOKUP(DropDownList!$B$47,CntyQryCensus!$A$206:$HH$248,EK$1) -> 0 | EL55: =VLOOKUP(DropDownList!$B$47,CntyQryCensus!$A$206:$HH$248,EL$1) -> 6 | EM55: =VLOOKUP(DropDownList!$B$47,CntyQryCensus!$A$206:$HH$248,EM$1) -> 23 | EN55: =VLOOKUP(DropDownList!$B$47,CntyQryCensus!$A$206:$HH$248,EN$1) -> 40596 | EO55: =VLOOKUP(DropDownList!$B$47,CntyQryCensus!$A$206:$HH$248,EO$1) -> 30313 | EP55: =VLOOKUP(DropDownList!$B$47,CntyQryCensus!$A$206:$HH$248,EP$1) -> 42302 | EQ55: =VLOOKUP(DropDownList!$B$47,CntyQryCensus!$A$206:$HH$248,EQ$1) -> 49740 | ER55: =VLOOKUP(DropDownList!$B$47,CntyQryCensus!$A$206:$HH$248,ER$1) -> 49149 | ES55: =VLOOKUP(DropDownList!$B$47,CntyQryCensus!$A$206:$HH$248,ES$1) -> 43917 | ET55: =VLOOKUP(DropDownList!$B$47,CntyQryCensus!$A$206:$HH$248,ET$1) -> 28250 | EU55: =VLOOKUP(DropDownList!$B$47,CntyQryCensus!$A$206:$HH$248,EU$1) -> 19771 | EV55: =VLOOKUP(DropDownList!$B$47,CntyQryCensus!$A$206:$HH$248,EV$1) -> 11397 | EW55: =VLOOKUP(DropDownList!$B$47,CntyQryCensus!$A$206:$HH$248,EW$1) -> 9126 | EX55: =VLOOKUP(DropDownList!$B$47,CntyQryCensus!$A$206:$HH$248,EX$1) -> 2271 | EY55: =VLOOKUP(DropDownList!$B$47,CntyQryCensus!$A$206:$HH$248,EY$1) -> 8956 | EZ55: =VLOOKUP(DropDownList!$B$47,CntyQryCensus!$A$206:$HH$248,EZ$1) -> 2441 | FA55: =VLOOKUP(DropDownList!$B$47,CntyQryCensus!$A$206:$HH$248,FA$1) -> 994 | FB55: =VLOOKUP(DropDownList!$B$47,CntyQryCensus!$A$206:$HH$248,FB$1) -> 10403 | FC55: =VLOOKUP(DropDownList!$B$47,CntyQryCensus!$A$206:$HH$248,FC$1) -> 3672 | FD55: =VLOOKUP(DropDownList!$B$47,CntyQryCensus!$A$206:$HH$248,FD$1) -> 7725 | FE55: =VLOOKUP(DropDownList!$B$47,CntyQryCensus!$A$206:$HH$248,FE$1) -> 3160 | FF55: =VLOOKUP(DropDownList!$B$47,CntyQryCensus!$A$206:$HH$248,FF$1) -> 8237 | FG55: =VLOOKUP(DropDownList!$B$47,CntyQryCensus!$A$206:$HH$248,FG$1) -> 439 | FH55: =VLOOKUP(DropDownList!$B$47,CntyQryCensus!$A$206:$HH$248,FH$1) -> 10958 | FI55: =VLOOKUP(DropDownList!$B$47,CntyQryCensus!$A$206:$HH$248,FI$1) -> 625 | FJ55: =VLOOKUP(DropDownList!$B$47,CntyQryCensus!$A$206:$HH$248,FJ$1) -> 10772 | FK55: =VLOOKUP(DropDownList!$B$47,CntyQryCensus!$A$206:$HH$248,FK$1) -> 2234 | FL55: =VLOOKUP(DropDownList!$B$47,CntyQryCensus!$A$206:$HH$248,FL$1) -> 9163 | FM55: =VLOOKUP(DropDownList!$B$47,CntyQryCensus!$A$206:$HH$248,FM$1) -> 1743 | FN55: =VLOOKUP(DropDownList!$B$47,CntyQryCensus!$A$206:$HH$248,FN$1) -> 9654 | FO55: =VLOOKUP(DropDownList!$B$47,CntyQryCensus!$A$206:$HH$248,FO$1) -> 427659500 | FP55: =VLOOKUP(DropDownList!$B$47,CntyQryCensus!$A$206:$HH$248,FP$1) -> 407922300 | FQ55: =VLOOKUP(DropDownList!$B$47,CntyQryCensus!$A$206:$HH$248,FQ$1) -> 19737300 | FR55: =VLOOKUP(DropDownList!$B$47,CntyQryCensus!$A$206:$HH$248,FR$1) -> 23516400 | FS55: =VLOOKUP(DropDownList!$B$47,CntyQryCensus!$A$206:$HH$248,FS$1) -> 34125200 | FT55: =VLOOKUP(DropDownList!$B$47,CntyQryCensus!$A$206:$HH$248,FT$1) -> 2767100 | FU55: =VLOOKUP(DropDownList!$B$47,CntyQryCensus!$A$206:$HH$248,FU$1) -> 1751100 | FV55: =VLOOKUP(DropDownList!$B$47,CntyQryCensus!$A$206:$HH$248,FV$1) -> 27282400 | FW55: =VLOOKUP(DropDownList!$B$47,CntyQryCensus!$A$206:$HH$248,FW$1) -> 7671 | FX55: =VLOOKUP(DropDownList!$B$47,CntyQryCensus!$A$206:$HH$248,FX$1) -> 307 | FY55: =VLOOKUP(DropDownList!$B$47,CntyQryCensus!$A$206:$HH$248,FY$1) -> 345 | FZ55: =VLOOKUP(DropDownList!$B$47,CntyQryCensus!$A$206:$HH$248,FZ$1) -> 383 | GA55: =VLOOKUP(DropDownList!$B$47,CntyQryCensus!$A$206:$HH$248,GA$1) -> 393 | GB55: =VLOOKUP(DropDownList!$B$47,CntyQryCensus!$A$206:$HH$248,GB$1) -> 375 | GC55: =VLOOKUP(DropDownList!$B$47,CntyQryCensus!$A$206:$HH$248,GC$1) -> 555 | GD55: =VLOOKUP(DropDownList!$B$47,CntyQryCensus!$A$206:$HH$248,GD$1) -> 499 | GE55: =VLOOKUP(DropDownList!$B$47,CntyQryCensus!$A$206:$HH$248,GE$1) -> 628 | GF55: =VLOOKUP(DropDownList!$B$47,CntyQryCensus!$A$206:$HH$248,GF$1) -> 630 | GG55: =VLOOKUP(DropDownList!$B$47,CntyQryCensus!$A$206:$HH$248,GG$1) -> 991 | GH55: =VLOOKUP(DropDownList!$B$47,CntyQryCensus!$A$206:$HH$248,GH$1) -> 1060 | GI55: =VLOOKUP(DropDownList!$B$47,CntyQryCensus!$A$206:$HH$248,GI$1) -> 858 | GJ55: =VLOOKUP(DropDownList!$B$47,CntyQryCensus!$A$206:$HH$248,GJ$1) -> 378 | GK55: =VLOOKUP(DropDownList!$B$47,CntyQryCensus!$A$206:$HH$248,GK$1) -> 102 | GL55: =VLOOKUP(DropDownList!$B$47,CntyQryCensus!$A$206:$HH$248,GL$1) -> 96 | GM55: =VLOOKUP(DropDownList!$B$47,CntyQryCensus!$A$206:$HH$248,GM$1) -> 71 | GN55: =VLOOKUP(DropDownList!$B$47,CntyQryCensus!$A$206:$HH$248,GN$1) -> 47324 | GO55: =VLOOKUP(DropDownList!$B$47,CntyQryCensus!$A$206:$HH$248,GO$1) -> 411636500 | GP55: =VLOOKUP(DropDownList!$B$47,CntyQryCensus!$A$206:$HH$248,GP$1) -> 3726 | GQ55: =VLOOKUP(DropDownList!$B$47,CntyQryCensus!$A$206:$HH$248,GQ$1) -> 603 | GR55: =VLOOKUP(DropDownList!$B$47,CntyQryCensus!$A$206:$HH$248,GR$1) -> 501 | GS55: =VLOOKUP(DropDownList!$B$47,CntyQryCensus!$A$206:$HH$248,GS$1) -> 345 | GT55: =VLOOKUP(DropDownList!$B$47,CntyQryCensus!$A$206:$HH$248,GT$1) -> 473 | GU55: =VLOOKUP(DropDownList!$B$47,CntyQryCensus!$A$206:$HH$248,GU$1) -> 312 | GV55: =VLOOKUP(DropDownList!$B$47,CntyQryCensus!$A$206:$HH$248,GV$1) -> 379 | GW55: =VLOOKUP(DropDownList!$B$47,CntyQryCensus!$A$206:$HH$248,GW$1) -> 273 | GX55: =VLOOKUP(DropDownList!$B$47,CntyQryCensus!$A$206:$HH$248,GX$1) -> 255 | GY55: =VLOOKUP(DropDownList!$B$47,CntyQryCensus!$A$206:$HH$248,GY$1) -> 86 | GZ55: =VLOOKUP(DropDownList!$B$47,CntyQryCensus!$A$206:$HH$248,GZ$1) -> 154 | HA55: =VLOOKUP(DropDownList!$B$47,CntyQryCensus!$A$206:$HH$248,HA$1) -> 208 | HB55: =VLOOKUP(DropDownList!$B$47,CntyQryCensus!$A$206:$HH$248,HB$1) -> 86 | HC55: =VLOOKUP(DropDownList!$B$47,CntyQryCensus!$A$206:$HH$248,HC$1) -> 11 | HD55: =VLOOKUP(DropDownList!$B$47,CntyQryCensus!$A$206:$HH$248,HD$1) -> 6 | HE55: =VLOOKUP(DropDownList!$B$47,CntyQryCensus!$A$206:$HH$248,HE$1) -> 22 | HF55: =VLOOKUP(DropDownList!$B$47,CntyQryCensus!$A$206:$HH$248,HF$1) -> 12 | HG55: =VLOOKUP(DropDownList!$B$47,CntyQryCensus!$A$206:$HH$248,HG$1) -> 24244 | HH55: =VLOOKUP(DropDownList!$B$47,CntyQryCensus!$A$206:$HH$248,HH$1) -> 18859
A58: Census 2000 SummaryFile3 Sample Data - SF3TownQry2bPovertyChar
A59: NAME | B59: LOGRECNO | C59: COUNTY | D59: TotalPop | E59: P52Households1 | F59: P82PerCapitaInc | G59: P87PopForPovStatus | H59: P87PopWIncBelowPovStatus | I59: P87PopUnder5yrBelowPoverty | J59: P87Pop5yrBelowPoverty | K59: P87Pop5to11yrBelowPoverty | L59: P87Pop12to17yrBelowPoverty | M59: P87Pop18to64yrBelowPoverty | N59: P87Pop65to74yrBelowPoverty | O59: P87PopOver75yrBelowPoverty | P59: P87PopWIncAbovePovStatus | Q59: P87PopUnder5yrAbovePoverty | R59: P87Pop5yrAbovePoverty | S59: P87Pop5to11yrAbovePoverty | T59: P87Pop12to17yrAbovePoverty | U59: P87Pop18to64yrAbovePoverty | V59: P87Pop65to74yrAbovePoverty | W59: P87PopOver75yrAbovePoverty | X59: P90Families | Y59: P90FamWIncBelowPov | Z59: P90MarCupFamWIncBelowPov | AA59: P90MCFamWRltdChld<18WIncBelowPov | AB59: P90MCFamWRltdChld<5WIncBelowPov | AC59: P90MaleHhlrWIncBelowPov | AD59: P90MaleHhlrWRltdChld<18yrWIncBelowPov | AE59: P90MaleHhlrWRltdChld<5yrWIncBelowPov | AF59: P90FemaleHhlrWIncBelowPov | AG59: P90FemaleHhlrWRltdChld<18yWIncBelowPov | AH59: P90FemaleHhlrWRltdChld<5yWIncBelowPov | AI59: P90FamWIncAbovePov | AJ59: P90MarCupFamWIncAbovePov | AK59: P90MCFamWRltdChld<18WIncAbovePov | AL59: P90MCFamWRltdChld<5WIncAbovePov | AM59: P90MaleHhlrWIncAbovePov | AN59: P90MaleHhlrWRltdChld<18yrWIncAbovePov | AO59: P90MaleHhlrWRltdChld<5yrWIncAbovePov | AP59: P90FemaleHhlrWIncAbovePov | AQ59: P90FemaleHhlrWRltdChld<18yWIncAbovePov | AR59: P90FemaleHhlrWRltdChld<5yWIncAbovePov | AS59: P92Households | AT59: P92HHwIncBelowPov | AU59: P92FamHHwIncBelowPov | AV59: P92MCFamHHwIncBelowPov | AW59: P92MaleFamHHwIncBelowPov | AX59: P92FemaleFamHHwIncBelowPov | AY59: P92NonFamHHwIncBelowPov | AZ59: P92NonFamMaleHHwIncBelowPov | BA59: P92NonFamFemaleHHwIncBelowPov | BB59: P92HHwIncAbovePov | BC59: P92FamHHwIncAbovePov | BD59: P92MCFamHHwIncAbovePov | BE59: P92MaleFamHHwIncAbovePov | BF59: P92FemaleFamHHwIncAbovePov | BG59: P92NonFamHHwIncAbovePov | BH59: P92NonFamMaleHHwIncAbovePov | BI59: P92NonFamFemaleHHwIncAbovePov
A60: =VLOOKUP(DropDownList!$B$47,CntyQryCensus!$A$256:$BI$298,A$1) -> Rochester | B60: =VLOOKUP(DropDownList!$B$47,CntyQryCensus!$A$256:$BI$298,B$1) -> 0003956 | C60: =VLOOKUP(DropDownList!$B$47,CntyQryCensus!$A$256:$BI$298,C$1) -> 65140 | D60: =VLOOKUP(DropDownList!$B$47,CntyQryCensus!$A$256:$BI$298,D$1) -> 28461 | E60: =VLOOKUP(DropDownList!$B$47,CntyQryCensus!$A$256:$BI$298,E$1) -> 11397 | F60: =VLOOKUP(DropDownList!$B$47,CntyQryCensus!$A$256:$BI$298,F$1) -> 18859 | G60: =VLOOKUP(DropDownList!$B$47,CntyQryCensus!$A$256:$BI$298,G$1) -> 28140 | H60: =VLOOKUP(DropDownList!$B$47,CntyQryCensus!$A$256:$BI$298,H$1) -> 2357 | I60: =VLOOKUP(DropDownList!$B$47,CntyQryCensus!$A$256:$BI$298,I$1) -> 244 | J60: =VLOOKUP(DropDownList!$B$47,CntyQryCensus!$A$256:$BI$298,J$1) -> 66 | K60: =VLOOKUP(DropDownList!$B$47,CntyQryCensus!$A$256:$BI$298,K$1) -> 276 | L60: =VLOOKUP(DropDownList!$B$47,CntyQryCensus!$A$256:$BI$298,L$1) -> 290 | M60: =VLOOKUP(DropDownList!$B$47,CntyQryCensus!$A$256:$BI$298,M$1) -> 1165 | N60: =VLOOKUP(DropDownList!$B$47,CntyQryCensus!$A$256:$BI$298,N$1) -> 114 | O60: =VLOOKUP(DropDownList!$B$47,CntyQryCensus!$A$256:$BI$298,O$1) -> 202 | P60: =VLOOKUP(DropDownList!$B$47,CntyQryCensus!$A$256:$BI$298,P$1) -> 25783 | Q60: =VLOOKUP(DropDownList!$B$47,CntyQryCensus!$A$256:$BI$298,Q$1) -> 1611 | R60: =VLOOKUP(DropDownList!$B$47,CntyQryCensus!$A$256:$BI$298,R$1) -> 257 | S60: =VLOOKUP(DropDownList!$B$47,CntyQryCensus!$A$256:$BI$298,S$1) -> 2061 | T60: =VLOOKUP(DropDownList!$B$47,CntyQryCensus!$A$256:$BI$298,T$1) -> 2297 | U60: =VLOOKUP(DropDownList!$B$47,CntyQryCensus!$A$256:$BI$298,U$1) -> 16264 | V60: =VLOOKUP(DropDownList!$B$47,CntyQryCensus!$A$256:$BI$298,V$1) -> 1960 | W60: =VLOOKUP(DropDownList!$B$47,CntyQryCensus!$A$256:$BI$298,W$1) -> 1333 | X60: =VLOOKUP(DropDownList!$B$47,CntyQryCensus!$A$256:$BI$298,X$1) -> 7671 | Y60: =VLOOKUP(DropDownList!$B$47,CntyQryCensus!$A$256:$BI$298,Y$1) -> 481 | Z60: =VLOOKUP(DropDownList!$B$47,CntyQryCensus!$A$256:$BI$298,Z$1) -> 130 | AA60: =VLOOKUP(DropDownList!$B$47,CntyQryCensus!$A$256:$BI$298,AA$1) -> 65 | AB60: =VLOOKUP(DropDownList!$B$47,CntyQryCensus!$A$256:$BI$298,AB$1) -> 15 | AC60: =VLOOKUP(DropDownList!$B$47,CntyQryCensus!$A$256:$BI$298,AC$1) -> 26 | AD60: =VLOOKUP(DropDownList!$B$47,CntyQryCensus!$A$256:$BI$298,AD$1) -> 21 | AE60: =VLOOKUP(DropDownList!$B$47,CntyQryCensus!$A$256:$BI$298,AE$1) -> 0 | AF60: =VLOOKUP(DropDownList!$B$47,CntyQryCensus!$A$256:$BI$298,AF$1) -> 325 | AG60: =VLOOKUP(DropDownList!$B$47,CntyQryCensus!$A$256:$BI$298,AG$1) -> 313 | AH60: =VLOOKUP(DropDownList!$B$47,CntyQryCensus!$A$256:$BI$298,AH$1) -> 87 | AI60: =VLOOKUP(DropDownList!$B$47,CntyQryCensus!$A$256:$BI$298,AI$1) -> 7190 | AJ60: =VLOOKUP(DropDownList!$B$47,CntyQryCensus!$A$256:$BI$298,AJ$1) -> 5856 | AK60: =VLOOKUP(DropDownList!$B$47,CntyQryCensus!$A$256:$BI$298,AK$1) -> 2674 | AL60: =VLOOKUP(DropDownList!$B$47,CntyQryCensus!$A$256:$BI$298,AL$1) -> 608 | AM60: =VLOOKUP(DropDownList!$B$47,CntyQryCensus!$A$256:$BI$298,AM$1) -> 431 | AN60: =VLOOKUP(DropDownList!$B$47,CntyQryCensus!$A$256:$BI$298,AN$1) -> 301 | AO60: =VLOOKUP(DropDownList!$B$47,CntyQryCensus!$A$256:$BI$298,AO$1) -> 80 | AP60: =VLOOKUP(DropDownList!$B$47,CntyQryCensus!$A$256:$BI$298,AP$1) -> 903 | AQ60: =VLOOKUP(DropDownList!$B$47,CntyQryCensus!$A$256:$BI$298,AQ$1) -> 594 | AR60: =VLOOKUP(DropDownList!$B$47,CntyQryCensus!$A$256:$BI$298,AR$1) -> 118 | AS60: =VLOOKUP(DropDownList!$B$47,CntyQryCensus!$A$256:$BI$298,AS$1) -> 11397 | AT60: =VLOOKUP(DropDownList!$B$47,CntyQryCensus!$A$256:$BI$298,AT$1) -> 986 | AU60: =VLOOKUP(DropDownList!$B$47,CntyQryCensus!$A$256:$BI$298,AU$1) -> 481 | AV60: =VLOOKUP(DropDownList!$B$47,CntyQryCensus!$A$256:$BI$298,AV$1) -> 130 | AW60: =VLOOKUP(DropDownList!$B$47,CntyQryCensus!$A$256:$BI$298,AW$1) -> 26 | AX60: =VLOOKUP(DropDownList!$B$47,CntyQryCensus!$A$256:$BI$298,AX$1) -> 325 | AY60: =VLOOKUP(DropDownList!$B$47,CntyQryCensus!$A$256:$BI$298,AY$1) -> 505 | AZ60: =VLOOKUP(DropDownList!$B$47,CntyQryCensus!$A$256:$BI$298,AZ$1) -> 133 | BA60: =VLOOKUP(DropDownList!$B$47,CntyQryCensus!$A$256:$BI$298,BA$1) -> 372 | BB60: =VLOOKUP(DropDownList!$B$47,CntyQryCensus!$A$256:$BI$298,BB$1) -> 10411 | BC60: =VLOOKUP(DropDownList!$B$47,CntyQryCensus!$A$256:$BI$298,BC$1) -> 7190 | BD60: =VLOOKUP(DropDownList!$B$47,CntyQryCensus!$A$256:$BI$298,BD$1) -> 5856 | BE60: =VLOOKUP(DropDownList!$B$47,CntyQryCensus!$A$256:$BI$298,BE$1) -> 431 | BF60: =VLOOKUP(DropDownList!$B$47,CntyQryCensus!$A$256:$BI$298,BF$1) -> 903 | BG60: =VLOOKUP(DropDownList!$B$47,CntyQryCensus!$A$256:$BI$298,BG$1) -> 3221 | BH60: =VLOOKUP(DropDownList!$B$47,CntyQryCensus!$A$256:$BI$298,BH$1) -> 1579 | BI60: =VLOOKUP(DropDownList!$B$47,CntyQryCensus!$A$256:$BI$298,BI$1) -> 1642
S61: =SUM(R60:T60) -> 4615
A63: Census 2000 SummaryFile3 Sample Data - SF3TownQry7HousingA
A64: NAME | B64: LOGRECNO | C64: COUNTY | D64: TotalPop | E64: H1HousingUnitsTotal | F64: H2SampleHU | G64: H2SampleOccHU | H64: H2SampleVacHU | I64: H3HU100pctCount | J64: H5HUTotal | K64: H5HUUrban | L64: H5HUUrbanInUrbanAreas | M64: H5HUUrbanInUrbanClusters | N64: H5HURural | O64: H5HURuralFarm | P64: H5HURuralNonFarm | Q64: H7HUOcc | R64: H7HUOwnrOcc | S64: H7HURentrOcc | T64: H8HUVacant | U64: H8HUVacantForRent | V64: H8HUVacantForSale | W64: H8HUVacRentedorSold | X64: H8HUVacSeasonal | Y64: H8HUVacForMigrantWrkrs | Z64: H8HUOtherVacant | AA64: H14OccHUa | AB64: H14OwnerOccHU | AC64: H14OwnOccHuHh15to24 | AD64: H14OwnOccHuHh25to34 | AE64: H14OwnOccHuHh35to44 | AF64: H14OwnOccHuHh45to54 | AG64: H14OwnOccHuHh55to59 | AH64: H14OwnOccHuHh60to64 | AI64: H14OwnOccHuHh65to74 | AJ64: H14OwnOccHuHh75to84 | AK64: H14OwnOccHuHh85Over | AL64: H14RenterOccHU1 | AM64: H14RntrOccHuHh15to24 | AN64: H14RntrOccHuHh25to34 | AO64: H14RntrOccHuHh35to44 | AP64: H14RntrOccHuHh45to54 | AQ64: H14RntrOccHuHh55to59 | AR64: H14RntrOccHuHh60to64 | AS64: H14RntrOccHuHh65to74 | AT64: H14RntrOccHuHh75to84 | AU64: H14RntrOccHuHh85Over | AV64: H15PopInOccHU | AW64: H15PopInOwnOccHU1 | AX64: H15PopInRentOccHU1 | AY64: H17OccupHUb | AZ64: H17OwnOccHU2 | BA64: H17OwnOccHU1PersonHH | BB64: H17OwnOccHU2PersonHH | BC64: H17OwnOccHU3PersonHH | BD64: H17OwnOccHU4PersonHH | BE64: H17OwnOccHU5PersonHH | BF64: H17OwnOccHU6PersonHH | BG64: H17OwnOccHU7PlusPersonHH | BH64: H17RentOccHU2 | BI64: H17RntOccHU1PersonHH | BJ64: H17RntOccHU2PersonHH | BK64: H17RntOccHU3PersonHH | BL64: H17RntOccHU4PersonHH | BM64: H17RntOccHU5PersonHH | BN64: H17RntOccHU6PersonHH | BO64: H17RntOccHU7PlusPersonHH | BP64: H18AvgHHSize | BQ64: H18AvgHHSizeOwnOcc | BR64: H18AvgHHSizeRentOcc | BS64: H23TotHU | BT64: H23HU1Room | BU64: H23HU2Room | BV64: H23HU3Room | BW64: H23HU4Room | BX64: H23HU5Room | BY64: H23HU6Room | BZ64: H23HU7Room | CA64: H23HU8Room | CB64: H23HU9orMoreRoom | CC64: H24MedianNumRooms | CD64: H25AggregNumRooms | CE64: H30TotalHU | CF64: H30Det1HU | CG64: H30Att1HU | CH64: H30Units2 | CI64: H30Units3or4 | CJ64: H30Units5to9 | CK64: H30Units10to19 | CL64: H30Units20to49 | CM64: H30Units50orMore | CN64: H30UnitsMobileHome | CO64: H30UnitsBoatRv | CP64: H32OccHUcTotal | CQ64: H32OwnerOccHU3 | CR64: H32OwnOccHU1Det | CS64: H32OwnOccHU1Att | CT64: H32OwnOccHU2Unit | CU64: H32OwnOccHU3to4Unit | CV64: H32OwnOccHU5to9Unit | CW64: H32OwnOccHU10to19Unit | CX64: H32OwnOccHU20to49Unit | CY64: H32OwnOccHU50plusUnit | CZ64: H32OwnOccHUMobHom | DA64: H32OwnOccHUBoatRVOth | DB64: H32RentrOccHU3 | DC64: H32RntrOccHU1Det | DD64: H32RntrOccHU1Att | DE64: H32RntrOccHU2Unit | DF64: H32RntrOccHU3to4Unit | DG64: H32RntrOccHU5to9Unit | DH64: H32RntrOccHU10to19Unit | DI64: H32RntrOccHU20to49Unit | DJ64: H32RntrOccHU50PlusUnit | DK64: H32RntrOccHUMobHom | DL64: H32RntrOccHUBoatRVOth | DM64: H33TotPopInOccHU | DN64: H33PopInOwnOccHU2 | DO64: H33PopInOOHU1Det | DP64: H33PopInOOHU1Att | DQ64: H33PopInOOHU2unit | DR64: H33PopInOOHU3to4Unit | DS64: H33PopInOOHU5to9Unit | DT64: H33PopInOOHU10to19Unit | DU64: H33PopInOOHU20to49Unit | DV64: H33PopInOOHU50PlusUnit | DW64: H33PopInOOHUMobilHome | DX64: H33PopInOOHUOtherUnit | DY64: H33PopInRentOccHU2 | DZ64: H33PopInROHU1Det | EA64: H33PopInROHU1Att | EB64: H33PopInROHU2Unit | EC64: H33PopInROHU3to4Unit | ED64: H33PopInROHU5to9Unit | EE64: H33PopInROHU10to19Unit | EF64: H33PopInROHU20to49Unit | EG64: H33PopInROHU50PlusUnit | EH64: H33PopInROHUMobilHome | EI64: H33PopInROHUOtherUnit | EJ64: H36OccHousingUnitsdTotal | EK64: H36OwnerOccHU4 | EL64: H36OOHUBuilt99to0300 | EM64: H36OOHUBuilt95to98 | EN64: H36OOHUBuilt90to94 | EO64: H36OOHUBuilt80to89 | EP64: H36OOHUBuilt70to79 | EQ64: H36OOHUBuilt60to69 | ER64: H36OOHUBuilt50to59 | ES64: H36OOHUBuilt40to49 | ET64: H36OOHUBuilt39Earlier | EU64: H36RentOccHU4 | EV64: H36ROHUBuilt99to0300 | EW64: H36ROHUBuilt95to98 | EX64: H36ROHUBuilt90to94 | EY64: H36ROHUBuilt80to89 | EZ64: H36ROHUBuilt70to79 | FA64: H36ROHUBuilt60to69 | FB64: H36ROHUBuilt50to59 | FC64: H36ROHUBuilt40to49 | FD64: H36ROHUBuilt39Earlier | FE64: H40OccupHousUnitse | FF64: H40HeatFuelUtilGas | FG64: H40HeatFuelBotGas | FH64: H40HeatFuelElect | FI64: H40HeatFuelOilKero | FJ64: H40HeatFuelCoal | FK64: H40HeatFuelWood | FL64: H40HeatFuelSolar | FM64: H40HeatFuelOther | FN64: H40HeatFuelNone | FO64: H41TotalHU | FP64: H41HUNoBdrm | FQ64: H41HU1Bdrm | FR64: H41HU2Bdrm | FS64: H41HU3Bdrm | FT64: H41HU4Bdrm | FU64: H41HU5MoreBdrm | FV64: H42OccuHousUnitf | FW64: H42OwnerOccHU5 | FX64: H42OOHUNoBdrm | FY64: H42OOHU1Bdrm | FZ64: H42OOHU2Bdrm | GA64: H42OOHU3Bdrm | GB64: H42OOHU4Bdrm | GC64: H42OOHU5PlusBdrm | GD64: H42RentOccHU5 | GE64: H42ROHUNoBdrm | GF64: H42ROHU1Bdrm | GG64: H42ROHU2Bdrm | GH64: H42ROHU3Bdrm | GI64: H42ROHU4Bdrm | GJ64: H42ROHU5PlusBdrm | GK64: H48OccupHousUnitsg | GL64: H48OwnerOccHU6 | GM64: H48OOHUwCompltPlumFacil | GN64: H48OOHULackCompltPlumFacil | GO64: H48RentOccHU6 | GP64: H48ROHUwCompltPlumFacil | GQ64: H48ROHULackCompltPlumFacil | GR64: H51OccupHousUnitf | GS64: H51OwnerOccHU7 | GT64: H51OOHUwCompleteKitFacil | GU64: H51OOHULackCompleteKitFacil | GV64: H51RenterOccHU7 | GW64: H51ROHUwCompleteKitFacil | GX64: H51ROHULackCompleteKitFacil
A65: =VLOOKUP(DropDownList!$B47,CntyQryCensus!$A$306:$GX$348,A$1) -> Rochester | B65: =VLOOKUP(DropDownList!$B47,CntyQryCensus!$A$306:$GX$348,B$1) -> 0003956 | C65: =VLOOKUP(DropDownList!$B47,CntyQryCensus!$A$306:$GX$348,C$1) -> 65140 | D65: =VLOOKUP(DropDownList!$B47,CntyQryCensus!$A$306:$GX$348,D$1) -> 28461 | E65: =VLOOKUP(DropDownList!$B47,CntyQryCensus!$A$306:$GX$348,E$1) -> 11836 | F65: =VLOOKUP(DropDownList!$B47,CntyQryCensus!$A$306:$GX$348,F$1) -> 1590 | G65: =VLOOKUP(DropDownList!$B47,CntyQryCensus!$A$306:$GX$348,G$1) -> 1542 | H65: =VLOOKUP(DropDownList!$B47,CntyQryCensus!$A$306:$GX$348,H$1) -> 48 | I65: =VLOOKUP(DropDownList!$B47,CntyQryCensus!$A$306:$GX$348,I$1) -> 11836 | J65: =VLOOKUP(DropDownList!$B47,CntyQryCensus!$A$306:$GX$348,J$1) -> 11836 | K65: =VLOOKUP(DropDownList!$B47,CntyQryCensus!$A$306:$GX$348,K$1) -> 9512 | L65: =VLOOKUP(DropDownList!$B47,CntyQryCensus!$A$306:$GX$348,L$1) -> 9512 | M65: =VLOOKUP(DropDownList!$B47,CntyQryCensus!$A$306:$GX$348,M$1) -> 0 | N65: =VLOOKUP(DropDownList!$B47,CntyQryCensus!$A$306:$GX$348,N$1) -> 2324 | O65: =VLOOKUP(DropDownList!$B47,CntyQryCensus!$A$306:$GX$348,O$1) -> 41 | P65: =VLOOKUP(DropDownList!$B47,CntyQryCensus!$A$306:$GX$348,P$1) -> 2283 | Q65: =VLOOKUP(DropDownList!$B47,CntyQryCensus!$A$306:$GX$348,Q$1) -> 11434 | R65: =VLOOKUP(DropDownList!$B47,CntyQryCensus!$A$306:$GX$348,R$1) -> 7637 | S65: =VLOOKUP(DropDownList!$B47,CntyQryCensus!$A$306:$GX$348,S$1) -> 3797 | T65: =VLOOKUP(DropDownList!$B47,CntyQryCensus!$A$306:$GX$348,T$1) -> 402 | U65: =VLOOKUP(DropDownList!$B47,CntyQryCensus!$A$306:$GX$348,U$1) -> 104 | V65: =VLOOKUP(DropDownList!$B47,CntyQryCensus!$A$306:$GX$348,V$1) -> 25 | W65: =VLOOKUP(DropDownList!$B47,CntyQryCensus!$A$306:$GX$348,W$1) -> 16 | X65: =VLOOKUP(DropDownList!$B47,CntyQryCensus!$A$306:$GX$348,X$1) -> 106 | Y65: =VLOOKUP(DropDownList!$B47,CntyQryCensus!$A$306:$GX$348,Y$1) -> 0 | Z65: =VLOOKUP(DropDownList!$B47,CntyQryCensus!$A$306:$GX$348,Z$1) -> 151 | AA65: =VLOOKUP(DropDownList!$B47,CntyQryCensus!$A$306:$GX$348,AA$1) -> 11434 | AB65: =VLOOKUP(DropDownList!$B47,CntyQryCensus!$A$306:$GX$348,AB$1) -> 7637 | AC65: =VLOOKUP(DropDownList!$B47,CntyQryCensus!$A$306:$GX$348,AC$1) -> 111 | AD65: =VLOOKUP(DropDownList!$B47,CntyQryCensus!$A$306:$GX$348,AD$1) -> 985 | AE65: =VLOOKUP(DropDownList!$B47,CntyQryCensus!$A$306:$GX$348,AE$1) -> 1835 | AF65: =VLOOKUP(DropDownList!$B47,CntyQryCensus!$A$306:$GX$348,AF$1) -> 1652 | AG65: =VLOOKUP(DropDownList!$B47,CntyQryCensus!$A$306:$GX$348,AG$1) -> 662 | AH65: =VLOOKUP(DropDownList!$B47,CntyQryCensus!$A$306:$GX$348,AH$1) -> 543 | AI65: =VLOOKUP(DropDownList!$B47,CntyQryCensus!$A$306:$GX$348,AI$1) -> 1089 | AJ65: =VLOOKUP(DropDownList!$B47,CntyQryCensus!$A$306:$GX$348,AJ$1) -> 646 | AK65: =VLOOKUP(DropDownList!$B47,CntyQryCensus!$A$306:$GX$348,AK$1) -> 114 | AL65: =VLOOKUP(DropDownList!$B47,CntyQryCensus!$A$306:$GX$348,AL$1) -> 3797 | AM65: =VLOOKUP(DropDownList!$B47,CntyQryCensus!$A$306:$GX$348,AM$1) -> 351 | AN65: =VLOOKUP(DropDownList!$B47,CntyQryCensus!$A$306:$GX$348,AN$1) -> 1068 | AO65: =VLOOKUP(DropDownList!$B47,CntyQryCensus!$A$306:$GX$348,AO$1) -> 935 | AP65: =VLOOKUP(DropDownList!$B47,CntyQryCensus!$A$306:$GX$348,AP$1) -> 516 | AQ65: =VLOOKUP(DropDownList!$B47,CntyQryCensus!$A$306:$GX$348,AQ$1) -> 160 | AR65: =VLOOKUP(DropDownList!$B47,CntyQryCensus!$A$306:$GX$348,AR$1) -> 118 | AS65: =VLOOKUP(DropDownList!$B47,CntyQryCensus!$A$306:$GX$348,AS$1) -> 296 | AT65: =VLOOKUP(DropDownList!$B47,CntyQryCensus!$A$306:$GX$348,AT$1) -> 237 | AU65: =VLOOKUP(DropDownList!$B47,CntyQryCensus!$A$306:$GX$348,AU$1) -> 116 | AV65: =VLOOKUP(DropDownList!$B47,CntyQryCensus!$A$306:$GX$348,AV$1) -> 28168 | AW65: =VLOOKUP(DropDownList!$B47,CntyQryCensus!$A$306:$GX$348,AW$1) -> 20039 | AX65: =VLOOKUP(DropDownList!$B47,CntyQryCensus!$A$306:$GX$348,AX$1) -> 8129 | AY65: =VLOOKUP(DropDownList!$B47,CntyQryCensus!$A$306:$GX$348,AY$1) -> 11434 | AZ65: =VLOOKUP(DropDownList!$B47,CntyQryCensus!$A$306:$GX$348,AZ$1) -> 7637 | BA65: =VLOOKUP(DropDownList!$B47,CntyQryCensus!$A$306:$GX$348,BA$1) -> 1506 | BB65: =VLOOKUP(DropDownList!$B47,CntyQryCensus!$A$306:$GX$348,BB$1) -> 2834 | BC65: =VLOOKUP(DropDownList!$B47,CntyQryCensus!$A$306:$GX$348,BC$1) -> 1401 | BD65: =VLOOKUP(DropDownList!$B47,CntyQryCensus!$A$306:$GX$348,BD$1) -> 1300 | BE65: =VLOOKUP(DropDownList!$B47,CntyQryCensus!$A$306:$GX$348,BE$1) -> 464 | BF65: =VLOOKUP(DropDownList!$B47,CntyQryCensus!$A$306:$GX$348,BF$1) -> 108 | BG65: =VLOOKUP(DropDownList!$B47,CntyQryCensus!$A$306:$GX$348,BG$1) -> 24 | BH65: =VLOOKUP(DropDownList!$B47,CntyQryCensus!$A$306:$GX$348,BH$1) -> 3797 | BI65: =VLOOKUP(DropDownList!$B47,CntyQryCensus!$A$306:$GX$348,BI$1) -> 1431 | BJ65: =VLOOKUP(DropDownList!$B47,CntyQryCensus!$A$306:$GX$348,BJ$1) -> 1166 | BK65: =VLOOKUP(DropDownList!$B47,CntyQryCensus!$A$306:$GX$348,BK$1) -> 556 | BL65: =VLOOKUP(DropDownList!$B47,CntyQryCensus!$A$306:$GX$348,BL$1) -> 370 | BM65: =VLOOKUP(DropDownList!$B47,CntyQryCensus!$A$306:$GX$348,BM$1) -> 185 | BN65: =VLOOKUP(DropDownList!$B47,CntyQryCensus!$A$306:$GX$348,BN$1) -> 89 | BO65: =VLOOKUP(DropDownList!$B47,CntyQryCensus!$A$306:$GX$348,BO$1) -> 0 | BP65: =VLOOKUP(DropDownList!$B47,CntyQryCensus!$A$306:$GX$348,BP$1) -> 2 | BQ65: =VLOOKUP(DropDownList!$B47,CntyQryCensus!$A$306:$GX$348,BQ$1) -> 3 | BR65: =VLOOKUP(DropDownList!$B47,CntyQryCensus!$A$306:$GX$348,BR$1) -> 2 | BS65: =VLOOKUP(DropDownList!$B47,CntyQryCensus!$A$306:$GX$348,BS$1) -> 11836 | BT65: =VLOOKUP(DropDownList!$B47,CntyQryCensus!$A$306:$GX$348,BT$1) -> 55 | BU65: =VLOOKUP(DropDownList!$B47,CntyQryCensus!$A$306:$GX$348,BU$1) -> 281 | BV65: =VLOOKUP(DropDownList!$B47,CntyQryCensus!$A$306:$GX$348,BV$1) -> 1391 | BW65: =VLOOKUP(DropDownList!$B47,CntyQryCensus!$A$306:$GX$348,BW$1) -> 2703 | BX65: =VLOOKUP(DropDownList!$B47,CntyQryCensus!$A$306:$GX$348,BX$1) -> 2850 | BY65: =VLOOKUP(DropDownList!$B47,CntyQryCensus!$A$306:$GX$348,BY$1) -> 2026 | BZ65: =VLOOKUP(DropDownList!$B47,CntyQryCensus!$A$306:$GX$348,BZ$1) -> 1263 | CA65: =VLOOKUP(DropDownList!$B47,CntyQryCensus!$A$306:$GX$348,CA$1) -> 751 | CB65: =VLOOKUP(DropDownList!$B47,CntyQryCensus!$A$306:$GX$348,CB$1) -> 516 | CC65: =VLOOKUP(DropDownList!$B47,CntyQryCensus!$A$306:$GX$348,CC$1) -> 5 | CD65: =VLOOKUP(DropDownList!$B47,CntyQryCensus!$A$306:$GX$348,CD$1) -> 62017 | CE65: =VLOOKUP(DropDownList!$B47,CntyQryCensus!$A$306:$GX$348,CE$1) -> 11836 | CF65: =VLOOKUP(DropDownList!$B47,CntyQryCensus!$A$306:$GX$348,CF$1) -> 5727 | CG65: =VLOOKUP(DropDownList!$B47,CntyQryCensus!$A$306:$GX$348,CG$1) -> 402 | CH65: =VLOOKUP(DropDownList!$B47,CntyQryCensus!$A$306:$GX$348,CH$1) -> 707 | CI65: =VLOOKUP(DropDownList!$B47,CntyQryCensus!$A$306:$GX$348,CI$1) -> 1133 | CJ65: =VLOOKUP(DropDownList!$B47,CntyQryCensus!$A$306:$GX$348,CJ$1) -> 890 | CK65: =VLOOKUP(DropDownList!$B47,CntyQryCensus!$A$306:$GX$348,CK$1) -> 169 | CL65: =VLOOKUP(DropDownList!$B47,CntyQryCensus!$A$306:$GX$348,CL$1) -> 351 | CM65: =VLOOKUP(DropDownList!$B47,CntyQryCensus!$A$306:$GX$348,CM$1) -> 212 | CN65: =VLOOKUP(DropDownList!$B47,CntyQryCensus!$A$306:$GX$348,CN$1) -> 2239 | CO65: =VLOOKUP(DropDownList!$B47,CntyQryCensus!$A$306:$GX$348,CO$1) -> 6 | CP65: =VLOOKUP(DropDownList!$B47,CntyQryCensus!$A$306:$GX$348,CP$1) -> 11434 | CQ65: =VLOOKUP(DropDownList!$B47,CntyQryCensus!$A$306:$GX$348,CQ$1) -> 7637 | CR65: =VLOOKUP(DropDownList!$B47,CntyQryCensus!$A$306:$GX$348,CR$1) -> 5154 | CS65: =VLOOKUP(DropDownList!$B47,CntyQryCensus!$A$306:$GX$348,CS$1) -> 277 | CT65: =VLOOKUP(DropDownList!$B47,CntyQryCensus!$A$306:$GX$348,CT$1) -> 164 | CU65: =VLOOKUP(DropDownList!$B47,CntyQryCensus!$A$306:$GX$348,CU$1) -> 91 | CV65: =VLOOKUP(DropDownList!$B47,CntyQryCensus!$A$306:$GX$348,CV$1) -> 65 | CW65: =VLOOKUP(DropDownList!$B47,CntyQryCensus!$A$306:$GX$348,CW$1) -> 0 | CX65: =VLOOKUP(DropDownList!$B47,CntyQryCensus!$A$306:$GX$348,CX$1) -> 9 | CY65: =VLOOKUP(DropDownList!$B47,CntyQryCensus!$A$306:$GX$348,CY$1) -> 0 | CZ65: =VLOOKUP(DropDownList!$B47,CntyQryCensus!$A$306:$GX$348,CZ$1) -> 1871 | DA65: =VLOOKUP(DropDownList!$B47,CntyQryCensus!$A$306:$GX$348,DA$1) -> 6 | DB65: =VLOOKUP(DropDownList!$B47,CntyQryCensus!$A$306:$GX$348,DB$1) -> 3797 | DC65: =VLOOKUP(DropDownList!$B47,CntyQryCensus!$A$306:$GX$348,DC$1) -> 467 | DD65: =VLOOKUP(DropDownList!$B47,CntyQryCensus!$A$306:$GX$348,DD$1) -> 125 | DE65: =VLOOKUP(DropDownList!$B47,CntyQryCensus!$A$306:$GX$348,DE$1) -> 527 | DF65: =VLOOKUP(DropDownList!$B47,CntyQryCensus!$A$306:$GX$348,DF$1) -> 963 | DG65: =VLOOKUP(DropDownList!$B47,CntyQryCensus!$A$306:$GX$348,DG$1) -> 750 | DH65: =VLOOKUP(DropDownList!$B47,CntyQryCensus!$A$306:$GX$348,DH$1) -> 165 | DI65: =VLOOKUP(DropDownList!$B47,CntyQryCensus!$A$306:$GX$348,DI$1) -> 342 | DJ65: =VLOOKUP(DropDownList!$B47,CntyQryCensus!$A$306:$GX$348,DJ$1) -> 200 | DK65: =VLOOKUP(DropDownList!$B47,CntyQryCensus!$A$306:$GX$348,DK$1) -> 258 | DL65: =VLOOKUP(DropDownList!$B47,CntyQryCensus!$A$306:$GX$348,DL$1) -> 0 | DM65: =VLOOKUP(DropDownList!$B47,CntyQryCensus!$A$306:$GX$348,DM$1) -> 28168 | DN65: =VLOOKUP(DropDownList!$B47,CntyQryCensus!$A$306:$GX$348,DN$1) -> 20039 | DO65: =VLOOKUP(DropDownList!$B47,CntyQryCensus!$A$306:$GX$348,DO$1) -> 14516 | DP65: =VLOOKUP(DropDownList!$B47,CntyQryCensus!$A$306:$GX$348,DP$1) -> 635 | DQ65: =VLOOKUP(DropDownList!$B47,CntyQryCensus!$A$306:$GX$348,DQ$1) -> 457 | DR65: =VLOOKUP(DropDownList!$B47,CntyQryCensus!$A$306:$GX$348,DR$1) -> 170 | DS65: =VLOOKUP(DropDownList!$B47,CntyQryCensus!$A$306:$GX$348,DS$1) -> 139 | DT65: =VLOOKUP(DropDownList!$B47,CntyQryCensus!$A$306:$GX$348,DT$1) -> 0 | DU65: =VLOOKUP(DropDownList!$B47,CntyQryCensus!$A$306:$GX$348,DU$1) -> 7 | DV65: =VLOOKUP(DropDownList!$B47,CntyQryCensus!$A$306:$GX$348,DV$1) -> 0 | DW65: =VLOOKUP(DropDownList!$B47,CntyQryCensus!$A$306:$GX$348,DW$1) -> 4105 | DX65: =VLOOKUP(DropDownList!$B47,CntyQryCensus!$A$306:$GX$348,DX$1) -> 10 | DY65: =VLOOKUP(DropDownList!$B47,CntyQryCensus!$A$306:$GX$348,DY$1) -> 8129 | DZ65: =VLOOKUP(DropDownList!$B47,CntyQryCensus!$A$306:$GX$348,DZ$1) -> 1271 | EA65: =VLOOKUP(DropDownList!$B47,CntyQryCensus!$A$306:$GX$348,EA$1) -> 236 | EB65: =VLOOKUP(DropDownList!$B47,CntyQryCensus!$A$306:$GX$348,EB$1) -> 1316 | EC65: =VLOOKUP(DropDownList!$B47,CntyQryCensus!$A$306:$GX$348,EC$1) -> 2168 | ED65: =VLOOKUP(DropDownList!$B47,CntyQryCensus!$A$306:$GX$348,ED$1) -> 1459 | EE65: =VLOOKUP(DropDownList!$B47,CntyQryCensus!$A$306:$GX$348,EE$1) -> 277 | EF65: =VLOOKUP(DropDownList!$B47,CntyQryCensus!$A$306:$GX$348,EF$1) -> 619 | EG65: =VLOOKUP(DropDownList!$B47,CntyQryCensus!$A$306:$GX$348,EG$1) -> 229 | EH65: =VLOOKUP(DropDownList!$B47,CntyQryCensus!$A$306:$GX$348,EH$1) -> 554 | EI65: =VLOOKUP(DropDownList!$B47,CntyQryCensus!$A$306:$GX$348,EI$1) -> 0 | EJ65: =VLOOKUP(DropDownList!$B47,CntyQryCensus!$A$306:$GX$348,EJ$1) -> 11434 | EK65: =VLOOKUP(DropDownList!$B47,CntyQryCensus!$A$306:$GX$348,EK$1) -> 7637 | EL65: =VLOOKUP(DropDownList!$B47,CntyQryCensus!$A$306:$GX$348,EL$1) -> 151 | EM65: =VLOOKUP(DropDownList!$B47,CntyQryCensus!$A$306:$GX$348,EM$1) -> 469 | EN65: =VLOOKUP(DropDownList!$B47,CntyQryCensus!$A$306:$GX$348,EN$1) -> 573 | EO65: =VLOOKUP(DropDownList!$B47,CntyQryCensus!$A$306:$GX$348,EO$1) -> 1841 | EP65: =VLOOKUP(DropDownList!$B47,CntyQryCensus!$A$306:$GX$348,EP$1) -> 1227 | EQ65: =VLOOKUP(DropDownList!$B47,CntyQryCensus!$A$306:$GX$348,EQ$1) -> 688 | ER65: =VLOOKUP(DropDownList!$B47,CntyQryCensus!$A$306:$GX$348,ER$1) -> 709 | ES65: =VLOOKUP(DropDownList!$B47,CntyQryCensus!$A$306:$GX$348,ES$1) -> 473 | ET65: =VLOOKUP(DropDownList!$B47,CntyQryCensus!$A$306:$GX$348,ET$1) -> 1506 | EU65: =VLOOKUP(DropDownList!$B47,CntyQryCensus!$A$306:$GX$348,EU$1) -> 3797 | EV65: =VLOOKUP(DropDownList!$B47,CntyQryCensus!$A$306:$GX$348,EV$1) -> 82 | EW65: =VLOOKUP(DropDownList!$B47,CntyQryCensus!$A$306:$GX$348,EW$1) -> 168 | EX65: =VLOOKUP(DropDownList!$B47,CntyQryCensus!$A$306:$GX$348,EX$1) -> 147 | EY65: =VLOOKUP(DropDownList!$B47,CntyQryCensus!$A$306:$GX$348,EY$1) -> 657 | EZ65: =VLOOKUP(DropDownList!$B47,CntyQryCensus!$A$306:$GX$348,EZ$1) -> 627 | FA65: =VLOOKUP(DropDownList!$B47,CntyQryCensus!$A$306:$GX$348,FA$1) -> 237 | FB65: =VLOOKUP(DropDownList!$B47,CntyQryCensus!$A$306:$GX$348,FB$1) -> 333 | FC65: =VLOOKUP(DropDownList!$B47,CntyQryCensus!$A$306:$GX$348,FC$1) -> 246 | FD65: =VLOOKUP(DropDownList!$B47,CntyQryCensus!$A$306:$GX$348,FD$1) -> 1300 | FE65: =VLOOKUP(DropDownList!$B47,CntyQryCensus!$A$306:$GX$348,FE$1) -> 11434 | FF65: =VLOOKUP(DropDownList!$B47,CntyQryCensus!$A$306:$GX$348,FF$1) -> 2273 | FG65: =VLOOKUP(DropDownList!$B47,CntyQryCensus!$A$306:$GX$348,FG$1) -> 1063 | FH65: =VLOOKUP(DropDownList!$B47,CntyQryCensus!$A$306:$GX$348,FH$1) -> 739 | FI65: =VLOOKUP(DropDownList!$B47,CntyQryCensus!$A$306:$GX$348,FI$1) -> 7069 | FJ65: =VLOOKUP(DropDownList!$B47,CntyQryCensus!$A$306:$GX$348,FJ$1) -> 7 | FK65: =VLOOKUP(DropDownList!$B47,CntyQryCensus!$A$306:$GX$348,FK$1) -> 188 | FL65: =VLOOKUP(DropDownList!$B47,CntyQryCensus!$A$306:$GX$348,FL$1) -> 0 | FM65: =VLOOKUP(DropDownList!$B47,CntyQryCensus!$A$306:$GX$348,FM$1) -> 54 | FN65: =VLOOKUP(DropDownList!$B47,CntyQryCensus!$A$306:$GX$348,FN$1) -> 41 | FO65: =VLOOKUP(DropDownList!$B47,CntyQryCensus!$A$306:$GX$348,FO$1) -> 11836 | FP65: =VLOOKUP(DropDownList!$B47,CntyQryCensus!$A$306:$GX$348,FP$1) -> 103 | FQ65: =VLOOKUP(DropDownList!$B47,CntyQryCensus!$A$306:$GX$348,FQ$1) -> 1671 | FR65: =VLOOKUP(DropDownList!$B47,CntyQryCensus!$A$306:$GX$348,FR$1) -> 4384 | FS65: =VLOOKUP(DropDownList!$B47,CntyQryCensus!$A$306:$GX$348,FS$1) -> 4227 | FT65: =VLOOKUP(DropDownList!$B47,CntyQryCensus!$A$306:$GX$348,FT$1) -> 1281 | FU65: =VLOOKUP(DropDownList!$B47,CntyQryCensus!$A$306:$GX$348,FU$1) -> 170 | FV65: =VLOOKUP(DropDownList!$B47,CntyQryCensus!$A$306:$GX$348,FV$1) -> 11434 | FW65: =VLOOKUP(DropDownList!$B47,CntyQryCensus!$A$306:$GX$348,FW$1) -> 7637 | FX65: =VLOOKUP(DropDownList!$B47,CntyQryCensus!$A$306:$GX$348,FX$1) -> 0 | FY65: =VLOOKUP(DropDownList!$B47,CntyQryCensus!$A$306:$GX$348,FY$1) -> 252 | FZ65: =VLOOKUP(DropDownList!$B47,CntyQryCensus!$A$306:$GX$348,FZ$1) -> 2561 | GA65: =VLOOKUP(DropDownList!$B47,CntyQryCensus!$A$306:$GX$348,GA$1) -> 3568 | GB65: =VLOOKUP(DropDownList!$B47,CntyQryCensus!$A$306:$GX$348,GB$1) -> 1111 | GC65: =VLOOKUP(DropDownList!$B47,CntyQryCensus!$A$306:$GX$348,GC$1) -> 145 | GD65: =VLOOKUP(DropDownList!$B47,CntyQryCensus!$A$306:$GX$348,GD$1) -> 3797 | GE65: =VLOOKUP(DropDownList!$B47,CntyQryCensus!$A$306:$GX$348,GE$1) -> 95 | GF65: =VLOOKUP(DropDownList!$B47,CntyQryCensus!$A$306:$GX$348,GF$1) -> 1315 | GG65: =VLOOKUP(DropDownList!$B47,CntyQryCensus!$A$306:$GX$348,GG$1) -> 1609 | GH65: =VLOOKUP(DropDownList!$B47,CntyQryCensus!$A$306:$GX$348,GH$1) -> 589 | GI65: =VLOOKUP(DropDownList!$B47,CntyQryCensus!$A$306:$GX$348,GI$1) -> 164 | GJ65: =VLOOKUP(DropDownList!$B47,CntyQryCensus!$A$306:$GX$348,GJ$1) -> 25 | GK65: =VLOOKUP(DropDownList!$B47,CntyQryCensus!$A$306:$GX$348,GK$1) -> 11434 | GL65: =VLOOKUP(DropDownList!$B47,CntyQryCensus!$A$306:$GX$348,GL$1) -> 7637 | GM65: =VLOOKUP(DropDownList!$B47,CntyQryCensus!$A$306:$GX$348,GM$1) -> 7572 | GN65: =VLOOKUP(DropDownList!$B47,CntyQryCensus!$A$306:$GX$348,GN$1) -> 65 | GO65: =VLOOKUP(DropDownList!$B47,CntyQryCensus!$A$306:$GX$348,GO$1) -> 3797 | GP65: =VLOOKUP(DropDownList!$B47,CntyQryCensus!$A$306:$GX$348,GP$1) -> 3776 | GQ65: =VLOOKUP(DropDownList!$B47,CntyQryCensus!$A$306:$GX$348,GQ$1) -> 21 | GR65: =VLOOKUP(DropDownList!$B47,CntyQryCensus!$A$306:$GX$348,GR$1) -> 11434 | GS65: =VLOOKUP(DropDownList!$B47,CntyQryCensus!$A$306:$GX$348,GS$1) -> 7637 | GT65: =VLOOKUP(DropDownList!$B47,CntyQryCensus!$A$306:$GX$348,GT$1) -> 7623 | GU65: =VLOOKUP(DropDownList!$B47,CntyQryCensus!$A$306:$GX$348,GU$1) -> 14 | GV65: =VLOOKUP(DropDownList!$B47,CntyQryCensus!$A$306:$GX$348,GV$1) -> 3797 | GW65: =VLOOKUP(DropDownList!$B47,CntyQryCensus!$A$306:$GX$348,GW$1) -> 3779 | GX65: =VLOOKUP(DropDownList!$B47,CntyQryCensus!$A$306:$GX$348,GX$1) -> 18
A68: Census 2000 SummaryFile3 Sample Data - SF3TownQry8HousingCostA
A69: NAME | B69: LOGRECNO | C69: COUNTY | D69: TotalPop | E69: H62RntrOccHU | F69: H62RntrOccHUwRent | G69: H62ROHUGRent<100 | H69: H62ROHUGRent100to149 | I69: H62ROHUGRent150to199 | J69: H62ROHUGRent200to249 | K69: H62ROHUGRent250to299 | L69: H62ROHUGRent300to349 | M69: H62ROHUGRent350to399 | N69: H62ROHUGRent400to449 | O69: H62ROHUGRent450to499 | P69: H62ROHUGRent500to549 | Q69: H62ROHUGRent550to599 | R69: H62ROHUGRent600to649 | S69: H62ROHUGRent650to699 | T69: H62ROHUGRent700to749 | U69: H62ROHUGRent750to799 | V69: H62ROHUGRent800to899 | W69: H62ROHUGRent900to999 | X69: H62ROHUGRent1000to1249 | Y69: H62ROHUGRent1250to1499 | Z69: H62ROHUGRent1500to1999 | AA69: H62ROHUGRent2000> | AB69: H62ROHUNoGRent | AC69: H63MedianGrossRnt | AD69: H69RenterOccHsU | AE69: H69GRnt<10PctHHInc | AF69: H69GRnt10to15PctHHInc | AG69: H69GRnt15to20PctHHInc | AH69: H69GRnt20to25PctHHInc | AI69: H69GRnt25to30PctHHInc | AJ69: H69GRnt30to35PctHHInc | AK69: H69GRnt35to40PctHHInc | AL69: H69GRnt40to50PctHHInc | AM69: H69GRnt>50PctHHInc | AN69: H69GRntPctNotcomputed | AO69: H73RenterOccHU | AP69: H73ROHUHhInc<10k | AQ69: H73ROHUHhInc<10kRnt<20pct | AR69: H73ROHUHhInc<10kRnt20to25pct | AS69: H73ROHUHhInc<10kRnt25to30pct | AT69: H73ROHUHhInc<10kRnt30to35pct | AU69: H73ROHUHhInc<10kRnt>35pct | AV69: H73ROHUHhInc<10kPctNotComput | AW69: H73ROHUHhInc10to20k | AX69: H73ROHUHhInc10to20kRnt<20pct | AY69: H73ROHUHhInc10to20kRnt20to25pct | AZ69: H73ROHUHhInc10to20kRnt25to30pct | BA69: H73ROHUHhInc10to20kRnt30to35pct | BB69: H73ROHUHhInc10to20kRnt>35pct | BC69: H73ROHUHhInc10to20kRntPctNC | BD69: H73ROHUHhInc20to35k | BE69: H73ROHUHhInc20to35kRnt<20pct | BF69: H73ROHUHhInc20to35kRnt20to25pct | BG69: H73ROHUHhInc20to35kRnt25to30pct | BH69: H73ROHUHhInc20to35kRnt30to35pct | BI69: H73ROHUHhInc20to35kRnt>35pct | BJ69: H73ROHUHhInc20to35kRntPctNC | BK69: H73ROHUHhInc35to40k | BL69: H73ROHUHhInc35to40kRnt<20pct | BM69: H73ROHUHhInc35to40kRnt20to25pct | BN69: H73ROHUHhInc35to40kRnt25to30pct | BO69: H73ROHUHhInc35to40kRnt30to35pct | BP69: H73ROHUHhInc35to40kRnt>35pct | BQ69: H73ROHUHhInc35to40kRntPctNC | BR69: H73ROHUHhInc50to75k | BS69: H73ROHUHhInc50to75kRnt<20pct | BT69: H73ROHUHhInc50to75kRnt20to25pct | BU69: H73ROHUHhInc50to75kRnt25to30pct | BV69: H73ROHUHhInc50to75kRnt30to35pct | BW69: H73ROHUHhInc50to75kRnt>35pct | BX69: H73ROHUHhInc50to75kRntPctNC | BY69: H73ROHUHhInc75to100k | BZ69: H73ROHUHhInc75to100kRnt<20pct | CA69: H73ROHUHhInc75to100kRnt20to25pct | CB69: H73ROHUHhInc75to100kRnt25to30pct | CC69: H73ROHUHhInc75to100kRnt30to35pct | CD69: H73ROHUHhInc75to100kRnt>35pct | CE69: H73ROHUHhInc75to100kRntPctNC | CF69: H73ROHUHhInc>100k | CG69: H73ROHUHhInc>100kRnt<20pct | CH69: H73ROHUHhInc>100kRnt20to25pct | CI69: H73ROHUHhInc>100kRnt25to30pct | CJ69: H73ROHUHhInc>100kRnt30to35pct | CK69: H73ROHUHhInc>100kRnt>35pct | CL69: H73ROHUHhInc>100kRntPctNC | CM69: H73ROHUHhInc>100kRntPctNC
A70: =VLOOKUP(DropDownList!$B$47,CntyQryCensus!$A$357:$CM$399,A$1) -> Rochester | B70: =VLOOKUP(DropDownList!$B$47,CntyQryCensus!$A$357:$CM$399,B$1) -> 0003956 | C70: =VLOOKUP(DropDownList!$B$47,CntyQryCensus!$A$357:$CM$399,C$1) -> 65140 | D70: =VLOOKUP(DropDownList!$B$47,CntyQryCensus!$A$357:$CM$399,D$1) -> 28461 | E70: =VLOOKUP(DropDownList!$B$47,CntyQryCensus!$A$357:$CM$399,E$1) -> 3777 | F70: =VLOOKUP(DropDownList!$B$47,CntyQryCensus!$A$357:$CM$399,F$1) -> 3666 | G70: =VLOOKUP(DropDownList!$B$47,CntyQryCensus!$A$357:$CM$399,G$1) -> 44 | H70: =VLOOKUP(DropDownList!$B$47,CntyQryCensus!$A$357:$CM$399,H$1) -> 108 | I70: =VLOOKUP(DropDownList!$B$47,CntyQryCensus!$A$357:$CM$399,I$1) -> 65 | J70: =VLOOKUP(DropDownList!$B$47,CntyQryCensus!$A$357:$CM$399,J$1) -> 101 | K70: =VLOOKUP(DropDownList!$B$47,CntyQryCensus!$A$357:$CM$399,K$1) -> 103 | L70: =VLOOKUP(DropDownList!$B$47,CntyQryCensus!$A$357:$CM$399,L$1) -> 112 | M70: =VLOOKUP(DropDownList!$B$47,CntyQryCensus!$A$357:$CM$399,M$1) -> 170 | N70: =VLOOKUP(DropDownList!$B$47,CntyQryCensus!$A$357:$CM$399,N$1) -> 164 | O70: =VLOOKUP(DropDownList!$B$47,CntyQryCensus!$A$357:$CM$399,O$1) -> 280 | P70: =VLOOKUP(DropDownList!$B$47,CntyQryCensus!$A$357:$CM$399,P$1) -> 340 | Q70: =VLOOKUP(DropDownList!$B$47,CntyQryCensus!$A$357:$CM$399,Q$1) -> 340 | R70: =VLOOKUP(DropDownList!$B$47,CntyQryCensus!$A$357:$CM$399,R$1) -> 358 | S70: =VLOOKUP(DropDownList!$B$47,CntyQryCensus!$A$357:$CM$399,S$1) -> 450 | T70: =VLOOKUP(DropDownList!$B$47,CntyQryCensus!$A$357:$CM$399,T$1) -> 255 | U70: =VLOOKUP(DropDownList!$B$47,CntyQryCensus!$A$357:$CM$399,U$1) -> 238 | V70: =VLOOKUP(DropDownList!$B$47,CntyQryCensus!$A$357:$CM$399,V$1) -> 273 | W70: =VLOOKUP(DropDownList!$B$47,CntyQryCensus!$A$357:$CM$399,W$1) -> 84 | X70: =VLOOKUP(DropDownList!$B$47,CntyQryCensus!$A$357:$CM$399,X$1) -> 137 | Y70: =VLOOKUP(DropDownList!$B$47,CntyQryCensus!$A$357:$CM$399,Y$1) -> 37 | Z70: =VLOOKUP(DropDownList!$B$47,CntyQryCensus!$A$357:$CM$399,Z$1) -> 0 | AA70: =VLOOKUP(DropDownList!$B$47,CntyQryCensus!$A$357:$CM$399,AA$1) -> 7 | AB70: =VLOOKUP(DropDownList!$B$47,CntyQryCensus!$A$357:$CM$399,AB$1) -> 111 | AC70: =VLOOKUP(DropDownList!$B$47,CntyQryCensus!$A$357:$CM$399,AC$1) -> 601 | AD70: =VLOOKUP(DropDownList!$B$47,CntyQryCensus!$A$357:$CM$399,AD$1) -> 3777 | AE70: =VLOOKUP(DropDownList!$B$47,CntyQryCensus!$A$357:$CM$399,AE$1) -> 212 | AF70: =VLOOKUP(DropDownList!$B$47,CntyQryCensus!$A$357:$CM$399,AF$1) -> 448 | AG70: =VLOOKUP(DropDownList!$B$47,CntyQryCensus!$A$357:$CM$399,AG$1) -> 594 | AH70: =VLOOKUP(DropDownList!$B$47,CntyQryCensus!$A$357:$CM$399,AH$1) -> 464 | AI70: =VLOOKUP(DropDownList!$B$47,CntyQryCensus!$A$357:$CM$399,AI$1) -> 519 | AJ70: =VLOOKUP(DropDownList!$B$47,CntyQryCensus!$A$357:$CM$399,AJ$1) -> 267 | AK70: =VLOOKUP(DropDownList!$B$47,CntyQryCensus!$A$357:$CM$399,AK$1) -> 209 | AL70: =VLOOKUP(DropDownList!$B$47,CntyQryCensus!$A$357:$CM$399,AL$1) -> 232 | AM70: =VLOOKUP(DropDownList!$B$47,CntyQryCensus!$A$357:$CM$399,AM$1) -> 682 | AN70: =VLOOKUP(DropDownList!$B$47,CntyQryCensus!$A$357:$CM$399,AN$1) -> 150 | AO70: =VLOOKUP(DropDownList!$B$47,CntyQryCensus!$A$357:$CM$399,AO$1) -> 3777 | AP70: =VLOOKUP(DropDownList!$B$47,CntyQryCensus!$A$357:$CM$399,AP$1) -> 575 | AQ70: =VLOOKUP(DropDownList!$B$47,CntyQryCensus!$A$357:$CM$399,AQ$1) -> 25 | AR70: =VLOOKUP(DropDownList!$B$47,CntyQryCensus!$A$357:$CM$399,AR$1) -> 56 | AS70: =VLOOKUP(DropDownList!$B$47,CntyQryCensus!$A$357:$CM$399,AS$1) -> 37 | AT70: =VLOOKUP(DropDownList!$B$47,CntyQryCensus!$A$357:$CM$399,AT$1) -> 0 | AU70: =VLOOKUP(DropDownList!$B$47,CntyQryCensus!$A$357:$CM$399,AU$1) -> 423 | AV70: =VLOOKUP(DropDownList!$B$47,CntyQryCensus!$A$357:$CM$399,AV$1) -> 34 | AW70: =VLOOKUP(DropDownList!$B$47,CntyQryCensus!$A$357:$CM$399,AW$1) -> 740 | AX70: =VLOOKUP(DropDownList!$B$47,CntyQryCensus!$A$357:$CM$399,AX$1) -> 83 | AY70: =VLOOKUP(DropDownList!$B$47,CntyQryCensus!$A$357:$CM$399,AY$1) -> 46 | AZ70: =VLOOKUP(DropDownList!$B$47,CntyQryCensus!$A$357:$CM$399,AZ$1) -> 79 | BA70: =VLOOKUP(DropDownList!$B$47,CntyQryCensus!$A$357:$CM$399,BA$1) -> 57 | BB70: =VLOOKUP(DropDownList!$B$47,CntyQryCensus!$A$357:$CM$399,BB$1) -> 459 | BC70: =VLOOKUP(DropDownList!$B$47,CntyQryCensus!$A$357:$CM$399,BC$1) -> 16 | BD70: =VLOOKUP(DropDownList!$B$47,CntyQryCensus!$A$357:$CM$399,BD$1) -> 1016 | BE70: =VLOOKUP(DropDownList!$B$47,CntyQryCensus!$A$357:$CM$399,BE$1) -> 180 | BF70: =VLOOKUP(DropDownList!$B$47,CntyQryCensus!$A$357:$CM$399,BF$1) -> 150 | BG70: =VLOOKUP(DropDownList!$B$47,CntyQryCensus!$A$357:$CM$399,BG$1) -> 259 | BH70: =VLOOKUP(DropDownList!$B$47,CntyQryCensus!$A$357:$CM$399,BH$1) -> 166 | BI70: =VLOOKUP(DropDownList!$B$47,CntyQryCensus!$A$357:$CM$399,BI$1) -> 212 | BJ70: =VLOOKUP(DropDownList!$B$47,CntyQryCensus!$A$357:$CM$399,BJ$1) -> 49 | BK70: =VLOOKUP(DropDownList!$B$47,CntyQryCensus!$A$357:$CM$399,BK$1) -> 751 | BL70: =VLOOKUP(DropDownList!$B$47,CntyQryCensus!$A$357:$CM$399,BL$1) -> 339 | BM70: =VLOOKUP(DropDownList!$B$47,CntyQryCensus!$A$357:$CM$399,BM$1) -> 188 | BN70: =VLOOKUP(DropDownList!$B$47,CntyQryCensus!$A$357:$CM$399,BN$1) -> 136 | BO70: =VLOOKUP(DropDownList!$B$47,CntyQryCensus!$A$357:$CM$399,BO$1) -> 44 | BP70: =VLOOKUP(DropDownList!$B$47,CntyQryCensus!$A$357:$CM$399,BP$1) -> 29 | BQ70: =VLOOKUP(DropDownList!$B$47,CntyQryCensus!$A$357:$CM$399,BQ$1) -> 15 | BR70: =VLOOKUP(DropDownList!$B$47,CntyQryCensus!$A$357:$CM$399,BR$1) -> 486 | BS70: =VLOOKUP(DropDownList!$B$47,CntyQryCensus!$A$357:$CM$399,BS$1) -> 439 | BT70: =VLOOKUP(DropDownList!$B$47,CntyQryCensus!$A$357:$CM$399,BT$1) -> 16 | BU70: =VLOOKUP(DropDownList!$B$47,CntyQryCensus!$A$357:$CM$399,BU$1) -> 8 | BV70: =VLOOKUP(DropDownList!$B$47,CntyQryCensus!$A$357:$CM$399,BV$1) -> 0 | BW70: =VLOOKUP(DropDownList!$B$47,CntyQryCensus!$A$357:$CM$399,BW$1) -> 0 | BX70: =VLOOKUP(DropDownList!$B$47,CntyQryCensus!$A$357:$CM$399,BX$1) -> 23 | BY70: =VLOOKUP(DropDownList!$B$47,CntyQryCensus!$A$357:$CM$399,BY$1) -> 135 | BZ70: =VLOOKUP(DropDownList!$B$47,CntyQryCensus!$A$357:$CM$399,BZ$1) -> 119 | CA70: =VLOOKUP(DropDownList!$B$47,CntyQryCensus!$A$357:$CM$399,CA$1) -> 8 | CB70: =VLOOKUP(DropDownList!$B$47,CntyQryCensus!$A$357:$CM$399,CB$1) -> 0 | CC70: =VLOOKUP(DropDownList!$B$47,CntyQryCensus!$A$357:$CM$399,CC$1) -> 0 | CD70: =VLOOKUP(DropDownList!$B$47,CntyQryCensus!$A$357:$CM$399,CD$1) -> 0 | CE70: =VLOOKUP(DropDownList!$B$47,CntyQryCensus!$A$357:$CM$399,CE$1) -> 8 | CF70: =VLOOKUP(DropDownList!$B$47,CntyQryCensus!$A$357:$CM$399,CF$1) -> 74 | CG70: =VLOOKUP(DropDownList!$B$47,CntyQryCensus!$A$357:$CM$399,CG$1) -> 69 | CH70: =VLOOKUP(DropDownList!$B$47,CntyQryCensus!$A$357:$CM$399,CH$1) -> 0 | CI70: =VLOOKUP(DropDownList!$B$47,CntyQryCensus!$A$357:$CM$399,CI$1) -> 0 | CJ70: =VLOOKUP(DropDownList!$B$47,CntyQryCensus!$A$357:$CM$399,CJ$1) -> 0 | CK70: =VLOOKUP(DropDownList!$B$47,CntyQryCensus!$A$357:$CM$399,CK$1) -> 0 | CL70: =VLOOKUP(DropDownList!$B$47,CntyQryCensus!$A$357:$CM$399,CL$1) -> 5 | CM70: =VLOOKUP(DropDownList!$B$47,CntyQryCensus!$A$357:$CM$399,CM$1) -> 0
A73: Census 2000 SummaryFile3 Sample Data - SF3TownQry8HousingCostB
A74: NAME | B74: LOGRECNO | C74: COUNTY | D74: TotalPop | E74: H74SpecOwnerOccHU | F74: H74OOHU<10k | G74: H74OOHU10to15k | H74: H74OOHU15to20k | I74: H74OOHU20to25k | J74: H74OOHU25to30k | K74: H74OOHU30to35k | L74: H74OOHU35to40k | M74: H74OOHU40to50k | N74: H74OOHU50to60k | O74: H74OOHU60to70k | P74: H74OOHU70to80k | Q74: H74OOHU80to90k | R74: H74OOHU90to100k | S74: H74OOHU100to125k | T74: H74OOHU125to150k | U74: H74OOHU150to175k | V74: H74OOHU175to200k | W74: H74OOHU200to250k | X74: H74OOHU250to300k | Y74: H74OOHU300to400k | Z74: H74OOHU400to500k | AA74: H74OOHU500to750k | AB74: H74OOHU750to1000k | AC74: H74OOHU1000kmore | AD74: H76OOHUMedianVal | AE74: H84OwnerOccHU | AF74: H84AllOOHU<10k | AG74: H84AllOOHU10to15k | AH74: H84AllOOHU15to20k | AI74: H84AllOOHU20to25k | AJ74: H84AllOOHU25to30k | AK74: H84AllOOHU30to35k | AL74: H84AllOOHU35to40k | AM74: H84AllOOHU40to50k | AN74: H84AllOOHU50to60k | AO74: H84AllOOHU60to70k | AP74: H84AllOOHU70to80k | AQ74: H84AllOOHU80to90k | AR74: H84AllOOHU90to100k | AS74: H84AllOOHU100to125k | AT74: H84AllOOHU125to150k | AU74: H84AllOOHU150to175k | AV74: H84AllOOHU175to200k | AW74: H84AllOOHU200to250k | AX74: H84AllOOHU250to300k | AY74: H84AllOOHU300to400k | AZ74: H84AllOOHU400to500k | BA74: H84AllOOHU500to750k | BB74: H84AllOOHU750to1000k | BC74: H84AllOOHU1000kmore | BD74: H85OOHUMedVal | BE74: H90SOOHU | BF74: H90HUwMorgt | BG74: H90HUwMtgHC<200 | BH74: H90HUwMtgHC200to300 | BI74: H90HUwMtgHC300to400 | BJ74: H90HUwMtgHC400to500 | BK74: H90HUwMtgHC500to600 | BL74: H90HUwMtgHC600to700 | BM74: H90HUwMtgHC700to800 | BN74: H90HUwMtgHC800to900 | BO74: H90HUwMtgHC900to1000 | BP74: H90HUwMtgHC1000to1250 | BQ74: H90HUwMtgHC1250to1500 | BR74: H90HUwMtgHC1500to2000 | BS74: H90HUwMtgHC2000to2500 | BT74: H90HUwMtgHC2500to3000 | BU74: H90HUwMtgHC3000orMore | BV74: H90HUwOutMorgt | BW74: H90HUwOutMtgHC<100 | BX74: H90HUwOutMtgHC100to150 | BY74: H90HUwOutMtgHC150to200 | BZ74: H90HUwOutMtgHC200to250 | CA74: H90HUwOutMtgHC250to300 | CB74: H90HUwOutMtgHC300to350 | CC74: H90HUwOutMtgHC350to400 | CD74: H90HUwOutMtgHC400to500 | CE74: H90HUwOutMtgHC500to600 | CF74: H90HUwOutMtgHC600to700 | CG74: H90HUwOutMtgHC700to800 | CH74: H90HUwOutMtgHC800to900 | CI74: H90HUwOutMtgHC900to1000 | CJ74: H90HUwOutMtgHC1000orMore | CK74: H91MedianOCHUwMtg | CL74: H91MedianOCHUwOutMtg | CM74: H94SpecOOHU | CN74: H94HUwMortg | CO74: H94HUwMtgHC<10pct | CP74: H94HUwMtgHC10to15pct | CQ74: H94HUwMtgHC15to20pct | CR74: H94HUwMtgHC20to25pct | CS74: H94HUwMtgHC25to30pct | CT74: H94HUwMtgHC30to35pct | CU74: H94HUwMtgHC35to40pct | CV74: H94HUwMtgHC40to50pct | CW74: H94HUwMtgHC50pctOrMore | CX74: H94HUwMtgHCpctNotComp | CY74: H94HUWOutMortg | CZ74: H94HUWOutMortgHC<10pct | DA74: H94HUWOutMortgHC10to15pct | DB74: H94HUWOutMortgHC15to20pct | DC74: H94HUWOutMortgHC20to25pct | DD74: H94HUWOutMortgHC25to30pct | DE74: H94HUWOutMortgHC30to35pct | DF74: H94HUWOutMortgHC35to40pct | DG74: H94HUWOutMortgHC40to50pct | DH74: H94HUWOutMortgHC50pctOrMore | DI74: H94HUWOutMortgHCpctNotComp | DJ74: H97SpecifOwnOccHU | DK74: H97SOOHUInc<10k | DL74: H97SOOHUInc<10kHC<20pct | DM74: H97SOOHUInc<10kHC20to25pct | DN74: H97SOOHUInc<10kHC25to30pct | DO74: H97SOOHUInc<10kHC30to35pct | DP74: H97SOOHUInc<10kHC>35pct | DQ74: H97SOOHUInc<10kHCpctNotComput | DR74: H97SOOHUInc10to20k | DS74: H97SOOHUInc10to20kHC<20pct | DT74: H97SOOHUInc10to20kHC20to25pct | DU74: H97SOOHUInc10to20kHC25to30pct | DV74: H97SOOHUInc10to20kHC30to35pct | DW74: H97SOOHUInc10to20kHC>35pct | DX74: H97SOOHUInc10to20kHCpctNotComput | DY74: H97SOOHUInc20to35k | DZ74: H97SOOHUInc20to35kRC<20pct | EA74: H97SOOHUInc20to35kRC20to25pct | EB74: H97SOOHUInc20to35kRC25to30pct | EC74: H97SOOHUInc20to35kRC30to35pct | ED74: H97SOOHUInc20to35kRC>35pct | EE74: H97SOOHUInc20to35kRCpctNotComput | EF74: H97SOOHUInc35to50k | EG74: H97SOOHUInc35to50kRC<20pct | EH74: H97SOOHUInc35to50kRC20to25pct | EI74: H97SOOHUInc35to50kRC25to30pct | EJ74: H97SOOHUInc35to50kRC30to35pct | EK74: H97SOOHUInc35to50kRC>35pct | EL74: H97SOOHUInc35to50kRCpctNotCompute | EM74: H97SOOHUInc50to75k | EN74: H97SOOHUInc50to75kRC<20pct | EO74: H97SOOHUInc50to75kRC20to25pct | EP74: H97SOOHUInc50to75kRC25to30pct | EQ74: H97SOOHUInc50to75kRC30to35pct | ER74: H97SOOHUInc50to75kRC>35pct | ES74: H97SOOHUInc50to75kRCpctNotComput | ET74: H97SOOHUInc75to100k | EU74: H97SOOHUInc75to100kRC<20pct | EV74: H97SOOHUInc75to100kRC20to25pct | EW74: H97SOOHUInc75to100kRC25to30pct | EX74: H97SOOHUInc75to100kRC30to35pct | EY74: H97SOOHUInc75to100kRC>35pct | EZ74: H97SOOHUInc75to100kRCpctNotCompute | FA74: H97SOOHUInc100to150k | FB74: H97SOOHUInc100to150kRC<20pct | FC74: H97SOOHUInc100to150kRC20to25pct | FD74: H97SOOHUInc100to150kRC25to30pct | FE74: H97SOOHUInc100to150kRC30to35pct | FF74: H97SOOHUInc100to150kRC>35pct | FG74: H97SOOHUInc100to150kRCpctNotCompute | FH74: H97SOOHUInc>150k | FI74: H97SOOHUInc>150kRC<20pct | FJ74: H97SOOHUInc>150kRC20to25pct | FK74: H97SOOHUInc>150kRC25to30pct | FL74: H97SOOHUInc>150kRC30to35pct | FM74: H97SOOHUInc>150kRC>35pct | FN74: H97SOOHUInc>150kRCpctNotCompute
A75: =VLOOKUP(DropDownList!$B$47,CntyQryCensus!$A$408:$FN$450,A$1) -> Rochester | B75: =VLOOKUP(DropDownList!$B$47,CntyQryCensus!$A$408:$FN$450,B$1) -> 0003956 | C75: =VLOOKUP(DropDownList!$B$47,CntyQryCensus!$A$408:$FN$450,C$1) -> 65140 | D75: =VLOOKUP(DropDownList!$B$47,CntyQryCensus!$A$408:$FN$450,D$1) -> 28461 | E75: =VLOOKUP(DropDownList!$B$47,CntyQryCensus!$A$408:$FN$450,E$1) -> 4928 | F75: =VLOOKUP(DropDownList!$B$47,CntyQryCensus!$A$408:$FN$450,F$1) -> 0 | G75: =VLOOKUP(DropDownList!$B$47,CntyQryCensus!$A$408:$FN$450,G$1) -> 6 | H75: =VLOOKUP(DropDownList!$B$47,CntyQryCensus!$A$408:$FN$450,H$1) -> 0 | I75: =VLOOKUP(DropDownList!$B$47,CntyQryCensus!$A$408:$FN$450,I$1) -> 8 | J75: =VLOOKUP(DropDownList!$B$47,CntyQryCensus!$A$408:$FN$450,J$1) -> 7 | K75: =VLOOKUP(DropDownList!$B$47,CntyQryCensus!$A$408:$FN$450,K$1) -> 14 | L75: =VLOOKUP(DropDownList!$B$47,CntyQryCensus!$A$408:$FN$450,L$1) -> 0 | M75: =VLOOKUP(DropDownList!$B$47,CntyQryCensus!$A$408:$FN$450,M$1) -> 33 | N75: =VLOOKUP(DropDownList!$B$47,CntyQryCensus!$A$408:$FN$450,N$1) -> 107 | O75: =VLOOKUP(DropDownList!$B$47,CntyQryCensus!$A$408:$FN$450,O$1) -> 357 | P75: =VLOOKUP(DropDownList!$B$47,CntyQryCensus!$A$408:$FN$450,P$1) -> 487 | Q75: =VLOOKUP(DropDownList!$B$47,CntyQryCensus!$A$408:$FN$450,Q$1) -> 765 | R75: =VLOOKUP(DropDownList!$B$47,CntyQryCensus!$A$408:$FN$450,R$1) -> 726 | S75: =VLOOKUP(DropDownList!$B$47,CntyQryCensus!$A$408:$FN$450,S$1) -> 1087 | T75: =VLOOKUP(DropDownList!$B$47,CntyQryCensus!$A$408:$FN$450,T$1) -> 693 | U75: =VLOOKUP(DropDownList!$B$47,CntyQryCensus!$A$408:$FN$450,U$1) -> 329 | V75: =VLOOKUP(DropDownList!$B$47,CntyQryCensus!$A$408:$FN$450,V$1) -> 98 | W75: =VLOOKUP(DropDownList!$B$47,CntyQryCensus!$A$408:$FN$450,W$1) -> 124 | X75: =VLOOKUP(DropDownList!$B$47,CntyQryCensus!$A$408:$FN$450,X$1) -> 49 | Y75: =VLOOKUP(DropDownList!$B$47,CntyQryCensus!$A$408:$FN$450,Y$1) -> 27 | Z75: =VLOOKUP(DropDownList!$B$47,CntyQryCensus!$A$408:$FN$450,Z$1) -> 11 | AA75: =VLOOKUP(DropDownList!$B$47,CntyQryCensus!$A$408:$FN$450,AA$1) -> 0 | AB75: =VLOOKUP(DropDownList!$B$47,CntyQryCensus!$A$408:$FN$450,AB$1) -> 0 | AC75: =VLOOKUP(DropDownList!$B$47,CntyQryCensus!$A$408:$FN$450,AC$1) -> 0 | AD75: =VLOOKUP(DropDownList!$B$47,CntyQryCensus!$A$408:$FN$450,AD$1) -> 99400 | AE75: =VLOOKUP(DropDownList!$B$47,CntyQryCensus!$A$408:$FN$450,AE$1) -> 7637 | AF75: =VLOOKUP(DropDownList!$B$47,CntyQryCensus!$A$408:$FN$450,AF$1) -> 130 | AG75: =VLOOKUP(DropDownList!$B$47,CntyQryCensus!$A$408:$FN$450,AG$1) -> 140 | AH75: =VLOOKUP(DropDownList!$B$47,CntyQryCensus!$A$408:$FN$450,AH$1) -> 260 | AI75: =VLOOKUP(DropDownList!$B$47,CntyQryCensus!$A$408:$FN$450,AI$1) -> 252 | AJ75: =VLOOKUP(DropDownList!$B$47,CntyQryCensus!$A$408:$FN$450,AJ$1) -> 212 | AK75: =VLOOKUP(DropDownList!$B$47,CntyQryCensus!$A$408:$FN$450,AK$1) -> 229 | AL75: =VLOOKUP(DropDownList!$B$47,CntyQryCensus!$A$408:$FN$450,AL$1) -> 180 | AM75: =VLOOKUP(DropDownList!$B$47,CntyQryCensus!$A$408:$FN$450,AM$1) -> 164 | AN75: =VLOOKUP(DropDownList!$B$47,CntyQryCensus!$A$408:$FN$450,AN$1) -> 261 | AO75: =VLOOKUP(DropDownList!$B$47,CntyQryCensus!$A$408:$FN$450,AO$1) -> 496 | AP75: =VLOOKUP(DropDownList!$B$47,CntyQryCensus!$A$408:$FN$450,AP$1) -> 682 | AQ75: =VLOOKUP(DropDownList!$B$47,CntyQryCensus!$A$408:$FN$450,AQ$1) -> 876 | AR75: =VLOOKUP(DropDownList!$B$47,CntyQryCensus!$A$408:$FN$450,AR$1) -> 861 | AS75: =VLOOKUP(DropDownList!$B$47,CntyQryCensus!$A$408:$FN$450,AS$1) -> 1329 | AT75: =VLOOKUP(DropDownList!$B$47,CntyQryCensus!$A$408:$FN$450,AT$1) -> 771 | AU75: =VLOOKUP(DropDownList!$B$47,CntyQryCensus!$A$408:$FN$450,AU$1) -> 387 | AV75: =VLOOKUP(DropDownList!$B$47,CntyQryCensus!$A$408:$FN$450,AV$1) -> 134 | AW75: =VLOOKUP(DropDownList!$B$47,CntyQryCensus!$A$408:$FN$450,AW$1) -> 150 | AX75: =VLOOKUP(DropDownList!$B$47,CntyQryCensus!$A$408:$FN$450,AX$1) -> 61 | AY75: =VLOOKUP(DropDownList!$B$47,CntyQryCensus!$A$408:$FN$450,AY$1) -> 34 | AZ75: =VLOOKUP(DropDownList!$B$47,CntyQryCensus!$A$408:$FN$450,AZ$1) -> 22 | BA75: =VLOOKUP(DropDownList!$B$47,CntyQryCensus!$A$408:$FN$450,BA$1) -> 6 | BB75: =VLOOKUP(DropDownList!$B$47,CntyQryCensus!$A$408:$FN$450,BB$1) -> 0 | BC75: =VLOOKUP(DropDownList!$B$47,CntyQryCensus!$A$408:$FN$450,BC$1) -> 0 | BD75: =VLOOKUP(DropDownList!$B$47,CntyQryCensus!$A$408:$FN$450,BD$1) -> 89300 | BE75: =VLOOKUP(DropDownList!$B$47,CntyQryCensus!$A$408:$FN$450,BE$1) -> 4928 | BF75: =VLOOKUP(DropDownList!$B$47,CntyQryCensus!$A$408:$FN$450,BF$1) -> 3576 | BG75: =VLOOKUP(DropDownList!$B$47,CntyQryCensus!$A$408:$FN$450,BG$1) -> 0 | BH75: =VLOOKUP(DropDownList!$B$47,CntyQryCensus!$A$408:$FN$450,BH$1) -> 15 | BI75: =VLOOKUP(DropDownList!$B$47,CntyQryCensus!$A$408:$FN$450,BI$1) -> 7 | BJ75: =VLOOKUP(DropDownList!$B$47,CntyQryCensus!$A$408:$FN$450,BJ$1) -> 55 | BK75: =VLOOKUP(DropDownList!$B$47,CntyQryCensus!$A$408:$FN$450,BK$1) -> 93 | BL75: =VLOOKUP(DropDownList!$B$47,CntyQryCensus!$A$408:$FN$450,BL$1) -> 188 | BM75: =VLOOKUP(DropDownList!$B$47,CntyQryCensus!$A$408:$FN$450,BM$1) -> 324 | BN75: =VLOOKUP(DropDownList!$B$47,CntyQryCensus!$A$408:$FN$450,BN$1) -> 480 | BO75: =VLOOKUP(DropDownList!$B$47,CntyQryCensus!$A$408:$FN$450,BO$1) -> 478 | BP75: =VLOOKUP(DropDownList!$B$47,CntyQryCensus!$A$408:$FN$450,BP$1) -> 1039 | BQ75: =VLOOKUP(DropDownList!$B$47,CntyQryCensus!$A$408:$FN$450,BQ$1) -> 502 | BR75: =VLOOKUP(DropDownList!$B$47,CntyQryCensus!$A$408:$FN$450,BR$1) -> 268 | BS75: =VLOOKUP(DropDownList!$B$47,CntyQryCensus!$A$408:$FN$450,BS$1) -> 104 | BT75: =VLOOKUP(DropDownList!$B$47,CntyQryCensus!$A$408:$FN$450,BT$1) -> 9 | BU75: =VLOOKUP(DropDownList!$B$47,CntyQryCensus!$A$408:$FN$450,BU$1) -> 14 | BV75: =VLOOKUP(DropDownList!$B$47,CntyQryCensus!$A$408:$FN$450,BV$1) -> 1352 | BW75: =VLOOKUP(DropDownList!$B$47,CntyQryCensus!$A$408:$FN$450,BW$1) -> 0 | BX75: =VLOOKUP(DropDownList!$B$47,CntyQryCensus!$A$408:$FN$450,BX$1) -> 0 | BY75: =VLOOKUP(DropDownList!$B$47,CntyQryCensus!$A$408:$FN$450,BY$1) -> 14 | BZ75: =VLOOKUP(DropDownList!$B$47,CntyQryCensus!$A$408:$FN$450,BZ$1) -> 60 | CA75: =VLOOKUP(DropDownList!$B$47,CntyQryCensus!$A$408:$FN$450,CA$1) -> 138 | CB75: =VLOOKUP(DropDownList!$B$47,CntyQryCensus!$A$408:$FN$450,CB$1) -> 233 | CC75: =VLOOKUP(DropDownList!$B$47,CntyQryCensus!$A$408:$FN$450,CC$1) -> 269 | CD75: =VLOOKUP(DropDownList!$B$47,CntyQryCensus!$A$408:$FN$450,CD$1) -> 340 | CE75: =VLOOKUP(DropDownList!$B$47,CntyQryCensus!$A$408:$FN$450,CE$1) -> 215 | CF75: =VLOOKUP(DropDownList!$B$47,CntyQryCensus!$A$408:$FN$450,CF$1) -> 61 | CG75: =VLOOKUP(DropDownList!$B$47,CntyQryCensus!$A$408:$FN$450,CG$1) -> 22 | CH75: =VLOOKUP(DropDownList!$B$47,CntyQryCensus!$A$408:$FN$450,CH$1) -> 0 | CI75: =VLOOKUP(DropDownList!$B$47,CntyQryCensus!$A$408:$FN$450,CI$1) -> 0 | CJ75: =VLOOKUP(DropDownList!$B$47,CntyQryCensus!$A$408:$FN$450,CJ$1) -> 0 | CK75: =VLOOKUP(DropDownList!$B$47,CntyQryCensus!$A$408:$FN$450,CK$1) -> 1036 | CL75: =VLOOKUP(DropDownList!$B$47,CntyQryCensus!$A$408:$FN$450,CL$1) -> 393 | CM75: =VLOOKUP(DropDownList!$B$47,CntyQryCensus!$A$408:$FN$450,CM$1) -> 4928 | CN75: =VLOOKUP(DropDownList!$B$47,CntyQryCensus!$A$408:$FN$450,CN$1) -> 3576 | CO75: =VLOOKUP(DropDownList!$B$47,CntyQryCensus!$A$408:$FN$450,CO$1) -> 104 | CP75: =VLOOKUP(DropDownList!$B$47,CntyQryCensus!$A$408:$FN$450,CP$1) -> 413 | CQ75: =VLOOKUP(DropDownList!$B$47,CntyQryCensus!$A$408:$FN$450,CQ$1) -> 763 | CR75: =VLOOKUP(DropDownList!$B$47,CntyQryCensus!$A$408:$FN$450,CR$1) -> 897 | CS75: =VLOOKUP(DropDownList!$B$47,CntyQryCensus!$A$408:$FN$450,CS$1) -> 443 | CT75: =VLOOKUP(DropDownList!$B$47,CntyQryCensus!$A$408:$FN$450,CT$1) -> 385 | CU75: =VLOOKUP(DropDownList!$B$47,CntyQryCensus!$A$408:$FN$450,CU$1) -> 152 | CV75: =VLOOKUP(DropDownList!$B$47,CntyQryCensus!$A$408:$FN$450,CV$1) -> 148 | CW75: =VLOOKUP(DropDownList!$B$47,CntyQryCensus!$A$408:$FN$450,CW$1) -> 258 | CX75: =VLOOKUP(DropDownList!$B$47,CntyQryCensus!$A$408:$FN$450,CX$1) -> 13 | CY75: =VLOOKUP(DropDownList!$B$47,CntyQryCensus!$A$408:$FN$450,CY$1) -> 1352 | CZ75: =VLOOKUP(DropDownList!$B$47,CntyQryCensus!$A$408:$FN$450,CZ$1) -> 363 | DA75: =VLOOKUP(DropDownList!$B$47,CntyQryCensus!$A$408:$FN$450,DA$1) -> 310 | DB75: =VLOOKUP(DropDownList!$B$47,CntyQryCensus!$A$408:$FN$450,DB$1) -> 241 | DC75: =VLOOKUP(DropDownList!$B$47,CntyQryCensus!$A$408:$FN$450,DC$1) -> 142 | DD75: =VLOOKUP(DropDownList!$B$47,CntyQryCensus!$A$408:$FN$450,DD$1) -> 62 | DE75: =VLOOKUP(DropDownList!$B$47,CntyQryCensus!$A$408:$FN$450,DE$1) -> 73 | DF75: =VLOOKUP(DropDownList!$B$47,CntyQryCensus!$A$408:$FN$450,DF$1) -> 19 | DG75: =VLOOKUP(DropDownList!$B$47,CntyQryCensus!$A$408:$FN$450,DG$1) -> 68 | DH75: =VLOOKUP(DropDownList!$B$47,CntyQryCensus!$A$408:$FN$450,DH$1) -> 57 | DI75: =VLOOKUP(DropDownList!$B$47,CntyQryCensus!$A$408:$FN$450,DI$1) -> 17 | DJ75: =VLOOKUP(DropDownList!$B$47,CntyQryCensus!$A$408:$FN$450,DJ$1) -> 4928 | DK75: =VLOOKUP(DropDownList!$B$47,CntyQryCensus!$A$408:$FN$450,DK$1) -> 138 | DL75: =VLOOKUP(DropDownList!$B$47,CntyQryCensus!$A$408:$FN$450,DL$1) -> 0 | DM75: =VLOOKUP(DropDownList!$B$47,CntyQryCensus!$A$408:$FN$450,DM$1) -> 0 | DN75: =VLOOKUP(DropDownList!$B$47,CntyQryCensus!$A$408:$FN$450,DN$1) -> 0 | DO75: =VLOOKUP(DropDownList!$B$47,CntyQryCensus!$A$408:$FN$450,DO$1) -> 0 | DP75: =VLOOKUP(DropDownList!$B$47,CntyQryCensus!$A$408:$FN$450,DP$1) -> 108 | DQ75: =VLOOKUP(DropDownList!$B$47,CntyQryCensus!$A$408:$FN$450,DQ$1) -> 30 | DR75: =VLOOKUP(DropDownList!$B$47,CntyQryCensus!$A$408:$FN$450,DR$1) -> 405 | DS75: =VLOOKUP(DropDownList!$B$47,CntyQryCensus!$A$408:$FN$450,DS$1) -> 38 | DT75: =VLOOKUP(DropDownList!$B$47,CntyQryCensus!$A$408:$FN$450,DT$1) -> 75 | DU75: =VLOOKUP(DropDownList!$B$47,CntyQryCensus!$A$408:$FN$450,DU$1) -> 52 | DV75: =VLOOKUP(DropDownList!$B$47,CntyQryCensus!$A$408:$FN$450,DV$1) -> 54 | DW75: =VLOOKUP(DropDownList!$B$47,CntyQryCensus!$A$408:$FN$450,DW$1) -> 186 | DX75: =VLOOKUP(DropDownList!$B$47,CntyQryCensus!$A$408:$FN$450,DX$1) -> 0 | DY75: =VLOOKUP(DropDownList!$B$47,CntyQryCensus!$A$408:$FN$450,DY$1) -> 781 | DZ75: =VLOOKUP(DropDownList!$B$47,CntyQryCensus!$A$408:$FN$450,DZ$1) -> 285 | EA75: =VLOOKUP(DropDownList!$B$47,CntyQryCensus!$A$408:$FN$450,EA$1) -> 90 | EB75: =VLOOKUP(DropDownList!$B$47,CntyQryCensus!$A$408:$FN$450,EB$1) -> 58 | EC75: =VLOOKUP(DropDownList!$B$47,CntyQryCensus!$A$408:$FN$450,EC$1) -> 123 | ED75: =VLOOKUP(DropDownList!$B$47,CntyQryCensus!$A$408:$FN$450,ED$1) -> 225 | EE75: =VLOOKUP(DropDownList!$B$47,CntyQryCensus!$A$408:$FN$450,EE$1) -> 0 | EF75: =VLOOKUP(DropDownList!$B$47,CntyQryCensus!$A$408:$FN$450,EF$1) -> 1067 | EG75: =VLOOKUP(DropDownList!$B$47,CntyQryCensus!$A$408:$FN$450,EG$1) -> 349 | EH75: =VLOOKUP(DropDownList!$B$47,CntyQryCensus!$A$408:$FN$450,EH$1) -> 217 | EI75: =VLOOKUP(DropDownList!$B$47,CntyQryCensus!$A$408:$FN$450,EI$1) -> 178 | EJ75: =VLOOKUP(DropDownList!$B$47,CntyQryCensus!$A$408:$FN$450,EJ$1) -> 184 | EK75: =VLOOKUP(DropDownList!$B$47,CntyQryCensus!$A$408:$FN$450,EK$1) -> 139 | EL75: =VLOOKUP(DropDownList!$B$47,CntyQryCensus!$A$408:$FN$450,EL$1) -> 0 | EM75: =VLOOKUP(DropDownList!$B$47,CntyQryCensus!$A$408:$FN$450,EM$1) -> 1437 | EN75: =VLOOKUP(DropDownList!$B$47,CntyQryCensus!$A$408:$FN$450,EN$1) -> 653 | EO75: =VLOOKUP(DropDownList!$B$47,CntyQryCensus!$A$408:$FN$450,EO$1) -> 499 | EP75: =VLOOKUP(DropDownList!$B$47,CntyQryCensus!$A$408:$FN$450,EP$1) -> 182 | EQ75: =VLOOKUP(DropDownList!$B$47,CntyQryCensus!$A$408:$FN$450,EQ$1) -> 80 | ER75: =VLOOKUP(DropDownList!$B$47,CntyQryCensus!$A$408:$FN$450,ER$1) -> 23 | ES75: =VLOOKUP(DropDownList!$B$47,CntyQryCensus!$A$408:$FN$450,ES$1) -> 0 | ET75: =VLOOKUP(DropDownList!$B$47,CntyQryCensus!$A$408:$FN$450,ET$1) -> 612 | EU75: =VLOOKUP(DropDownList!$B$47,CntyQryCensus!$A$408:$FN$450,EU$1) -> 430 | EV75: =VLOOKUP(DropDownList!$B$47,CntyQryCensus!$A$408:$FN$450,EV$1) -> 130 | EW75: =VLOOKUP(DropDownList!$B$47,CntyQryCensus!$A$408:$FN$450,EW$1) -> 29 | EX75: =VLOOKUP(DropDownList!$B$47,CntyQryCensus!$A$408:$FN$450,EX$1) -> 8 | EY75: =VLOOKUP(DropDownList!$B$47,CntyQryCensus!$A$408:$FN$450,EY$1) -> 15 | EZ75: =VLOOKUP(DropDownList!$B$47,CntyQryCensus!$A$408:$FN$450,EZ$1) -> 0 | FA75: =VLOOKUP(DropDownList!$B$47,CntyQryCensus!$A$408:$FN$450,FA$1) -> 344 | FB75: =VLOOKUP(DropDownList!$B$47,CntyQryCensus!$A$408:$FN$450,FB$1) -> 295 | FC75: =VLOOKUP(DropDownList!$B$47,CntyQryCensus!$A$408:$FN$450,FC$1) -> 28 | FD75: =VLOOKUP(DropDownList!$B$47,CntyQryCensus!$A$408:$FN$450,FD$1) -> 6 | FE75: =VLOOKUP(DropDownList!$B$47,CntyQryCensus!$A$408:$FN$450,FE$1) -> 9 | FF75: =VLOOKUP(DropDownList!$B$47,CntyQryCensus!$A$408:$FN$450,FF$1) -> 6 | FG75: =VLOOKUP(DropDownList!$B$47,CntyQryCensus!$A$408:$FN$450,FG$1) -> 0 | FH75: =VLOOKUP(DropDownList!$B$47,CntyQryCensus!$A$408:$FN$450,FH$1) -> 144 | FI75: =VLOOKUP(DropDownList!$B$47,CntyQryCensus!$A$408:$FN$450,FI$1) -> 144 | FJ75: =VLOOKUP(DropDownList!$B$47,CntyQryCensus!$A$408:$FN$450,FJ$1) -> 0 | FK75: =VLOOKUP(DropDownList!$B$47,CntyQryCensus!$A$408:$FN$450,FK$1) -> 0 | FL75: =VLOOKUP(DropDownList!$B$47,CntyQryCensus!$A$408:$FN$450,FL$1) -> 0 | FM75: =VLOOKUP(DropDownList!$B$47,CntyQryCensus!$A$408:$FN$450,FM$1) -> 0 | FN75: =VLOOKUP(DropDownList!$B$47,CntyQryCensus!$A$408:$FN$450,FN$1) -> 0
A78: Census 2000 SummaryFile3 Sample Data - SF3TownQry9HHIncomeByTenure
A79: NAME | B79: LOGRECNO | C79: COUNTY | D79: TotalPop | E79: HCT11OccHU | F79: HCT11OwnOccHU | G79: HCT11OOHUInc<5K | H79: HCT11OOHUInc5to10K | I79: HCT11OOHUInc10to15K | J79: HCT11OOHUInc15to20K | K79: HCT11OOHUInc20to25K | L79: HCT11OOHUInc25to35K | M79: HCT11OOHUInc35to50K | N79: HCT11OOHUInc50to75K | O79: HCT11OOHUInc75to100K | P79: HCT11OOHUInc100to150K | Q79: HCT11OOHUInc>150K | R79: HCT11RentOccHU | S79: HCT11ROHUInc<5K | T79: HCT11ROHUInc5to10K | U79: HCT11ROHUInc10to15K | V79: HCT11ROHUInc15to20K | W79: HCT11ROHUInc20to25K | X79: HCT11ROHUInc25to35K | Y79: HCT11ROHUInc35to50K | Z79: HCT11ROHUInc50to75K | AA79: HCT11ROHUInc75to100K | AB79: HCT11ROHUInc100to150K | AC79: HCT11ROHUInc>150K | AD79: HCT12MedHHInc | AE79: HCT12MedOwnOccHHInc | AF79: HCT12MedRentOccHHInc | AG79: Summary Level
A80: =VLOOKUP(DropDownList!$B$47,CntyQryCensus!$A$459:$AG$501,A$1) -> Rochester | B80: =VLOOKUP(DropDownList!$B$47,CntyQryCensus!$A$459:$AG$501,B$1) -> 0000318 | C80: =VLOOKUP(DropDownList!$B$47,CntyQryCensus!$A$459:$AG$501,C$1) -> 017 | D80: =VLOOKUP(DropDownList!$B$47,CntyQryCensus!$A$459:$AG$501,D$1) -> 29752 | E80: =VLOOKUP(DropDownList!$B$47,CntyQryCensus!$A$459:$AG$501,E$1) -> 29238 | F80: =VLOOKUP(DropDownList!$B$47,CntyQryCensus!$A$459:$AG$501,F$1) -> 28388 | G80: =VLOOKUP(DropDownList!$B$47,CntyQryCensus!$A$459:$AG$501,G$1) -> 251 | H80: =VLOOKUP(DropDownList!$B$47,CntyQryCensus!$A$459:$AG$501,H$1) -> 92 | I80: =VLOOKUP(DropDownList!$B$47,CntyQryCensus!$A$459:$AG$501,I$1) -> 361 | J80: =VLOOKUP(DropDownList!$B$47,CntyQryCensus!$A$459:$AG$501,J$1) -> 15 | K80: =VLOOKUP(DropDownList!$B$47,CntyQryCensus!$A$459:$AG$501,K$1) -> 131 | L80: =VLOOKUP(DropDownList!$B$47,CntyQryCensus!$A$459:$AG$501,L$1) -> 514 | M80: =VLOOKUP(DropDownList!$B$47,CntyQryCensus!$A$459:$AG$501,M$1) -> 547 | N80: =VLOOKUP(DropDownList!$B$47,CntyQryCensus!$A$459:$AG$501,N$1) -> 29205 | O80: =VLOOKUP(DropDownList!$B$47,CntyQryCensus!$A$459:$AG$501,O$1) -> 5457 | P80: =VLOOKUP(DropDownList!$B$47,CntyQryCensus!$A$459:$AG$501,P$1) -> 3381 | Q80: =VLOOKUP(DropDownList!$B$47,CntyQryCensus!$A$459:$AG$501,Q$1) -> 3779 | R80: =VLOOKUP(DropDownList!$B$47,CntyQryCensus!$A$459:$AG$501,R$1) -> 4024 | S80: =VLOOKUP(DropDownList!$B$47,CntyQryCensus!$A$459:$AG$501,S$1) -> 4863 | T80: =VLOOKUP(DropDownList!$B$47,CntyQryCensus!$A$459:$AG$501,T$1) -> 3851 | U80: =VLOOKUP(DropDownList!$B$47,CntyQryCensus!$A$459:$AG$501,U$1) -> 2334 | V80: =VLOOKUP(DropDownList!$B$47,CntyQryCensus!$A$459:$AG$501,V$1) -> 2063 | W80: =VLOOKUP(DropDownList!$B$47,CntyQryCensus!$A$459:$AG$501,W$1) -> 40.7 | X80: =VLOOKUP(DropDownList!$B$47,CntyQryCensus!$A$459:$AG$501,X$1) -> 39.5 | Y80: =VLOOKUP(DropDownList!$B$47,CntyQryCensus!$A$459:$AG$501,Y$1) -> 42.1 | Z80: =VLOOKUP(DropDownList!$B$47,CntyQryCensus!$A$459:$AG$501,Z$1) -> 12378 | AA80: =VLOOKUP(DropDownList!$B$47,CntyQryCensus!$A$459:$AG$501,AA$1) -> 29512 | AB80: =VLOOKUP(DropDownList!$B$47,CntyQryCensus!$A$459:$AG$501,AB$1) -> 14994 | AC80: =VLOOKUP(DropDownList!$B$47,CntyQryCensus!$A$459:$AG$501,AC$1) -> 14518 | AD80: =VLOOKUP(DropDownList!$B$47,CntyQryCensus!$A$459:$AG$501,AD$1) -> 2.38 | AE80: =VLOOKUP(DropDownList!$B$47,CntyQryCensus!$A$459:$AG$501,AE$1) -> 7936 | AF80: =VLOOKUP(DropDownList!$B$47,CntyQryCensus!$A$459:$AG$501,AF$1) -> 5788 | AG80: =VLOOKUP(DropDownList!$B$47,CntyQryCensus!$A$459:$AG$501,AG$1) -> 2148
A86: =VLOOKUP(DropDownList!$B$47,CntyQryCensus!$A$510:$DA$522,A$1) -> Rochester
A94: Census 2000 SummaryFile3 Sample Data - SF3TownQry10Disabil
A95: NAME | B95: LOGRECNO | C95: COUNTY | D95: TotalPop | E95: PCT026001-NonInstPop5yrs+ | F95: PCT026002-MaleNonInstPop5yrs+ | G95: PCT026003 | H95: PCT026004 | I95: PCT026005 | J95: PCT026006 | K95: PCT026007 | L95: PCT026008 | M95: PCT026009 | N95: PCT026010 | O95: PCT026011 | P95: PCT026012 | Q95: PCT026013 | R95: PCT026014 | S95: PCT026015 | T95: PCT026016 | U95: PCT026017 | V95: PCT026018 | W95: PCT026019 | X95: PCT026020 | Y95: PCT026021 | Z95: PCT026022 | AA95: PCT026023 | AB95: PCT026024 | AC95: PCT026025 | AD95: PCT026026 | AE95: PCT026027 | AF95: PCT026028 | AG95: PCT026029 | AH95: PCT026030 | AI95: PCT026031 | AJ95: PCT026032 | AK95: PCT026033 | AL95: PCT026034 | AM95: PCT026035 | AN95: PCT026036 | AO95: PCT026037 | AP95: PCT026038 | AQ95: PCT026039 | AR95: PCT026040 | AS95: PCT026041 | AT95: PCT026042 | AU95: PCT026043 | AV95: PCT026044 | AW95: PCT026045 | AX95: PCT026046 | AY95: PCT026047 | AZ95: PCT026048 | BA95: PCT026049 | BB95: PCT026050 | BC95: PCT026051 | BD95: PCT026052 | BE95: PCT026053 | BF95: PCT026054 | BG95: PCT026055 | BH95: PCT026056 | BI95: PCT026057 | BJ95: PCT026058 | BK95: PCT026059 | BL95: PCT026060 | BM95: PCT026061 | BN95: PCT026062 | BO95: PCT026063 | BP95: PCT026064 | BQ95: PCT026065 | BR95: PCT026066 | BS95: PCT026067 | BT95: PCT026068 | BU95: PCT026069 | BV95: PCT026070 | BW95: PCT026071 | BX95: PCT026072 | BY95: PCT026073 | BZ95: PCT026074 | CA95: PCT026075 | CB95: PCT026076 | CC95: PCT026077 | CD95: PCT026078 | CE95: PCT026079 | CF95: PCT026080 | CG95: PCT026081 | CH95: PCT026082 | CI95: PCT026083 | CJ95: PCT026084 | CK95: PCT026085 | CL95: PCT026086 | CM95: PCT026087 | CN95: PCT026088 | CO95: PCT026089 | CP95: PCT026090 | CQ95: PCT026091 | CR95: PCT026092 | CS95: PCT026093 | CT95: PCT026094 | CU95: PCT026095 | CV95: PCT026096 | CW95: PCT026097 | CX95: PCT026098 | CY95: PCT026099 | CZ95: PCT026100 | DA95: PCT026101
A96: =VLOOKUP(DropDownList!$B$47,CntyQryCensus!$A$510:$DA$522,A$1) -> Rochester | B96: =VLOOKUP(DropDownList!$B$47,CntyQryCensus!$A$510:$DA$522,B$1) -> 0003956 | C96: =VLOOKUP(DropDownList!$B$47,CntyQryCensus!$A$510:$DA$522,C$1) -> 65140 | D96: =VLOOKUP(DropDownList!$B$47,CntyQryCensus!$A$510:$DA$522,D$1) -> 28461 | E96: =VLOOKUP(DropDownList!$B$47,CntyQryCensus!$A$510:$DA$522,E$1) -> 26314 | F96: =VLOOKUP(DropDownList!$B$47,CntyQryCensus!$A$510:$DA$522,F$1) -> 12732 | G96: =VLOOKUP(DropDownList!$B$47,CntyQryCensus!$A$510:$DA$522,G$1) -> 2359 | H96: =VLOOKUP(DropDownList!$B$47,CntyQryCensus!$A$510:$DA$522,H$1) -> 250 | I96: =VLOOKUP(DropDownList!$B$47,CntyQryCensus!$A$510:$DA$522,I$1) -> 0 | J96: =VLOOKUP(DropDownList!$B$47,CntyQryCensus!$A$510:$DA$522,J$1) -> 7 | K96: =VLOOKUP(DropDownList!$B$47,CntyQryCensus!$A$510:$DA$522,K$1) -> 243 | L96: =VLOOKUP(DropDownList!$B$47,CntyQryCensus!$A$510:$DA$522,L$1) -> 0 | M96: =VLOOKUP(DropDownList!$B$47,CntyQryCensus!$A$510:$DA$522,M$1) -> 35 | N96: =VLOOKUP(DropDownList!$B$47,CntyQryCensus!$A$510:$DA$522,N$1) -> 26 | O96: =VLOOKUP(DropDownList!$B$47,CntyQryCensus!$A$510:$DA$522,O$1) -> 9 | P96: =VLOOKUP(DropDownList!$B$47,CntyQryCensus!$A$510:$DA$522,P$1) -> 2074 | Q96: =VLOOKUP(DropDownList!$B$47,CntyQryCensus!$A$510:$DA$522,Q$1) -> 821 | R96: =VLOOKUP(DropDownList!$B$47,CntyQryCensus!$A$510:$DA$522,R$1) -> 52 | S96: =VLOOKUP(DropDownList!$B$47,CntyQryCensus!$A$510:$DA$522,S$1) -> 0 | T96: =VLOOKUP(DropDownList!$B$47,CntyQryCensus!$A$510:$DA$522,T$1) -> 0 | U96: =VLOOKUP(DropDownList!$B$47,CntyQryCensus!$A$510:$DA$522,U$1) -> 21 | V96: =VLOOKUP(DropDownList!$B$47,CntyQryCensus!$A$510:$DA$522,V$1) -> 0 | W96: =VLOOKUP(DropDownList!$B$47,CntyQryCensus!$A$510:$DA$522,W$1) -> 0 | X96: =VLOOKUP(DropDownList!$B$47,CntyQryCensus!$A$510:$DA$522,X$1) -> 31 | Y96: =VLOOKUP(DropDownList!$B$47,CntyQryCensus!$A$510:$DA$522,Y$1) -> 39 | Z96: =VLOOKUP(DropDownList!$B$47,CntyQryCensus!$A$510:$DA$522,Z$1) -> 0 | AA96: =VLOOKUP(DropDownList!$B$47,CntyQryCensus!$A$510:$DA$522,AA$1) -> 39 | AB96: =VLOOKUP(DropDownList!$B$47,CntyQryCensus!$A$510:$DA$522,AB$1) -> 8 | AC96: =VLOOKUP(DropDownList!$B$47,CntyQryCensus!$A$510:$DA$522,AC$1) -> 31 | AD96: =VLOOKUP(DropDownList!$B$47,CntyQryCensus!$A$510:$DA$522,AD$1) -> 730 | AE96: =VLOOKUP(DropDownList!$B$47,CntyQryCensus!$A$510:$DA$522,AE$1) -> 8055 | AF96: =VLOOKUP(DropDownList!$B$47,CntyQryCensus!$A$510:$DA$522,AF$1) -> 1029 | AG96: =VLOOKUP(DropDownList!$B$47,CntyQryCensus!$A$510:$DA$522,AG$1) -> 202 | AH96: =VLOOKUP(DropDownList!$B$47,CntyQryCensus!$A$510:$DA$522,AH$1) -> 162 | AI96: =VLOOKUP(DropDownList!$B$47,CntyQryCensus!$A$510:$DA$522,AI$1) -> 102 | AJ96: =VLOOKUP(DropDownList!$B$47,CntyQryCensus!$A$510:$DA$522,AJ$1) -> 0 | AK96: =VLOOKUP(DropDownList!$B$47,CntyQryCensus!$A$510:$DA$522,AK$1) -> 0 | AL96: =VLOOKUP(DropDownList!$B$47,CntyQryCensus!$A$510:$DA$522,AL$1) -> 563 | AM96: =VLOOKUP(DropDownList!$B$47,CntyQryCensus!$A$510:$DA$522,AM$1) -> 578 | AN96: =VLOOKUP(DropDownList!$B$47,CntyQryCensus!$A$510:$DA$522,AN$1) -> 77 | AO96: =VLOOKUP(DropDownList!$B$47,CntyQryCensus!$A$510:$DA$522,AO$1) -> 501 | AP96: =VLOOKUP(DropDownList!$B$47,CntyQryCensus!$A$510:$DA$522,AP$1) -> 119 | AQ96: =VLOOKUP(DropDownList!$B$47,CntyQryCensus!$A$510:$DA$522,AQ$1) -> 382 | AR96: =VLOOKUP(DropDownList!$B$47,CntyQryCensus!$A$510:$DA$522,AR$1) -> 6448 | AS96: =VLOOKUP(DropDownList!$B$47,CntyQryCensus!$A$510:$DA$522,AS$1) -> 1497 | AT96: =VLOOKUP(DropDownList!$B$47,CntyQryCensus!$A$510:$DA$522,AT$1) -> 329 | AU96: =VLOOKUP(DropDownList!$B$47,CntyQryCensus!$A$510:$DA$522,AU$1) -> 60 | AV96: =VLOOKUP(DropDownList!$B$47,CntyQryCensus!$A$510:$DA$522,AV$1) -> 193 | AW96: =VLOOKUP(DropDownList!$B$47,CntyQryCensus!$A$510:$DA$522,AW$1) -> 41 | AX96: =VLOOKUP(DropDownList!$B$47,CntyQryCensus!$A$510:$DA$522,AX$1) -> 0 | AY96: =VLOOKUP(DropDownList!$B$47,CntyQryCensus!$A$510:$DA$522,AY$1) -> 35 | AZ96: =VLOOKUP(DropDownList!$B$47,CntyQryCensus!$A$510:$DA$522,AZ$1) -> 279 | BA96: =VLOOKUP(DropDownList!$B$47,CntyQryCensus!$A$510:$DA$522,BA$1) -> 102 | BB96: =VLOOKUP(DropDownList!$B$47,CntyQryCensus!$A$510:$DA$522,BB$1) -> 177 | BC96: =VLOOKUP(DropDownList!$B$47,CntyQryCensus!$A$510:$DA$522,BC$1) -> 889 | BD96: =VLOOKUP(DropDownList!$B$47,CntyQryCensus!$A$510:$DA$522,BD$1) -> 13582 | BE96: =VLOOKUP(DropDownList!$B$47,CntyQryCensus!$A$510:$DA$522,BE$1) -> 2143 | BF96: =VLOOKUP(DropDownList!$B$47,CntyQryCensus!$A$510:$DA$522,BF$1) -> 71 | BG96: =VLOOKUP(DropDownList!$B$47,CntyQryCensus!$A$510:$DA$522,BG$1) -> 10 | BH96: =VLOOKUP(DropDownList!$B$47,CntyQryCensus!$A$510:$DA$522,BH$1) -> 7 | BI96: =VLOOKUP(DropDownList!$B$47,CntyQryCensus!$A$510:$DA$522,BI$1) -> 54 | BJ96: =VLOOKUP(DropDownList!$B$47,CntyQryCensus!$A$510:$DA$522,BJ$1) -> 0 | BK96: =VLOOKUP(DropDownList!$B$47,CntyQryCensus!$A$510:$DA$522,BK$1) -> 28 | BL96: =VLOOKUP(DropDownList!$B$47,CntyQryCensus!$A$510:$DA$522,BL$1) -> 28 | BM96: =VLOOKUP(DropDownList!$B$47,CntyQryCensus!$A$510:$DA$522,BM$1) -> 0 | BN96: =VLOOKUP(DropDownList!$B$47,CntyQryCensus!$A$510:$DA$522,BN$1) -> 2044 | BO96: =VLOOKUP(DropDownList!$B$47,CntyQryCensus!$A$510:$DA$522,BO$1) -> 898 | BP96: =VLOOKUP(DropDownList!$B$47,CntyQryCensus!$A$510:$DA$522,BP$1) -> 63 | BQ96: =VLOOKUP(DropDownList!$B$47,CntyQryCensus!$A$510:$DA$522,BQ$1) -> 0 | BR96: =VLOOKUP(DropDownList!$B$47,CntyQryCensus!$A$510:$DA$522,BR$1) -> 6 | BS96: =VLOOKUP(DropDownList!$B$47,CntyQryCensus!$A$510:$DA$522,BS$1) -> 30 | BT96: =VLOOKUP(DropDownList!$B$47,CntyQryCensus!$A$510:$DA$522,BT$1) -> 0 | BU96: =VLOOKUP(DropDownList!$B$47,CntyQryCensus!$A$510:$DA$522,BU$1) -> 5 | BV96: =VLOOKUP(DropDownList!$B$47,CntyQryCensus!$A$510:$DA$522,BV$1) -> 22 | BW96: =VLOOKUP(DropDownList!$B$47,CntyQryCensus!$A$510:$DA$522,BW$1) -> 0 | BX96: =VLOOKUP(DropDownList!$B$47,CntyQryCensus!$A$510:$DA$522,BX$1) -> 0 | BY96: =VLOOKUP(DropDownList!$B$47,CntyQryCensus!$A$510:$DA$522,BY$1) -> 0 | BZ96: =VLOOKUP(DropDownList!$B$47,CntyQryCensus!$A$510:$DA$522,BZ$1) -> 0 | CA96: =VLOOKUP(DropDownList!$B$47,CntyQryCensus!$A$510:$DA$522,CA$1) -> 0 | CB96: =VLOOKUP(DropDownList!$B$47,CntyQryCensus!$A$510:$DA$522,CB$1) -> 835 | CC96: =VLOOKUP(DropDownList!$B$47,CntyQryCensus!$A$510:$DA$522,CC$1) -> 8429 | CD96: =VLOOKUP(DropDownList!$B$47,CntyQryCensus!$A$510:$DA$522,CD$1) -> 917 | CE96: =VLOOKUP(DropDownList!$B$47,CntyQryCensus!$A$510:$DA$522,CE$1) -> 88 | CF96: =VLOOKUP(DropDownList!$B$47,CntyQryCensus!$A$510:$DA$522,CF$1) -> 249 | CG96: =VLOOKUP(DropDownList!$B$47,CntyQryCensus!$A$510:$DA$522,CG$1) -> 82 | CH96: =VLOOKUP(DropDownList!$B$47,CntyQryCensus!$A$510:$DA$522,CH$1) -> 0 | CI96: =VLOOKUP(DropDownList!$B$47,CntyQryCensus!$A$510:$DA$522,CI$1) -> 40 | CJ96: =VLOOKUP(DropDownList!$B$47,CntyQryCensus!$A$510:$DA$522,CJ$1) -> 458 | CK96: =VLOOKUP(DropDownList!$B$47,CntyQryCensus!$A$510:$DA$522,CK$1) -> 812 | CL96: =VLOOKUP(DropDownList!$B$47,CntyQryCensus!$A$510:$DA$522,CL$1) -> 144 | CM96: =VLOOKUP(DropDownList!$B$47,CntyQryCensus!$A$510:$DA$522,CM$1) -> 668 | CN96: =VLOOKUP(DropDownList!$B$47,CntyQryCensus!$A$510:$DA$522,CN$1) -> 127 | CO96: =VLOOKUP(DropDownList!$B$47,CntyQryCensus!$A$510:$DA$522,CO$1) -> 541 | CP96: =VLOOKUP(DropDownList!$B$47,CntyQryCensus!$A$510:$DA$522,CP$1) -> 6700 | CQ96: =VLOOKUP(DropDownList!$B$47,CntyQryCensus!$A$510:$DA$522,CQ$1) -> 2112 | CR96: =VLOOKUP(DropDownList!$B$47,CntyQryCensus!$A$510:$DA$522,CR$1) -> 472 | CS96: =VLOOKUP(DropDownList!$B$47,CntyQryCensus!$A$510:$DA$522,CS$1) -> 46 | CT96: =VLOOKUP(DropDownList!$B$47,CntyQryCensus!$A$510:$DA$522,CT$1) -> 273 | CU96: =VLOOKUP(DropDownList!$B$47,CntyQryCensus!$A$510:$DA$522,CU$1) -> 15 | CV96: =VLOOKUP(DropDownList!$B$47,CntyQryCensus!$A$510:$DA$522,CV$1) -> 0 | CW96: =VLOOKUP(DropDownList!$B$47,CntyQryCensus!$A$510:$DA$522,CW$1) -> 138 | CX96: =VLOOKUP(DropDownList!$B$47,CntyQryCensus!$A$510:$DA$522,CX$1) -> 454 | CY96: =VLOOKUP(DropDownList!$B$47,CntyQryCensus!$A$510:$DA$522,CY$1) -> 210 | CZ96: =VLOOKUP(DropDownList!$B$47,CntyQryCensus!$A$510:$DA$522,CZ$1) -> 244 | DA96: =VLOOKUP(DropDownList!$B$47,CntyQryCensus!$A$510:$DA$522,DA$1) -> 1186
A101: =VLOOKUP(DropDownList!$B$47,CntyQryCensus!$A$510:$DA$522,A$1) -> Rochester
A105: ACS | B105: 2 | C105: =B105+1 -> 3 | D105: =C105+1 -> 4 | E105: 5 | F105: 6 | G105: 7 | H105: 8 | I105: 9 | J105: 10 | K105: 11 | L105: =K105+1 -> 12 | M105: 13 | N105: 14 | O105: 15 | P105: =O105+1 -> 16 | Q105: 17 | R105: 18 | S105: 19 | T105: 20 | U105: 21 | V105: 22 | W105: 23 | X105: 24 | Y105: 25 | Z105: 26 | AA105: 27 | AB105: 28 | AC105: 29 | AD105: 30 | AE105: 31 | AF105: 32 | AG105: 33 | AH105: 34 | AI105: 35 | AJ105: 36 | AK105: 37 | AL105: 38 | AM105: 39 | AN105: 40 | AO105: 41 | AP105: 42 | AQ105: 43 | AR105: 44 | AS105: 45 | AT105: 46 | AU105: 47 | AV105: 48 | AW105: 49 | AX105: 50 | AY105: 51 | AZ105: 52 | BA105: 53 | BB105: 54 | BC105: 55 | BD105: 56 | BE105: 57 | BF105: 58 | BG105: 59 | BH105: 60 | BI105: 61 | BJ105: 62 | BK105: 63 | BL105: 64 | BM105: 65 | BN105: 66 | BO105: 67 | BP105: =BO105+1 -> 68 | BQ105: 69 | BR105: 70 | BS105: 71 | BT105: 72 | BU105: 73 | BV105: 74 | BW105: 75 | BX105: 76 | BY105: 77 | BZ105: 78 | CA105: 79 | CB105: 80 | CC105: 81 | CD105: 82 | CE105: 83 | CF105: 84 | CG105: 85 | CH105: 86 | CI105: 87 | CJ105: 88 | CK105: 89 | CL105: 90 | CM105: 91 | CN105: 92 | CO105: 93 | CP105: 94 | CQ105: 95 | CR105: 96 | CS105: 97 | CT105: 98 | CU105: 99 | CV105: 100 | CW105: 101 | CX105: 102 | CY105: 103 | CZ105: 104 | DA105: 105 | DB105: 106 | DC105: 107 | DD105: 108 | DE105: 109 | DF105: 110 | DG105: 111 | DH105: 112 | DI105: 113 | DJ105: 114 | DK105: 115 | DL105: 116 | DM105: 117 | DN105: 118 | DO105: 119 | DP105: 120 | DQ105: 121 | DR105: 122 | DS105: 123 | DT105: 124 | DU105: 125
A106: Househould Data (Housing Unit Type)
A107: NAME | B107: TotalHU | C107: ="MOE "&B107 -> MOE TotalHU | D107: TotalOccHU | E107: ="MOE "&D107 -> MOE TotalOccHU | F107: TotalOwnerOccUn | G107: ="MOE "&F107 -> MOE TotalOwnerOccUn | H107: TotalRenterOccn | I107: ="MOE "&H107 -> MOE TotalRenterOccn | J107: TotalVacantUntis | K107: ="MOE "&J107 -> MOE TotalVacantUntis | L107: VacantUnitsForRent | M107: ="MOE "&L107 -> MOE VacantUnitsForRent | N107: VacantUnitRentedNotOcc | O107: ="MOE "&N107 -> MOE VacantUnitRentedNotOcc | P107: VacantUnitForSale | Q107: ="MOE "&P107 -> MOE VacantUnitForSale | R107: VacantUnitSoldNotOcc | S107: ="MOE "&R107 -> MOE VacantUnitSoldNotOcc | T107: VacantUnitSeasonalRec | U107: ="MOE "&T107 -> MOE VacantUnitSeasonalRec | V107: TotalPopInHousingUnits | W107: ="MOE "&V107 -> MOE TotalPopInHousingUnits | X107: OwnerOccPopHousingUnits | Y107: ="MOE "&X107 -> MOE OwnerOccPopHousingUnits | Z107: RenterOccPopHousingUnits | AA107: ="MOE "&Z107 -> MOE RenterOccPopHousingUnits | AB107: TotalUntis | AC107: ="MOE "&AB107 -> MOE TotalUntis | AD107: TotalOwnerOccUnits | AE107: ="MOE "&AD107 -> MOE TotalOwnerOccUnits | AF107: SigFamOwnerOcc | AG107: ="MOE "&AF107 -> MOE SigFamOwnerOcc | AH107: MultiFamOwnerOcc | AI107: ="MOE "&AH107 -> MOE MultiFamOwnerOcc | AJ107: MobileOwnerOcc | AK107: ="MOE "&AJ107 -> MOE MobileOwnerOcc | AL107: TotalRenterOccUnits | AM107: ="MOE "&AL107 -> MOE TotalRenterOccUnits | AN107: SigFamRenterOcc | AO107: ="MOE "&AN107 -> MOE SigFamRenterOcc | AP107: MultiFamRenterOcc | AQ107: ="MOE "&AP107 -> MOE MultiFamRenterOcc | AR107: MobileRenterOcc | AS107: ="MOE "&AR107 -> MOE MobileRenterOcc | AT107: TotalSigFamilyUnits | AU107: ="MOE "&AT107 -> MOE TotalSigFamilyUnits | AV107: TotalMultiFamilyUnits | AW107: ="MOE "&AV107 -> MOE TotalMultiFamilyUnits | AX107: TotalMobileUnits | AY107: ="MOE "&AX107 -> MOE TotalMobileUnits | AZ107: YrHouseBuilt2014Later | BA107: ="MOE "&AZ107 -> MOE YrHouseBuilt2014Later | BB107: YrHouseBuilt2010-2013 | BC107: ="MOE "&BB107 -> MOE YrHouseBuilt2010-2013 | BD107: YrHouseBuilt2000-2009 | BE107: ="MOE "&BD107 -> MOE YrHouseBuilt2000-2009 | BF107: YrHouseBuilt1990-1999 | BG107: ="MOE "&BF107 -> MOE YrHouseBuilt1990-1999 | BH107: YrHouseBuilt1980-1989 | BI107: ="MOE "&BH107 -> MOE YrHouseBuilt1980-1989 | BJ107: YrHouseBuilt1970-1979 | BK107: ="MOE "&BJ107 -> MOE YrHouseBuilt1970-1979 | BL107: YrHouseBuilt1960-1969 | BM107: ="MOE "&BL107 -> MOE YrHouseBuilt1960-1969 | BN107: YrHouseBuilt1950-1959 | BO107: ="MOE "&BN107 -> MOE YrHouseBuilt1950-1959 | BP107: YrHouseBuilt1940-1949 | BQ107: ="MOE "&BP107 -> MOE YrHouseBuilt1940-1949 | BR107: YrHouseBuilt1939orEarlier | BS107: ="MOE "&BR107 -> MOE YrHouseBuilt1939orEarlier | BT107: NoBedrooms | BU107: ="MOE "&BT107 -> MOE NoBedrooms | BV107: 1Bedroom | BW107: ="MOE "&BV107 -> MOE 1Bedroom | BX107: 2Bedroom | BY107: ="MOE "&BX107 -> MOE 2Bedroom | BZ107: 3Bedroom | CA107: ="MOE "&BZ107 -> MOE 3Bedroom | CB107: 4+Bedroom | CC107: ="MOE "&CB107 -> MOE 4+Bedroom
A108: =VLOOKUP(DropDownList!$B$47,CntyQryCensus!$A$510:$DA$522,A$1) -> Rochester | B108: 14192 | C108: 482 | D108: 13471 | E108: 518 | F108: 8795 | G108: 577 | H108: 4676 | I108: 519 | J108: 721 | K108: 226 | L108: 264 | M108: 158 | N108: 55 | O108: 70 | P108: 147 | Q108: 132 | R108: 14 | S108: 18 | T108: 62 | U108: 74 | V108: 32131 | W108: 104 | X108: 21302 | Y108: 1214 | Z108: 10829 | AA108: 1198 | AB108: 13471 | AC108: 518 | AD108: 8795 | AE108: 577 | AF108: 6251 | AG108: 472 | AH108: 710 | AI108: 190.884782 | AJ108: 1834 | AK108: 304.0296038 | AL108: 4676 | AM108: 519 | AN108: 543 | AO108: 168 | AP108: 3827 | AQ108: 596.7914208 | AR108: 306 | AS108: 138.2787041 | AT108: 6983 | AU108: 455 | AV108: 4907 | AW108: 645.3967772 | AX108: 2302 | AY108: 299.0468191 | AZ108: 0 | BA108: 25 | BB108: 957 | BC108: 274 | BD108: 1684 | BE108: 260 | BF108: 1172 | BG108: 240 | BH108: 2733 | BI108: 394 | BJ108: 1731 | BK108: 318 | BL108: 1187 | BM108: 250 | BN108: 1230 | BO108: 315 | BP108: 773 | BQ108: 250 | BR108: 2725 | BS108: 347 | BT108: 297 | BU108: 161 | BV108: 1665 | BW108: 410 | BX108: 4897 | BY108: 469 | BZ108: 5370 | CA108: 511 | CB108: 1963 | CC108: 318.4163941 | CH108: 28
A110: Disability Data
A111: NAME | B111: TotalPop | C111: ="MOE "&B111 -> MOE TotalPop | D111: PopUnder 5 years: | E111: ="MOE "&D111 -> MOE PopUnder 5 years: | F111: =D$111&"-WithDisability" -> PopUnder 5 years:-WithDisability | G111: ="MOE "&F111 -> MOE PopUnder 5 years:-WithDisability | H111: =D111&"-NoDisability" -> PopUnder 5 years:-NoDisability | I111: ="MOE "&H111 -> MOE PopUnder 5 years:-NoDisability | J111: PopUnder 5 to 17years: | K111: ="MOE "&J111 -> MOE PopUnder 5 to 17years: | L111: =J$111&"-WithDisability" -> PopUnder 5 to 17years:-WithDisability | M111: ="MOE "&L111 -> MOE PopUnder 5 to 17years:-WithDisability | N111: =J111&"-NoDisability" -> PopUnder 5 to 17years:-NoDisability | O111: ="MOE "&N111 -> MOE PopUnder 5 to 17years:-NoDisability | P111: PopUnder 18 to 34 years: | Q111: ="MOE "&P111 -> MOE PopUnder 18 to 34 years: | R111: =P$111&"-WithDisability" -> PopUnder 18 to 34 years:-WithDisability | S111: ="MOE "&R111 -> MOE PopUnder 18 to 34 years:-WithDisability | T111: =P111&"-NoDisability" -> PopUnder 18 to 34 years:-NoDisability | U111: ="MOE "&T111 -> MOE PopUnder 18 to 34 years:-NoDisability | V111: Pop 35 years to 64: | W111: ="MOE "&V111 -> MOE Pop 35 years to 64: | X111: =$V$111&"-WithDisability" -> Pop 35 years to 64:-WithDisability | Y111: ="MOE "&X111 -> MOE Pop 35 years to 64:-WithDisability | Z111: =$V$111&"-NoDisability" -> Pop 35 years to 64:-NoDisability | AA111: ="MOE "&Z111 -> MOE Pop 35 years to 64:-NoDisability | AB111: Pop 65 years to 74: | AC111: ="MOE "&AB111 -> MOE Pop 65 years to 74: | AD111: =$AB$111&"-WithDisability" -> Pop 65 years to 74:-WithDisability | AE111: ="MOE "&AD111 -> MOE Pop 65 years to 74:-WithDisability | AF111: =$AB$111&"-NoDisability" -> Pop 65 years to 74:-NoDisability | AG111: ="MOE "&AF111 -> MOE Pop 65 years to 74:-NoDisability | AH111: Pop 75 and older: | AI111: ="MOE "&AH111 -> MOE Pop 75 and older: | AJ111: =$AH$111&"-WithDisability" -> Pop 75 and older:-WithDisability | AK111: ="MOE "&AJ111 -> MOE Pop 75 and older:-WithDisability | AL111: =$AH$111&"-NoDisability" -> Pop 75 and older:-NoDisability | AM111: ="MOE "&AL111 -> MOE Pop 75 and older:-NoDisability | AN111: TotalPopUnder5_HearingDisability | AO111: ="MOE "&AN111 -> MOE TotalPopUnder5_HearingDisability | AP111: TotalPopUnder5_HearingDisability | AQ111: ="MOE "&AP111 -> MOE TotalPopUnder5_HearingDisability | AR111: TotalPop18To34_HearingDisability | AS111: ="MOE "&AR111 -> MOE TotalPop18To34_HearingDisability | AT111: TotalPop35To64_HearingDisability | AU111: ="MOE "&AT111 -> MOE TotalPop35To64_HearingDisability | AV111: TotalPop65To74_HearingDisability | AW111: ="MOE "&AV111 -> MOE TotalPop65To74_HearingDisability | AX111: TotalPop75andOlder_HearingDisability | AY111: ="MOE "&AX111 -> MOE TotalPop75andOlder_HearingDisability | AZ111: TotalPopUnder5_VisionDisability | BA111: ="MOE "&AZ111 -> MOE TotalPopUnder5_VisionDisability | BB111: TotalPop5To17_VisionDisability | BC111: ="MOE "&BB111 -> MOE TotalPop5To17_VisionDisability | BD111: TotalPop18To34_VisionDisability | BE111: ="MOE "&BD111 -> MOE TotalPop18To34_VisionDisability | BF111: TotalPop35To64_VisionDisability | BG111: ="MOE "&BF111 -> MOE TotalPop35To64_VisionDisability | BH111: TotalPop65To74_VisionDisability | BI111: ="MOE "&BH111 -> MOE TotalPop65To74_VisionDisability | BJ111: TotalPop75andOlder_VisionDisability | BK111: ="MOE "&BJ111 -> MOE TotalPop75andOlder_VisionDisability | BL111: TotalPop5To17_CongnitiveDisability | BM111: ="MOE "&BL111 -> MOE TotalPop5To17_CongnitiveDisability | BN111: TotalPop18To34_CongnitiveDisability | BO111: ="MOE "&BN111 -> MOE TotalPop18To34_CongnitiveDisability | BP111: TotalPop35To64_CongnitiveDisability | BQ111: ="MOE "&BP111 -> MOE TotalPop35To64_CongnitiveDisability | BR111: TotalPop65To74_CongnitiveDisability | BS111: ="MOE "&BR111 -> MOE TotalPop65To74_CongnitiveDisability | BT111: TotalPop75andOlder_CongnitiveDisability | BU111: ="MOE "&BT111 -> MOE TotalPop75andOlder_CongnitiveDisability | BV111: TotalPop5To17_AmbulatoryDisability | BW111: ="MOE "&BV111 -> MOE TotalPop5To17_AmbulatoryDisability | BX111: TotalPop18To34_AmbulatoryDisability | BY111: ="MOE "&BX111 -> MOE TotalPop18To34_AmbulatoryDisability | BZ111: TotalPop35To64_AmbulatoryDisability | CA111: ="MOE "&BZ111 -> MOE TotalPop35To64_AmbulatoryDisability | CB111: TotalPop65To74_AmbulatoryDisability | CC111: ="MOE "&CB111 -> MOE TotalPop65To74_AmbulatoryDisability | CD111: TotalPop75andOlder_AmbulatoryDisability | CE111: ="MOE "&CD111 -> MOE TotalPop75andOlder_AmbulatoryDisability | CF111: TotalPop5To17_SelfCareDisability | CG111: ="MOE "&CF111 -> MOE TotalPop5To17_SelfCareDisability | CH111: TotalPop18To34_SelfCareDisability | CI111: ="MOE "&CH111 -> MOE TotalPop18To34_SelfCareDisability | CJ111: TotalPop35To64_SelfCareDisability | CK111: ="MOE "&CJ111 -> MOE TotalPop35To64_SelfCareDisability | CL111: TotalPop65To74_SelfCareDisability | CM111: ="MOE "&CL111 -> MOE TotalPop65To74_SelfCareDisability | CN111: TotalPop75andOlder_SelfCareDisability | CO111: ="MOE "&CN111 -> MOE TotalPop75andOlder_SelfCareDisability | CP111: TotalPop18To34_IndependantLivingDisability | CQ111: ="MOE "&CP111 -> MOE TotalPop18To34_IndependantLivingDisability | CR111: TotalPop35To64_IndependantLivingDisability | CS111: ="MOE "&CR111 -> MOE TotalPop35To64_IndependantLivingDisability | CT111: TotalPop65To74_IndependantLivingDisability | CU111: ="MOE "&CT111 -> MOE TotalPop65To74_IndependantLivingDisability | CV111: TotalPop75andOlder_IndependantLivingDisability | CW111: ="MOE "&CV111 -> MOE TotalPop75andOlder_IndependantLivingDisability | CX111: TotalUnder5_HearingorVisionDisability | CY111: ="MOE "&CX111 -> MOE TotalUnder5_HearingorVisionDisability | CZ111: TotalUnder5_HearingandVisionDisability | DA111: ="MOE "&CZ111 -> MOE TotalUnder5_HearingandVisionDisability | DB111: 5to17YearWIthOneDisability | DC111: ="MOE "&DB111 -> MOE 5to17YearWIthOneDisability | DD111: 5to17YearWIthTwoOrMoreDisability | DE111: ="MOE "&DD111 -> MOE 5to17YearWIthTwoOrMoreDisability | DF111: 18to34YearWIthOneDisability | DG111: ="MOE "&DF111 -> MOE 18to34YearWIthOneDisability | DH111: 18to34YearWIthTwoOrMoreDisability | DI111: ="MOE "&DH111 -> MOE 18to34YearWIthTwoOrMoreDisability | DJ111: 35to64YearWIthOneDisability | DK111: ="MOE "&DJ111 -> MOE 35to64YearWIthOneDisability | DL111: 35to64YearWIthTwoOrMoreDisability | DM111: ="MOE "&DL111 -> MOE 35to64YearWIthTwoOrMoreDisability | DN111: 65to74YearWIthOneDisability | DO111: ="MOE "&DN111 -> MOE 65to74YearWIthOneDisability | DP111: 65to74YearWIthTwoOrMoreDisability | DQ111: ="MOE "&DP111 -> MOE 65to74YearWIthTwoOrMoreDisability | DR111: 75AndOlderWIthOneDisability | DS111: ="MOE "&DR111 -> MOE 75AndOlderWIthOneDisability | DT111: 75AndOlderWIthTwoOrMoreDisability | DU111: ="MOE "&DT111 -> MOE 75AndOlderWIthTwoOrMoreDisability
A112: =VLOOKUP(DropDownList!$B$47,CntyQryCensus!$A$510:$DA$522,A$1) -> Rochester | B112: 32186 | C112: 108 | D112: 1410 | E112: 272.0018382 | F112: 63 | G112: 80.00624976 | H112: 1347 | I112: 261.7479704 | J112: 4962 | K112: 520.1855438 | L112: 268 | M112: 109.2016483 | N112: 4694 | O112: 512.8674293 | P112: 6395 | Q112: 564.1001684 | R112: 906 | S112: 276.9422322 | T112: 5489 | U112: 579.2495145 | V112: 13543 | W112: 587.2997531 | X112: 2410 | Y112: 349.5425582 | Z112: 11133 | AA112: 590.5294235 | AB112: 3598 | AC112: 376.7028006 | AD112: 938 | AE112: 311.5894735 | AF112: 2660 | AG112: 361.7637351 | AH112: 2278 | AI112: 327.7026091 | AJ112: 1178 | AK112: 265.5051789 | AL112: 1100 | AM112: 284.4450738 | AN112: 0 | AO112: 16.97056275 | AP112: 0 | AQ112: 16.97056275 | AR112: 0 | AS112: 16.97056275 | AT112: 21 | AU112: 20 | AV112: 8 | AW112: 10.63014581 | AX112: 106 | AY112: 84.50443775 | AZ112: 63 | BA112: 80.00624976 | BB112: 0 | BC112: 35.35533906 | BD112: 184 | BE112: 132.0984481 | BF112: 339 | BG112: 150.4160896 | BH112: 200 | BI112: 181.2015452 | BJ112: 282 | BK112: 177.7751389 | BL112: 102 | BM112: 70.21395873 | BN112: 424 | BO112: 146.4786674 | BP112: 894 | BQ112: 231.6311723 | BR112: 200 | BS112: 133.0150367 | BT112: 200 | BU112: 112.2719912 | BV112: 7 | BW112: 24.18677324 | BX112: 160 | BY112: 120.3536456 | BZ112: 1368 | CA112: 264.6601594 | CB112: 491 | CC112: 167.0927886 | CD112: 548 | CE112: 150.8144555 | CF112: 105 | CG112: 73.38937253 | CH112: 5 | CI112: 27.31300057 | CJ112: 539 | CK112: 176.9547965 | CL112: 162 | CM112: 176.3660965 | CN112: 298 | CO112: 177.1581215 | CP112: 441 | CQ112: 209.7474672 | CR112: 876 | CS112: 222.497191 | CT112: 201 | CU112: 180.2692431 | CV112: 673 | CW112: 229.1069619 | CX112: 205 | CY112: 115 | CZ112: 126 | DA112: 78 | DB112: 1726 | DC112: 317 | DD112: 1590 | DE112: 366 | DF112: 912 | DG112: 261 | DH112: 1204 | DI112: 291
A114: Househould Income By Age
A115: NAME | B115: TotalHouseholds | C115: ="MOE "&B115 -> MOE TotalHouseholds | D115: HHInc<10K | E115: ="MOE "&D115 -> MOE HHInc<10K | F115: HHInc10to15K | G115: ="MOE "&F115 -> MOE HHInc10to15K | H115: HHInc15to20K | I115: ="MOE "&H115 -> MOE HHInc15to20K | J115: HHInc20to25K | K115: ="MOE "&J115 -> MOE HHInc20to25K | L115: HHInc25to30K | M115: ="MOE "&L115 -> MOE HHInc25to30K | N115: HHInc30to35K | O115: ="MOE "&N115 -> MOE HHInc30to35K | P115: HHInc35to40K | Q115: ="MOE "&P115 -> MOE HHInc35to40K | R115: HHInc40to45K | S115: ="MOE "&R115 -> MOE HHInc40to45K | T115: HHInc45to50K | U115: ="MOE "&T115 -> MOE HHInc45to50K | V115: HHInc50to60K | W115: ="MOE "&V115 -> MOE HHInc50to60K | X115: HHInc60to75K | Y115: ="MOE "&X115 -> MOE HHInc60to75K | Z115: HHInc75to100K | AA115: ="MOE "&Z115 -> MOE HHInc75to100K | AB115: HHInc100to125K | AC115: ="MOE "&AB115 -> MOE HHInc100to125K | AD115: HHInc125to150K | AE115: ="MOE "&AD115 -> MOE HHInc125to150K | AF115: HHInc150to200K | AG115: ="MOE "&AF115 -> MOE HHInc150to200K | AH115: HHInc>200K | AI115: ="MOE "&AH115 -> MOE HHInc>200K | AJ115: TotalHH | AK115: ="MOE "&AJ115 -> MOE TotalHH | AL115: HHAgeHHUnder25yrs | AM115: ="MOE "&AL115 -> MOE HHAgeHHUnder25yrs | AN115: HHAgeHH<25HHInc<10K | AO115: ="MOE "&AN115 -> MOE HHAgeHH<25HHInc<10K | AP115: HHAgeHH<25HHInc10to15K | AQ115: ="MOE "&AP115 -> MOE HHAgeHH<25HHInc10to15K | AR115: HHAgeHH<25HHInc15to20K | AS115: ="MOE "&AR115 -> MOE HHAgeHH<25HHInc15to20K | AT115: HHAgeHH<25HHInc20to25K | AU115: ="MOE "&AT115 -> MOE HHAgeHH<25HHInc20to25K | AV115: HHAgeHH<25HHInc25to30K | AW115: ="MOE "&AV115 -> MOE HHAgeHH<25HHInc25to30K | AX115: HHAgeHH<25HHInc30to35K | AY115: ="MOE "&AX115 -> MOE HHAgeHH<25HHInc30to35K | AZ115: HHAgeHH<25HHInc35to40K | BA115: ="MOE "&AZ115 -> MOE HHAgeHH<25HHInc35to40K | BB115: HHAgeHH<25HHInc40to45K | BC115: ="MOE "&BB115 -> MOE HHAgeHH<25HHInc40to45K | BD115: HHAgeHH<25HHInc45to50K | BE115: ="MOE "&BD115 -> MOE HHAgeHH<25HHInc45to50K | BF115: HHAgeHH<25HHInc50to60K | BG115: ="MOE "&BF115 -> MOE HHAgeHH<25HHInc50to60K | BH115: HHAgeHH<25HHInc60to75K | BI115: ="MOE "&BH115 -> MOE HHAgeHH<25HHInc60to75K | BJ115: HHAgeHH<25HHInc75to100K | BK115: ="MOE "&BJ115 -> MOE HHAgeHH<25HHInc75to100K | BL115: HHAgeHH<25HHInc100to125K | BM115: ="MOE "&BL115 -> MOE HHAgeHH<25HHInc100to125K | BN115: HHAgeHH<25HHInc125to150K | BO115: ="MOE "&BN115 -> MOE HHAgeHH<25HHInc125to150K | BP115: HHAgeHH<25HHInc150to200K | BQ115: ="MOE "&BP115 -> MOE HHAgeHH<25HHInc150to200K | BR115: HHAge<25HHInc>200K | BS115: ="MOE "&BR115 -> MOE HHAge<25HHInc>200K | BT115: HHAgeHH25to44yrs | BU115: ="MOE "&BT115 -> MOE HHAgeHH25to44yrs | BV115: HHAgeHH25To44yrsHHInc<10K | BW115: ="MOE "&BV115 -> MOE HHAgeHH25To44yrsHHInc<10K | BX115: HHAgeHH25To44yrsHHInc10to15K | BY115: ="MOE "&BX115 -> MOE HHAgeHH25To44yrsHHInc10to15K | BZ115: HHAgeHH25To44yrsHHInc15to20K | CA115: ="MOE "&BZ115 -> MOE HHAgeHH25To44yrsHHInc15to20K | CB115: HHAgeHH25To44yrsHHInc20to25K | CC115: ="MOE "&CB115 -> MOE HHAgeHH25To44yrsHHInc20to25K | CD115: HHAgeHH25To44yrsHHInc25to30K | CE115: ="MOE "&CD115 -> MOE HHAgeHH25To44yrsHHInc25to30K | CF115: HHAgeHH25To44yrsHHInc30to35K | CG115: ="MOE "&CF115 -> MOE HHAgeHH25To44yrsHHInc30to35K | CH115: HHAgeHH25To44yrsHHInc35to40K | CI115: ="MOE "&CH115 -> MOE HHAgeHH25To44yrsHHInc35to40K | CJ115: HHAgeHH25To44yrsHHInc40to45K | CK115: ="MOE "&CJ115 -> MOE HHAgeHH25To44yrsHHInc40to45K | CL115: HHAgeHH25To44yrsHHInc45to50K | CM115: ="MOE "&CL115 -> MOE HHAgeHH25To44yrsHHInc45to50K | CN115: HHAgeHH25To44yrsHHInc50to60K | CO115: ="MOE "&CN115 -> MOE HHAgeHH25To44yrsHHInc50to60K | CP115: HHAgeHH25To44yrsHHInc60to75K | CQ115: ="MOE "&CP115 -> MOE HHAgeHH25To44yrsHHInc60to75K | CR115: HHAgeHH25To44yrsHHInc75to100K | CS115: ="MOE "&CR115 -> MOE HHAgeHH25To44yrsHHInc75to100K | CT115: HHAgeHH25To44yrsHHInc100to125K | CU115: ="MOE "&CT115 -> MOE HHAgeHH25To44yrsHHInc100to125K | CV115: HHAgeHH25To44yrsHHInc125to150K | CW115: ="MOE "&CV115 -> MOE HHAgeHH25To44yrsHHInc125to150K | CX115: HHAgeHH25To44yrsHHInc150to200K | CY115: ="MOE "&CX115 -> MOE HHAgeHH25To44yrsHHInc150to200K | CZ115: HHAge25To44yrsHHInc>200K | DA115: ="MOE "&CZ115 -> MOE HHAge25To44yrsHHInc>200K | DB115: HHAgeHH45To64yrs | DC115: ="MOE "&DB115 -> MOE HHAgeHH45To64yrs | DD115: HHAgeHH45To64yrsHHInc<10K | DE115: ="MOE "&DD115 -> MOE HHAgeHH45To64yrsHHInc<10K | DF115: HHAgeHH45To64yrsHHInc10to15K | DG115: ="MOE "&DF115 -> MOE HHAgeHH45To64yrsHHInc10to15K | DH115: HHAgeHH45To64yrsHHInc15to20K | DI115: ="MOE "&DH115 -> MOE HHAgeHH45To64yrsHHInc15to20K | DJ115: HHAgeHH45To64yrsHHInc20to25K | DK115: ="MOE "&DJ115 -> MOE HHAgeHH45To64yrsHHInc20to25K | DL115: HHAgeHH45To64yrsHHInc25to30K | DM115: ="MOE "&DL115 -> MOE HHAgeHH45To64yrsHHInc25to30K | DN115: HHAgeHH45To64yrsHHInc30to35K | DO115: ="MOE "&DN115 -> MOE HHAgeHH45To64yrsHHInc30to35K | DP115: HHAgeHH45To64yrsHHInc35to40K | DQ115: ="MOE "&DP115 -> MOE HHAgeHH45To64yrsHHInc35to40K | DR115: HHAgeHH45To64yrsHHInc40to45K | DS115: ="MOE "&DR115 -> MOE HHAgeHH45To64yrsHHInc40to45K | DT115: HHAgeHH45To64yrsHHInc45to50K | DU115: ="MOE "&DT115 -> MOE HHAgeHH45To64yrsHHInc45to50K | DV115: HHAgeHH45To64yrsHHInc50to60K | DW115: ="MOE "&DV115 -> MOE HHAgeHH45To64yrsHHInc50to60K | DX115: HHAgeHH45To64yrsHHInc60to75K | DY115: ="MOE "&DX115 -> MOE HHAgeHH45To64yrsHHInc60to75K | DZ115: HHAgeHH45To64yrsHHInc75to100K | EA115: ="MOE "&DZ115 -> MOE HHAgeHH45To64yrsHHInc75to100K | EB115: HHAgeHH45To64yrsHHInc100to125K | EC115: ="MOE "&EB115 -> MOE HHAgeHH45To64yrsHHInc100to125K | ED115: HHAgeHH45To64yrsHHInc125to150K | EE115: ="MOE "&ED115 -> MOE HHAgeHH45To64yrsHHInc125to150K | EF115: HHAgeHH45To64yrsHHInc150to200K | EG115: ="MOE "&EF115 -> MOE HHAgeHH45To64yrsHHInc150to200K | EH115: HHAge45To64yrsHHInc>200K | EI115: ="MOE "&EH115 -> MOE HHAge45To64yrsHHInc>200K | EJ115: HHAgeHH65yrsorOlder | EK115: ="MOE "&EJ115 -> MOE HHAgeHH65yrsorOlder | EL115: HHAgeHH65yrsorOlderHHInc<10K | EM115: ="MOE "&EL115 -> MOE HHAgeHH65yrsorOlderHHInc<10K | EN115: HHAgeHH65yrsorOlderHHInc10to15K | EO115: ="MOE "&EN115 -> MOE HHAgeHH65yrsorOlderHHInc10to15K | EP115: HHAgeHH65yrsorOlderHHInc15to20K | EQ115: ="MOE "&EP115 -> MOE HHAgeHH65yrsorOlderHHInc15to20K | ER115: HHAgeHH65yrsorOlderHHInc20to25K | ES115: ="MOE "&ER115 -> MOE HHAgeHH65yrsorOlderHHInc20to25K | ET115: HHAgeHH65yrsorOlderHHInc25to30K | EU115: ="MOE "&ET115 -> MOE HHAgeHH65yrsorOlderHHInc25to30K | EV115: HHAgeHH65yrsorOlderHHInc30to35K | EW115: ="MOE "&EV115 -> MOE HHAgeHH65yrsorOlderHHInc30to35K | EX115: HHAgeHH65yrsorOlderHHInc35to40K | EY115: ="MOE "&EX115 -> MOE HHAgeHH65yrsorOlderHHInc35to40K | EZ115: HHAgeHH65yrsorOlderHHInc40to45K | FA115: ="MOE "&EZ115 -> MOE HHAgeHH65yrsorOlderHHInc40to45K | FB115: HHAgeHH65yrsorOlderHHInc45to50K | FC115: ="MOE "&FB115 -> MOE HHAgeHH65yrsorOlderHHInc45to50K | FD115: HHAgeHH65yrsorOlderHHInc50to60K | FE115: ="MOE "&FD115 -> MOE HHAgeHH65yrsorOlderHHInc50to60K | FF115: HHAgeHH65yrsorOlderHHInc60to75K | FG115: ="MOE "&FF115 -> MOE HHAgeHH65yrsorOlderHHInc60to75K | FH115: HHAgeHH65yrsorOlderHHInc75to100K | FI115: ="MOE "&FH115 -> MOE HHAgeHH65yrsorOlderHHInc75to100K | FJ115: HHAgeHH65yrsorOlderHHInc100to125K | FK115: ="MOE "&FJ115 -> MOE HHAgeHH65yrsorOlderHHInc100to125K | FL115: HHAgeHH65yrsorOlderHHInc125to150K | FM115: ="MOE "&FL115 -> MOE HHAgeHH65yrsorOlderHHInc125to150K | FN115: HHAgeHH65yrsorOlderHHInc150to200K | FO115: ="MOE "&FN115 -> MOE HHAgeHH65yrsorOlderHHInc150to200K | FP115: HHAge65yrsorOlderHHInc>200K | FQ115: ="MOE "&FP115 -> MOE HHAge65yrsorOlderHHInc>200K | FR115: MedianHHInc | FS115: ="MOE "&FR115 -> MOE MedianHHInc | FT115: HH under 25 years | FU115: ="MOE "&FT115 -> MOE HH under 25 years | FV115: Householder 25 to 44 years | FW115: ="MOE "&FV115 -> MOE Householder 25 to 44 years | FX115: Householder 45 to 64 years | FY115: ="MOE "&FX115 -> MOE Householder 45 to 64 years | FZ115: Householder 65 years and over | GA115: ="MOE "&FZ115 -> MOE Householder 65 years and over
A116: =VLOOKUP(DropDownList!$B$47,CntyQryCensus!$A$510:$DA$522,A$1) -> Rochester | B116: 13542 | C116: 419 | D116: 431 | E116: 173 | F116: 692 | G116: 285 | H116: 524 | I116: 180 | J116: 550 | K116: 150 | L116: 572 | M116: 189 | N116: 580 | O116: 251 | P116: 413 | Q116: 152 | R116: 397 | S116: 232 | T116: 454 | U116: 169 | V116: 889 | W116: 236 | X116: 1279 | Y116: 211 | Z116: 1982 | AA116: 362 | AB116: 1586 | AC116: 227 | AD116: 1066 | AE116: 274 | AF116: 1185 | AG116: 288 | AH116: 942 | AI116: 215 | AJ116: 13542 | AK116: 419 | AL116: 523 | AM116: 261 | AN116: 0 | AO116: 25 | AP116: 0 | AQ116: 25 | AR116: 102 | AS116: 133 | AT116: 0 | AU116: 25 | AV116: 42 | AW116: 52 | AX116: 0 | AY116: 25 | AZ116: 0 | BA116: 25 | BB116: 0 | BC116: 25 | BD116: 0 | BE116: 25 | BF116: 46 | BG116: 68 | BH116: 71 | BI116: 68 | BJ116: 169 | BK116: 153 | BL116: 52 | BM116: 65 | BN116: 34 | BO116: 43 | BP116: 7 | BQ116: 12 | BR116: 0 | BS116: 25 | BT116: 3721 | BU116: 332 | BV116: 95 | BW116: 87 | BX116: 144 | BY116: 93 | BZ116: 39 | CA116: 51 | CB116: 61 | CC116: 49 | CD116: 90 | CE116: 73 | CF116: 77 | CG116: 72 | CH116: 159 | CI116: 98 | CJ116: 71 | CK116: 88 | CL116: 129 | CM116: 115 | CN116: 242 | CO116: 108 | CP116: 386 | CQ116: 134 | CR116: 680 | CS116: 248 | CT116: 607 | CU116: 162 | CV116: 372 | CW116: 173 | CX116: 330 | CY116: 111 | CZ116: 239 | DA116: 135 | DB116: 5273 | DC116: 402 | DD116: 100 | DE116: 82 | DF116: 136 | DG116: 85 | DH116: 115 | DI116: 57 | DJ116: 245 | DK116: 118 | DL116: 200 | DM116: 113 | DN116: 125 | DO116: 82 | DP116: 89 | DQ116: 60 | DR116: 159 | DS116: 162 | DT116: 136 | DU116: 88 | DV116: 232 | DW116: 114 | DX116: 579 | DY116: 193 | DZ116: 554 | EA116: 160 | EB116: 689 | EC116: 154 | ED116: 523 | EE116: 190 | EF116: 740 | EG116: 240 | EH116: 651 | EI116: 180 | EJ116: 4025 | EK116: 398 | EL116: 236 | EM116: 126 | EN116: 412 | EO116: 235 | EP116: 268 | EQ116: 128 | ER116: 244 | ES116: 104 | ET116: 240 | EU116: 87 | EV116: 378 | EW116: 254 | EX116: 165 | EY116: 75 | EZ116: 167 | FA116: 128 | FB116: 189 | FC116: 95 | FD116: 369 | FE116: 162 | FF116: 243 | FG116: 100 | FH116: 579 | FI116: 210 | FJ116: 238 | FK116: 94 | FL116: 137 | FM116: 117 | FN116: 108 | FO116: 62 | FP116: 52 | FQ116: 52 | FR116: 74882 | FS116: 5100 | FT116: 77521 | FU116: 14008 | FV116: 83730 | FW116: 10733 | FX116: 98139 | FY116: 16293 | FZ116: 41316 | GA116: 8233 | GB116: 1404 | GC116: 301.1444836 | GD116: 1576 | GE116: 302.6945655 | GF116: 1934 | GG116: 291.7310405 | GH116: 2575 | GI116: 287.7029718 | GJ116: 1736 | GK116: 234 | GL116: 1271 | GM116: 194.1648784 | GN116: 518 | GO116: 141 | GP116: 95 | GQ116: 56
A118: Number of Households by Income
A119: NAME | B119: HHIncLessThn10k | C119: ="MOE "&B119 -> MOE HHIncLessThn10k | D119: HHInc10to15K | E119: ="MOE "&D119 -> MOE HHInc10to15K | F119: HHInc15to25K | G119: ="MOE "&F119 -> MOE HHInc15to25K | H119: HHInc25to35K | I119: ="MOE "&H119 -> MOE HHInc25to35K | J119: HHInc35to50K | K119: ="MOE "&J119 -> MOE HHInc35to50K | L119: HHInc50to75K | M119: ="MOE "&L119 -> MOE HHInc50to75K | N119: HHInc75to100K | O119: ="MOE "&N119 -> MOE HHInc75to100K | P119: HHInc100to150K | Q119: ="MOE "&P119 -> MOE HHInc100to150K | R119: HHInc150to200K | S119: ="MOE "&R119 -> MOE HHInc150to200K | T119: HHIncOver200K | U119: ="MOE "&T119 -> MOE HHIncOver200K
A120: =VLOOKUP(DropDownList!$B$47,CntyQryCensus!$A$510:$DA$522,A$1) -> Rochester | B120: 431 | C120: 173 | D120: 692 | E120: 285 | F120: 1074 | G120: 234.3074903 | H120: 1152 | I120: 314.2005729 | J120: 1264 | K120: 324.7907018 | L120: 2168 | M120: 316.5706872 | N120: 1982 | O120: 362 | P120: 2652 | Q120: 355.8159637 | R120: 1185 | S120: 288 | T120: 942 | U120: 215 | V120: 533 | W120: 149 | X120: 637 | Y120: 143 | Z120: 397 | AA120: 109 | AB120: 163 | AC120: 71 | AD120: 186 | AE120: 95 | AF120: 27 | AG120: 25 | BW120: 40 | BX120: 80 | BY120: 51 | BZ120: 13 | CA120: 20 | CB120: 12 | CC120: 19 | CD120: 104 | CE120: 88 | CF120: 115 | CG120: 65 | CH120: 276 | CI120: 90 | CJ120: 254 | CK120: 107 | CL120: 166 | CM120: 59 | CN120: 152 | CO120: 59 | CP120: 206 | CQ120: 97 | CR120: 79 | CS120: 43 | DH120: Lee | DJ120: Esitimate | DK120: Margin Of Error | DL120: 1774 | DM120: 134 | DP120: 83 | DQ120: 74 | DR120: 28 | DS120: 43 | DT120: 92 | DU120: 104.5801128 | DV120: 43 | DW120: 49.24428901 | DX120: 174 | DY120: 91.58602513 | DZ120: 256 | EA120: 114.6342008 | EB120: 271 | EC120: 92 | ED120: 490 | EE120: 193.9922679 | EF120: 225 | EG120: 98 | EH120: 112 | EI120: 70
A123: NAME | B123: TotalPop | C123: ="MOE "&B123 -> MOE TotalPop | D123: Total Individuals living in Poverty | E123: ="MOE "&D123 -> MOE Total Individuals living in Poverty | F123: Under 5 yrs. | G123: ="MOE "&F123 -> MOE Under 5 yrs. | H123: 5 to 17 yrs. | I123: ="MOE "&H123 -> MOE 5 to 17 yrs. | J123: 18 to 64 yrs. | K123: ="MOE "&J123 -> MOE 18 to 64 yrs. | L123: 65 to 74 yrs. | M123: ="MOE "&L123 -> MOE 65 to 74 yrs. | N123: 75 yrs. & Over | O123: ="MOE "&N123 -> MOE 75 yrs. & Over | P123: Total Individuals Not living Poverty | Q123: ="MOE "&P123 -> MOE Total Individuals Not living Poverty | R123: Under 5 yrs. | S123: ="MOE "&R123 -> MOE Under 5 yrs. | T123: 5 to 17 yrs. | U123: ="MOE "&T123 -> MOE 5 to 17 yrs. | V123: 18 to 64 yrs. | W123: ="MOE "&V123 -> MOE 18 to 64 yrs. | X123: 65 to 74 yrs. | Y123: ="MOE "&X123 -> MOE 65 to 74 yrs. | Z123: 75 yrs. & Over | AA123: ="MOE "&Z123 -> MOE 75 yrs. & Over | AB123: Total HH | AC123: ="MOE "&AB123 -> MOE Total HH | AD123: Total Households Below Poverty | AE123: ="MOE "&AD123 -> MOE Total Households Below Poverty | AF123: Family Households in Poverty | AG123: ="MOE "&AF123 -> MOE Family Households in Poverty | AH123: Married Couple Fam HH | AI123: ="MOE "&AH123 -> MOE Married Couple Fam HH | AJ123: Other Family | AK123: ="MOE "&AJ123 -> MOE Other Family | AL123: Male Head of Family HH no wife | AM123: ="MOE "&AL123 -> MOE Male Head of Family HH no wife | AN123: Female Head of Family HH no husband | AO123: ="MOE "&AN123 -> MOE Female Head of Family HH no husband | AP123: Non-Family HH | AQ123: ="MOE "&AP123 -> MOE Non-Family HH | AR123: Non-Family Male HH | AS123: ="MOE "&AR123 -> MOE Non-Family Male HH | AT123: Non-Family Female HH | AU123: ="MOE "&AT123 -> MOE Non-Family Female HH | AV123: Total Households at or Above Poverty | AW123: ="MOE "&AV123 -> MOE Total Households at or Above Poverty | AX123: Family Households above Poverty | AY123: ="MOE "&AX123 -> MOE Family Households above Poverty | AZ123: Married Couple Fam HH | BA123: ="MOE "&AZ123 -> MOE Married Couple Fam HH | BB123: Other Family | BC123: ="MOE "&BB123 -> MOE Other Family | BD123: Male Head of Family HH no wife | BE123: ="MOE "&BD123 -> MOE Male Head of Family HH no wife | BF123: Female Head of Family HH no husband | BG123: ="MOE "&BF123 -> MOE Female Head of Family HH no husband | BH123: Non-Family HH | BI123: ="MOE "&BH123 -> MOE Non-Family HH | BJ123: Non-Family Male HH | BK123: ="MOE "&BJ123 -> MOE Non-Family Male HH | BL123: Non-Family Female HH | BM123: ="MOE "&BL123 -> MOE Non-Family Female HH | BN123: Married Couple with Children Below Poverty | BO123: ="MOE "&BN123 -> MOE Married Couple with Children Below Poverty | BP123: Male HH with children below poverty | BQ123: ="MOE "&BP123 -> MOE Male HH with children below poverty | BR123: Female HH with children below poverty | BS123: ="MOE "&BR123 -> MOE Female HH with children below poverty | BT123: Married Couple with Children At or Above Poverty | BU123: ="MOE "&BT123 -> MOE Married Couple with Children At or Above Poverty | BV123: Male HH with children at or above poverty | BW123: ="MOE "&BV123 -> MOE Male HH with children at or above poverty | BX123: Female HH with children at or above poverty | BY123: ="MOE "&BX123 -> MOE Female HH with children at or above poverty
A124: =VLOOKUP(DropDownList!$B$47,CntyQryCensus!$A$510:$DA$522,A$1) -> Rochester | B124: 31710 | C124: 254 | D124: 2958 | E124: 660 | F124: 158 | G124: 139.6065901 | H124: 518 | I124: 177.9269513 | J124: 1693 | K124: 354.4389933 | L124: 327 | M124: 208.5976989 | N124: 262 | O124: 156.0160248 | P124: 28752 | Q124: 682 | R124: 1183 | S124: 234.2925522 | T124: 4332 | U124: 518.1341525 | V124: 18347 | W124: 935.7130971 | X124: 3001 | Y124: 361.6973873 | Z124: 1889 | AA124: 300.4213707 | AB124: 13471 | AC124: 518 | AD124: 1466 | AE124: 339 | AF124: 530 | AG124: 183 | AH124: 207 | AI124: 111 | AJ124: 323 | AK124: 137 | AL124: 118 | AM124: 77 | AN124: 205 | AO124: 113 | AP124: 936 | AQ124: 314 | AR124: 304 | AS124: 190 | AT124: 632 | AU124: 264 | AV124: 12005 | AW124: 512 | AX124: 7946 | AY124: 417 | AZ124: 6175 | BA124: 444 | BB124: 1771 | BC124: 342 | BD124: 665 | BE124: 212 | BF124: 1106 | BG124: 273 | BH124: 4059 | BI124: 524 | BJ124: 2005 | BK124: 340 | BL124: 2054 | BM124: 417 | BN124: 140 | BO124: 104 | BP124: 90 | BQ124: 71 | BR124: 188 | BS124: 108 | BT124: 2046 | BU124: 296 | BV124: 336 | BW124: 145 | BX124: 718 | BY124: 224
A126: Household Income By Tenure
A127: NAME | B127: TotalOccHU | C127: ="MOE "&B127 -> MOE TotalOccHU | D127: OwnOccHU | E127: ="MOE "&D127 -> MOE OwnOccHU | F127: OOHUInc<5K | G127: ="MOE "&F127 -> MOE OOHUInc<5K | H127: OOHUInc5to10K | I127: ="MOE "&H127 -> MOE OOHUInc5to10K | J127: OOHUInc10to15K | K127: ="MOE "&J127 -> MOE OOHUInc10to15K | L127: OOHUInc15to20K | M127: ="MOE "&L127 -> MOE OOHUInc15to20K | N127: OOHUInc20to25K | O127: ="MOE "&N127 -> MOE OOHUInc20to25K | P127: OOHUInc25to35K | Q127: ="MOE "&P127 -> MOE OOHUInc25to35K | R127: OOHUInc35to50K | S127: ="MOE "&R127 -> MOE OOHUInc35to50K | T127: OOHUInc50to75K | U127: ="MOE "&T127 -> MOE OOHUInc50to75K | V127: OOHUInc75to100K | W127: ="MOE "&V127 -> MOE OOHUInc75to100K | X127: OOHUInc100to150K | Y127: ="MOE "&X127 -> MOE OOHUInc100to150K | Z127: OOHUInc>150K | AA127: ="MOE "&Z127 -> MOE OOHUInc>150K | AB127: RentOccHU | AC127: ="MOE "&AB127 -> MOE RentOccHU | AD127: ROHUInc<5K | AE127: ="MOE "&AD127 -> MOE ROHUInc<5K | AF127: ROHUInc5to10K | AG127: ="MOE "&AF127 -> MOE ROHUInc5to10K | AH127: ROHUInc10to15K | AI127: ="MOE "&AH127 -> MOE ROHUInc10to15K | AJ127: ROHUInc15to20K | AK127: ="MOE "&AJ127 -> MOE ROHUInc15to20K | AL127: ROHUInc20to25K | AM127: ="MOE "&AL127 -> MOE ROHUInc20to25K | AN127: ROHUInc25to35K | AO127: ="MOE "&AN127 -> MOE ROHUInc25to35K | AP127: ROHUInc35to50K | AQ127: ="MOE "&AP127 -> MOE ROHUInc35to50K | AR127: ROHUInc50to75K | AS127: ="MOE "&AR127 -> MOE ROHUInc50to75K | AT127: ROHUInc75to100K | AU127: ="MOE "&AT127 -> MOE ROHUInc75to100K | AV127: ROHUInc100to150K | AW127: ="MOE "&AV127 -> MOE ROHUInc100to150K | AX127: ROHUInc>150K | AY127: ="MOE "&AX127 -> MOE ROHUInc>150K | AZ127: Total OCC HUInc<5K | BA127: ="MOE "&AZ127 -> MOE Total OCC HUInc<5K | BB127: Total OCC HUInc5to10K | BC127: ="MOE "&BB127 -> MOE Total OCC HUInc5to10K | BD127: Total OCC HUInc10to15K | BE127: ="MOE "&BD127 -> MOE Total OCC HUInc10to15K | BF127: Total OCC HUInc15to20K | BG127: ="MOE "&BF127 -> MOE Total OCC HUInc15to20K | BH127: Total OCC HUInc20to25K | BI127: ="MOE "&BH127 -> MOE Total OCC HUInc20to25K | BJ127: Total OCC HUInc25to35K | BK127: ="MOE "&BJ127 -> MOE Total OCC HUInc25to35K | BL127: Total OCC HUInc35to50K | BM127: ="MOE "&BL127 -> MOE Total OCC HUInc35to50K | BN127: Total OCC HUInc50to75K | BO127: ="MOE "&BN127 -> MOE Total OCC HUInc50to75K | BP127: Total OCC HUInc75to100K | BQ127: ="MOE "&BP127 -> MOE Total OCC HUInc75to100K | BR127: Total OCC HUInc100to150K | BS127: ="MOE "&BR127 -> MOE Total OCC HUInc100to150K | BT127: Total OCC HUInc>150K | BU127: ="MOE "&BT127 -> MOE Total OCC HUInc>150K | BV127: MedHHInc | BW127: ="MOE "&BV127 -> MOE MedHHInc | BX127: MedOwnOccHHInc | BY127: ="MOE "&BX127 -> MOE MedOwnOccHHInc | BZ127: MedRentOccHHInc | CA127: ="MOE "&BZ127 -> MOE MedRentOccHHInc
A128: =VLOOKUP(DropDownList!$B$47,CntyQryCensus!$A$510:$DA$522,A$1) -> Rochester | B128: 13542 | C128: 419 | D128: 8933 | E128: 466 | F128: 96 | G128: 59 | H128: 35 | I128: 35 | J128: 293 | K128: 157 | L128: 186 | M128: 81 | N128: 265 | O128: 96 | P128: 625 | Q128: 203 | R128: 798 | S128: 218 | T128: 1259 | U128: 245 | V128: 1474 | W128: 307 | X128: 2152 | Y128: 318 | Z128: 1750 | AA128: 317 | AB128: 4609 | AC128: 426 | AD128: 160 | AE128: 111 | AF128: 140 | AG128: 97 | AH128: 399 | AI128: 230 | AJ128: 338 | AK128: 174 | AL128: 285 | AM128: 110 | AN128: 527 | AO128: 276 | AP128: 466 | AQ128: 227 | AR128: 909 | AS128: 234 | AT128: 508 | AU128: 186 | AV128: 500 | AW128: 180 | AX128: 377 | AY128: 177 | AZ128: 256 | BA128: 125.7060062 | BB128: 175 | BC128: 103.1212878 | BD128: 692 | BE128: 278.4762108 | BF128: 524 | BG128: 191.9296746 | BH128: 550 | BI128: 146 | BJ128: 1152 | BK128: 342.6149442 | BL128: 1264 | BM128: 314.7268657 | BN128: 2168 | BO128: 338.7934474 | BP128: 1982 | BQ128: 358.9498572 | BR128: 2652 | BS128: 365.4093595 | BT128: 2127 | BU128: 363.0674868 | BV128: 74882 | BW128: 5100 | BX128: 86956 | BY128: 11532 | BZ128: 49680 | CA128: 9616
A130: Population Data
A131: NAME | B131: Total Population | C131: MOE Total Population | D131: Under 15 Years | E131: MOE Under 15 yrs. | F131: 15 to 24 yrs. | G131: MOE 15 to 24 yrs. | H131: 25 to 34 yrs. | I131: MOE 25 to 34 yrs. | J131: 35 to 44 yrs. | K131: MOE 35 to 44 yrs. | L131: 45 to 54 yrs. | M131: MOE 45 to 54 yrs. | N131: 55 to 64 yrs. | O131: MOE 55 to 64 yrs. | P131: 65 to 74 yrs. | Q131: MOE 65 to 74 yrs. | R131: Over 74 yrs. | S131: MOE Over 74 yrs. | T131: TotalHH | U131: MOE TotalHH | V131: FamilyHH | W131: MOE FamilyHH | X131: MarriedFamilyHH | Y131: MOE MarriedFamilyHH | Z131: SingleFamilyHH | AA131: MOE SingleFamilyHH | AB131: Sfamily-MaleHH | AC131: MOE Sfamily-MaleHH | AD131: Sfamily-FemaleHH | AE131: MOE Sfamily-FemaleHH | AF131: NonFamilyHH | AG131: MOE NonFamilyHH | AH131: NonFamilyHH-LivingAlone | AI131: MOE NonFamilyHH-LivingAlone | AJ131: NonFamilyHH-NotLivingAlone | AK131: MOE NonFamilyHH-NotLivingAlone | AL131: PopRaceWhite | AM131: MOE PopRaceWhite | AN131: PopRaceBlack | AO131: MOE PopRaceBlack | AP131: PopRaceAmerican Indian | AQ131: MOE PopRaceAmerican Indian | AR131: PopRaceAsian &Pacific Is. | AS131: MOE PopRaceAsian &Pacific Is. | AT131: PopRaceOther* | AU131: MOE PopRaceOther* | AV131: PopRaceHispanic or Latino: | AW131: MOE PopRaceHispanic or Latino: | AX131: MedianAgeTotalPop | AY131: MOE MedianAgeTotalPop | AZ131: MedianAgeMale | BA131: MOE MedianAgeMale | BB131: MedianAgeFemale | BC131: MOE MedianAgeFemale | BD131: AvgHHSizeTotal | BE131: MOE AvgHHSizeTotal | BF131: AvgHHSizeFamilyHH | BG131: MOE AvgHHSizeFamilyHH | BH131: AvgHHSizeNonFamilyHH | BI131: MOE AvgHHSizeNonFamilyHH
A132: =VLOOKUP(DropDownList!$B$47,CntyQryCensus!$A$510:$DA$522,A$1) -> Rochester | B132: 32317 | C132: 37 | D132: 5379 | E132: 581.3071477 | F132: 4073 | G132: 538.9786638 | H132: 3883 | I132: 458.9063085 | J132: 4020 | K132: 491.3562862 | L132: 4322 | M132: 461.1594084 | N132: 5019 | O132: 503.8769691 | P132: 3380 | Q132: 476.8626637 | R132: 2241 | S132: 377.9603154 | T132: 13471 | U132: 518 | V132: 8476 | W132: 397 | X132: 6382 | Y132: 444 | Z132: 2094 | AA132: 330 | AB132: 783 | AC132: 206 | AD132: 1311 | AE132: 269 | AF132: 4995 | AG132: 617 | AH132: 3890 | AI132: 578 | AJ132: 1105 | AK132: 269 | AL132: 29393 | AM132: 540 | AN132: 324 | AO132: 194 | AP132: 4 | AQ132: 8 | AR132: 713 | AS132: 353.4756003 | AT132: 1059 | AU132: 294.0646187 | AV132: 824 | AW132: 263 | AX132: 42.6 | AY132: 1.8 | AZ132: 39.5 | BA132: 3 | BB132: 44.8 | BC132: 2.4 | BD132: 2.385197832 | BE132: 0.09204229912 | BF132: 3.033860311 | BG132: 0.1718401802 | BH132: 1.284484484 | BI132: 0.2274449557 | DB132: 29 | DC132: 535 | DD132: 534
A134: Nativity and Prior Place of Residence
